Workbook

Sheet Instrucciones
B3: CALIFICACIÓN DE LAS COMPETENCIAS CLAVE Y DE LAS MATERIAS 1º_BACH_ARTE_Vía Música y Artes Escénicas
B6: INSTRUCCIONES 1. INCORPORAR LOS CRITERIOS DE CALIFICACIÓN DE LAS COMPETENCIAS CLAVE BOTÓN: "INCORPORAR LOS CRITERIOS DE CALIFICACIÓN DE LAS COMPETENCIAS CLAVE." Para introducir los criterios de calificación de las competencias clave hay que seleccionar una opción en cada uno de los siguientes campos: -Pesos de los criterios de evaluación en el cálculo de la calificación de los descriptores operativos. -Pesos de los descriptores operativos en el cálculo de la calificación de las competencias clave. Si se considera, se puede bloquear la información introducida pulsado en el botón "PROTEGIDA" e introduciendo una contaseña. En caso de querer desbloquear la página se debe pulsar en el botón "DESPROTEGIDA" e introducir la contraseña marcada. 2. INCORPORAR EL NOMBRE DE LOS ALUMNOS QUE COMPONEN EL GRUPO. BOTÓN: "INCORPORAR EL LISTADO DE ALUMNOS" Introducir el nombre de todos los alumnos que componen el grupo-clase. Marcar las materias de opción que cursa cada alumno. Pulsando sobre el botón "informe" en cada alumnno se visualiza de forma individualizada la composición de las calificaciones de las materias y de las competencias clave a partir de las notas de los criterios de evaluación. Además, se incorporan dos botones para facilitar el trabajo colaborativo a través de TEAMS o Onedrive. El procedimiento es el siguiente: 1º Se pulsa el botón superior de esta sección TEAMS/Onedrive; 2º Una vez guardado el archivo, se comparte con las citadas aplicaciones; 3º Los docentes incorporan las céntésimas de redondeo de su materia en la pestaña "Redondeo" y las notas de los criterios de evaluación en la pestaña correspondiente a su materia; 4º Se descarga el archivo y se pulsa en el segundo botón de esta sección TEAMS/Onedrive para normalizar su funcionamiento y poder visualizar toda la información que esta herramienta ofrece. 3. INCORPORAR LAS CALIFICACIONES DE LOS CRITERIOS DE EVALUACIÓN DE LAS MATERIAS CURSADAS POR EL ALUMNO. BOTÓN: "INCORPORAR LA CALIFICACIÓN POR MATERIAS DE LOS CRITERIOS DE EVALUACIÓN " Seleccionar la materia. En la pestaña de destino introducir los pesos (ponderaciones) de cada criterio de evaluación (es decir, los criterios de calificación de la materia) y las calificaciones de los criterios de evaluación para los alumnos que cursen la materia o, en su caso, la calificación de la materia. 4. OBSERVAR LAS NOTAS DE LAS COMPETENCIAS CLAVE DE LOS ALUMNOS. BOTÓN: "VISUALIZAR LAS NOTAS DE LAS COMPETENCIAS CLAVE" Permite observar las notas de las competencias clave de cada alumno en función de los criterios de calificación de las competencias clave introducidos. Además, desde la pantalla de destino se puede generar un documento para exportar las notas de las competencias clave a STILUS. Para ello, previamente es necesario introducir las centésimas de redondeo de las notas de las competencias clave en la celda creada al efecto. 5. OBSERVAR LAS NOTAS DE LAS MATERIAS DE LOS ALUMNOS. BOTÓN: "VISUALIZAR LAS NOTAS DE LAS MATERIAS" Permite observar las notas de las materias de cada alumno, en función de los criterios de calificación de la materia introducidos. Además, desde la pantalla de destino se puede generar un documento para exportar las notas de las materias a STILUS.

Sheet Criterios de calificacion CClav
D4: CRITERIOS DE CALIFICACIÓN DE LAS COMPETENCIAS CLAVE
D6: Pesos de los criterios de evaluación en el cálculo de la calificación de los descriptores operativos
E8: MEDIA SIMPLE. Se aplica un criterio común para el cálculo de la calificación de todos los descriptores. Todos los criterios de evaluación pesan (ponderan) los mismo en la calificaión de los descriptores operativos.
E10: MEDIA PONDERADA POR CARGA HORARIA. Se aplica un criterio común para el cálculo de la calificación de todos los descriptores. El peso de los criterios de evaluación se determina en función de la carga horaria de la materia. (RECOMENDADO)
E12: LIBRE. Se aplica un criterio común para el cálculo de la calificación de todos los descriptores. El peso de cada criterio de evaluación en la calificación de los descriptores se determina por el centro.
E14: LIBRE DIFERENCIADO POR DESCRIPTORES. Se aplica un criterio diferenciado para el cálculo de la calificación de cada descriptor. El peso de cada criterio de evaluación en la calificación de cada descriptor se determina por el centro.
D16: Pesos de los descriptores operativos en el cálculo de la calificación de las competencias clave
E18: MEDIA PONDERADA. El peso de los descriptores operativos en el cálculo de la calificación de la competencia clave se determina en proporción al número de vinculaciones de cada descriptor operativo con los criterios de evaluación (RECOMENDADO)
E20: LIBRE. El peso (ponderación) de los descriptores operativos en el cálculo de la calificación de la competencia clave se determina por el centro.

Sheet Peso criterios carga horaria
F2: Mismo peso todos los descriptores
F3: Sí
E4: CALIFICACIÓN | F4: PESO TODOS
B5: Análisis Musical I | C5: Comp. Esp. 1 | D5: Criterio Evaluación 1.1 | F5: 4
D6: Criterio Evaluación 1.2 | F6: 4
C7: Comp. Esp. 2 | D7: Criterio Evaluación 2.1 | F7: 4
D8: Criterio Evaluación 2.2 | F8: 4
D9: Criterio Evaluación 2.3 | F9: 4
D10: Criterio Evaluación 2.4 | F10: 4
C11: Comp. Esp. 3 | D11: Criterio Evaluación 3.1 | F11: 4
D12: Criterio Evaluación 3.2 | F12: 4
D13: Criterio Evaluación 3.3 | F13: 4
C14: Comp. Esp. 4 | D14: Criterio Evaluación 4.1 | F14: 4
D15: Criterio Evaluación 4.2 | F15: 4
D16: Criterio Evaluación 4.3 | F16: 4
D17: Criterio Evaluación 4.4 | F17: 4
D18: Criterio Evaluación 4.5 | F18: 4
C19: Comp. Esp. 5 | D19: Criterio Evaluación 5.1 | F19: 4
D20: Criterio Evaluación 5.2 | F20: 4
B21: Anatomía Aplicada | C21: Comp. Esp. 1 | D21: Criterio Evaluación 1.1 | F21: 4
D22: Criterio Evaluación 1.2 | F22: 4
D23: Criterio Evaluación 1.3 | F23: 4
C24: Comp. Esp. 2 | D24: Criterio Evaluación 2.1 | F24: 4
D25: Criterio Evaluación 2.2 | F25: 4
D26: Criterio Evaluación 2.3 | F26: 4
C27: Comp. Esp. 3 | D27: Criterio Evaluación 3.1 | F27: 4
D28: Criterio Evaluación 3.2 | F28: 4
D29: Criterio Evaluación 3.3 | F29: 4
D30: Criterio Evaluación 3.4 | F30: 4
D31: Criterio Evaluación 3.5 | F31: 4
D32: Criterio Evaluación 3.6 | F32: 4
C33: Comp. Esp. 4 | D33: Criterio Evaluación 4.1 | F33: 4
D34: Criterio Evaluación 4.2 | F34: 4
D35: Criterio Evaluación 4.3 | F35: 4
D36: Criterio Evaluación 4.4 | F36: 4
C37: Comp. Esp. 5 | D37: Criterio Evaluación 5.1 | F37: 4
D38: Criterio Evaluación 5.2 | F38: 4
D39: Criterio Evaluación 5.3 | F39: 4
D40: Criterio Evaluación 5.4 | F40: 4
D41: Criterio Evaluación 5.5 | F41: 4
D42: Criterio Evaluación 5.6 | F42: 4
D43: Criterio Evaluación 5.7 | F43: 4
C44: Comp. Esp. 6 | D44: Criterio Evaluación 6.1 | F44: 4
D45: Criterio Evaluación 6.2 | F45: 4
D46: Criterio Evaluación 6.3 | F46: 4
D47: Criterio Evaluación 6.4 | F47: 4
D48: Criterio Evaluación 6.5 | F48: 4
D49: Criterio Evaluación 6.6 | F49: 4
D50: Criterio Evaluación 6.7 | F50: 4
D51: Criterio Evaluación 6.8 | F51: 4
D52: Criterio Evaluación 6.9 | F52: 4
B53: Artes Escénicas I | C53: Comp. Esp. 1 | D53: Criterio Evaluación 1.1 | F53: 4
D54: Criterio Evaluación 1.2 | F54: 4
C55: Comp. Esp. 2 | D55: Criterio Evaluación 2.1 | F55: 4
D56: Criterio Evaluación 2.2 | F56: 4
C57: Comp. Esp. 3 | D57: Criterio Evaluación 3.1 | F57: 4
D58: Criterio Evaluación 3.2 | F58: 4
C59: Comp. Esp. 4 | D59: Criterio Evaluación 4.1 | F59: 4
D60: Criterio Evaluación 4.2 | F60: 4
C61: Comp. Esp. 5 | D61: Criterio Evaluación 5.1 | F61: 4
D62: Criterio Evaluación 5.2 | F62: 4
B63: Coro y Técnica Vocal I | C63: Comp. Esp. 1 | D63: Criterio Evaluación 1.1 | F63: 4
D64: Criterio Evaluación 1.2 | F64: 4
D65: Criterio Evaluación 1.3 | F65: 4
C66: Comp. Esp. 2 | D66: Criterio Evaluación 2.1 | F66: 4
D67: Criterio Evaluación 2.2 | F67: 4
D68: Criterio Evaluación 2.3 | F68: 4
C69: Comp. Esp. 3 | D69: Criterio Evaluación 3.1 | F69: 4
D70: Criterio Evaluación 3.2 | F70: 4
D71: Criterio Evaluación 3.3 | F71: 4
C72: Comp. Esp. 4 | D72: Criterio Evaluación 4.1 | F72: 4
D73: Criterio Evaluación 4.2 | F73: 4
D74: Criterio Evaluación 4.3 | F74: 4
D75: Criterio Evaluación 4.4 | F75: 4
D76: Criterio Evaluación 4.5 | F76: 4
B77: Cultura Audiovisual | C77: Comp. Esp. 1 | D77: Criterio Evaluación 1.1 | F77: 4
D78: Criterio Evaluación 1.2 | F78: 4
D79: Criterio Evaluación 1.3 | F79: 4
D80: Criterio Evaluación 1.4 | F80: 4
C81: Comp. Esp. 2 | D81: Criterio Evaluación 2.1 | F81: 4
D82: Criterio Evaluación 2.2 | F82: 4
D83: Criterio Evaluación 2.3 | F83: 4
D84: Criterio Evaluación 2.4 | F84: 4
C85: Comp. Esp. 3 | D85: Criterio Evaluación 3.1 | F85: 4
D86: Criterio Evaluación 3.2 | F86: 4
D87: Criterio Evaluación 3.3 | F87: 4
D88: Criterio Evaluación 3.4 | F88: 4
D89: Criterio Evaluación 3.5 | F89: 4
D90: Criterio Evaluación 3.6 | F90: 4
C91: Comp. Esp. 4 | D91: Criterio Evaluación 4.1 | F91: 4
D92: Criterio Evaluación 4.2 | F92: 4
D93: Criterio Evaluación 4.3 | F93: 4
D94: Criterio Evaluación 4.4 | F94: 4
D95: Criterio Evaluación 4.5 | F95: 4
D96: Criterio Evaluación 4.6 | F96: 4
B97: Educación Física | C97: Comp. Esp. 1 | D97: Criterio Evaluación 1.1 | F97: 2
D98: Criterio Evaluación 1.2 | F98: 2
D99: Criterio Evaluación 1.3 | F99: 2
D100: Criterio Evaluación 1.4 | F100: 2
D101: Criterio Evaluación 1.5 | F101: 2
D102: Criterio Evaluación 1.6 | F102: 2
D103: Criterio Evaluación 1.7 | F103: 2
D104: Criterio Evaluación 1.8 | F104: 2
D105: Criterio Evaluación 1.9 | F105: 2
C106: Comp. Esp. 2 | D106: Criterio Evaluación 2.1 | F106: 2
D107: Criterio Evaluación 2.2 | F107: 2
D108: Criterio Evaluación 2.3 | F108: 2
D109: Criterio Evaluación 2.4 | F109: 2
C110: Comp. Esp. 3 | D110: Criterio Evaluación 3.1 | F110: 2
D111: Criterio Evaluación 3.2 | F111: 2
D112: Criterio Evaluación 3.3 | F112: 2
C113: Comp. Esp. 4 | D113: Criterio Evaluación 4.1 | F113: 2
D114: Criterio Evaluación 4.2 | F114: 2
C115: Comp. Esp. 5 | D115: Criterio Evaluación 5.1 | F115: 2
D116: Criterio Evaluación 5.2 | F116: 2
B117: Filosofía | C117: Comp. Esp. 1 | D117: Criterio Evaluación 1.1 | F117: 3
D118: Criterio Evaluación 1.2 | F118: 3
C119: Comp. Esp. 2 | D119: Criterio Evaluación 2.1 | F119: 3
D120: Criterio Evaluación 2.2 | F120: 3
C121: Comp. Esp. 3 | D121: Criterio Evaluación 3.1 | F121: 3
D122: Criterio Evaluación 3.2 | F122: 3
D123: Criterio Evaluación 3.3 | F123: 3
C124: Comp. Esp. 4 | D124: Criterio Evaluación 4.1 | F124: 3
C125: Comp. Esp. 5 | D125: Criterio Evaluación 5.1 | F125: 3
D126: Criterio Evaluación 5.2 | F126: 3
C127: Comp. Esp. 6 | D127: Criterio Evaluación 6.1 | F127: 3
D128: Criterio Evaluación 6.2 | F128: 3
C129: Comp. Esp. 7 | D129: Criterio Evaluación 7.1 | F129: 3
C130: Comp. Esp. 8 | D130: Criterio Evaluación 8.1 | F130: 3
C131: Comp. Esp. 9 | D131: Criterio Evaluación 9.1 | F131: 3
C132: Comp. Esp. 10 | D132: Criterio Evaluación 10.1 | F132: 3
D133: Criterio Evaluación 10.2 | F133: 3
B134: Lengua Castellana y Literatura | C134: Comp. Esp. 1 | D134: Criterio Evaluación 1.1 | F134: 4
D135: Criterio Evaluación 1.2 | F135: 4
D136: Criterio Evaluación 1.3 | F136: 4
D137: Criterio Evaluación 1.4 | F137: 4
D138: Criterio Evaluación 1.5 | F138: 4
C139: Comp. Esp. 2 | D139: Criterio Evaluación 2.1 | F139: 4
D140: Criterio Evaluación 2.2 | F140: 4
D141: Criterio Evaluación 2.3 | F141: 4
C142: Comp. Esp. 3 | D142: Criterio Evaluación 3.1 | F142: 4
D143: Criterio Evaluación 3.2 | F143: 4
D144: Criterio Evaluación 3.3 | F144: 4
C145: Comp. Esp. 4 | D145: Criterio Evaluación 4.1 | F145: 4
D146: Criterio Evaluación 4.2 | F146: 4
D147: Criterio Evaluación 4.3 | F147: 4
C148: Comp. Esp. 5 | D148: Criterio Evaluación 5.1 | F148: 4
D149: Criterio Evaluación 5.2 | F149: 4
D150: Criterio Evaluación 5.3 | F150: 4
C151: Comp. Esp. 6 | D151: Criterio Evaluación 6.1 | F151: 4
D152: Criterio Evaluación 6.2 | F152: 4
D153: Criterio Evaluación 6.3 | F153: 4
D154: Criterio Evaluación 6.4 | F154: 4
C155: Comp. Esp. 7 | D155: Criterio Evaluación 7.1 | F155: 4
D156: Criterio Evaluación 7.2 | F156: 4
D157: Criterio Evaluación 7.3 | F157: 4
C158: Comp. Esp. 8 | D158: Criterio Evaluación 8.1 | F158: 4
D159: Criterio Evaluación 8.2 | F159: 4
D160: Criterio Evaluación 8.3 | F160: 4
D161: Criterio Evaluación 8.4 | F161: 4
D162: Criterio Evaluación 8.5 | F162: 4
C163: Comp. Esp. 9 | D163: Criterio Evaluación 9.1 | F163: 4
D164: Criterio Evaluación 9.2 | F164: 4
D165: Criterio Evaluación 9.3 | F165: 4
D166: Criterio Evaluación 9.4 | F166: 4
D167: Criterio Evaluación 9.5 | F167: 4
C168: Comp. Esp. 10 | D168: Criterio Evaluación 10.1 | F168: 4
D169: Criterio Evaluación 10.2 | F169: 4
D170: Criterio Evaluación 10.3 | F170: 4
B171: Lengua Extranjera I | C171: Comp. Esp. 1 | D171: Criterio Evaluación 1.1 | F171: 3
D172: Criterio Evaluación 1.2 | F172: 3
D173: Criterio Evaluación 1.3 | F173: 3
C174: Comp. Esp. 2 | D174: Criterio Evaluación 2.1 | F174: 3
D175: Criterio Evaluación 2.2 | F175: 3
D176: Criterio Evaluación 2.3 | F176: 3
D177: Criterio Evaluación 2.4 | F177: 3
C178: Comp. Esp. 3 | D178: Criterio Evaluación 3.1 | F178: 3
D179: Criterio Evaluación 3.2 | F179: 3
C180: Comp. Esp. 4 | D180: Criterio Evaluación 4.1 | F180: 3
D181: Criterio Evaluación 4.2 | F181: 3
C182: Comp. Esp. 5 | D182: Criterio Evaluación 5.1 | F182: 3
D183: Criterio Evaluación 5.2 | F183: 3
D184: Criterio Evaluación 5.3 | F184: 3
C185: Comp. Esp. 6 | D185: Criterio Evaluación 6.1 | F185: 3
D186: Criterio Evaluación 6.2 | F186: 3
D187: Criterio Evaluación 6.3 | F187: 3
D188: Criterio Evaluación 6.4 | F188: 3
B189: Lenguaje y Práctica Musical | C189: Comp. Esp. 1 | D189: Criterio Evaluación 1.1 | F189: 4
D190: Criterio Evaluación 1.2 | F190: 4
D191: Criterio Evaluación 1.3 | F191: 4
D192: Criterio Evaluación 1.4 | F192: 4
C193: Comp. Esp. 2 | D193: Criterio Evaluación 2.1 | F193: 4
D194: Criterio Evaluación 2.2 | F194: 4
D195: Criterio Evaluación 2.3 | F195: 4
D196: Criterio Evaluación 2.4 | F196: 4
C197: Comp. Esp. 3 | D197: Criterio Evaluación 3.1 | F197: 4
D198: Criterio Evaluación 3.2 | F198: 4
D199: Criterio Evaluación 3.3 | F199: 4
D200: Criterio Evaluación 3.4 | F200: 4
D201: Criterio Evaluación 3.5 | F201: 4
... 118 more rows

Sheet Peso criterios libre
E4: CALIFICACIÓN | F4: PESO | G4: PORCENTAJE | H4: POR. AJUSTA
B5: Análisis Musical I | C5: Comp. Esp. 1 | D5: Criterio Evaluación 1.1 | F5: 1 | G5: =F5/SUM($F$5:$F$319) -> 0.003174603175 | H5: =IF(E5="-","",G5/H$328) -> 0.01063829787
D6: Criterio Evaluación 1.2 | E6: 1 | F6: 1 | G6: 0.003174603175 | H6: 0.01063829787
C7: Comp. Esp. 2 | D7: Criterio Evaluación 2.1 | F7: 1 | G7: 0.003174603175 | H7: 0.01063829787
D8: Criterio Evaluación 2.2 | F8: 1 | G8: 0.003174603175 | H8: 0.01063829787
D9: Criterio Evaluación 2.3 | E9: 1 | F9: 1 | G9: 0.003174603175 | H9: 0.01063829787
D10: Criterio Evaluación 2.4 | E10: 1 | F10: 1 | G10: 0.003174603175 | H10: 0.01063829787
C11: Comp. Esp. 3 | D11: Criterio Evaluación 3.1 | E11: 1 | F11: 1 | G11: 0.003174603175 | H11: 0.01063829787
D12: Criterio Evaluación 3.2 | E12: 1 | F12: 1 | G12: 0.003174603175 | H12: 0.01063829787
D13: Criterio Evaluación 3.3 | E13: 1 | F13: 1 | G13: 0.003174603175 | H13: 0.01063829787
C14: Comp. Esp. 4 | D14: Criterio Evaluación 4.1 | F14: 1 | G14: 0.003174603175 | H14: 0.01063829787
D15: Criterio Evaluación 4.2 | E15: 1 | F15: 1 | G15: 0.003174603175 | H15: 0.01063829787
D16: Criterio Evaluación 4.3 | E16: 1 | F16: 1 | G16: 0.003174603175 | H16: 0.01063829787
D17: Criterio Evaluación 4.4 | F17: 1 | G17: 0.003174603175 | H17: 0.01063829787
D18: Criterio Evaluación 4.5 | F18: 1 | G18: 0.003174603175 | H18: 0.01063829787
C19: Comp. Esp. 5 | D19: Criterio Evaluación 5.1 | E19: 1 | F19: 1 | G19: 0.003174603175 | H19: 0.01063829787
D20: Criterio Evaluación 5.2 | E20: 1 | F20: 1 | G20: 0.003174603175 | H20: 0.01063829787
B21: Anatomía Aplicada | C21: Comp. Esp. 1 | D21: Criterio Evaluación 1.1 | E21: 1 | F21: 1 | G21: 0.003174603175 | H21: 0.01063829787
D22: Criterio Evaluación 1.2 | F22: 1 | G22: 0.003174603175 | H22: 0.01063829787
D23: Criterio Evaluación 1.3 | F23: 1 | G23: 0.003174603175 | H23: 0.01063829787
C24: Comp. Esp. 2 | D24: Criterio Evaluación 2.1 | F24: 1 | G24: 0.003174603175 | H24: 0.01063829787
D25: Criterio Evaluación 2.2 | E25: 1 | F25: 1 | G25: 0.003174603175 | H25: 0.01063829787
D26: Criterio Evaluación 2.3 | E26: 1 | F26: 1 | G26: 0.003174603175 | H26: 0.01063829787
C27: Comp. Esp. 3 | D27: Criterio Evaluación 3.1 | E27: 1 | F27: 1 | G27: 0.003174603175 | H27: 0.01063829787
D28: Criterio Evaluación 3.2 | F28: 1 | G28: 0.003174603175 | H28: 0.01063829787
D29: Criterio Evaluación 3.3 | F29: 1 | G29: 0.003174603175 | H29: 0.01063829787
D30: Criterio Evaluación 3.4 | F30: 1 | G30: 0.003174603175 | H30: 0.01063829787
D31: Criterio Evaluación 3.5 | F31: 1 | G31: 0.003174603175 | H31: 0.01063829787
D32: Criterio Evaluación 3.6 | F32: 1 | G32: 0.003174603175 | H32: 0.01063829787
C33: Comp. Esp. 4 | D33: Criterio Evaluación 4.1 | F33: 1 | G33: 0.003174603175 | H33: 0.01063829787
D34: Criterio Evaluación 4.2 | E34: 1 | F34: 1 | G34: 0.003174603175 | H34: 0.01063829787
D35: Criterio Evaluación 4.3 | F35: 1 | G35: 0.003174603175 | H35: 0.01063829787
D36: Criterio Evaluación 4.4 | E36: 1 | F36: 1 | G36: 0.003174603175 | H36: 0.01063829787
C37: Comp. Esp. 5 | D37: Criterio Evaluación 5.1 | F37: 1 | G37: 0.003174603175 | H37: 0.01063829787
D38: Criterio Evaluación 5.2 | E38: 1 | F38: 1 | G38: 0.003174603175 | H38: 0.01063829787
D39: Criterio Evaluación 5.3 | E39: 1 | F39: 1 | G39: 0.003174603175 | H39: 0.01063829787
D40: Criterio Evaluación 5.4 | F40: 1 | G40: 0.003174603175 | H40: 0.01063829787
D41: Criterio Evaluación 5.5 | F41: 1 | G41: 0.003174603175 | H41: 0.01063829787
D42: Criterio Evaluación 5.6 | E42: 1 | F42: 1 | G42: 0.003174603175 | H42: 0.01063829787
D43: Criterio Evaluación 5.7 | E43: 1 | F43: 1 | G43: 0.003174603175 | H43: 0.01063829787
C44: Comp. Esp. 6 | D44: Criterio Evaluación 6.1 | E44: 1 | F44: 1 | G44: 0.003174603175 | H44: 0.01063829787
D45: Criterio Evaluación 6.2 | F45: 1 | G45: 0.003174603175 | H45: 0.01063829787
D46: Criterio Evaluación 6.3 | F46: 1 | G46: 0.003174603175 | H46: 0.01063829787
D47: Criterio Evaluación 6.4 | F47: 1 | G47: 0.003174603175 | H47: 0.01063829787
D48: Criterio Evaluación 6.5 | F48: 1 | G48: 0.003174603175 | H48: 0.01063829787
D49: Criterio Evaluación 6.6 | F49: 1 | G49: 0.003174603175 | H49: 0.01063829787
D50: Criterio Evaluación 6.7 | F50: 1 | G50: 0.003174603175 | H50: 0.01063829787
D51: Criterio Evaluación 6.8 | F51: 1 | G51: 0.003174603175 | H51: 0.01063829787
D52: Criterio Evaluación 6.9 | F52: 1 | G52: 0.003174603175 | H52: 0.01063829787
B53: Artes Escénicas I | C53: Comp. Esp. 1 | D53: Criterio Evaluación 1.1 | E53: 1 | F53: 1 | G53: 0.003174603175 | H53: 0.01063829787
D54: Criterio Evaluación 1.2 | F54: 1 | G54: 0.003174603175 | H54: 0.01063829787
C55: Comp. Esp. 2 | D55: Criterio Evaluación 2.1 | E55: 1 | F55: 1 | G55: 0.003174603175 | H55: 0.01063829787
D56: Criterio Evaluación 2.2 | E56: 1 | F56: 1 | G56: 0.003174603175 | H56: 0.01063829787
C57: Comp. Esp. 3 | D57: Criterio Evaluación 3.1 | E57: 1 | F57: 1 | G57: 0.003174603175 | H57: 0.01063829787
D58: Criterio Evaluación 3.2 | E58: 1 | F58: 1 | G58: 0.003174603175 | H58: 0.01063829787
C59: Comp. Esp. 4 | D59: Criterio Evaluación 4.1 | E59: 1 | F59: 1 | G59: 0.003174603175 | H59: 0.01063829787
D60: Criterio Evaluación 4.2 | E60: 1 | F60: 1 | G60: 0.003174603175 | H60: 0.01063829787
C61: Comp. Esp. 5 | D61: Criterio Evaluación 5.1 | F61: 1 | G61: 0.003174603175 | H61: 0.01063829787
D62: Criterio Evaluación 5.2 | E62: 1 | F62: 1 | G62: 0.003174603175 | H62: 0.01063829787
B63: Coro y Técnica Vocal I | C63: Comp. Esp. 1 | D63: Criterio Evaluación 1.1 | E63: 1 | F63: 1 | G63: 0.003174603175 | H63: 0.01063829787
D64: Criterio Evaluación 1.2 | E64: 1 | F64: 1 | G64: 0.003174603175 | H64: 0.01063829787
D65: Criterio Evaluación 1.3 | E65: 1 | F65: 1 | G65: 0.003174603175 | H65: 0.01063829787
C66: Comp. Esp. 2 | D66: Criterio Evaluación 2.1 | F66: 1 | G66: 0.003174603175 | H66: 0.01063829787
D67: Criterio Evaluación 2.2 | F67: 1 | G67: 0.003174603175 | H67: 0.01063829787
D68: Criterio Evaluación 2.3 | E68: 1 | F68: 1 | G68: 0.003174603175 | H68: 0.01063829787
C69: Comp. Esp. 3 | D69: Criterio Evaluación 3.1 | F69: 1 | G69: =F69/SUM($F$5:$F$319) -> 0.003174603175 | H69: =IF(E69="-","",G69/H$328) -> 0.01063829787
D70: Criterio Evaluación 3.2 | F70: 1 | G70: 0.003174603175 | H70: 0.01063829787
D71: Criterio Evaluación 3.3 | F71: 1 | G71: 0.003174603175 | H71: 0.01063829787
C72: Comp. Esp. 4 | D72: Criterio Evaluación 4.1 | F72: 1 | G72: 0.003174603175 | H72: 0.01063829787
D73: Criterio Evaluación 4.2 | F73: 1 | G73: 0.003174603175 | H73: 0.01063829787
D74: Criterio Evaluación 4.3 | F74: 1 | G74: 0.003174603175 | H74: 0.01063829787
D75: Criterio Evaluación 4.4 | F75: 1 | G75: 0.003174603175 | H75: 0.01063829787
D76: Criterio Evaluación 4.5 | F76: 1 | G76: 0.003174603175 | H76: 0.01063829787
B77: Cultura Audiovisual | C77: Comp. Esp. 1 | D77: Criterio Evaluación 1.1 | E77: 1 | F77: 1 | G77: 0.003174603175 | H77: 0.01063829787
D78: Criterio Evaluación 1.2 | F78: 1 | G78: 0.003174603175 | H78: 0.01063829787
D79: Criterio Evaluación 1.3 | E79: 1 | F79: 1 | G79: 0.003174603175 | H79: 0.01063829787
D80: Criterio Evaluación 1.4 | F80: 1 | G80: 0.003174603175 | H80: 0.01063829787
C81: Comp. Esp. 2 | D81: Criterio Evaluación 2.1 | E81: 1 | F81: 1 | G81: 0.003174603175 | H81: 0.01063829787
D82: Criterio Evaluación 2.2 | F82: 1 | G82: 0.003174603175 | H82: 0.01063829787
D83: Criterio Evaluación 2.3 | F83: 1 | G83: 0.003174603175 | H83: 0.01063829787
D84: Criterio Evaluación 2.4 | E84: 1 | F84: 1 | G84: 0.003174603175 | H84: 0.01063829787
C85: Comp. Esp. 3 | D85: Criterio Evaluación 3.1 | F85: 1 | G85: 0.003174603175 | H85: 0.01063829787
D86: Criterio Evaluación 3.2 | F86: 1 | G86: 0.003174603175 | H86: 0.01063829787
D87: Criterio Evaluación 3.3 | F87: 1 | G87: 0.003174603175 | H87: 0.01063829787
D88: Criterio Evaluación 3.4 | F88: 1 | G88: 0.003174603175 | H88: 0.01063829787
D89: Criterio Evaluación 3.5 | F89: 1 | G89: 0.003174603175 | H89: 0.01063829787
D90: Criterio Evaluación 3.6 | F90: 1 | G90: 0.003174603175 | H90: 0.01063829787
C91: Comp. Esp. 4 | D91: Criterio Evaluación 4.1 | F91: 1 | G91: 0.003174603175 | H91: 0.01063829787
D92: Criterio Evaluación 4.2 | F92: 1 | G92: 0.003174603175 | H92: 0.01063829787
D93: Criterio Evaluación 4.3 | F93: 1 | G93: 0.003174603175 | H93: 0.01063829787
D94: Criterio Evaluación 4.4 | F94: 1 | G94: 0.003174603175 | H94: 0.01063829787
D95: Criterio Evaluación 4.5 | F95: 1 | G95: 0.003174603175 | H95: 0.01063829787
D96: Criterio Evaluación 4.6 | F96: 1 | G96: 0.003174603175 | H96: 0.01063829787
B97: Educación Física | C97: Comp. Esp. 1 | D97: Criterio Evaluación 1.1 | F97: 1 | G97: 0.003174603175 | H97: 0.01063829787
D98: Criterio Evaluación 1.2 | F98: 1 | G98: 0.003174603175 | H98: 0.01063829787
D99: Criterio Evaluación 1.3 | F99: 1 | G99: 0.003174603175 | H99: 0.01063829787
D100: Criterio Evaluación 1.4 | F100: 1 | G100: 0.003174603175 | H100: 0.01063829787
D101: Criterio Evaluación 1.5 | F101: 1 | G101: 0.003174603175 | H101: 0.01063829787
D102: Criterio Evaluación 1.6 | F102: 1 | G102: 0.003174603175 | H102: 0.01063829787
D103: Criterio Evaluación 1.7 | F103: 1 | G103: 0.003174603175 | H103: 0.01063829787
D104: Criterio Evaluación 1.8 | F104: 1 | G104: 0.003174603175 | H104: 0.01063829787
D105: Criterio Evaluación 1.9 | F105: 1 | G105: 0.003174603175 | H105: 0.01063829787
C106: Comp. Esp. 2 | D106: Criterio Evaluación 2.1 | F106: 1 | G106: 0.003174603175 | H106: 0.01063829787
D107: Criterio Evaluación 2.2 | F107: 1 | G107: 0.003174603175 | H107: 0.01063829787
D108: Criterio Evaluación 2.3 | F108: 1 | G108: 0.003174603175 | H108: 0.01063829787
D109: Criterio Evaluación 2.4 | F109: 1 | G109: 0.003174603175 | H109: 0.01063829787
C110: Comp. Esp. 3 | D110: Criterio Evaluación 3.1 | F110: 1 | G110: 0.003174603175 | H110: 0.01063829787
D111: Criterio Evaluación 3.2 | E111: 1 | F111: 1 | G111: 0.003174603175 | H111: 0.01063829787
D112: Criterio Evaluación 3.3 | E112: 1 | F112: 1 | G112: 0.003174603175 | H112: 0.01063829787
C113: Comp. Esp. 4 | D113: Criterio Evaluación 4.1 | F113: 1 | G113: 0.003174603175 | H113: 0.01063829787
D114: Criterio Evaluación 4.2 | F114: 1 | G114: 0.003174603175 | H114: 0.01063829787
C115: Comp. Esp. 5 | D115: Criterio Evaluación 5.1 | F115: 1 | G115: 0.003174603175 | H115: 0.01063829787
D116: Criterio Evaluación 5.2 | F116: 1 | G116: 0.003174603175 | H116: 0.01063829787
B117: Filosofía | C117: Comp. Esp. 1 | D117: Criterio Evaluación 1.1 | F117: 1 | G117: 0.003174603175 | H117: 0.01063829787
D118: Criterio Evaluación 1.2 | F118: 1 | G118: 0.003174603175 | H118: 0.01063829787
C119: Comp. Esp. 2 | D119: Criterio Evaluación 2.1 | F119: 1 | G119: 0.003174603175 | H119: 0.01063829787
D120: Criterio Evaluación 2.2 | E120: 1 | F120: 1 | G120: 0.003174603175 | H120: 0.01063829787
C121: Comp. Esp. 3 | D121: Criterio Evaluación 3.1 | E121: 1 | F121: 1 | G121: 0.003174603175 | H121: 0.01063829787
D122: Criterio Evaluación 3.2 | E122: 1 | F122: 1 | G122: 0.003174603175 | H122: 0.01063829787
D123: Criterio Evaluación 3.3 | F123: 1 | G123: 0.003174603175 | H123: 0.01063829787
C124: Comp. Esp. 4 | D124: Criterio Evaluación 4.1 | E124: 1 | F124: 1 | G124: 0.003174603175 | H124: 0.01063829787
C125: Comp. Esp. 5 | D125: Criterio Evaluación 5.1 | F125: 1 | G125: 0.003174603175 | H125: 0.01063829787
D126: Criterio Evaluación 5.2 | F126: 1 | G126: 0.003174603175 | H126: 0.01063829787
C127: Comp. Esp. 6 | D127: Criterio Evaluación 6.1 | F127: 1 | G127: 0.003174603175 | H127: 0.01063829787
D128: Criterio Evaluación 6.2 | F128: 1 | G128: 0.003174603175 | H128: 0.01063829787
C129: Comp. Esp. 7 | D129: Criterio Evaluación 7.1 | F129: 1 | G129: 0.003174603175 | H129: 0.01063829787
C130: Comp. Esp. 8 | D130: Criterio Evaluación 8.1 | F130: 1 | G130: 0.003174603175 | H130: 0.01063829787
C131: Comp. Esp. 9 | D131: Criterio Evaluación 9.1 | F131: 1 | G131: 0.003174603175 | H131: 0.01063829787
C132: Comp. Esp. 10 | D132: Criterio Evaluación 10.1 | E132: 1 | F132: 1 | G132: 0.003174603175 | H132: 0.01063829787
D133: Criterio Evaluación 10.2 | F133: 1 | G133: =F133/SUM($F$5:$F$319) -> 0.003174603175 | H133: =IF(E133="-","",G133/H$328) -> 0.01063829787
B134: Lengua Castellana y Literatura | C134: Comp. Esp. 1 | D134: Criterio Evaluación 1.1 | E134: 1 | F134: 1 | G134: 0.003174603175 | H134: 0.01063829787
D135: Criterio Evaluación 1.2 | E135: 1 | F135: 1 | G135: 0.003174603175 | H135: 0.01063829787
D136: Criterio Evaluación 1.3 | F136: 1 | G136: 0.003174603175 | H136: 0.01063829787
D137: Criterio Evaluación 1.4 | E137: 1 | F137: 1 | G137: 0.003174603175 | H137: 0.01063829787
D138: Criterio Evaluación 1.5 | E138: 1 | F138: 1 | G138: 0.003174603175 | H138: 0.01063829787
C139: Comp. Esp. 2 | D139: Criterio Evaluación 2.1 | F139: 1 | G139: 0.003174603175 | H139: 0.01063829787
D140: Criterio Evaluación 2.2 | E140: 1 | F140: 1 | G140: 0.003174603175 | H140: 0.01063829787
D141: Criterio Evaluación 2.3 | E141: 1 | F141: 1 | G141: 0.003174603175 | H141: 0.01063829787
C142: Comp. Esp. 3 | D142: Criterio Evaluación 3.1 | E142: 1 | F142: 1 | G142: 0.003174603175 | H142: 0.01063829787
D143: Criterio Evaluación 3.2 | E143: 1 | F143: 1 | G143: 0.003174603175 | H143: 0.01063829787
D144: Criterio Evaluación 3.3 | E144: 1 | F144: 1 | G144: 0.003174603175 | H144: 0.01063829787
C145: Comp. Esp. 4 | D145: Criterio Evaluación 4.1 | F145: 1 | G145: 0.003174603175 | H145: 0.01063829787
D146: Criterio Evaluación 4.2 | F146: 1 | G146: 0.003174603175 | H146: 0.01063829787
D147: Criterio Evaluación 4.3 | F147: 1 | G147: 0.003174603175 | H147: 0.01063829787
C148: Comp. Esp. 5 | D148: Criterio Evaluación 5.1 | E148: 1 | F148: 1 | G148: 0.003174603175 | H148: 0.01063829787
D149: Criterio Evaluación 5.2 | E149: 1 | F149: 1 | G149: 0.003174603175 | H149: 0.01063829787
D150: Criterio Evaluación 5.3 | E150: 1 | F150: 1 | G150: 0.003174603175 | H150: 0.01063829787
C151: Comp. Esp. 6 | D151: Criterio Evaluación 6.1 | E151: 1 | F151: 1 | G151: 0.003174603175 | H151: 0.01063829787
D152: Criterio Evaluación 6.2 | F152: 1 | G152: 0.003174603175 | H152: 0.01063829787
D153: Criterio Evaluación 6.3 | E153: 1 | F153: 1 | G153: 0.003174603175 | H153: 0.01063829787
D154: Criterio Evaluación 6.4 | E154: 1 | F154: 1 | G154: 0.003174603175 | H154: 0.01063829787
C155: Comp. Esp. 7 | D155: Criterio Evaluación 7.1 | E155: 1 | F155: 1 | G155: 0.003174603175 | H155: 0.01063829787
D156: Criterio Evaluación 7.2 | E156: 1 | F156: 1 | G156: 0.003174603175 | H156: 0.01063829787
D157: Criterio Evaluación 7.3 | E157: 1 | F157: 1 | G157: 0.003174603175 | H157: 0.01063829787
C158: Comp. Esp. 8 | D158: Criterio Evaluación 8.1 | E158: 1 | F158: 1 | G158: 0.003174603175 | H158: 0.01063829787
D159: Criterio Evaluación 8.2 | E159: 1 | F159: 1 | G159: 0.003174603175 | H159: 0.01063829787
D160: Criterio Evaluación 8.3 | E160: 1 | F160: 1 | G160: 0.003174603175 | H160: 0.01063829787
D161: Criterio Evaluación 8.4 | F161: 1 | G161: 0.003174603175 | H161: 0.01063829787
D162: Criterio Evaluación 8.5 | F162: 1 | G162: 0.003174603175 | H162: 0.01063829787
C163: Comp. Esp. 9 | D163: Criterio Evaluación 9.1 | E163: 1 | F163: 1 | G163: 0.003174603175 | H163: 0.01063829787
D164: Criterio Evaluación 9.2 | E164: 1 | F164: 1 | G164: 0.003174603175 | H164: 0.01063829787
D165: Criterio Evaluación 9.3 | E165: 1 | F165: 1 | G165: 0.003174603175 | H165: 0.01063829787
D166: Criterio Evaluación 9.4 | F166: 1 | G166: 0.003174603175 | H166: 0.01063829787
D167: Criterio Evaluación 9.5 | E167: 1 | F167: 1 | G167: 0.003174603175 | H167: 0.01063829787
C168: Comp. Esp. 10 | D168: Criterio Evaluación 10.1 | E168: 1 | F168: 1 | G168: 0.003174603175 | H168: 0.01063829787
D169: Criterio Evaluación 10.2 | E169: 1 | F169: 1 | G169: 0.003174603175 | H169: 0.01063829787
D170: Criterio Evaluación 10.3 | F170: 1 | G170: 0.003174603175 | H170: 0.01063829787
B171: Lengua Extranjera I | C171: Comp. Esp. 1 | D171: Criterio Evaluación 1.1 | F171: 1 | G171: 0.003174603175 | H171: 0.01063829787
D172: Criterio Evaluación 1.2 | F172: 1 | G172: 0.003174603175 | H172: 0.01063829787
D173: Criterio Evaluación 1.3 | F173: 1 | G173: 0.003174603175 | H173: 0.01063829787
C174: Comp. Esp. 2 | D174: Criterio Evaluación 2.1 | E174: 1 | F174: 1 | G174: 0.003174603175 | H174: 0.01063829787
D175: Criterio Evaluación 2.2 | E175: 1 | F175: 1 | G175: 0.003174603175 | H175: 0.01063829787
D176: Criterio Evaluación 2.3 | E176: 1 | F176: 1 | G176: 0.003174603175 | H176: 0.01063829787
D177: Criterio Evaluación 2.4 | E177: 1 | F177: 1 | G177: 0.003174603175 | H177: 0.01063829787
C178: Comp. Esp. 3 | D178: Criterio Evaluación 3.1 | E178: 1 | F178: 1 | G178: 0.003174603175 | H178: 0.01063829787
D179: Criterio Evaluación 3.2 | E179: 1 | F179: 1 | G179: 0.003174603175 | H179: 0.01063829787
C180: Comp. Esp. 4 | D180: Criterio Evaluación 4.1 | E180: 1 | F180: 1 | G180: 0.003174603175 | H180: 0.01063829787
D181: Criterio Evaluación 4.2 | E181: 1 | F181: 1 | G181: 0.003174603175 | H181: 0.01063829787
C182: Comp. Esp. 5 | D182: Criterio Evaluación 5.1 | F182: 1 | G182: 0.003174603175 | H182: 0.01063829787
D183: Criterio Evaluación 5.2 | E183: 1 | F183: 1 | G183: 0.003174603175 | H183: 0.01063829787
D184: Criterio Evaluación 5.3 | F184: 1 | G184: 0.003174603175 | H184: 0.01063829787
C185: Comp. Esp. 6 | D185: Criterio Evaluación 6.1 | F185: 1 | G185: 0.003174603175 | H185: 0.01063829787
D186: Criterio Evaluación 6.2 | F186: 1 | G186: 0.003174603175 | H186: 0.01063829787
D187: Criterio Evaluación 6.3 | F187: 1 | G187: 0.003174603175 | H187: 0.01063829787
D188: Criterio Evaluación 6.4 | F188: 1 | G188: 0.003174603175 | H188: 0.01063829787
B189: Lenguaje y Práctica Musical | C189: Comp. Esp. 1 | D189: Criterio Evaluación 1.1 | E189: 1 | F189: 1 | G189: 0.003174603175 | H189: 0.01063829787
D190: Criterio Evaluación 1.2 | F190: 1 | G190: 0.003174603175 | H190: 0.01063829787
D191: Criterio Evaluación 1.3 | F191: 1 | G191: 0.003174603175 | H191: 0.01063829787
D192: Criterio Evaluación 1.4 | E192: 1 | F192: 1 | G192: 0.003174603175 | H192: 0.01063829787
C193: Comp. Esp. 2 | D193: Criterio Evaluación 2.1 | F193: 1 | G193: 0.003174603175 | H193: 0.01063829787
D194: Criterio Evaluación 2.2 | E194: 1 | F194: 1 | G194: 0.003174603175 | H194: 0.01063829787
D195: Criterio Evaluación 2.3 | E195: 1 | F195: 1 | G195: 0.003174603175 | H195: 0.01063829787
D196: Criterio Evaluación 2.4 | F196: 1 | G196: 0.003174603175 | H196: 0.01063829787
C197: Comp. Esp. 3 | D197: Criterio Evaluación 3.1 | F197: 1 | G197: =F197/SUM($F$5:$F$319) -> 0.003174603175 | H197: =IF(E197="-","",G197/H$328) -> 0.01063829787
D198: Criterio Evaluación 3.2 | F198: 1 | G198: 0.003174603175 | H198: 0.01063829787
D199: Criterio Evaluación 3.3 | F199: 1 | G199: 0.003174603175 | H199: 0.01063829787
D200: Criterio Evaluación 3.4 | F200: 1 | G200: 0.003174603175 | H200: 0.01063829787
D201: Criterio Evaluación 3.5 | F201: 1 | G201: 0.003174603175 | H201: 0.01063829787
C202: Comp. Esp. 4 | D202: Criterio Evaluación 4.1 | F202: 1 | G202: 0.003174603175 | H202: 0.01063829787
D203: Criterio Evaluación 4.2 | F203: 1 | G203: 0.003174603175 | H203: 0.01063829787
... 118 more rows

Sheet Peso descrip. libre
E2: Competencia en Comunicación Lingüística | Y2: Competencia Plurilingüe | AK2: Competencia Matemática y Competencia en Ciencia, Tecnología e Ingeniería | BE2: Competencia Digital | BY2: Competencia Personal, Social y de Aprender a Aprender | DA2: Competencia Ciudadana | DQ2: Competencia Emprendedora | EC2: Competencia en Conciencia y Expresión Culturales
E3: CCL 1 | I3: CCL 2 | M3: CCL 3 | Q3: CCL 4 | U3: CCL 5 | Y3: CP 1 | AC3: CP 2 | AG3: CP 3 | AK3: STEM 1 | AO3: STEM 2 | AS3: STEM 3 | AW3: STEM 4 | BA3: STEM 5 | BE3: CD 1 | BI3: CD 2 | BM3: CD 3 | BQ3: CD 4 | BU3: CD 5 | BY3: CPSAA 1.1 | CC3: CPSAA 1.2 | CG3: CPSAA 2 | CK3: CPSAA 3.1 | CO3: CPSAA 3.2 | CS3: CPSAA 4 | CW3: CPSAA 5 | DA3: CC 1 | DE3: CC 2 | DI3: CC 3 | DM3: CC 4 | DQ3: CE 1 | DU3: CE 2 | DY3: CE 3 | EC3: CCEC 1 | EG3: CCEC 2 | EK3: CCEC 3.1 | EO3: CCEC 3.2 | ES3: CCEC 4.1 | EW3: CCEC 4.2
B5: NO | C5: PESO DESCRIPTORES | E5: 1 | I5: 1 | M5: 1 | Q5: 1 | U5: 1 | Y5: 1 | AC5: 1 | AG5: 1 | AK5: 1 | AO5: 1 | AS5: 1 | AW5: 1 | BA5: 1 | BE5: 1 | BI5: 1 | BM5: 1 | BQ5: 1 | BU5: 1 | BY5: 1 | CC5: 1 | CG5: 1 | CK5: 1 | CO5: 1 | CS5: 1 | CW5: 1 | DA5: 1 | DE5: 1 | DI5: 1 | DM5: 1 | DQ5: 1 | DU5: 1 | DY5: 1 | EC5: 1 | EG5: 1 | EK5: 1 | EO5: 1 | ES5: 1 | EW5: 1
C6: PORCENTAJES | E6: =E5/SUM($E5:$U5) -> 0.2 | I6: =I5/SUM($E5:$U5) -> 0.2 | M6: =M5/SUM($E5:$U5) -> 0.2 | Q6: =Q5/SUM($E5:$U5) -> 0.2 | U6: =U5/SUM($E5:$U5) -> 0.2 | Y6: =Y5/SUM($Y5:$AG5) -> 0.3333333333 | AC6: =AC5/SUM($Y5:$AG5) -> 0.3333333333 | AG6: 0.3333333333 | AK6: =AK5/SUM($AK5:$BA5) -> 0.2 | AO6: =AO5/SUM($AK5:$BA5) -> 0.2 | AS6: 0.2 | AW6: 0.2 | BA6: 0.2 | BE6: =BE5/SUM($BE5:$BU5) -> 0.2 | BI6: =BI5/SUM($BE5:$BU5) -> 0.2 | BM6: 0.2 | BQ6: 0.2 | BU6: 0.2 | BY6: =BY5/SUM($BY5:$CW5) -> 0.1428571429 | CC6: =CC5/SUM($BY5:$CW5) -> 0.1428571429 | CG6: 0.1428571429 | CK6: =CK5/SUM($BY5:$CW5) -> 0.1428571429 | CO6: =CO5/SUM($BY5:$CW5) -> 0.1428571429 | CS6: 0.1428571429 | CW6: 0.1428571429 | DA6: =DA5/SUM($DA5:$DM5) -> 0.25 | DE6: =DE5/SUM($DA5:$DM5) -> 0.25 | DI6: 0.25 | DM6: 0.25 | DQ6: =DQ5/SUM($DQ5:$DY5) -> 0.3333333333 | DU6: =DU5/SUM($DQ5:$DY5) -> 0.3333333333 | DY6: 0.3333333333 | EC6: =EC5/SUM($EC5:$EW5) -> 0.1666666667 | EG6: =EG5/SUM($EC5:$EW5) -> 0.1666666667 | EK6: =EK5/SUM($EC5:$EW5) -> 0.1666666667 | EO6: =EO5/SUM($EC5:$EW5) -> 0.1666666667 | ES6: 0.1666666667 | EW6: 0.1666666667

Sheet Peso descrip. vinculaciones
E2: Competencia en Comunicación Lingüística | Y2: Competencia Plurilingüe | AK2: Competencia Matemática y Competencia en Ciencia, Tecnología e Ingeniería | BE2: Competencia Digital | BY2: Competencia Personal, Social y de Aprender a Aprender | DA2: Competencia Ciudadana | DQ2: Competencia Emprendedora | EC2: Competencia en Conciencia y Expresión Culturales
E3: CCL 1 | I3: CCL 2 | M3: CCL 3 | Q3: CCL 4 | U3: CCL 5 | Y3: CP 1 | AC3: CP 2 | AG3: CP 3 | AK3: STEM 1 | AO3: STEM 2 | AS3: STEM 3 | AW3: STEM 4 | BA3: STEM 5 | BE3: CD 1 | BI3: CD 2 | BM3: CD 3 | BQ3: CD 4 | BU3: CD 5 | BY3: CPSAA 1.1 | CC3: CPSAA 1.2 | CG3: CPSAA 2 | CK3: CPSAA 3.1 | CO3: CPSAA 3.2 | CS3: CPSAA 4 | CW3: CPSAA 5 | DA3: CC 1 | DE3: CC 2 | DI3: CC 3 | DM3: CC 4 | DQ3: CE 1 | DU3: CE 2 | DY3: CE 3 | EC3: CCEC 1 | EG3: CCEC 2 | EK3: CCEC 3.1 | EO3: CCEC 3.2 | ES3: CCEC 4.1 | EW3: CCEC 4.2
B5: NO | C5: PESO DESCRIPTORES | E5: 0.3205128205 | I5: 0.2820512821 | M5: 0.1602564103 | Q5: 0.07051282051 | U5: 0.1666666667 | Y5: 0.2252252252 | AC5: 0.4144144144 | AG5: 0.3603603604 | AK5: 0.3333333333 | AO5: 0.2552083333 | AS5: 0.171875 | AW5: 0.1354166667 | BA5: 0.1041666667 | BE5: 0.1730769231 | BI5: 0.2692307692 | BM5: 0.4134615385 | BQ5: 0.1009615385 | BU5: 0.04326923077 | BY5: 0.1718213058 | CC5: 0.116838488 | CG5: 0.1030927835 | CK5: 0.1718213058 | CO5: 0.09621993127 | CS5: 0.1924398625 | CW5: 0.147766323 | DA5: 0.2745098039 | DE5: 0.1699346405 | DI5: 0.4183006536 | DM5: 0.137254902 | DQ5: 0.3362068966 | DU5: 0.1724137931 | DY5: 0.4913793103 | EC5: 0.2370689655 | EG5: 0.1120689655 | EK5: 0.1939655172 | EO5: 0.1724137931 | ES5: 0.1120689655 | EW5: 0.1724137931
C6: PORCENTAJES | E6: =E5/SUM($E5:$U5) -> 0.3205128205 | I6: =I5/SUM($E5:$U5) -> 0.2820512821 | M6: =M5/SUM($E5:$U5) -> 0.1602564103 | Q6: =Q5/SUM($E5:$U5) -> 0.07051282051 | U6: =U5/SUM($E5:$U5) -> 0.1666666667 | Y6: =Y5/SUM($Y5:$AG5) -> 0.2252252252 | AC6: =AC5/SUM($Y5:$AG5) -> 0.4144144144 | AG6: 0.3603603604 | AK6: =AK5/SUM($AK5:$BA5) -> 0.3333333333 | AO6: =AO5/SUM($AK5:$BA5) -> 0.2552083333 | AS6: 0.171875 | AW6: 0.1354166667 | BA6: 0.1041666667 | BE6: =BE5/SUM($BE5:$BU5) -> 0.1730769231 | BI6: =BI5/SUM($BE5:$BU5) -> 0.2692307692 | BM6: 0.4134615385 | BQ6: 0.1009615385 | BU6: 0.04326923077 | BY6: =BY5/SUM($BY5:$CW5) -> 0.1718213058 | CC6: =CC5/SUM($BY5:$CW5) -> 0.116838488 | CG6: 0.1030927835 | CK6: =CK5/SUM($BY5:$CW5) -> 0.1718213058 | CO6: =CO5/SUM($BY5:$CW5) -> 0.09621993127 | CS6: 0.1924398625 | CW6: 0.147766323 | DA6: =DA5/SUM($DA5:$DM5) -> 0.2745098039 | DE6: =DE5/SUM($DA5:$DM5) -> 0.1699346405 | DI6: 0.4183006536 | DM6: 0.137254902 | DQ6: =DQ5/SUM($DQ5:$DY5) -> 0.3362068966 | DU6: =DU5/SUM($DQ5:$DY5) -> 0.1724137931 | DY6: 0.4913793103 | EC6: =EC5/SUM($EC5:$EW5) -> 0.2370689655 | EG6: =EG5/SUM($EC5:$EW5) -> 0.1120689655 | EK6: =EK5/SUM($EC5:$EW5) -> 0.1939655172 | EO6: =EO5/SUM($EC5:$EW5) -> 0.1724137931 | ES6: 0.1120689655 | EW6: 0.1724137931
C7: CALIFICACIONES COMPETENCIAS | E7: =IFERROR(SUMPRODUCT(#REF!,E5:U5)/SUMIF(#REF!,">=0",E5:U5),"") ->  | Y7: =IFERROR(SUMPRODUCT(#REF!,Y5:AG5)/SUMIF(#REF!,">=0",Y5:AG5),"") ->  | AK7: =IFERROR(SUMPRODUCT(#REF!,AK5:BA5)/SUMIF(#REF!,">=0",AK5:BA5),"") ->  | BE7: =IFERROR(SUMPRODUCT(#REF!,BE5:BU5)/SUMIF(#REF!,">=0",BE5:BU5),"") ->  | BY7: =IFERROR(SUMPRODUCT(#REF!,BY5:CW5)/SUMIF(#REF!,">=0",BY5:CW5),"") ->  | DA7: =IFERROR(SUMPRODUCT(#REF!,DA5:DM5)/SUMIF(#REF!,">=0",DA5:DM5),"") ->  | DQ7: =IFERROR(SUMPRODUCT(#REF!,DQ5:DY5)/SUMIF(#REF!,">=0",DQ5:DY5),"") ->  | EC7: =IFERROR(SUMPRODUCT(#REF!,EC5:EW5)/SUMIF(#REF!,">=0",EC5:EW5),"") -> 

Sheet Alumnos
A1: FALSE
C3: LISTADO DE ALUMNOS | T3: TEAMS / Onedrive
C4: Informe | D4: Grupo 1º _____ | E4: ID Matrícula | F4: AMUS I | G4: AESC I | H4: Cy TVOC I | I4: CAU | J4: LyPMUS | K4: AA | L4: REL | M4: 2ª LEX | R4: TIC I
M5: ALE | N5: FRA | O5: ING | P5: ITA | Q5: POR
D6: Nombre_Alumno_1 | E6: 0000_1 | F6: x | H6: x | I6: x | J6: x
C7: 2 | D7: Nombre_Alumno_2 | E7: 0000_2 | G7: x | I7: x | J7: x | K7: x | L7: x
C8: 3 | D8: Nombre_Alumno_3 | E8: 0000_3 | F8: x | G8: x | H8: x | I8: x | Q8: x
C9: 4 | D9: Nombre_Alumno_4 | E9: 0000_4 | G9: x | I9: x | J9: x | K9: x | R9: x
C11: 6
C12: 7
C13: 8
C14: 9
C15: 10
C16: 11
C17: 12
C18: 13
C19: 14
C20: 15
C21: 16
C22: 17
C23: 18
C24: 19
C25: 20
C26: 21
C27: 22
C28: 23
C29: 24
C30: 25
C31: 26
C32: 27
C33: 28
C34: 29
C35: 30
C36: 31
C37: 32
C38: 33
C39: 34
C40: 35
D41: TOTAL MATRICULADOS | F41: =COUNTA(F6:F40) -> 2 | G41: 3 | H41: 2 | I41: 4 | J41: 3 | K41: 2 | L41: 1 | M41: 0 | N41: 0 | O41: 0 | P41: 0 | Q41: 1 | R41: 1

Sheet Redondeo
V2: EXPORTACIÓN NOTAS COMPETENCIAS A STILUS
C3: CALIFICACIONES DE MATERIAS | V3: 1º_Introduce para cada materia las centésimas a partir de las que se realizará un redondeo al alza (valor entre 1 y 100):
C4: CENTÉSIMAS REDONDEO
C5: 90 | D5: 90 | E5: 90 | F5: 90 | G5: 90 | H5: 90 | I5: 90 | J5: 90 | K5: 90 | L5: 90 | M5: 90 | N5: 90 | O5: 90 | P5: 90 | Q5: 90 | R5: 90 | S5: 90 | V5: Ejemplo: si se marca 85, desde el 4,85 (inclusive) se redondeará a 5, Si se marca 100, el 4,99 e inferiores se redondearán a 4
B6: =TRANSPOSE('Calificación materias'!B5:AK22) -> 0 | C6: Educación Física | D6: Filosofía | E6: Lengua Castellana y Literatura I | F6: Lengua Extranjera I | G6: Análisis Musical I | H6: Artes Escénicas I | I6: Coro y Técnica Vocal | J6: Cultura Audiovisual | K6: Lenguaje y Práctica Musical | L6: Anatomía Aplicada | M6: Religión | N6: Segunda LEX_ALE | O6: Segunda LEX_FRA | P6: Segunda LEX_ING | Q6: Segunda LEX_ITA | R6: Segunda LEX_POR | S6: TIC I | V6: 2º_Pulsa el siguiente botón:
B7: Nombre_Alumno_1
B8: Nombre_Alumno_2
B9: Nombre_Alumno_3
B10: Nombre_Alumno_4

Sheet Materias
C2: MATERIAS DE 1º BACH_ARTES_Vía de Música y Artes Escénicas

Sheet 2LEX
C2: MATERIAS DE 1º BACH_ARTES_Vía de Música y Artes Escénicas

Sheet Calif. de crit.
E2: =IF(Alumnos!D6="","",Alumnos!D6) -> Nombre_Alumno_1 | F2: =IF(Alumnos!D7="","",Alumnos!D7) -> Nombre_Alumno_2 | G2: =IF(Alumnos!D8="","",Alumnos!D8) -> Nombre_Alumno_3 | H2: =IF(Alumnos!D9="","",Alumnos!D9) -> Nombre_Alumno_4 | I2: =IF(Alumnos!D10="","",Alumnos!D10) ->  | J2: =IF(Alumnos!D11="","",Alumnos!D11) ->  | K2: =IF(Alumnos!D12="","",Alumnos!D12) ->  | L2: =IF(Alumnos!D13="","",Alumnos!D13) ->  | M2: =IF(Alumnos!D14="","",Alumnos!D14) ->  | N2: =IF(Alumnos!D15="","",Alumnos!D15) ->  | O2: =IF(Alumnos!D16="","",Alumnos!D16) ->  | P2: =IF(Alumnos!D17="","",Alumnos!D17) ->  | Q2: =IF(Alumnos!D18="","",Alumnos!D18) ->  | R2: =IF(Alumnos!D19="","",Alumnos!D19) ->  | S2: =IF(Alumnos!D20="","",Alumnos!D20) ->  | T2: =IF(Alumnos!D21="","",Alumnos!D21) ->  | U2: =IF(Alumnos!D22="","",Alumnos!D22) ->  | V2: =IF(Alumnos!D23="","",Alumnos!D23) ->  | W2: =IF(Alumnos!D24="","",Alumnos!D24) ->  | X2: =IF(Alumnos!D25="","",Alumnos!D25) ->  | Y2: =IF(Alumnos!D26="","",Alumnos!D26) ->  | Z2: =IF(Alumnos!D27="","",Alumnos!D27) ->  | AA2: =IF(Alumnos!D28="","",Alumnos!D28) ->  | AB2: =IF(Alumnos!D29="","",Alumnos!D29) ->  | AC2: =IF(Alumnos!D30="","",Alumnos!D30) ->  | AD2: =IF(Alumnos!D31="","",Alumnos!D31) ->  | AE2: =IF(Alumnos!D32="","",Alumnos!D32) ->  | AF2: =IF(Alumnos!D33="","",Alumnos!D33) ->  | AG2: =IF(Alumnos!D34="","",Alumnos!D34) ->  | AH2: =IF(Alumnos!D35="","",Alumnos!D35) ->  | AI2: =IF(Alumnos!D36="","",Alumnos!D36) ->  | AJ2: =IF(Alumnos!D37="","",Alumnos!D37) ->  | AK2: =IF(Alumnos!D38="","",Alumnos!D38) ->  | AL2: =IF(Alumnos!D39="","",Alumnos!D39) ->  | AM2: =IF(Alumnos!D40="","",Alumnos!D40) -> 
B3: Análisis Musical I | C3: Comp. Esp. 1 | D3: Criterio Evaluación 1.1 | E3: =IF(AM!H4="","",AM!H4) ->  | F3: =IF(AM!I4="","",AM!I4) ->  | G3: =IF(AM!J4="","",AM!J4) ->  | H3: =IF(AM!K4="","",AM!K4) ->  | I3: =IF(AM!L4="","",AM!L4) ->  | J3: =IF(AM!M4="","",AM!M4) ->  | K3: =IF(AM!N4="","",AM!N4) ->  | L3: =IF(AM!O4="","",AM!O4) ->  | M3: =IF(AM!P4="","",AM!P4) ->  | N3: =IF(AM!Q4="","",AM!Q4) ->  | O3: =IF(AM!R4="","",AM!R4) ->  | P3: =IF(AM!S4="","",AM!S4) ->  | Q3: =IF(AM!T4="","",AM!T4) ->  | R3: =IF(AM!U4="","",AM!U4) ->  | S3: =IF(AM!V4="","",AM!V4) ->  | T3: =IF(AM!W4="","",AM!W4) ->  | U3: =IF(AM!X4="","",AM!X4) ->  | V3: =IF(AM!Y4="","",AM!Y4) ->  | W3: =IF(AM!Z4="","",AM!Z4) ->  | X3: =IF(AM!AA4="","",AM!AA4) ->  | Y3: =IF(AM!AB4="","",AM!AB4) ->  | Z3: =IF(AM!AC4="","",AM!AC4) ->  | AA3: =IF(AM!AD4="","",AM!AD4) ->  | AB3: =IF(AM!AE4="","",AM!AE4) ->  | AC3: =IF(AM!AF4="","",AM!AF4) ->  | AD3: =IF(AM!AG4="","",AM!AG4) ->  | AE3: =IF(AM!AH4="","",AM!AH4) ->  | AF3: =IF(AM!AI4="","",AM!AI4) ->  | AG3: =IF(AM!AJ4="","",AM!AJ4) ->  | AH3: =IF(AM!AK4="","",AM!AK4) ->  | AI3: =IF(AM!AL4="","",AM!AL4) ->  | AJ3: =IF(AM!AM4="","",AM!AM4) ->  | AK3: =IF(AM!AN4="","",AM!AN4) ->  | AL3: =IF(AM!AO4="","",AM!AO4) ->  | AM3: =IF(AM!AP4="","",AM!AP4) -> 
D4: Criterio Evaluación 1.2 | E4: =IF(AM!H5="","",AM!H5) ->  | F4: =IF(AM!I5="","",AM!I5) ->  | G4: =IF(AM!J5="","",AM!J5) ->  | H4: =IF(AM!K5="","",AM!K5) ->  | I4: =IF(AM!L5="","",AM!L5) ->  | J4: =IF(AM!M5="","",AM!M5) ->  | K4: =IF(AM!N5="","",AM!N5) ->  | L4: =IF(AM!O5="","",AM!O5) ->  | M4: =IF(AM!P5="","",AM!P5) ->  | N4: =IF(AM!Q5="","",AM!Q5) ->  | O4: =IF(AM!R5="","",AM!R5) ->  | P4: =IF(AM!S5="","",AM!S5) ->  | Q4: =IF(AM!T5="","",AM!T5) ->  | R4: =IF(AM!U5="","",AM!U5) ->  | S4: =IF(AM!V5="","",AM!V5) ->  | T4: =IF(AM!W5="","",AM!W5) ->  | U4: =IF(AM!X5="","",AM!X5) ->  | V4: =IF(AM!Y5="","",AM!Y5) ->  | W4: =IF(AM!Z5="","",AM!Z5) ->  | X4: =IF(AM!AA5="","",AM!AA5) ->  | Y4: =IF(AM!AB5="","",AM!AB5) ->  | Z4: =IF(AM!AC5="","",AM!AC5) ->  | AA4: =IF(AM!AD5="","",AM!AD5) ->  | AB4: =IF(AM!AE5="","",AM!AE5) ->  | AC4: =IF(AM!AF5="","",AM!AF5) ->  | AD4: =IF(AM!AG5="","",AM!AG5) ->  | AE4: =IF(AM!AH5="","",AM!AH5) ->  | AF4: =IF(AM!AI5="","",AM!AI5) ->  | AG4: =IF(AM!AJ5="","",AM!AJ5) ->  | AH4: =IF(AM!AK5="","",AM!AK5) ->  | AI4: =IF(AM!AL5="","",AM!AL5) ->  | AJ4: =IF(AM!AM5="","",AM!AM5) ->  | AK4: =IF(AM!AN5="","",AM!AN5) ->  | AL4: =IF(AM!AO5="","",AM!AO5) ->  | AM4: =IF(AM!AP5="","",AM!AP5) -> 
C5: Comp. Esp. 2 | D5: Criterio Evaluación 2.1 | E5: =IF(AM!H6="","",AM!H6) ->  | F5: =IF(AM!I6="","",AM!I6) ->  | G5: =IF(AM!J6="","",AM!J6) ->  | H5: =IF(AM!K6="","",AM!K6) ->  | I5: =IF(AM!L6="","",AM!L6) ->  | J5: =IF(AM!M6="","",AM!M6) ->  | K5: =IF(AM!N6="","",AM!N6) ->  | L5: =IF(AM!O6="","",AM!O6) ->  | M5: =IF(AM!P6="","",AM!P6) ->  | N5: =IF(AM!Q6="","",AM!Q6) ->  | O5: =IF(AM!R6="","",AM!R6) ->  | P5: =IF(AM!S6="","",AM!S6) ->  | Q5: =IF(AM!T6="","",AM!T6) ->  | R5: =IF(AM!U6="","",AM!U6) ->  | S5: =IF(AM!V6="","",AM!V6) ->  | T5: =IF(AM!W6="","",AM!W6) ->  | U5: =IF(AM!X6="","",AM!X6) ->  | V5: =IF(AM!Y6="","",AM!Y6) ->  | W5: =IF(AM!Z6="","",AM!Z6) ->  | X5: =IF(AM!AA6="","",AM!AA6) ->  | Y5: =IF(AM!AB6="","",AM!AB6) ->  | Z5: =IF(AM!AC6="","",AM!AC6) ->  | AA5: =IF(AM!AD6="","",AM!AD6) ->  | AB5: =IF(AM!AE6="","",AM!AE6) ->  | AC5: =IF(AM!AF6="","",AM!AF6) ->  | AD5: =IF(AM!AG6="","",AM!AG6) ->  | AE5: =IF(AM!AH6="","",AM!AH6) ->  | AF5: =IF(AM!AI6="","",AM!AI6) ->  | AG5: =IF(AM!AJ6="","",AM!AJ6) ->  | AH5: =IF(AM!AK6="","",AM!AK6) ->  | AI5: =IF(AM!AL6="","",AM!AL6) ->  | AJ5: =IF(AM!AM6="","",AM!AM6) ->  | AK5: =IF(AM!AN6="","",AM!AN6) ->  | AL5: =IF(AM!AO6="","",AM!AO6) ->  | AM5: =IF(AM!AP6="","",AM!AP6) -> 
D6: Criterio Evaluación 2.2 | E6: =IF(AM!H7="","",AM!H7) ->  | F6: =IF(AM!I7="","",AM!I7) ->  | G6: =IF(AM!J7="","",AM!J7) ->  | H6: =IF(AM!K7="","",AM!K7) ->  | I6: =IF(AM!L7="","",AM!L7) ->  | J6: =IF(AM!M7="","",AM!M7) ->  | K6: =IF(AM!N7="","",AM!N7) ->  | L6: =IF(AM!O7="","",AM!O7) ->  | M6: =IF(AM!P7="","",AM!P7) ->  | N6: =IF(AM!Q7="","",AM!Q7) ->  | O6: =IF(AM!R7="","",AM!R7) ->  | P6: =IF(AM!S7="","",AM!S7) ->  | Q6: =IF(AM!T7="","",AM!T7) ->  | R6: =IF(AM!U7="","",AM!U7) ->  | S6: =IF(AM!V7="","",AM!V7) ->  | T6: =IF(AM!W7="","",AM!W7) ->  | U6: =IF(AM!X7="","",AM!X7) ->  | V6: =IF(AM!Y7="","",AM!Y7) ->  | W6: =IF(AM!Z7="","",AM!Z7) ->  | X6: =IF(AM!AA7="","",AM!AA7) ->  | Y6: =IF(AM!AB7="","",AM!AB7) ->  | Z6: =IF(AM!AC7="","",AM!AC7) ->  | AA6: =IF(AM!AD7="","",AM!AD7) ->  | AB6: =IF(AM!AE7="","",AM!AE7) ->  | AC6: =IF(AM!AF7="","",AM!AF7) ->  | AD6: =IF(AM!AG7="","",AM!AG7) ->  | AE6: =IF(AM!AH7="","",AM!AH7) ->  | AF6: =IF(AM!AI7="","",AM!AI7) ->  | AG6: =IF(AM!AJ7="","",AM!AJ7) ->  | AH6: =IF(AM!AK7="","",AM!AK7) ->  | AI6: =IF(AM!AL7="","",AM!AL7) ->  | AJ6: =IF(AM!AM7="","",AM!AM7) ->  | AK6: =IF(AM!AN7="","",AM!AN7) ->  | AL6: =IF(AM!AO7="","",AM!AO7) ->  | AM6: =IF(AM!AP7="","",AM!AP7) -> 
D7: Criterio Evaluación 2.3 | E7: =IF(AM!H8="","",AM!H8) ->  | F7: =IF(AM!I8="","",AM!I8) ->  | G7: =IF(AM!J8="","",AM!J8) ->  | H7: =IF(AM!K8="","",AM!K8) ->  | I7: =IF(AM!L8="","",AM!L8) ->  | J7: =IF(AM!M8="","",AM!M8) ->  | K7: =IF(AM!N8="","",AM!N8) ->  | L7: =IF(AM!O8="","",AM!O8) ->  | M7: =IF(AM!P8="","",AM!P8) ->  | N7: =IF(AM!Q8="","",AM!Q8) ->  | O7: =IF(AM!R8="","",AM!R8) ->  | P7: =IF(AM!S8="","",AM!S8) ->  | Q7: =IF(AM!T8="","",AM!T8) ->  | R7: =IF(AM!U8="","",AM!U8) ->  | S7: =IF(AM!V8="","",AM!V8) ->  | T7: =IF(AM!W8="","",AM!W8) ->  | U7: =IF(AM!X8="","",AM!X8) ->  | V7: =IF(AM!Y8="","",AM!Y8) ->  | W7: =IF(AM!Z8="","",AM!Z8) ->  | X7: =IF(AM!AA8="","",AM!AA8) ->  | Y7: =IF(AM!AB8="","",AM!AB8) ->  | Z7: =IF(AM!AC8="","",AM!AC8) ->  | AA7: =IF(AM!AD8="","",AM!AD8) ->  | AB7: =IF(AM!AE8="","",AM!AE8) ->  | AC7: =IF(AM!AF8="","",AM!AF8) ->  | AD7: =IF(AM!AG8="","",AM!AG8) ->  | AE7: =IF(AM!AH8="","",AM!AH8) ->  | AF7: =IF(AM!AI8="","",AM!AI8) ->  | AG7: =IF(AM!AJ8="","",AM!AJ8) ->  | AH7: =IF(AM!AK8="","",AM!AK8) ->  | AI7: =IF(AM!AL8="","",AM!AL8) ->  | AJ7: =IF(AM!AM8="","",AM!AM8) ->  | AK7: =IF(AM!AN8="","",AM!AN8) ->  | AL7: =IF(AM!AO8="","",AM!AO8) ->  | AM7: =IF(AM!AP8="","",AM!AP8) -> 
D8: Criterio Evaluación 2.4 | E8: =IF(AM!H9="","",AM!H9) ->  | F8: =IF(AM!I9="","",AM!I9) ->  | G8: =IF(AM!J9="","",AM!J9) ->  | H8: =IF(AM!K9="","",AM!K9) ->  | I8: =IF(AM!L9="","",AM!L9) ->  | J8: =IF(AM!M9="","",AM!M9) ->  | K8: =IF(AM!N9="","",AM!N9) ->  | L8: =IF(AM!O9="","",AM!O9) ->  | M8: =IF(AM!P9="","",AM!P9) ->  | N8: =IF(AM!Q9="","",AM!Q9) ->  | O8: =IF(AM!R9="","",AM!R9) ->  | P8: =IF(AM!S9="","",AM!S9) ->  | Q8: =IF(AM!T9="","",AM!T9) ->  | R8: =IF(AM!U9="","",AM!U9) ->  | S8: =IF(AM!V9="","",AM!V9) ->  | T8: =IF(AM!W9="","",AM!W9) ->  | U8: =IF(AM!X9="","",AM!X9) ->  | V8: =IF(AM!Y9="","",AM!Y9) ->  | W8: =IF(AM!Z9="","",AM!Z9) ->  | X8: =IF(AM!AA9="","",AM!AA9) ->  | Y8: =IF(AM!AB9="","",AM!AB9) ->  | Z8: =IF(AM!AC9="","",AM!AC9) ->  | AA8: =IF(AM!AD9="","",AM!AD9) ->  | AB8: =IF(AM!AE9="","",AM!AE9) ->  | AC8: =IF(AM!AF9="","",AM!AF9) ->  | AD8: =IF(AM!AG9="","",AM!AG9) ->  | AE8: =IF(AM!AH9="","",AM!AH9) ->  | AF8: =IF(AM!AI9="","",AM!AI9) ->  | AG8: =IF(AM!AJ9="","",AM!AJ9) ->  | AH8: =IF(AM!AK9="","",AM!AK9) ->  | AI8: =IF(AM!AL9="","",AM!AL9) ->  | AJ8: =IF(AM!AM9="","",AM!AM9) ->  | AK8: =IF(AM!AN9="","",AM!AN9) ->  | AL8: =IF(AM!AO9="","",AM!AO9) ->  | AM8: =IF(AM!AP9="","",AM!AP9) -> 
C9: Comp. Esp. 3 | D9: Criterio Evaluación 3.1 | E9: =IF(AM!H10="","",AM!H10) ->  | F9: =IF(AM!I10="","",AM!I10) ->  | G9: =IF(AM!J10="","",AM!J10) ->  | H9: =IF(AM!K10="","",AM!K10) ->  | I9: =IF(AM!L10="","",AM!L10) ->  | J9: =IF(AM!M10="","",AM!M10) ->  | K9: =IF(AM!N10="","",AM!N10) ->  | L9: =IF(AM!O10="","",AM!O10) ->  | M9: =IF(AM!P10="","",AM!P10) ->  | N9: =IF(AM!Q10="","",AM!Q10) ->  | O9: =IF(AM!R10="","",AM!R10) ->  | P9: =IF(AM!S10="","",AM!S10) ->  | Q9: =IF(AM!T10="","",AM!T10) ->  | R9: =IF(AM!U10="","",AM!U10) ->  | S9: =IF(AM!V10="","",AM!V10) ->  | T9: =IF(AM!W10="","",AM!W10) ->  | U9: =IF(AM!X10="","",AM!X10) ->  | V9: =IF(AM!Y10="","",AM!Y10) ->  | W9: =IF(AM!Z10="","",AM!Z10) ->  | X9: =IF(AM!AA10="","",AM!AA10) ->  | Y9: =IF(AM!AB10="","",AM!AB10) ->  | Z9: =IF(AM!AC10="","",AM!AC10) ->  | AA9: =IF(AM!AD10="","",AM!AD10) ->  | AB9: =IF(AM!AE10="","",AM!AE10) ->  | AC9: =IF(AM!AF10="","",AM!AF10) ->  | AD9: =IF(AM!AG10="","",AM!AG10) ->  | AE9: =IF(AM!AH10="","",AM!AH10) ->  | AF9: =IF(AM!AI10="","",AM!AI10) ->  | AG9: =IF(AM!AJ10="","",AM!AJ10) ->  | AH9: =IF(AM!AK10="","",AM!AK10) ->  | AI9: =IF(AM!AL10="","",AM!AL10) ->  | AJ9: =IF(AM!AM10="","",AM!AM10) ->  | AK9: =IF(AM!AN10="","",AM!AN10) ->  | AL9: =IF(AM!AO10="","",AM!AO10) ->  | AM9: =IF(AM!AP10="","",AM!AP10) -> 
D10: Criterio Evaluación 3.2 | E10: =IF(AM!H11="","",AM!H11) ->  | F10: =IF(AM!I11="","",AM!I11) ->  | G10: =IF(AM!J11="","",AM!J11) ->  | H10: =IF(AM!K11="","",AM!K11) ->  | I10: =IF(AM!L11="","",AM!L11) ->  | J10: =IF(AM!M11="","",AM!M11) ->  | K10: =IF(AM!N11="","",AM!N11) ->  | L10: =IF(AM!O11="","",AM!O11) ->  | M10: =IF(AM!P11="","",AM!P11) ->  | N10: =IF(AM!Q11="","",AM!Q11) ->  | O10: =IF(AM!R11="","",AM!R11) ->  | P10: =IF(AM!S11="","",AM!S11) ->  | Q10: =IF(AM!T11="","",AM!T11) ->  | R10: =IF(AM!U11="","",AM!U11) ->  | S10: =IF(AM!V11="","",AM!V11) ->  | T10: =IF(AM!W11="","",AM!W11) ->  | U10: =IF(AM!X11="","",AM!X11) ->  | V10: =IF(AM!Y11="","",AM!Y11) ->  | W10: =IF(AM!Z11="","",AM!Z11) ->  | X10: =IF(AM!AA11="","",AM!AA11) ->  | Y10: =IF(AM!AB11="","",AM!AB11) ->  | Z10: =IF(AM!AC11="","",AM!AC11) ->  | AA10: =IF(AM!AD11="","",AM!AD11) ->  | AB10: =IF(AM!AE11="","",AM!AE11) ->  | AC10: =IF(AM!AF11="","",AM!AF11) ->  | AD10: =IF(AM!AG11="","",AM!AG11) ->  | AE10: =IF(AM!AH11="","",AM!AH11) ->  | AF10: =IF(AM!AI11="","",AM!AI11) ->  | AG10: =IF(AM!AJ11="","",AM!AJ11) ->  | AH10: =IF(AM!AK11="","",AM!AK11) ->  | AI10: =IF(AM!AL11="","",AM!AL11) ->  | AJ10: =IF(AM!AM11="","",AM!AM11) ->  | AK10: =IF(AM!AN11="","",AM!AN11) ->  | AL10: =IF(AM!AO11="","",AM!AO11) ->  | AM10: =IF(AM!AP11="","",AM!AP11) -> 
D11: Criterio Evaluación 3.3 | E11: =IF(AM!H12="","",AM!H12) ->  | F11: =IF(AM!I12="","",AM!I12) ->  | G11: =IF(AM!J12="","",AM!J12) ->  | H11: =IF(AM!K12="","",AM!K12) ->  | I11: =IF(AM!L12="","",AM!L12) ->  | J11: =IF(AM!M12="","",AM!M12) ->  | K11: =IF(AM!N12="","",AM!N12) ->  | L11: =IF(AM!O12="","",AM!O12) ->  | M11: =IF(AM!P12="","",AM!P12) ->  | N11: =IF(AM!Q12="","",AM!Q12) ->  | O11: =IF(AM!R12="","",AM!R12) ->  | P11: =IF(AM!S12="","",AM!S12) ->  | Q11: =IF(AM!T12="","",AM!T12) ->  | R11: =IF(AM!U12="","",AM!U12) ->  | S11: =IF(AM!V12="","",AM!V12) ->  | T11: =IF(AM!W12="","",AM!W12) ->  | U11: =IF(AM!X12="","",AM!X12) ->  | V11: =IF(AM!Y12="","",AM!Y12) ->  | W11: =IF(AM!Z12="","",AM!Z12) ->  | X11: =IF(AM!AA12="","",AM!AA12) ->  | Y11: =IF(AM!AB12="","",AM!AB12) ->  | Z11: =IF(AM!AC12="","",AM!AC12) ->  | AA11: =IF(AM!AD12="","",AM!AD12) ->  | AB11: =IF(AM!AE12="","",AM!AE12) ->  | AC11: =IF(AM!AF12="","",AM!AF12) ->  | AD11: =IF(AM!AG12="","",AM!AG12) ->  | AE11: =IF(AM!AH12="","",AM!AH12) ->  | AF11: =IF(AM!AI12="","",AM!AI12) ->  | AG11: =IF(AM!AJ12="","",AM!AJ12) ->  | AH11: =IF(AM!AK12="","",AM!AK12) ->  | AI11: =IF(AM!AL12="","",AM!AL12) ->  | AJ11: =IF(AM!AM12="","",AM!AM12) ->  | AK11: =IF(AM!AN12="","",AM!AN12) ->  | AL11: =IF(AM!AO12="","",AM!AO12) ->  | AM11: =IF(AM!AP12="","",AM!AP12) -> 
C12: Comp. Esp. 4 | D12: Criterio Evaluación 4.1 | E12: =IF(AM!H13="","",AM!H13) ->  | F12: =IF(AM!I13="","",AM!I13) ->  | G12: =IF(AM!J13="","",AM!J13) ->  | H12: =IF(AM!K13="","",AM!K13) ->  | I12: =IF(AM!L13="","",AM!L13) ->  | J12: =IF(AM!M13="","",AM!M13) ->  | K12: =IF(AM!N13="","",AM!N13) ->  | L12: =IF(AM!O13="","",AM!O13) ->  | M12: =IF(AM!P13="","",AM!P13) ->  | N12: =IF(AM!Q13="","",AM!Q13) ->  | O12: =IF(AM!R13="","",AM!R13) ->  | P12: =IF(AM!S13="","",AM!S13) ->  | Q12: =IF(AM!T13="","",AM!T13) ->  | R12: =IF(AM!U13="","",AM!U13) ->  | S12: =IF(AM!V13="","",AM!V13) ->  | T12: =IF(AM!W13="","",AM!W13) ->  | U12: =IF(AM!X13="","",AM!X13) ->  | V12: =IF(AM!Y13="","",AM!Y13) ->  | W12: =IF(AM!Z13="","",AM!Z13) ->  | X12: =IF(AM!AA13="","",AM!AA13) ->  | Y12: =IF(AM!AB13="","",AM!AB13) ->  | Z12: =IF(AM!AC13="","",AM!AC13) ->  | AA12: =IF(AM!AD13="","",AM!AD13) ->  | AB12: =IF(AM!AE13="","",AM!AE13) ->  | AC12: =IF(AM!AF13="","",AM!AF13) ->  | AD12: =IF(AM!AG13="","",AM!AG13) ->  | AE12: =IF(AM!AH13="","",AM!AH13) ->  | AF12: =IF(AM!AI13="","",AM!AI13) ->  | AG12: =IF(AM!AJ13="","",AM!AJ13) ->  | AH12: =IF(AM!AK13="","",AM!AK13) ->  | AI12: =IF(AM!AL13="","",AM!AL13) ->  | AJ12: =IF(AM!AM13="","",AM!AM13) ->  | AK12: =IF(AM!AN13="","",AM!AN13) ->  | AL12: =IF(AM!AO13="","",AM!AO13) ->  | AM12: =IF(AM!AP13="","",AM!AP13) -> 
D13: Criterio Evaluación 4.2 | E13: =IF(AM!H14="","",AM!H14) ->  | F13: =IF(AM!I14="","",AM!I14) ->  | G13: =IF(AM!J14="","",AM!J14) ->  | H13: =IF(AM!K14="","",AM!K14) ->  | I13: =IF(AM!L14="","",AM!L14) ->  | J13: =IF(AM!M14="","",AM!M14) ->  | K13: =IF(AM!N14="","",AM!N14) ->  | L13: =IF(AM!O14="","",AM!O14) ->  | M13: =IF(AM!P14="","",AM!P14) ->  | N13: =IF(AM!Q14="","",AM!Q14) ->  | O13: =IF(AM!R14="","",AM!R14) ->  | P13: =IF(AM!S14="","",AM!S14) ->  | Q13: =IF(AM!T14="","",AM!T14) ->  | R13: =IF(AM!U14="","",AM!U14) ->  | S13: =IF(AM!V14="","",AM!V14) ->  | T13: =IF(AM!W14="","",AM!W14) ->  | U13: =IF(AM!X14="","",AM!X14) ->  | V13: =IF(AM!Y14="","",AM!Y14) ->  | W13: =IF(AM!Z14="","",AM!Z14) ->  | X13: =IF(AM!AA14="","",AM!AA14) ->  | Y13: =IF(AM!AB14="","",AM!AB14) ->  | Z13: =IF(AM!AC14="","",AM!AC14) ->  | AA13: =IF(AM!AD14="","",AM!AD14) ->  | AB13: =IF(AM!AE14="","",AM!AE14) ->  | AC13: =IF(AM!AF14="","",AM!AF14) ->  | AD13: =IF(AM!AG14="","",AM!AG14) ->  | AE13: =IF(AM!AH14="","",AM!AH14) ->  | AF13: =IF(AM!AI14="","",AM!AI14) ->  | AG13: =IF(AM!AJ14="","",AM!AJ14) ->  | AH13: =IF(AM!AK14="","",AM!AK14) ->  | AI13: =IF(AM!AL14="","",AM!AL14) ->  | AJ13: =IF(AM!AM14="","",AM!AM14) ->  | AK13: =IF(AM!AN14="","",AM!AN14) ->  | AL13: =IF(AM!AO14="","",AM!AO14) ->  | AM13: =IF(AM!AP14="","",AM!AP14) -> 
D14: Criterio Evaluación 4.3 | E14: =IF(AM!H15="","",AM!H15) ->  | F14: =IF(AM!I15="","",AM!I15) ->  | G14: =IF(AM!J15="","",AM!J15) ->  | H14: =IF(AM!K15="","",AM!K15) ->  | I14: =IF(AM!L15="","",AM!L15) ->  | J14: =IF(AM!M15="","",AM!M15) ->  | K14: =IF(AM!N15="","",AM!N15) ->  | L14: =IF(AM!O15="","",AM!O15) ->  | M14: =IF(AM!P15="","",AM!P15) ->  | N14: =IF(AM!Q15="","",AM!Q15) ->  | O14: =IF(AM!R15="","",AM!R15) ->  | P14: =IF(AM!S15="","",AM!S15) ->  | Q14: =IF(AM!T15="","",AM!T15) ->  | R14: =IF(AM!U15="","",AM!U15) ->  | S14: =IF(AM!V15="","",AM!V15) ->  | T14: =IF(AM!W15="","",AM!W15) ->  | U14: =IF(AM!X15="","",AM!X15) ->  | V14: =IF(AM!Y15="","",AM!Y15) ->  | W14: =IF(AM!Z15="","",AM!Z15) ->  | X14: =IF(AM!AA15="","",AM!AA15) ->  | Y14: =IF(AM!AB15="","",AM!AB15) ->  | Z14: =IF(AM!AC15="","",AM!AC15) ->  | AA14: =IF(AM!AD15="","",AM!AD15) ->  | AB14: =IF(AM!AE15="","",AM!AE15) ->  | AC14: =IF(AM!AF15="","",AM!AF15) ->  | AD14: =IF(AM!AG15="","",AM!AG15) ->  | AE14: =IF(AM!AH15="","",AM!AH15) ->  | AF14: =IF(AM!AI15="","",AM!AI15) ->  | AG14: =IF(AM!AJ15="","",AM!AJ15) ->  | AH14: =IF(AM!AK15="","",AM!AK15) ->  | AI14: =IF(AM!AL15="","",AM!AL15) ->  | AJ14: =IF(AM!AM15="","",AM!AM15) ->  | AK14: =IF(AM!AN15="","",AM!AN15) ->  | AL14: =IF(AM!AO15="","",AM!AO15) ->  | AM14: =IF(AM!AP15="","",AM!AP15) -> 
D15: Criterio Evaluación 4.4 | E15: =IF(AM!H16="","",AM!H16) ->  | F15: =IF(AM!I16="","",AM!I16) ->  | G15: =IF(AM!J16="","",AM!J16) ->  | H15: =IF(AM!K16="","",AM!K16) ->  | I15: =IF(AM!L16="","",AM!L16) ->  | J15: =IF(AM!M16="","",AM!M16) ->  | K15: =IF(AM!N16="","",AM!N16) ->  | L15: =IF(AM!O16="","",AM!O16) ->  | M15: =IF(AM!P16="","",AM!P16) ->  | N15: =IF(AM!Q16="","",AM!Q16) ->  | O15: =IF(AM!R16="","",AM!R16) ->  | P15: =IF(AM!S16="","",AM!S16) ->  | Q15: =IF(AM!T16="","",AM!T16) ->  | R15: =IF(AM!U16="","",AM!U16) ->  | S15: =IF(AM!V16="","",AM!V16) ->  | T15: =IF(AM!W16="","",AM!W16) ->  | U15: =IF(AM!X16="","",AM!X16) ->  | V15: =IF(AM!Y16="","",AM!Y16) ->  | W15: =IF(AM!Z16="","",AM!Z16) ->  | X15: =IF(AM!AA16="","",AM!AA16) ->  | Y15: =IF(AM!AB16="","",AM!AB16) ->  | Z15: =IF(AM!AC16="","",AM!AC16) ->  | AA15: =IF(AM!AD16="","",AM!AD16) ->  | AB15: =IF(AM!AE16="","",AM!AE16) ->  | AC15: =IF(AM!AF16="","",AM!AF16) ->  | AD15: =IF(AM!AG16="","",AM!AG16) ->  | AE15: =IF(AM!AH16="","",AM!AH16) ->  | AF15: =IF(AM!AI16="","",AM!AI16) ->  | AG15: =IF(AM!AJ16="","",AM!AJ16) ->  | AH15: =IF(AM!AK16="","",AM!AK16) ->  | AI15: =IF(AM!AL16="","",AM!AL16) ->  | AJ15: =IF(AM!AM16="","",AM!AM16) ->  | AK15: =IF(AM!AN16="","",AM!AN16) ->  | AL15: =IF(AM!AO16="","",AM!AO16) ->  | AM15: =IF(AM!AP16="","",AM!AP16) -> 
D16: Criterio Evaluación 4.5 | E16: =IF(AM!H17="","",AM!H17) ->  | F16: =IF(AM!I17="","",AM!I17) ->  | G16: =IF(AM!J17="","",AM!J17) ->  | H16: =IF(AM!K17="","",AM!K17) ->  | I16: =IF(AM!L17="","",AM!L17) ->  | J16: =IF(AM!M17="","",AM!M17) ->  | K16: =IF(AM!N17="","",AM!N17) ->  | L16: =IF(AM!O17="","",AM!O17) ->  | M16: =IF(AM!P17="","",AM!P17) ->  | N16: =IF(AM!Q17="","",AM!Q17) ->  | O16: =IF(AM!R17="","",AM!R17) ->  | P16: =IF(AM!S17="","",AM!S17) ->  | Q16: =IF(AM!T17="","",AM!T17) ->  | R16: =IF(AM!U17="","",AM!U17) ->  | S16: =IF(AM!V17="","",AM!V17) ->  | T16: =IF(AM!W17="","",AM!W17) ->  | U16: =IF(AM!X17="","",AM!X17) ->  | V16: =IF(AM!Y17="","",AM!Y17) ->  | W16: =IF(AM!Z17="","",AM!Z17) ->  | X16: =IF(AM!AA17="","",AM!AA17) ->  | Y16: =IF(AM!AB17="","",AM!AB17) ->  | Z16: =IF(AM!AC17="","",AM!AC17) ->  | AA16: =IF(AM!AD17="","",AM!AD17) ->  | AB16: =IF(AM!AE17="","",AM!AE17) ->  | AC16: =IF(AM!AF17="","",AM!AF17) ->  | AD16: =IF(AM!AG17="","",AM!AG17) ->  | AE16: =IF(AM!AH17="","",AM!AH17) ->  | AF16: =IF(AM!AI17="","",AM!AI17) ->  | AG16: =IF(AM!AJ17="","",AM!AJ17) ->  | AH16: =IF(AM!AK17="","",AM!AK17) ->  | AI16: =IF(AM!AL17="","",AM!AL17) ->  | AJ16: =IF(AM!AM17="","",AM!AM17) ->  | AK16: =IF(AM!AN17="","",AM!AN17) ->  | AL16: =IF(AM!AO17="","",AM!AO17) ->  | AM16: =IF(AM!AP17="","",AM!AP17) -> 
C17: Comp. Esp. 5 | D17: Criterio Evaluación 5.1 | E17: =IF(AM!H18="","",AM!H18) ->  | F17: =IF(AM!I18="","",AM!I18) ->  | G17: =IF(AM!J18="","",AM!J18) ->  | H17: =IF(AM!K18="","",AM!K18) ->  | I17: =IF(AM!L18="","",AM!L18) ->  | J17: =IF(AM!M18="","",AM!M18) ->  | K17: =IF(AM!N18="","",AM!N18) ->  | L17: =IF(AM!O18="","",AM!O18) ->  | M17: =IF(AM!P18="","",AM!P18) ->  | N17: =IF(AM!Q18="","",AM!Q18) ->  | O17: =IF(AM!R18="","",AM!R18) ->  | P17: =IF(AM!S18="","",AM!S18) ->  | Q17: =IF(AM!T18="","",AM!T18) ->  | R17: =IF(AM!U18="","",AM!U18) ->  | S17: =IF(AM!V18="","",AM!V18) ->  | T17: =IF(AM!W18="","",AM!W18) ->  | U17: =IF(AM!X18="","",AM!X18) ->  | V17: =IF(AM!Y18="","",AM!Y18) ->  | W17: =IF(AM!Z18="","",AM!Z18) ->  | X17: =IF(AM!AA18="","",AM!AA18) ->  | Y17: =IF(AM!AB18="","",AM!AB18) ->  | Z17: =IF(AM!AC18="","",AM!AC18) ->  | AA17: =IF(AM!AD18="","",AM!AD18) ->  | AB17: =IF(AM!AE18="","",AM!AE18) ->  | AC17: =IF(AM!AF18="","",AM!AF18) ->  | AD17: =IF(AM!AG18="","",AM!AG18) ->  | AE17: =IF(AM!AH18="","",AM!AH18) ->  | AF17: =IF(AM!AI18="","",AM!AI18) ->  | AG17: =IF(AM!AJ18="","",AM!AJ18) ->  | AH17: =IF(AM!AK18="","",AM!AK18) ->  | AI17: =IF(AM!AL18="","",AM!AL18) ->  | AJ17: =IF(AM!AM18="","",AM!AM18) ->  | AK17: =IF(AM!AN18="","",AM!AN18) ->  | AL17: =IF(AM!AO18="","",AM!AO18) ->  | AM17: =IF(AM!AP18="","",AM!AP18) -> 
D18: Criterio Evaluación 5.2 | E18: =IF(AM!H19="","",AM!H19) ->  | F18: =IF(AM!I19="","",AM!I19) ->  | G18: =IF(AM!J19="","",AM!J19) ->  | H18: =IF(AM!K19="","",AM!K19) ->  | I18: =IF(AM!L19="","",AM!L19) ->  | J18: =IF(AM!M19="","",AM!M19) ->  | K18: =IF(AM!N19="","",AM!N19) ->  | L18: =IF(AM!O19="","",AM!O19) ->  | M18: =IF(AM!P19="","",AM!P19) ->  | N18: =IF(AM!Q19="","",AM!Q19) ->  | O18: =IF(AM!R19="","",AM!R19) ->  | P18: =IF(AM!S19="","",AM!S19) ->  | Q18: =IF(AM!T19="","",AM!T19) ->  | R18: =IF(AM!U19="","",AM!U19) ->  | S18: =IF(AM!V19="","",AM!V19) ->  | T18: =IF(AM!W19="","",AM!W19) ->  | U18: =IF(AM!X19="","",AM!X19) ->  | V18: =IF(AM!Y19="","",AM!Y19) ->  | W18: =IF(AM!Z19="","",AM!Z19) ->  | X18: =IF(AM!AA19="","",AM!AA19) ->  | Y18: =IF(AM!AB19="","",AM!AB19) ->  | Z18: =IF(AM!AC19="","",AM!AC19) ->  | AA18: =IF(AM!AD19="","",AM!AD19) ->  | AB18: =IF(AM!AE19="","",AM!AE19) ->  | AC18: =IF(AM!AF19="","",AM!AF19) ->  | AD18: =IF(AM!AG19="","",AM!AG19) ->  | AE18: =IF(AM!AH19="","",AM!AH19) ->  | AF18: =IF(AM!AI19="","",AM!AI19) ->  | AG18: =IF(AM!AJ19="","",AM!AJ19) ->  | AH18: =IF(AM!AK19="","",AM!AK19) ->  | AI18: =IF(AM!AL19="","",AM!AL19) ->  | AJ18: =IF(AM!AM19="","",AM!AM19) ->  | AK18: =IF(AM!AN19="","",AM!AN19) ->  | AL18: =IF(AM!AO19="","",AM!AO19) ->  | AM18: =IF(AM!AP19="","",AM!AP19) -> 
B19: Anatomía Aplicada | C19: Comp. Esp. 1 | D19: Criterio Evaluación 1.1 | E19: =IF(AA!H4="","",AA!H4) ->  | F19: =IF(AA!I4="","",AA!I4) ->  | G19: =IF(AA!J4="","",AA!J4) ->  | H19: =IF(AA!K4="","",AA!K4) ->  | I19: =IF(AA!L4="","",AA!L4) ->  | J19: =IF(AA!M4="","",AA!M4) ->  | K19: =IF(AA!N4="","",AA!N4) ->  | L19: =IF(AA!O4="","",AA!O4) ->  | M19: =IF(AA!P4="","",AA!P4) ->  | N19: =IF(AA!Q4="","",AA!Q4) ->  | O19: =IF(AA!R4="","",AA!R4) ->  | P19: =IF(AA!S4="","",AA!S4) ->  | Q19: =IF(AA!T4="","",AA!T4) ->  | R19: =IF(AA!U4="","",AA!U4) ->  | S19: =IF(AA!V4="","",AA!V4) ->  | T19: =IF(AA!W4="","",AA!W4) ->  | U19: =IF(AA!X4="","",AA!X4) ->  | V19: =IF(AA!Y4="","",AA!Y4) ->  | W19: =IF(AA!Z4="","",AA!Z4) ->  | X19: =IF(AA!AA4="","",AA!AA4) ->  | Y19: =IF(AA!AB4="","",AA!AB4) ->  | Z19: =IF(AA!AC4="","",AA!AC4) ->  | AA19: =IF(AA!AD4="","",AA!AD4) ->  | AB19: =IF(AA!AE4="","",AA!AE4) ->  | AC19: =IF(AA!AF4="","",AA!AF4) ->  | AD19: =IF(AA!AG4="","",AA!AG4) ->  | AE19: =IF(AA!AH4="","",AA!AH4) ->  | AF19: =IF(AA!AI4="","",AA!AI4) ->  | AG19: =IF(AA!AJ4="","",AA!AJ4) ->  | AH19: =IF(AA!AK4="","",AA!AK4) ->  | AI19: =IF(AA!AL4="","",AA!AL4) ->  | AJ19: =IF(AA!AM4="","",AA!AM4) ->  | AK19: =IF(AA!AN4="","",AA!AN4) ->  | AL19: =IF(AA!AO4="","",AA!AO4) ->  | AM19: =IF(AA!AP4="","",AA!AP4) -> 
D20: Criterio Evaluación 1.2 | E20: =IF(AA!H5="","",AA!H5) ->  | F20: =IF(AA!I5="","",AA!I5) ->  | G20: =IF(AA!J5="","",AA!J5) ->  | H20: =IF(AA!K5="","",AA!K5) ->  | I20: =IF(AA!L5="","",AA!L5) ->  | J20: =IF(AA!M5="","",AA!M5) ->  | K20: =IF(AA!N5="","",AA!N5) ->  | L20: =IF(AA!O5="","",AA!O5) ->  | M20: =IF(AA!P5="","",AA!P5) ->  | N20: =IF(AA!Q5="","",AA!Q5) ->  | O20: =IF(AA!R5="","",AA!R5) ->  | P20: =IF(AA!S5="","",AA!S5) ->  | Q20: =IF(AA!T5="","",AA!T5) ->  | R20: =IF(AA!U5="","",AA!U5) ->  | S20: =IF(AA!V5="","",AA!V5) ->  | T20: =IF(AA!W5="","",AA!W5) ->  | U20: =IF(AA!X5="","",AA!X5) ->  | V20: =IF(AA!Y5="","",AA!Y5) ->  | W20: =IF(AA!Z5="","",AA!Z5) ->  | X20: =IF(AA!AA5="","",AA!AA5) ->  | Y20: =IF(AA!AB5="","",AA!AB5) ->  | Z20: =IF(AA!AC5="","",AA!AC5) ->  | AA20: =IF(AA!AD5="","",AA!AD5) ->  | AB20: =IF(AA!AE5="","",AA!AE5) ->  | AC20: =IF(AA!AF5="","",AA!AF5) ->  | AD20: =IF(AA!AG5="","",AA!AG5) ->  | AE20: =IF(AA!AH5="","",AA!AH5) ->  | AF20: =IF(AA!AI5="","",AA!AI5) ->  | AG20: =IF(AA!AJ5="","",AA!AJ5) ->  | AH20: =IF(AA!AK5="","",AA!AK5) ->  | AI20: =IF(AA!AL5="","",AA!AL5) ->  | AJ20: =IF(AA!AM5="","",AA!AM5) ->  | AK20: =IF(AA!AN5="","",AA!AN5) ->  | AL20: =IF(AA!AO5="","",AA!AO5) ->  | AM20: =IF(AA!AP5="","",AA!AP5) -> 
D21: Criterio Evaluación 1.3 | E21: =IF(AA!H6="","",AA!H6) ->  | F21: =IF(AA!I6="","",AA!I6) ->  | G21: =IF(AA!J6="","",AA!J6) ->  | H21: =IF(AA!K6="","",AA!K6) ->  | I21: =IF(AA!L6="","",AA!L6) ->  | J21: =IF(AA!M6="","",AA!M6) ->  | K21: =IF(AA!N6="","",AA!N6) ->  | L21: =IF(AA!O6="","",AA!O6) ->  | M21: =IF(AA!P6="","",AA!P6) ->  | N21: =IF(AA!Q6="","",AA!Q6) ->  | O21: =IF(AA!R6="","",AA!R6) ->  | P21: =IF(AA!S6="","",AA!S6) ->  | Q21: =IF(AA!T6="","",AA!T6) ->  | R21: =IF(AA!U6="","",AA!U6) ->  | S21: =IF(AA!V6="","",AA!V6) ->  | T21: =IF(AA!W6="","",AA!W6) ->  | U21: =IF(AA!X6="","",AA!X6) ->  | V21: =IF(AA!Y6="","",AA!Y6) ->  | W21: =IF(AA!Z6="","",AA!Z6) ->  | X21: =IF(AA!AA6="","",AA!AA6) ->  | Y21: =IF(AA!AB6="","",AA!AB6) ->  | Z21: =IF(AA!AC6="","",AA!AC6) ->  | AA21: =IF(AA!AD6="","",AA!AD6) ->  | AB21: =IF(AA!AE6="","",AA!AE6) ->  | AC21: =IF(AA!AF6="","",AA!AF6) ->  | AD21: =IF(AA!AG6="","",AA!AG6) ->  | AE21: =IF(AA!AH6="","",AA!AH6) ->  | AF21: =IF(AA!AI6="","",AA!AI6) ->  | AG21: =IF(AA!AJ6="","",AA!AJ6) ->  | AH21: =IF(AA!AK6="","",AA!AK6) ->  | AI21: =IF(AA!AL6="","",AA!AL6) ->  | AJ21: =IF(AA!AM6="","",AA!AM6) ->  | AK21: =IF(AA!AN6="","",AA!AN6) ->  | AL21: =IF(AA!AO6="","",AA!AO6) ->  | AM21: =IF(AA!AP6="","",AA!AP6) -> 
C22: Comp. Esp. 2 | D22: Criterio Evaluación 2.1 | E22: =IF(AA!H7="","",AA!H7) ->  | F22: =IF(AA!I7="","",AA!I7) ->  | G22: =IF(AA!J7="","",AA!J7) ->  | H22: =IF(AA!K7="","",AA!K7) ->  | I22: =IF(AA!L7="","",AA!L7) ->  | J22: =IF(AA!M7="","",AA!M7) ->  | K22: =IF(AA!N7="","",AA!N7) ->  | L22: =IF(AA!O7="","",AA!O7) ->  | M22: =IF(AA!P7="","",AA!P7) ->  | N22: =IF(AA!Q7="","",AA!Q7) ->  | O22: =IF(AA!R7="","",AA!R7) ->  | P22: =IF(AA!S7="","",AA!S7) ->  | Q22: =IF(AA!T7="","",AA!T7) ->  | R22: =IF(AA!U7="","",AA!U7) ->  | S22: =IF(AA!V7="","",AA!V7) ->  | T22: =IF(AA!W7="","",AA!W7) ->  | U22: =IF(AA!X7="","",AA!X7) ->  | V22: =IF(AA!Y7="","",AA!Y7) ->  | W22: =IF(AA!Z7="","",AA!Z7) ->  | X22: =IF(AA!AA7="","",AA!AA7) ->  | Y22: =IF(AA!AB7="","",AA!AB7) ->  | Z22: =IF(AA!AC7="","",AA!AC7) ->  | AA22: =IF(AA!AD7="","",AA!AD7) ->  | AB22: =IF(AA!AE7="","",AA!AE7) ->  | AC22: =IF(AA!AF7="","",AA!AF7) ->  | AD22: =IF(AA!AG7="","",AA!AG7) ->  | AE22: =IF(AA!AH7="","",AA!AH7) ->  | AF22: =IF(AA!AI7="","",AA!AI7) ->  | AG22: =IF(AA!AJ7="","",AA!AJ7) ->  | AH22: =IF(AA!AK7="","",AA!AK7) ->  | AI22: =IF(AA!AL7="","",AA!AL7) ->  | AJ22: =IF(AA!AM7="","",AA!AM7) ->  | AK22: =IF(AA!AN7="","",AA!AN7) ->  | AL22: =IF(AA!AO7="","",AA!AO7) ->  | AM22: =IF(AA!AP7="","",AA!AP7) -> 
D23: Criterio Evaluación 2.2 | E23: =IF(AA!H8="","",AA!H8) ->  | F23: =IF(AA!I8="","",AA!I8) ->  | G23: =IF(AA!J8="","",AA!J8) ->  | H23: =IF(AA!K8="","",AA!K8) ->  | I23: =IF(AA!L8="","",AA!L8) ->  | J23: =IF(AA!M8="","",AA!M8) ->  | K23: =IF(AA!N8="","",AA!N8) ->  | L23: =IF(AA!O8="","",AA!O8) ->  | M23: =IF(AA!P8="","",AA!P8) ->  | N23: =IF(AA!Q8="","",AA!Q8) ->  | O23: =IF(AA!R8="","",AA!R8) ->  | P23: =IF(AA!S8="","",AA!S8) ->  | Q23: =IF(AA!T8="","",AA!T8) ->  | R23: =IF(AA!U8="","",AA!U8) ->  | S23: =IF(AA!V8="","",AA!V8) ->  | T23: =IF(AA!W8="","",AA!W8) ->  | U23: =IF(AA!X8="","",AA!X8) ->  | V23: =IF(AA!Y8="","",AA!Y8) ->  | W23: =IF(AA!Z8="","",AA!Z8) ->  | X23: =IF(AA!AA8="","",AA!AA8) ->  | Y23: =IF(AA!AB8="","",AA!AB8) ->  | Z23: =IF(AA!AC8="","",AA!AC8) ->  | AA23: =IF(AA!AD8="","",AA!AD8) ->  | AB23: =IF(AA!AE8="","",AA!AE8) ->  | AC23: =IF(AA!AF8="","",AA!AF8) ->  | AD23: =IF(AA!AG8="","",AA!AG8) ->  | AE23: =IF(AA!AH8="","",AA!AH8) ->  | AF23: =IF(AA!AI8="","",AA!AI8) ->  | AG23: =IF(AA!AJ8="","",AA!AJ8) ->  | AH23: =IF(AA!AK8="","",AA!AK8) ->  | AI23: =IF(AA!AL8="","",AA!AL8) ->  | AJ23: =IF(AA!AM8="","",AA!AM8) ->  | AK23: =IF(AA!AN8="","",AA!AN8) ->  | AL23: =IF(AA!AO8="","",AA!AO8) ->  | AM23: =IF(AA!AP8="","",AA!AP8) -> 
D24: Criterio Evaluación 2.3 | E24: =IF(AA!H9="","",AA!H9) ->  | F24: =IF(AA!I9="","",AA!I9) ->  | G24: =IF(AA!J9="","",AA!J9) ->  | H24: =IF(AA!K9="","",AA!K9) ->  | I24: =IF(AA!L9="","",AA!L9) ->  | J24: =IF(AA!M9="","",AA!M9) ->  | K24: =IF(AA!N9="","",AA!N9) ->  | L24: =IF(AA!O9="","",AA!O9) ->  | M24: =IF(AA!P9="","",AA!P9) ->  | N24: =IF(AA!Q9="","",AA!Q9) ->  | O24: =IF(AA!R9="","",AA!R9) ->  | P24: =IF(AA!S9="","",AA!S9) ->  | Q24: =IF(AA!T9="","",AA!T9) ->  | R24: =IF(AA!U9="","",AA!U9) ->  | S24: =IF(AA!V9="","",AA!V9) ->  | T24: =IF(AA!W9="","",AA!W9) ->  | U24: =IF(AA!X9="","",AA!X9) ->  | V24: =IF(AA!Y9="","",AA!Y9) ->  | W24: =IF(AA!Z9="","",AA!Z9) ->  | X24: =IF(AA!AA9="","",AA!AA9) ->  | Y24: =IF(AA!AB9="","",AA!AB9) ->  | Z24: =IF(AA!AC9="","",AA!AC9) ->  | AA24: =IF(AA!AD9="","",AA!AD9) ->  | AB24: =IF(AA!AE9="","",AA!AE9) ->  | AC24: =IF(AA!AF9="","",AA!AF9) ->  | AD24: =IF(AA!AG9="","",AA!AG9) ->  | AE24: =IF(AA!AH9="","",AA!AH9) ->  | AF24: =IF(AA!AI9="","",AA!AI9) ->  | AG24: =IF(AA!AJ9="","",AA!AJ9) ->  | AH24: =IF(AA!AK9="","",AA!AK9) ->  | AI24: =IF(AA!AL9="","",AA!AL9) ->  | AJ24: =IF(AA!AM9="","",AA!AM9) ->  | AK24: =IF(AA!AN9="","",AA!AN9) ->  | AL24: =IF(AA!AO9="","",AA!AO9) ->  | AM24: =IF(AA!AP9="","",AA!AP9) -> 
C25: Comp. Esp. 3 | D25: Criterio Evaluación 3.1 | E25: =IF(AA!H10="","",AA!H10) ->  | F25: =IF(AA!I10="","",AA!I10) ->  | G25: =IF(AA!J10="","",AA!J10) ->  | H25: =IF(AA!K10="","",AA!K10) ->  | I25: =IF(AA!L10="","",AA!L10) ->  | J25: =IF(AA!M10="","",AA!M10) ->  | K25: =IF(AA!N10="","",AA!N10) ->  | L25: =IF(AA!O10="","",AA!O10) ->  | M25: =IF(AA!P10="","",AA!P10) ->  | N25: =IF(AA!Q10="","",AA!Q10) ->  | O25: =IF(AA!R10="","",AA!R10) ->  | P25: =IF(AA!S10="","",AA!S10) ->  | Q25: =IF(AA!T10="","",AA!T10) ->  | R25: =IF(AA!U10="","",AA!U10) ->  | S25: =IF(AA!V10="","",AA!V10) ->  | T25: =IF(AA!W10="","",AA!W10) ->  | U25: =IF(AA!X10="","",AA!X10) ->  | V25: =IF(AA!Y10="","",AA!Y10) ->  | W25: =IF(AA!Z10="","",AA!Z10) ->  | X25: =IF(AA!AA10="","",AA!AA10) ->  | Y25: =IF(AA!AB10="","",AA!AB10) ->  | Z25: =IF(AA!AC10="","",AA!AC10) ->  | AA25: =IF(AA!AD10="","",AA!AD10) ->  | AB25: =IF(AA!AE10="","",AA!AE10) ->  | AC25: =IF(AA!AF10="","",AA!AF10) ->  | AD25: =IF(AA!AG10="","",AA!AG10) ->  | AE25: =IF(AA!AH10="","",AA!AH10) ->  | AF25: =IF(AA!AI10="","",AA!AI10) ->  | AG25: =IF(AA!AJ10="","",AA!AJ10) ->  | AH25: =IF(AA!AK10="","",AA!AK10) ->  | AI25: =IF(AA!AL10="","",AA!AL10) ->  | AJ25: =IF(AA!AM10="","",AA!AM10) ->  | AK25: =IF(AA!AN10="","",AA!AN10) ->  | AL25: =IF(AA!AO10="","",AA!AO10) ->  | AM25: =IF(AA!AP10="","",AA!AP10) -> 
D26: Criterio Evaluación 3.2 | E26: =IF(AA!H11="","",AA!H11) ->  | F26: =IF(AA!I11="","",AA!I11) ->  | G26: =IF(AA!J11="","",AA!J11) ->  | H26: =IF(AA!K11="","",AA!K11) ->  | I26: =IF(AA!L11="","",AA!L11) ->  | J26: =IF(AA!M11="","",AA!M11) ->  | K26: =IF(AA!N11="","",AA!N11) ->  | L26: =IF(AA!O11="","",AA!O11) ->  | M26: =IF(AA!P11="","",AA!P11) ->  | N26: =IF(AA!Q11="","",AA!Q11) ->  | O26: =IF(AA!R11="","",AA!R11) ->  | P26: =IF(AA!S11="","",AA!S11) ->  | Q26: =IF(AA!T11="","",AA!T11) ->  | R26: =IF(AA!U11="","",AA!U11) ->  | S26: =IF(AA!V11="","",AA!V11) ->  | T26: =IF(AA!W11="","",AA!W11) ->  | U26: =IF(AA!X11="","",AA!X11) ->  | V26: =IF(AA!Y11="","",AA!Y11) ->  | W26: =IF(AA!Z11="","",AA!Z11) ->  | X26: =IF(AA!AA11="","",AA!AA11) ->  | Y26: =IF(AA!AB11="","",AA!AB11) ->  | Z26: =IF(AA!AC11="","",AA!AC11) ->  | AA26: =IF(AA!AD11="","",AA!AD11) ->  | AB26: =IF(AA!AE11="","",AA!AE11) ->  | AC26: =IF(AA!AF11="","",AA!AF11) ->  | AD26: =IF(AA!AG11="","",AA!AG11) ->  | AE26: =IF(AA!AH11="","",AA!AH11) ->  | AF26: =IF(AA!AI11="","",AA!AI11) ->  | AG26: =IF(AA!AJ11="","",AA!AJ11) ->  | AH26: =IF(AA!AK11="","",AA!AK11) ->  | AI26: =IF(AA!AL11="","",AA!AL11) ->  | AJ26: =IF(AA!AM11="","",AA!AM11) ->  | AK26: =IF(AA!AN11="","",AA!AN11) ->  | AL26: =IF(AA!AO11="","",AA!AO11) ->  | AM26: =IF(AA!AP11="","",AA!AP11) -> 
D27: Criterio Evaluación 3.3 | E27: =IF(AA!H12="","",AA!H12) ->  | F27: =IF(AA!I12="","",AA!I12) ->  | G27: =IF(AA!J12="","",AA!J12) ->  | H27: =IF(AA!K12="","",AA!K12) ->  | I27: =IF(AA!L12="","",AA!L12) ->  | J27: =IF(AA!M12="","",AA!M12) ->  | K27: =IF(AA!N12="","",AA!N12) ->  | L27: =IF(AA!O12="","",AA!O12) ->  | M27: =IF(AA!P12="","",AA!P12) ->  | N27: =IF(AA!Q12="","",AA!Q12) ->  | O27: =IF(AA!R12="","",AA!R12) ->  | P27: =IF(AA!S12="","",AA!S12) ->  | Q27: =IF(AA!T12="","",AA!T12) ->  | R27: =IF(AA!U12="","",AA!U12) ->  | S27: =IF(AA!V12="","",AA!V12) ->  | T27: =IF(AA!W12="","",AA!W12) ->  | U27: =IF(AA!X12="","",AA!X12) ->  | V27: =IF(AA!Y12="","",AA!Y12) ->  | W27: =IF(AA!Z12="","",AA!Z12) ->  | X27: =IF(AA!AA12="","",AA!AA12) ->  | Y27: =IF(AA!AB12="","",AA!AB12) ->  | Z27: =IF(AA!AC12="","",AA!AC12) ->  | AA27: =IF(AA!AD12="","",AA!AD12) ->  | AB27: =IF(AA!AE12="","",AA!AE12) ->  | AC27: =IF(AA!AF12="","",AA!AF12) ->  | AD27: =IF(AA!AG12="","",AA!AG12) ->  | AE27: =IF(AA!AH12="","",AA!AH12) ->  | AF27: =IF(AA!AI12="","",AA!AI12) ->  | AG27: =IF(AA!AJ12="","",AA!AJ12) ->  | AH27: =IF(AA!AK12="","",AA!AK12) ->  | AI27: =IF(AA!AL12="","",AA!AL12) ->  | AJ27: =IF(AA!AM12="","",AA!AM12) ->  | AK27: =IF(AA!AN12="","",AA!AN12) ->  | AL27: =IF(AA!AO12="","",AA!AO12) ->  | AM27: =IF(AA!AP12="","",AA!AP12) -> 
D28: Criterio Evaluación 3.4 | E28: =IF(AA!H13="","",AA!H13) ->  | F28: =IF(AA!I13="","",AA!I13) ->  | G28: =IF(AA!J13="","",AA!J13) ->  | H28: =IF(AA!K13="","",AA!K13) ->  | I28: =IF(AA!L13="","",AA!L13) ->  | J28: =IF(AA!M13="","",AA!M13) ->  | K28: =IF(AA!N13="","",AA!N13) ->  | L28: =IF(AA!O13="","",AA!O13) ->  | M28: =IF(AA!P13="","",AA!P13) ->  | N28: =IF(AA!Q13="","",AA!Q13) ->  | O28: =IF(AA!R13="","",AA!R13) ->  | P28: =IF(AA!S13="","",AA!S13) ->  | Q28: =IF(AA!T13="","",AA!T13) ->  | R28: =IF(AA!U13="","",AA!U13) ->  | S28: =IF(AA!V13="","",AA!V13) ->  | T28: =IF(AA!W13="","",AA!W13) ->  | U28: =IF(AA!X13="","",AA!X13) ->  | V28: =IF(AA!Y13="","",AA!Y13) ->  | W28: =IF(AA!Z13="","",AA!Z13) ->  | X28: =IF(AA!AA13="","",AA!AA13) ->  | Y28: =IF(AA!AB13="","",AA!AB13) ->  | Z28: =IF(AA!AC13="","",AA!AC13) ->  | AA28: =IF(AA!AD13="","",AA!AD13) ->  | AB28: =IF(AA!AE13="","",AA!AE13) ->  | AC28: =IF(AA!AF13="","",AA!AF13) ->  | AD28: =IF(AA!AG13="","",AA!AG13) ->  | AE28: =IF(AA!AH13="","",AA!AH13) ->  | AF28: =IF(AA!AI13="","",AA!AI13) ->  | AG28: =IF(AA!AJ13="","",AA!AJ13) ->  | AH28: =IF(AA!AK13="","",AA!AK13) ->  | AI28: =IF(AA!AL13="","",AA!AL13) ->  | AJ28: =IF(AA!AM13="","",AA!AM13) ->  | AK28: =IF(AA!AN13="","",AA!AN13) ->  | AL28: =IF(AA!AO13="","",AA!AO13) ->  | AM28: =IF(AA!AP13="","",AA!AP13) -> 
D29: Criterio Evaluación 3.5 | E29: =IF(AA!H14="","",AA!H14) ->  | F29: =IF(AA!I14="","",AA!I14) ->  | G29: =IF(AA!J14="","",AA!J14) ->  | H29: =IF(AA!K14="","",AA!K14) ->  | I29: =IF(AA!L14="","",AA!L14) ->  | J29: =IF(AA!M14="","",AA!M14) ->  | K29: =IF(AA!N14="","",AA!N14) ->  | L29: =IF(AA!O14="","",AA!O14) ->  | M29: =IF(AA!P14="","",AA!P14) ->  | N29: =IF(AA!Q14="","",AA!Q14) ->  | O29: =IF(AA!R14="","",AA!R14) ->  | P29: =IF(AA!S14="","",AA!S14) ->  | Q29: =IF(AA!T14="","",AA!T14) ->  | R29: =IF(AA!U14="","",AA!U14) ->  | S29: =IF(AA!V14="","",AA!V14) ->  | T29: =IF(AA!W14="","",AA!W14) ->  | U29: =IF(AA!X14="","",AA!X14) ->  | V29: =IF(AA!Y14="","",AA!Y14) ->  | W29: =IF(AA!Z14="","",AA!Z14) ->  | X29: =IF(AA!AA14="","",AA!AA14) ->  | Y29: =IF(AA!AB14="","",AA!AB14) ->  | Z29: =IF(AA!AC14="","",AA!AC14) ->  | AA29: =IF(AA!AD14="","",AA!AD14) ->  | AB29: =IF(AA!AE14="","",AA!AE14) ->  | AC29: =IF(AA!AF14="","",AA!AF14) ->  | AD29: =IF(AA!AG14="","",AA!AG14) ->  | AE29: =IF(AA!AH14="","",AA!AH14) ->  | AF29: =IF(AA!AI14="","",AA!AI14) ->  | AG29: =IF(AA!AJ14="","",AA!AJ14) ->  | AH29: =IF(AA!AK14="","",AA!AK14) ->  | AI29: =IF(AA!AL14="","",AA!AL14) ->  | AJ29: =IF(AA!AM14="","",AA!AM14) ->  | AK29: =IF(AA!AN14="","",AA!AN14) ->  | AL29: =IF(AA!AO14="","",AA!AO14) ->  | AM29: =IF(AA!AP14="","",AA!AP14) -> 
D30: Criterio Evaluación 3.6 | E30: =IF(AA!H15="","",AA!H15) ->  | F30: =IF(AA!I15="","",AA!I15) ->  | G30: =IF(AA!J15="","",AA!J15) ->  | H30: =IF(AA!K15="","",AA!K15) ->  | I30: =IF(AA!L15="","",AA!L15) ->  | J30: =IF(AA!M15="","",AA!M15) ->  | K30: =IF(AA!N15="","",AA!N15) ->  | L30: =IF(AA!O15="","",AA!O15) ->  | M30: =IF(AA!P15="","",AA!P15) ->  | N30: =IF(AA!Q15="","",AA!Q15) ->  | O30: =IF(AA!R15="","",AA!R15) ->  | P30: =IF(AA!S15="","",AA!S15) ->  | Q30: =IF(AA!T15="","",AA!T15) ->  | R30: =IF(AA!U15="","",AA!U15) ->  | S30: =IF(AA!V15="","",AA!V15) ->  | T30: =IF(AA!W15="","",AA!W15) ->  | U30: =IF(AA!X15="","",AA!X15) ->  | V30: =IF(AA!Y15="","",AA!Y15) ->  | W30: =IF(AA!Z15="","",AA!Z15) ->  | X30: =IF(AA!AA15="","",AA!AA15) ->  | Y30: =IF(AA!AB15="","",AA!AB15) ->  | Z30: =IF(AA!AC15="","",AA!AC15) ->  | AA30: =IF(AA!AD15="","",AA!AD15) ->  | AB30: =IF(AA!AE15="","",AA!AE15) ->  | AC30: =IF(AA!AF15="","",AA!AF15) ->  | AD30: =IF(AA!AG15="","",AA!AG15) ->  | AE30: =IF(AA!AH15="","",AA!AH15) ->  | AF30: =IF(AA!AI15="","",AA!AI15) ->  | AG30: =IF(AA!AJ15="","",AA!AJ15) ->  | AH30: =IF(AA!AK15="","",AA!AK15) ->  | AI30: =IF(AA!AL15="","",AA!AL15) ->  | AJ30: =IF(AA!AM15="","",AA!AM15) ->  | AK30: =IF(AA!AN15="","",AA!AN15) ->  | AL30: =IF(AA!AO15="","",AA!AO15) ->  | AM30: =IF(AA!AP15="","",AA!AP15) -> 
C31: Comp. Esp. 4 | D31: Criterio Evaluación 4.1 | E31: =IF(AA!H16="","",AA!H16) ->  | F31: =IF(AA!I16="","",AA!I16) ->  | G31: =IF(AA!J16="","",AA!J16) ->  | H31: =IF(AA!K16="","",AA!K16) ->  | I31: =IF(AA!L16="","",AA!L16) ->  | J31: =IF(AA!M16="","",AA!M16) ->  | K31: =IF(AA!N16="","",AA!N16) ->  | L31: =IF(AA!O16="","",AA!O16) ->  | M31: =IF(AA!P16="","",AA!P16) ->  | N31: =IF(AA!Q16="","",AA!Q16) ->  | O31: =IF(AA!R16="","",AA!R16) ->  | P31: =IF(AA!S16="","",AA!S16) ->  | Q31: =IF(AA!T16="","",AA!T16) ->  | R31: =IF(AA!U16="","",AA!U16) ->  | S31: =IF(AA!V16="","",AA!V16) ->  | T31: =IF(AA!W16="","",AA!W16) ->  | U31: =IF(AA!X16="","",AA!X16) ->  | V31: =IF(AA!Y16="","",AA!Y16) ->  | W31: =IF(AA!Z16="","",AA!Z16) ->  | X31: =IF(AA!AA16="","",AA!AA16) ->  | Y31: =IF(AA!AB16="","",AA!AB16) ->  | Z31: =IF(AA!AC16="","",AA!AC16) ->  | AA31: =IF(AA!AD16="","",AA!AD16) ->  | AB31: =IF(AA!AE16="","",AA!AE16) ->  | AC31: =IF(AA!AF16="","",AA!AF16) ->  | AD31: =IF(AA!AG16="","",AA!AG16) ->  | AE31: =IF(AA!AH16="","",AA!AH16) ->  | AF31: =IF(AA!AI16="","",AA!AI16) ->  | AG31: =IF(AA!AJ16="","",AA!AJ16) ->  | AH31: =IF(AA!AK16="","",AA!AK16) ->  | AI31: =IF(AA!AL16="","",AA!AL16) ->  | AJ31: =IF(AA!AM16="","",AA!AM16) ->  | AK31: =IF(AA!AN16="","",AA!AN16) ->  | AL31: =IF(AA!AO16="","",AA!AO16) ->  | AM31: =IF(AA!AP16="","",AA!AP16) -> 
D32: Criterio Evaluación 4.2 | E32: =IF(AA!H17="","",AA!H17) ->  | F32: =IF(AA!I17="","",AA!I17) ->  | G32: =IF(AA!J17="","",AA!J17) ->  | H32: =IF(AA!K17="","",AA!K17) ->  | I32: =IF(AA!L17="","",AA!L17) ->  | J32: =IF(AA!M17="","",AA!M17) ->  | K32: =IF(AA!N17="","",AA!N17) ->  | L32: =IF(AA!O17="","",AA!O17) ->  | M32: =IF(AA!P17="","",AA!P17) ->  | N32: =IF(AA!Q17="","",AA!Q17) ->  | O32: =IF(AA!R17="","",AA!R17) ->  | P32: =IF(AA!S17="","",AA!S17) ->  | Q32: =IF(AA!T17="","",AA!T17) ->  | R32: =IF(AA!U17="","",AA!U17) ->  | S32: =IF(AA!V17="","",AA!V17) ->  | T32: =IF(AA!W17="","",AA!W17) ->  | U32: =IF(AA!X17="","",AA!X17) ->  | V32: =IF(AA!Y17="","",AA!Y17) ->  | W32: =IF(AA!Z17="","",AA!Z17) ->  | X32: =IF(AA!AA17="","",AA!AA17) ->  | Y32: =IF(AA!AB17="","",AA!AB17) ->  | Z32: =IF(AA!AC17="","",AA!AC17) ->  | AA32: =IF(AA!AD17="","",AA!AD17) ->  | AB32: =IF(AA!AE17="","",AA!AE17) ->  | AC32: =IF(AA!AF17="","",AA!AF17) ->  | AD32: =IF(AA!AG17="","",AA!AG17) ->  | AE32: =IF(AA!AH17="","",AA!AH17) ->  | AF32: =IF(AA!AI17="","",AA!AI17) ->  | AG32: =IF(AA!AJ17="","",AA!AJ17) ->  | AH32: =IF(AA!AK17="","",AA!AK17) ->  | AI32: =IF(AA!AL17="","",AA!AL17) ->  | AJ32: =IF(AA!AM17="","",AA!AM17) ->  | AK32: =IF(AA!AN17="","",AA!AN17) ->  | AL32: =IF(AA!AO17="","",AA!AO17) ->  | AM32: =IF(AA!AP17="","",AA!AP17) -> 
D33: Criterio Evaluación 4.3 | E33: =IF(AA!H18="","",AA!H18) ->  | F33: =IF(AA!I18="","",AA!I18) ->  | G33: =IF(AA!J18="","",AA!J18) ->  | H33: =IF(AA!K18="","",AA!K18) ->  | I33: =IF(AA!L18="","",AA!L18) ->  | J33: =IF(AA!M18="","",AA!M18) ->  | K33: =IF(AA!N18="","",AA!N18) ->  | L33: =IF(AA!O18="","",AA!O18) ->  | M33: =IF(AA!P18="","",AA!P18) ->  | N33: =IF(AA!Q18="","",AA!Q18) ->  | O33: =IF(AA!R18="","",AA!R18) ->  | P33: =IF(AA!S18="","",AA!S18) ->  | Q33: =IF(AA!T18="","",AA!T18) ->  | R33: =IF(AA!U18="","",AA!U18) ->  | S33: =IF(AA!V18="","",AA!V18) ->  | T33: =IF(AA!W18="","",AA!W18) ->  | U33: =IF(AA!X18="","",AA!X18) ->  | V33: =IF(AA!Y18="","",AA!Y18) ->  | W33: =IF(AA!Z18="","",AA!Z18) ->  | X33: =IF(AA!AA18="","",AA!AA18) ->  | Y33: =IF(AA!AB18="","",AA!AB18) ->  | Z33: =IF(AA!AC18="","",AA!AC18) ->  | AA33: =IF(AA!AD18="","",AA!AD18) ->  | AB33: =IF(AA!AE18="","",AA!AE18) ->  | AC33: =IF(AA!AF18="","",AA!AF18) ->  | AD33: =IF(AA!AG18="","",AA!AG18) ->  | AE33: =IF(AA!AH18="","",AA!AH18) ->  | AF33: =IF(AA!AI18="","",AA!AI18) ->  | AG33: =IF(AA!AJ18="","",AA!AJ18) ->  | AH33: =IF(AA!AK18="","",AA!AK18) ->  | AI33: =IF(AA!AL18="","",AA!AL18) ->  | AJ33: =IF(AA!AM18="","",AA!AM18) ->  | AK33: =IF(AA!AN18="","",AA!AN18) ->  | AL33: =IF(AA!AO18="","",AA!AO18) ->  | AM33: =IF(AA!AP18="","",AA!AP18) -> 
D34: Criterio Evaluación 4.4 | E34: =IF(AA!H19="","",AA!H19) ->  | F34: =IF(AA!I19="","",AA!I19) ->  | G34: =IF(AA!J19="","",AA!J19) ->  | H34: =IF(AA!K19="","",AA!K19) ->  | I34: =IF(AA!L19="","",AA!L19) ->  | J34: =IF(AA!M19="","",AA!M19) ->  | K34: =IF(AA!N19="","",AA!N19) ->  | L34: =IF(AA!O19="","",AA!O19) ->  | M34: =IF(AA!P19="","",AA!P19) ->  | N34: =IF(AA!Q19="","",AA!Q19) ->  | O34: =IF(AA!R19="","",AA!R19) ->  | P34: =IF(AA!S19="","",AA!S19) ->  | Q34: =IF(AA!T19="","",AA!T19) ->  | R34: =IF(AA!U19="","",AA!U19) ->  | S34: =IF(AA!V19="","",AA!V19) ->  | T34: =IF(AA!W19="","",AA!W19) ->  | U34: =IF(AA!X19="","",AA!X19) ->  | V34: =IF(AA!Y19="","",AA!Y19) ->  | W34: =IF(AA!Z19="","",AA!Z19) ->  | X34: =IF(AA!AA19="","",AA!AA19) ->  | Y34: =IF(AA!AB19="","",AA!AB19) ->  | Z34: =IF(AA!AC19="","",AA!AC19) ->  | AA34: =IF(AA!AD19="","",AA!AD19) ->  | AB34: =IF(AA!AE19="","",AA!AE19) ->  | AC34: =IF(AA!AF19="","",AA!AF19) ->  | AD34: =IF(AA!AG19="","",AA!AG19) ->  | AE34: =IF(AA!AH19="","",AA!AH19) ->  | AF34: =IF(AA!AI19="","",AA!AI19) ->  | AG34: =IF(AA!AJ19="","",AA!AJ19) ->  | AH34: =IF(AA!AK19="","",AA!AK19) ->  | AI34: =IF(AA!AL19="","",AA!AL19) ->  | AJ34: =IF(AA!AM19="","",AA!AM19) ->  | AK34: =IF(AA!AN19="","",AA!AN19) ->  | AL34: =IF(AA!AO19="","",AA!AO19) ->  | AM34: =IF(AA!AP19="","",AA!AP19) -> 
C35: Comp. Esp. 5 | D35: Criterio Evaluación 5.1 | E35: =IF(AA!H20="","",AA!H20) ->  | F35: =IF(AA!I20="","",AA!I20) ->  | G35: =IF(AA!J20="","",AA!J20) ->  | H35: =IF(AA!K20="","",AA!K20) ->  | I35: =IF(AA!L20="","",AA!L20) ->  | J35: =IF(AA!M20="","",AA!M20) ->  | K35: =IF(AA!N20="","",AA!N20) ->  | L35: =IF(AA!O20="","",AA!O20) ->  | M35: =IF(AA!P20="","",AA!P20) ->  | N35: =IF(AA!Q20="","",AA!Q20) ->  | O35: =IF(AA!R20="","",AA!R20) ->  | P35: =IF(AA!S20="","",AA!S20) ->  | Q35: =IF(AA!T20="","",AA!T20) ->  | R35: =IF(AA!U20="","",AA!U20) ->  | S35: =IF(AA!V20="","",AA!V20) ->  | T35: =IF(AA!W20="","",AA!W20) ->  | U35: =IF(AA!X20="","",AA!X20) ->  | V35: =IF(AA!Y20="","",AA!Y20) ->  | W35: =IF(AA!Z20="","",AA!Z20) ->  | X35: =IF(AA!AA20="","",AA!AA20) ->  | Y35: =IF(AA!AB20="","",AA!AB20) ->  | Z35: =IF(AA!AC20="","",AA!AC20) ->  | AA35: =IF(AA!AD20="","",AA!AD20) ->  | AB35: =IF(AA!AE20="","",AA!AE20) ->  | AC35: =IF(AA!AF20="","",AA!AF20) ->  | AD35: =IF(AA!AG20="","",AA!AG20) ->  | AE35: =IF(AA!AH20="","",AA!AH20) ->  | AF35: =IF(AA!AI20="","",AA!AI20) ->  | AG35: =IF(AA!AJ20="","",AA!AJ20) ->  | AH35: =IF(AA!AK20="","",AA!AK20) ->  | AI35: =IF(AA!AL20="","",AA!AL20) ->  | AJ35: =IF(AA!AM20="","",AA!AM20) ->  | AK35: =IF(AA!AN20="","",AA!AN20) ->  | AL35: =IF(AA!AO20="","",AA!AO20) ->  | AM35: =IF(AA!AP20="","",AA!AP20) -> 
D36: Criterio Evaluación 5.2 | E36: =IF(AA!H21="","",AA!H21) ->  | F36: =IF(AA!I21="","",AA!I21) ->  | G36: =IF(AA!J21="","",AA!J21) ->  | H36: =IF(AA!K21="","",AA!K21) ->  | I36: =IF(AA!L21="","",AA!L21) ->  | J36: =IF(AA!M21="","",AA!M21) ->  | K36: =IF(AA!N21="","",AA!N21) ->  | L36: =IF(AA!O21="","",AA!O21) ->  | M36: =IF(AA!P21="","",AA!P21) ->  | N36: =IF(AA!Q21="","",AA!Q21) ->  | O36: =IF(AA!R21="","",AA!R21) ->  | P36: =IF(AA!S21="","",AA!S21) ->  | Q36: =IF(AA!T21="","",AA!T21) ->  | R36: =IF(AA!U21="","",AA!U21) ->  | S36: =IF(AA!V21="","",AA!V21) ->  | T36: =IF(AA!W21="","",AA!W21) ->  | U36: =IF(AA!X21="","",AA!X21) ->  | V36: =IF(AA!Y21="","",AA!Y21) ->  | W36: =IF(AA!Z21="","",AA!Z21) ->  | X36: =IF(AA!AA21="","",AA!AA21) ->  | Y36: =IF(AA!AB21="","",AA!AB21) ->  | Z36: =IF(AA!AC21="","",AA!AC21) ->  | AA36: =IF(AA!AD21="","",AA!AD21) ->  | AB36: =IF(AA!AE21="","",AA!AE21) ->  | AC36: =IF(AA!AF21="","",AA!AF21) ->  | AD36: =IF(AA!AG21="","",AA!AG21) ->  | AE36: =IF(AA!AH21="","",AA!AH21) ->  | AF36: =IF(AA!AI21="","",AA!AI21) ->  | AG36: =IF(AA!AJ21="","",AA!AJ21) ->  | AH36: =IF(AA!AK21="","",AA!AK21) ->  | AI36: =IF(AA!AL21="","",AA!AL21) ->  | AJ36: =IF(AA!AM21="","",AA!AM21) ->  | AK36: =IF(AA!AN21="","",AA!AN21) ->  | AL36: =IF(AA!AO21="","",AA!AO21) ->  | AM36: =IF(AA!AP21="","",AA!AP21) -> 
D37: Criterio Evaluación 5.3 | E37: =IF(AA!H22="","",AA!H22) ->  | F37: =IF(AA!I22="","",AA!I22) ->  | G37: =IF(AA!J22="","",AA!J22) ->  | H37: =IF(AA!K22="","",AA!K22) ->  | I37: =IF(AA!L22="","",AA!L22) ->  | J37: =IF(AA!M22="","",AA!M22) ->  | K37: =IF(AA!N22="","",AA!N22) ->  | L37: =IF(AA!O22="","",AA!O22) ->  | M37: =IF(AA!P22="","",AA!P22) ->  | N37: =IF(AA!Q22="","",AA!Q22) ->  | O37: =IF(AA!R22="","",AA!R22) ->  | P37: =IF(AA!S22="","",AA!S22) ->  | Q37: =IF(AA!T22="","",AA!T22) ->  | R37: =IF(AA!U22="","",AA!U22) ->  | S37: =IF(AA!V22="","",AA!V22) ->  | T37: =IF(AA!W22="","",AA!W22) ->  | U37: =IF(AA!X22="","",AA!X22) ->  | V37: =IF(AA!Y22="","",AA!Y22) ->  | W37: =IF(AA!Z22="","",AA!Z22) ->  | X37: =IF(AA!AA22="","",AA!AA22) ->  | Y37: =IF(AA!AB22="","",AA!AB22) ->  | Z37: =IF(AA!AC22="","",AA!AC22) ->  | AA37: =IF(AA!AD22="","",AA!AD22) ->  | AB37: =IF(AA!AE22="","",AA!AE22) ->  | AC37: =IF(AA!AF22="","",AA!AF22) ->  | AD37: =IF(AA!AG22="","",AA!AG22) ->  | AE37: =IF(AA!AH22="","",AA!AH22) ->  | AF37: =IF(AA!AI22="","",AA!AI22) ->  | AG37: =IF(AA!AJ22="","",AA!AJ22) ->  | AH37: =IF(AA!AK22="","",AA!AK22) ->  | AI37: =IF(AA!AL22="","",AA!AL22) ->  | AJ37: =IF(AA!AM22="","",AA!AM22) ->  | AK37: =IF(AA!AN22="","",AA!AN22) ->  | AL37: =IF(AA!AO22="","",AA!AO22) ->  | AM37: =IF(AA!AP22="","",AA!AP22) -> 
D38: Criterio Evaluación 5.4 | E38: =IF(AA!H23="","",AA!H23) ->  | F38: =IF(AA!I23="","",AA!I23) ->  | G38: =IF(AA!J23="","",AA!J23) ->  | H38: =IF(AA!K23="","",AA!K23) ->  | I38: =IF(AA!L23="","",AA!L23) ->  | J38: =IF(AA!M23="","",AA!M23) ->  | K38: =IF(AA!N23="","",AA!N23) ->  | L38: =IF(AA!O23="","",AA!O23) ->  | M38: =IF(AA!P23="","",AA!P23) ->  | N38: =IF(AA!Q23="","",AA!Q23) ->  | O38: =IF(AA!R23="","",AA!R23) ->  | P38: =IF(AA!S23="","",AA!S23) ->  | Q38: =IF(AA!T23="","",AA!T23) ->  | R38: =IF(AA!U23="","",AA!U23) ->  | S38: =IF(AA!V23="","",AA!V23) ->  | T38: =IF(AA!W23="","",AA!W23) ->  | U38: =IF(AA!X23="","",AA!X23) ->  | V38: =IF(AA!Y23="","",AA!Y23) ->  | W38: =IF(AA!Z23="","",AA!Z23) ->  | X38: =IF(AA!AA23="","",AA!AA23) ->  | Y38: =IF(AA!AB23="","",AA!AB23) ->  | Z38: =IF(AA!AC23="","",AA!AC23) ->  | AA38: =IF(AA!AD23="","",AA!AD23) ->  | AB38: =IF(AA!AE23="","",AA!AE23) ->  | AC38: =IF(AA!AF23="","",AA!AF23) ->  | AD38: =IF(AA!AG23="","",AA!AG23) ->  | AE38: =IF(AA!AH23="","",AA!AH23) ->  | AF38: =IF(AA!AI23="","",AA!AI23) ->  | AG38: =IF(AA!AJ23="","",AA!AJ23) ->  | AH38: =IF(AA!AK23="","",AA!AK23) ->  | AI38: =IF(AA!AL23="","",AA!AL23) ->  | AJ38: =IF(AA!AM23="","",AA!AM23) ->  | AK38: =IF(AA!AN23="","",AA!AN23) ->  | AL38: =IF(AA!AO23="","",AA!AO23) ->  | AM38: =IF(AA!AP23="","",AA!AP23) -> 
D39: Criterio Evaluación 5.5 | E39: =IF(AA!H24="","",AA!H24) ->  | F39: =IF(AA!I24="","",AA!I24) ->  | G39: =IF(AA!J24="","",AA!J24) ->  | H39: =IF(AA!K24="","",AA!K24) ->  | I39: =IF(AA!L24="","",AA!L24) ->  | J39: =IF(AA!M24="","",AA!M24) ->  | K39: =IF(AA!N24="","",AA!N24) ->  | L39: =IF(AA!O24="","",AA!O24) ->  | M39: =IF(AA!P24="","",AA!P24) ->  | N39: =IF(AA!Q24="","",AA!Q24) ->  | O39: =IF(AA!R24="","",AA!R24) ->  | P39: =IF(AA!S24="","",AA!S24) ->  | Q39: =IF(AA!T24="","",AA!T24) ->  | R39: =IF(AA!U24="","",AA!U24) ->  | S39: =IF(AA!V24="","",AA!V24) ->  | T39: =IF(AA!W24="","",AA!W24) ->  | U39: =IF(AA!X24="","",AA!X24) ->  | V39: =IF(AA!Y24="","",AA!Y24) ->  | W39: =IF(AA!Z24="","",AA!Z24) ->  | X39: =IF(AA!AA24="","",AA!AA24) ->  | Y39: =IF(AA!AB24="","",AA!AB24) ->  | Z39: =IF(AA!AC24="","",AA!AC24) ->  | AA39: =IF(AA!AD24="","",AA!AD24) ->  | AB39: =IF(AA!AE24="","",AA!AE24) ->  | AC39: =IF(AA!AF24="","",AA!AF24) ->  | AD39: =IF(AA!AG24="","",AA!AG24) ->  | AE39: =IF(AA!AH24="","",AA!AH24) ->  | AF39: =IF(AA!AI24="","",AA!AI24) ->  | AG39: =IF(AA!AJ24="","",AA!AJ24) ->  | AH39: =IF(AA!AK24="","",AA!AK24) ->  | AI39: =IF(AA!AL24="","",AA!AL24) ->  | AJ39: =IF(AA!AM24="","",AA!AM24) ->  | AK39: =IF(AA!AN24="","",AA!AN24) ->  | AL39: =IF(AA!AO24="","",AA!AO24) ->  | AM39: =IF(AA!AP24="","",AA!AP24) -> 
D40: Criterio Evaluación 5.6 | E40: =IF(AA!H25="","",AA!H25) ->  | F40: =IF(AA!I25="","",AA!I25) ->  | G40: =IF(AA!J25="","",AA!J25) ->  | H40: =IF(AA!K25="","",AA!K25) ->  | I40: =IF(AA!L25="","",AA!L25) ->  | J40: =IF(AA!M25="","",AA!M25) ->  | K40: =IF(AA!N25="","",AA!N25) ->  | L40: =IF(AA!O25="","",AA!O25) ->  | M40: =IF(AA!P25="","",AA!P25) ->  | N40: =IF(AA!Q25="","",AA!Q25) ->  | O40: =IF(AA!R25="","",AA!R25) ->  | P40: =IF(AA!S25="","",AA!S25) ->  | Q40: =IF(AA!T25="","",AA!T25) ->  | R40: =IF(AA!U25="","",AA!U25) ->  | S40: =IF(AA!V25="","",AA!V25) ->  | T40: =IF(AA!W25="","",AA!W25) ->  | U40: =IF(AA!X25="","",AA!X25) ->  | V40: =IF(AA!Y25="","",AA!Y25) ->  | W40: =IF(AA!Z25="","",AA!Z25) ->  | X40: =IF(AA!AA25="","",AA!AA25) ->  | Y40: =IF(AA!AB25="","",AA!AB25) ->  | Z40: =IF(AA!AC25="","",AA!AC25) ->  | AA40: =IF(AA!AD25="","",AA!AD25) ->  | AB40: =IF(AA!AE25="","",AA!AE25) ->  | AC40: =IF(AA!AF25="","",AA!AF25) ->  | AD40: =IF(AA!AG25="","",AA!AG25) ->  | AE40: =IF(AA!AH25="","",AA!AH25) ->  | AF40: =IF(AA!AI25="","",AA!AI25) ->  | AG40: =IF(AA!AJ25="","",AA!AJ25) ->  | AH40: =IF(AA!AK25="","",AA!AK25) ->  | AI40: =IF(AA!AL25="","",AA!AL25) ->  | AJ40: =IF(AA!AM25="","",AA!AM25) ->  | AK40: =IF(AA!AN25="","",AA!AN25) ->  | AL40: =IF(AA!AO25="","",AA!AO25) ->  | AM40: =IF(AA!AP25="","",AA!AP25) -> 
D41: Criterio Evaluación 5.7 | E41: =IF(AA!H26="","",AA!H26) ->  | F41: =IF(AA!I26="","",AA!I26) ->  | G41: =IF(AA!J26="","",AA!J26) ->  | H41: =IF(AA!K26="","",AA!K26) ->  | I41: =IF(AA!L26="","",AA!L26) ->  | J41: =IF(AA!M26="","",AA!M26) ->  | K41: =IF(AA!N26="","",AA!N26) ->  | L41: =IF(AA!O26="","",AA!O26) ->  | M41: =IF(AA!P26="","",AA!P26) ->  | N41: =IF(AA!Q26="","",AA!Q26) ->  | O41: =IF(AA!R26="","",AA!R26) ->  | P41: =IF(AA!S26="","",AA!S26) ->  | Q41: =IF(AA!T26="","",AA!T26) ->  | R41: =IF(AA!U26="","",AA!U26) ->  | S41: =IF(AA!V26="","",AA!V26) ->  | T41: =IF(AA!W26="","",AA!W26) ->  | U41: =IF(AA!X26="","",AA!X26) ->  | V41: =IF(AA!Y26="","",AA!Y26) ->  | W41: =IF(AA!Z26="","",AA!Z26) ->  | X41: =IF(AA!AA26="","",AA!AA26) ->  | Y41: =IF(AA!AB26="","",AA!AB26) ->  | Z41: =IF(AA!AC26="","",AA!AC26) ->  | AA41: =IF(AA!AD26="","",AA!AD26) ->  | AB41: =IF(AA!AE26="","",AA!AE26) ->  | AC41: =IF(AA!AF26="","",AA!AF26) ->  | AD41: =IF(AA!AG26="","",AA!AG26) ->  | AE41: =IF(AA!AH26="","",AA!AH26) ->  | AF41: =IF(AA!AI26="","",AA!AI26) ->  | AG41: =IF(AA!AJ26="","",AA!AJ26) ->  | AH41: =IF(AA!AK26="","",AA!AK26) ->  | AI41: =IF(AA!AL26="","",AA!AL26) ->  | AJ41: =IF(AA!AM26="","",AA!AM26) ->  | AK41: =IF(AA!AN26="","",AA!AN26) ->  | AL41: =IF(AA!AO26="","",AA!AO26) ->  | AM41: =IF(AA!AP26="","",AA!AP26) -> 
C42: Comp. Esp. 6 | D42: Criterio Evaluación 6.1 | E42: =IF(AA!H27="","",AA!H27) ->  | F42: =IF(AA!I27="","",AA!I27) ->  | G42: =IF(AA!J27="","",AA!J27) ->  | H42: =IF(AA!K27="","",AA!K27) ->  | I42: =IF(AA!L27="","",AA!L27) ->  | J42: =IF(AA!M27="","",AA!M27) ->  | K42: =IF(AA!N27="","",AA!N27) ->  | L42: =IF(AA!O27="","",AA!O27) ->  | M42: =IF(AA!P27="","",AA!P27) ->  | N42: =IF(AA!Q27="","",AA!Q27) ->  | O42: =IF(AA!R27="","",AA!R27) ->  | P42: =IF(AA!S27="","",AA!S27) ->  | Q42: =IF(AA!T27="","",AA!T27) ->  | R42: =IF(AA!U27="","",AA!U27) ->  | S42: =IF(AA!V27="","",AA!V27) ->  | T42: =IF(AA!W27="","",AA!W27) ->  | U42: =IF(AA!X27="","",AA!X27) ->  | V42: =IF(AA!Y27="","",AA!Y27) ->  | W42: =IF(AA!Z27="","",AA!Z27) ->  | X42: =IF(AA!AA27="","",AA!AA27) ->  | Y42: =IF(AA!AB27="","",AA!AB27) ->  | Z42: =IF(AA!AC27="","",AA!AC27) ->  | AA42: =IF(AA!AD27="","",AA!AD27) ->  | AB42: =IF(AA!AE27="","",AA!AE27) ->  | AC42: =IF(AA!AF27="","",AA!AF27) ->  | AD42: =IF(AA!AG27="","",AA!AG27) ->  | AE42: =IF(AA!AH27="","",AA!AH27) ->  | AF42: =IF(AA!AI27="","",AA!AI27) ->  | AG42: =IF(AA!AJ27="","",AA!AJ27) ->  | AH42: =IF(AA!AK27="","",AA!AK27) ->  | AI42: =IF(AA!AL27="","",AA!AL27) ->  | AJ42: =IF(AA!AM27="","",AA!AM27) ->  | AK42: =IF(AA!AN27="","",AA!AN27) ->  | AL42: =IF(AA!AO27="","",AA!AO27) ->  | AM42: =IF(AA!AP27="","",AA!AP27) -> 
D43: Criterio Evaluación 6.2 | E43: =IF(AA!H28="","",AA!H28) ->  | F43: =IF(AA!I28="","",AA!I28) ->  | G43: =IF(AA!J28="","",AA!J28) ->  | H43: =IF(AA!K28="","",AA!K28) ->  | I43: =IF(AA!L28="","",AA!L28) ->  | J43: =IF(AA!M28="","",AA!M28) ->  | K43: =IF(AA!N28="","",AA!N28) ->  | L43: =IF(AA!O28="","",AA!O28) ->  | M43: =IF(AA!P28="","",AA!P28) ->  | N43: =IF(AA!Q28="","",AA!Q28) ->  | O43: =IF(AA!R28="","",AA!R28) ->  | P43: =IF(AA!S28="","",AA!S28) ->  | Q43: =IF(AA!T28="","",AA!T28) ->  | R43: =IF(AA!U28="","",AA!U28) ->  | S43: =IF(AA!V28="","",AA!V28) ->  | T43: =IF(AA!W28="","",AA!W28) ->  | U43: =IF(AA!X28="","",AA!X28) ->  | V43: =IF(AA!Y28="","",AA!Y28) ->  | W43: =IF(AA!Z28="","",AA!Z28) ->  | X43: =IF(AA!AA28="","",AA!AA28) ->  | Y43: =IF(AA!AB28="","",AA!AB28) ->  | Z43: =IF(AA!AC28="","",AA!AC28) ->  | AA43: =IF(AA!AD28="","",AA!AD28) ->  | AB43: =IF(AA!AE28="","",AA!AE28) ->  | AC43: =IF(AA!AF28="","",AA!AF28) ->  | AD43: =IF(AA!AG28="","",AA!AG28) ->  | AE43: =IF(AA!AH28="","",AA!AH28) ->  | AF43: =IF(AA!AI28="","",AA!AI28) ->  | AG43: =IF(AA!AJ28="","",AA!AJ28) ->  | AH43: =IF(AA!AK28="","",AA!AK28) ->  | AI43: =IF(AA!AL28="","",AA!AL28) ->  | AJ43: =IF(AA!AM28="","",AA!AM28) ->  | AK43: =IF(AA!AN28="","",AA!AN28) ->  | AL43: =IF(AA!AO28="","",AA!AO28) ->  | AM43: =IF(AA!AP28="","",AA!AP28) -> 
D44: Criterio Evaluación 6.3 | E44: =IF(AA!H29="","",AA!H29) ->  | F44: =IF(AA!I29="","",AA!I29) ->  | G44: =IF(AA!J29="","",AA!J29) ->  | H44: =IF(AA!K29="","",AA!K29) ->  | I44: =IF(AA!L29="","",AA!L29) ->  | J44: =IF(AA!M29="","",AA!M29) ->  | K44: =IF(AA!N29="","",AA!N29) ->  | L44: =IF(AA!O29="","",AA!O29) ->  | M44: =IF(AA!P29="","",AA!P29) ->  | N44: =IF(AA!Q29="","",AA!Q29) ->  | O44: =IF(AA!R29="","",AA!R29) ->  | P44: =IF(AA!S29="","",AA!S29) ->  | Q44: =IF(AA!T29="","",AA!T29) ->  | R44: =IF(AA!U29="","",AA!U29) ->  | S44: =IF(AA!V29="","",AA!V29) ->  | T44: =IF(AA!W29="","",AA!W29) ->  | U44: =IF(AA!X29="","",AA!X29) ->  | V44: =IF(AA!Y29="","",AA!Y29) ->  | W44: =IF(AA!Z29="","",AA!Z29) ->  | X44: =IF(AA!AA29="","",AA!AA29) ->  | Y44: =IF(AA!AB29="","",AA!AB29) ->  | Z44: =IF(AA!AC29="","",AA!AC29) ->  | AA44: =IF(AA!AD29="","",AA!AD29) ->  | AB44: =IF(AA!AE29="","",AA!AE29) ->  | AC44: =IF(AA!AF29="","",AA!AF29) ->  | AD44: =IF(AA!AG29="","",AA!AG29) ->  | AE44: =IF(AA!AH29="","",AA!AH29) ->  | AF44: =IF(AA!AI29="","",AA!AI29) ->  | AG44: =IF(AA!AJ29="","",AA!AJ29) ->  | AH44: =IF(AA!AK29="","",AA!AK29) ->  | AI44: =IF(AA!AL29="","",AA!AL29) ->  | AJ44: =IF(AA!AM29="","",AA!AM29) ->  | AK44: =IF(AA!AN29="","",AA!AN29) ->  | AL44: =IF(AA!AO29="","",AA!AO29) ->  | AM44: =IF(AA!AP29="","",AA!AP29) -> 
D45: Criterio Evaluación 6.4 | E45: =IF(AA!H30="","",AA!H30) ->  | F45: =IF(AA!I30="","",AA!I30) ->  | G45: =IF(AA!J30="","",AA!J30) ->  | H45: =IF(AA!K30="","",AA!K30) ->  | I45: =IF(AA!L30="","",AA!L30) ->  | J45: =IF(AA!M30="","",AA!M30) ->  | K45: =IF(AA!N30="","",AA!N30) ->  | L45: =IF(AA!O30="","",AA!O30) ->  | M45: =IF(AA!P30="","",AA!P30) ->  | N45: =IF(AA!Q30="","",AA!Q30) ->  | O45: =IF(AA!R30="","",AA!R30) ->  | P45: =IF(AA!S30="","",AA!S30) ->  | Q45: =IF(AA!T30="","",AA!T30) ->  | R45: =IF(AA!U30="","",AA!U30) ->  | S45: =IF(AA!V30="","",AA!V30) ->  | T45: =IF(AA!W30="","",AA!W30) ->  | U45: =IF(AA!X30="","",AA!X30) ->  | V45: =IF(AA!Y30="","",AA!Y30) ->  | W45: =IF(AA!Z30="","",AA!Z30) ->  | X45: =IF(AA!AA30="","",AA!AA30) ->  | Y45: =IF(AA!AB30="","",AA!AB30) ->  | Z45: =IF(AA!AC30="","",AA!AC30) ->  | AA45: =IF(AA!AD30="","",AA!AD30) ->  | AB45: =IF(AA!AE30="","",AA!AE30) ->  | AC45: =IF(AA!AF30="","",AA!AF30) ->  | AD45: =IF(AA!AG30="","",AA!AG30) ->  | AE45: =IF(AA!AH30="","",AA!AH30) ->  | AF45: =IF(AA!AI30="","",AA!AI30) ->  | AG45: =IF(AA!AJ30="","",AA!AJ30) ->  | AH45: =IF(AA!AK30="","",AA!AK30) ->  | AI45: =IF(AA!AL30="","",AA!AL30) ->  | AJ45: =IF(AA!AM30="","",AA!AM30) ->  | AK45: =IF(AA!AN30="","",AA!AN30) ->  | AL45: =IF(AA!AO30="","",AA!AO30) ->  | AM45: =IF(AA!AP30="","",AA!AP30) -> 
D46: Criterio Evaluación 6.5 | E46: =IF(AA!H31="","",AA!H31) ->  | F46: =IF(AA!I31="","",AA!I31) ->  | G46: =IF(AA!J31="","",AA!J31) ->  | H46: =IF(AA!K31="","",AA!K31) ->  | I46: =IF(AA!L31="","",AA!L31) ->  | J46: =IF(AA!M31="","",AA!M31) ->  | K46: =IF(AA!N31="","",AA!N31) ->  | L46: =IF(AA!O31="","",AA!O31) ->  | M46: =IF(AA!P31="","",AA!P31) ->  | N46: =IF(AA!Q31="","",AA!Q31) ->  | O46: =IF(AA!R31="","",AA!R31) ->  | P46: =IF(AA!S31="","",AA!S31) ->  | Q46: =IF(AA!T31="","",AA!T31) ->  | R46: =IF(AA!U31="","",AA!U31) ->  | S46: =IF(AA!V31="","",AA!V31) ->  | T46: =IF(AA!W31="","",AA!W31) ->  | U46: =IF(AA!X31="","",AA!X31) ->  | V46: =IF(AA!Y31="","",AA!Y31) ->  | W46: =IF(AA!Z31="","",AA!Z31) ->  | X46: =IF(AA!AA31="","",AA!AA31) ->  | Y46: =IF(AA!AB31="","",AA!AB31) ->  | Z46: =IF(AA!AC31="","",AA!AC31) ->  | AA46: =IF(AA!AD31="","",AA!AD31) ->  | AB46: =IF(AA!AE31="","",AA!AE31) ->  | AC46: =IF(AA!AF31="","",AA!AF31) ->  | AD46: =IF(AA!AG31="","",AA!AG31) ->  | AE46: =IF(AA!AH31="","",AA!AH31) ->  | AF46: =IF(AA!AI31="","",AA!AI31) ->  | AG46: =IF(AA!AJ31="","",AA!AJ31) ->  | AH46: =IF(AA!AK31="","",AA!AK31) ->  | AI46: =IF(AA!AL31="","",AA!AL31) ->  | AJ46: =IF(AA!AM31="","",AA!AM31) ->  | AK46: =IF(AA!AN31="","",AA!AN31) ->  | AL46: =IF(AA!AO31="","",AA!AO31) ->  | AM46: =IF(AA!AP31="","",AA!AP31) -> 
D47: Criterio Evaluación 6.6 | E47: =IF(AA!H32="","",AA!H32) ->  | F47: =IF(AA!I32="","",AA!I32) ->  | G47: =IF(AA!J32="","",AA!J32) ->  | H47: =IF(AA!K32="","",AA!K32) ->  | I47: =IF(AA!L32="","",AA!L32) ->  | J47: =IF(AA!M32="","",AA!M32) ->  | K47: =IF(AA!N32="","",AA!N32) ->  | L47: =IF(AA!O32="","",AA!O32) ->  | M47: =IF(AA!P32="","",AA!P32) ->  | N47: =IF(AA!Q32="","",AA!Q32) ->  | O47: =IF(AA!R32="","",AA!R32) ->  | P47: =IF(AA!S32="","",AA!S32) ->  | Q47: =IF(AA!T32="","",AA!T32) ->  | R47: =IF(AA!U32="","",AA!U32) ->  | S47: =IF(AA!V32="","",AA!V32) ->  | T47: =IF(AA!W32="","",AA!W32) ->  | U47: =IF(AA!X32="","",AA!X32) ->  | V47: =IF(AA!Y32="","",AA!Y32) ->  | W47: =IF(AA!Z32="","",AA!Z32) ->  | X47: =IF(AA!AA32="","",AA!AA32) ->  | Y47: =IF(AA!AB32="","",AA!AB32) ->  | Z47: =IF(AA!AC32="","",AA!AC32) ->  | AA47: =IF(AA!AD32="","",AA!AD32) ->  | AB47: =IF(AA!AE32="","",AA!AE32) ->  | AC47: =IF(AA!AF32="","",AA!AF32) ->  | AD47: =IF(AA!AG32="","",AA!AG32) ->  | AE47: =IF(AA!AH32="","",AA!AH32) ->  | AF47: =IF(AA!AI32="","",AA!AI32) ->  | AG47: =IF(AA!AJ32="","",AA!AJ32) ->  | AH47: =IF(AA!AK32="","",AA!AK32) ->  | AI47: =IF(AA!AL32="","",AA!AL32) ->  | AJ47: =IF(AA!AM32="","",AA!AM32) ->  | AK47: =IF(AA!AN32="","",AA!AN32) ->  | AL47: =IF(AA!AO32="","",AA!AO32) ->  | AM47: =IF(AA!AP32="","",AA!AP32) -> 
D48: Criterio Evaluación 6.7 | E48: =IF(AA!H33="","",AA!H33) ->  | F48: =IF(AA!I33="","",AA!I33) ->  | G48: =IF(AA!J33="","",AA!J33) ->  | H48: =IF(AA!K33="","",AA!K33) ->  | I48: =IF(AA!L33="","",AA!L33) ->  | J48: =IF(AA!M33="","",AA!M33) ->  | K48: =IF(AA!N33="","",AA!N33) ->  | L48: =IF(AA!O33="","",AA!O33) ->  | M48: =IF(AA!P33="","",AA!P33) ->  | N48: =IF(AA!Q33="","",AA!Q33) ->  | O48: =IF(AA!R33="","",AA!R33) ->  | P48: =IF(AA!S33="","",AA!S33) ->  | Q48: =IF(AA!T33="","",AA!T33) ->  | R48: =IF(AA!U33="","",AA!U33) ->  | S48: =IF(AA!V33="","",AA!V33) ->  | T48: =IF(AA!W33="","",AA!W33) ->  | U48: =IF(AA!X33="","",AA!X33) ->  | V48: =IF(AA!Y33="","",AA!Y33) ->  | W48: =IF(AA!Z33="","",AA!Z33) ->  | X48: =IF(AA!AA33="","",AA!AA33) ->  | Y48: =IF(AA!AB33="","",AA!AB33) ->  | Z48: =IF(AA!AC33="","",AA!AC33) ->  | AA48: =IF(AA!AD33="","",AA!AD33) ->  | AB48: =IF(AA!AE33="","",AA!AE33) ->  | AC48: =IF(AA!AF33="","",AA!AF33) ->  | AD48: =IF(AA!AG33="","",AA!AG33) ->  | AE48: =IF(AA!AH33="","",AA!AH33) ->  | AF48: =IF(AA!AI33="","",AA!AI33) ->  | AG48: =IF(AA!AJ33="","",AA!AJ33) ->  | AH48: =IF(AA!AK33="","",AA!AK33) ->  | AI48: =IF(AA!AL33="","",AA!AL33) ->  | AJ48: =IF(AA!AM33="","",AA!AM33) ->  | AK48: =IF(AA!AN33="","",AA!AN33) ->  | AL48: =IF(AA!AO33="","",AA!AO33) ->  | AM48: =IF(AA!AP33="","",AA!AP33) -> 
D49: Criterio Evaluación 6.8 | E49: =IF(AA!H34="","",AA!H34) ->  | F49: =IF(AA!I34="","",AA!I34) ->  | G49: =IF(AA!J34="","",AA!J34) ->  | H49: =IF(AA!K34="","",AA!K34) ->  | I49: =IF(AA!L34="","",AA!L34) ->  | J49: =IF(AA!M34="","",AA!M34) ->  | K49: =IF(AA!N34="","",AA!N34) ->  | L49: =IF(AA!O34="","",AA!O34) ->  | M49: =IF(AA!P34="","",AA!P34) ->  | N49: =IF(AA!Q34="","",AA!Q34) ->  | O49: =IF(AA!R34="","",AA!R34) ->  | P49: =IF(AA!S34="","",AA!S34) ->  | Q49: =IF(AA!T34="","",AA!T34) ->  | R49: =IF(AA!U34="","",AA!U34) ->  | S49: =IF(AA!V34="","",AA!V34) ->  | T49: =IF(AA!W34="","",AA!W34) ->  | U49: =IF(AA!X34="","",AA!X34) ->  | V49: =IF(AA!Y34="","",AA!Y34) ->  | W49: =IF(AA!Z34="","",AA!Z34) ->  | X49: =IF(AA!AA34="","",AA!AA34) ->  | Y49: =IF(AA!AB34="","",AA!AB34) ->  | Z49: =IF(AA!AC34="","",AA!AC34) ->  | AA49: =IF(AA!AD34="","",AA!AD34) ->  | AB49: =IF(AA!AE34="","",AA!AE34) ->  | AC49: =IF(AA!AF34="","",AA!AF34) ->  | AD49: =IF(AA!AG34="","",AA!AG34) ->  | AE49: =IF(AA!AH34="","",AA!AH34) ->  | AF49: =IF(AA!AI34="","",AA!AI34) ->  | AG49: =IF(AA!AJ34="","",AA!AJ34) ->  | AH49: =IF(AA!AK34="","",AA!AK34) ->  | AI49: =IF(AA!AL34="","",AA!AL34) ->  | AJ49: =IF(AA!AM34="","",AA!AM34) ->  | AK49: =IF(AA!AN34="","",AA!AN34) ->  | AL49: =IF(AA!AO34="","",AA!AO34) ->  | AM49: =IF(AA!AP34="","",AA!AP34) -> 
D50: Criterio Evaluación 6.9 | E50: =IF(AA!H35="","",AA!H35) ->  | F50: =IF(AA!I35="","",AA!I35) ->  | G50: =IF(AA!J35="","",AA!J35) ->  | H50: =IF(AA!K35="","",AA!K35) ->  | I50: =IF(AA!L35="","",AA!L35) ->  | J50: =IF(AA!M35="","",AA!M35) ->  | K50: =IF(AA!N35="","",AA!N35) ->  | L50: =IF(AA!O35="","",AA!O35) ->  | M50: =IF(AA!P35="","",AA!P35) ->  | N50: =IF(AA!Q35="","",AA!Q35) ->  | O50: =IF(AA!R35="","",AA!R35) ->  | P50: =IF(AA!S35="","",AA!S35) ->  | Q50: =IF(AA!T35="","",AA!T35) ->  | R50: =IF(AA!U35="","",AA!U35) ->  | S50: =IF(AA!V35="","",AA!V35) ->  | T50: =IF(AA!W35="","",AA!W35) ->  | U50: =IF(AA!X35="","",AA!X35) ->  | V50: =IF(AA!Y35="","",AA!Y35) ->  | W50: =IF(AA!Z35="","",AA!Z35) ->  | X50: =IF(AA!AA35="","",AA!AA35) ->  | Y50: =IF(AA!AB35="","",AA!AB35) ->  | Z50: =IF(AA!AC35="","",AA!AC35) ->  | AA50: =IF(AA!AD35="","",AA!AD35) ->  | AB50: =IF(AA!AE35="","",AA!AE35) ->  | AC50: =IF(AA!AF35="","",AA!AF35) ->  | AD50: =IF(AA!AG35="","",AA!AG35) ->  | AE50: =IF(AA!AH35="","",AA!AH35) ->  | AF50: =IF(AA!AI35="","",AA!AI35) ->  | AG50: =IF(AA!AJ35="","",AA!AJ35) ->  | AH50: =IF(AA!AK35="","",AA!AK35) ->  | AI50: =IF(AA!AL35="","",AA!AL35) ->  | AJ50: =IF(AA!AM35="","",AA!AM35) ->  | AK50: =IF(AA!AN35="","",AA!AN35) ->  | AL50: =IF(AA!AO35="","",AA!AO35) ->  | AM50: =IF(AA!AP35="","",AA!AP35) -> 
B51: Artes Escénicas I | C51: Comp. Esp. 1 | D51: Criterio Evaluación 1.1 | E51: =IF(AE!H4="","",AE!H4) ->  | F51: =IF(AE!I4="","",AE!I4) ->  | G51: =IF(AE!J4="","",AE!J4) ->  | H51: =IF(AE!K4="","",AE!K4) ->  | I51: =IF(AE!L4="","",AE!L4) ->  | J51: =IF(AE!M4="","",AE!M4) ->  | K51: =IF(AE!N4="","",AE!N4) ->  | L51: =IF(AE!O4="","",AE!O4) ->  | M51: =IF(AE!P4="","",AE!P4) ->  | N51: =IF(AE!Q4="","",AE!Q4) ->  | O51: =IF(AE!R4="","",AE!R4) ->  | P51: =IF(AE!S4="","",AE!S4) ->  | Q51: =IF(AE!T4="","",AE!T4) ->  | R51: =IF(AE!U4="","",AE!U4) ->  | S51: =IF(AE!V4="","",AE!V4) ->  | T51: =IF(AE!W4="","",AE!W4) ->  | U51: =IF(AE!X4="","",AE!X4) ->  | V51: =IF(AE!Y4="","",AE!Y4) ->  | W51: =IF(AE!Z4="","",AE!Z4) ->  | X51: =IF(AE!AA4="","",AE!AA4) ->  | Y51: =IF(AE!AB4="","",AE!AB4) ->  | Z51: =IF(AE!AC4="","",AE!AC4) ->  | AA51: =IF(AE!AD4="","",AE!AD4) ->  | AB51: =IF(AE!AE4="","",AE!AE4) ->  | AC51: =IF(AE!AF4="","",AE!AF4) ->  | AD51: =IF(AE!AG4="","",AE!AG4) ->  | AE51: =IF(AE!AH4="","",AE!AH4) ->  | AF51: =IF(AE!AI4="","",AE!AI4) ->  | AG51: =IF(AE!AJ4="","",AE!AJ4) ->  | AH51: =IF(AE!AK4="","",AE!AK4) ->  | AI51: =IF(AE!AL4="","",AE!AL4) ->  | AJ51: =IF(AE!AM4="","",AE!AM4) ->  | AK51: =IF(AE!AN4="","",AE!AN4) ->  | AL51: =IF(AE!AO4="","",AE!AO4) ->  | AM51: =IF(AE!AP4="","",AE!AP4) -> 
D52: Criterio Evaluación 1.2 | E52: =IF(AE!H5="","",AE!H5) ->  | F52: =IF(AE!I5="","",AE!I5) ->  | G52: =IF(AE!J5="","",AE!J5) ->  | H52: =IF(AE!K5="","",AE!K5) ->  | I52: =IF(AE!L5="","",AE!L5) ->  | J52: =IF(AE!M5="","",AE!M5) ->  | K52: =IF(AE!N5="","",AE!N5) ->  | L52: =IF(AE!O5="","",AE!O5) ->  | M52: =IF(AE!P5="","",AE!P5) ->  | N52: =IF(AE!Q5="","",AE!Q5) ->  | O52: =IF(AE!R5="","",AE!R5) ->  | P52: =IF(AE!S5="","",AE!S5) ->  | Q52: =IF(AE!T5="","",AE!T5) ->  | R52: =IF(AE!U5="","",AE!U5) ->  | S52: =IF(AE!V5="","",AE!V5) ->  | T52: =IF(AE!W5="","",AE!W5) ->  | U52: =IF(AE!X5="","",AE!X5) ->  | V52: =IF(AE!Y5="","",AE!Y5) ->  | W52: =IF(AE!Z5="","",AE!Z5) ->  | X52: =IF(AE!AA5="","",AE!AA5) ->  | Y52: =IF(AE!AB5="","",AE!AB5) ->  | Z52: =IF(AE!AC5="","",AE!AC5) ->  | AA52: =IF(AE!AD5="","",AE!AD5) ->  | AB52: =IF(AE!AE5="","",AE!AE5) ->  | AC52: =IF(AE!AF5="","",AE!AF5) ->  | AD52: =IF(AE!AG5="","",AE!AG5) ->  | AE52: =IF(AE!AH5="","",AE!AH5) ->  | AF52: =IF(AE!AI5="","",AE!AI5) ->  | AG52: =IF(AE!AJ5="","",AE!AJ5) ->  | AH52: =IF(AE!AK5="","",AE!AK5) ->  | AI52: =IF(AE!AL5="","",AE!AL5) ->  | AJ52: =IF(AE!AM5="","",AE!AM5) ->  | AK52: =IF(AE!AN5="","",AE!AN5) ->  | AL52: =IF(AE!AO5="","",AE!AO5) ->  | AM52: =IF(AE!AP5="","",AE!AP5) -> 
C53: Comp. Esp. 2 | D53: Criterio Evaluación 2.1 | E53: =IF(AE!H6="","",AE!H6) ->  | F53: =IF(AE!I6="","",AE!I6) ->  | G53: =IF(AE!J6="","",AE!J6) ->  | H53: =IF(AE!K6="","",AE!K6) ->  | I53: =IF(AE!L6="","",AE!L6) ->  | J53: =IF(AE!M6="","",AE!M6) ->  | K53: =IF(AE!N6="","",AE!N6) ->  | L53: =IF(AE!O6="","",AE!O6) ->  | M53: =IF(AE!P6="","",AE!P6) ->  | N53: =IF(AE!Q6="","",AE!Q6) ->  | O53: =IF(AE!R6="","",AE!R6) ->  | P53: =IF(AE!S6="","",AE!S6) ->  | Q53: =IF(AE!T6="","",AE!T6) ->  | R53: =IF(AE!U6="","",AE!U6) ->  | S53: =IF(AE!V6="","",AE!V6) ->  | T53: =IF(AE!W6="","",AE!W6) ->  | U53: =IF(AE!X6="","",AE!X6) ->  | V53: =IF(AE!Y6="","",AE!Y6) ->  | W53: =IF(AE!Z6="","",AE!Z6) ->  | X53: =IF(AE!AA6="","",AE!AA6) ->  | Y53: =IF(AE!AB6="","",AE!AB6) ->  | Z53: =IF(AE!AC6="","",AE!AC6) ->  | AA53: =IF(AE!AD6="","",AE!AD6) ->  | AB53: =IF(AE!AE6="","",AE!AE6) ->  | AC53: =IF(AE!AF6="","",AE!AF6) ->  | AD53: =IF(AE!AG6="","",AE!AG6) ->  | AE53: =IF(AE!AH6="","",AE!AH6) ->  | AF53: =IF(AE!AI6="","",AE!AI6) ->  | AG53: =IF(AE!AJ6="","",AE!AJ6) ->  | AH53: =IF(AE!AK6="","",AE!AK6) ->  | AI53: =IF(AE!AL6="","",AE!AL6) ->  | AJ53: =IF(AE!AM6="","",AE!AM6) ->  | AK53: =IF(AE!AN6="","",AE!AN6) ->  | AL53: =IF(AE!AO6="","",AE!AO6) ->  | AM53: =IF(AE!AP6="","",AE!AP6) -> 
D54: Criterio Evaluación 2.2 | E54: =IF(AE!H7="","",AE!H7) ->  | F54: =IF(AE!I7="","",AE!I7) ->  | G54: =IF(AE!J7="","",AE!J7) ->  | H54: =IF(AE!K7="","",AE!K7) ->  | I54: =IF(AE!L7="","",AE!L7) ->  | J54: =IF(AE!M7="","",AE!M7) ->  | K54: =IF(AE!N7="","",AE!N7) ->  | L54: =IF(AE!O7="","",AE!O7) ->  | M54: =IF(AE!P7="","",AE!P7) ->  | N54: =IF(AE!Q7="","",AE!Q7) ->  | O54: =IF(AE!R7="","",AE!R7) ->  | P54: =IF(AE!S7="","",AE!S7) ->  | Q54: =IF(AE!T7="","",AE!T7) ->  | R54: =IF(AE!U7="","",AE!U7) ->  | S54: =IF(AE!V7="","",AE!V7) ->  | T54: =IF(AE!W7="","",AE!W7) ->  | U54: =IF(AE!X7="","",AE!X7) ->  | V54: =IF(AE!Y7="","",AE!Y7) ->  | W54: =IF(AE!Z7="","",AE!Z7) ->  | X54: =IF(AE!AA7="","",AE!AA7) ->  | Y54: =IF(AE!AB7="","",AE!AB7) ->  | Z54: =IF(AE!AC7="","",AE!AC7) ->  | AA54: =IF(AE!AD7="","",AE!AD7) ->  | AB54: =IF(AE!AE7="","",AE!AE7) ->  | AC54: =IF(AE!AF7="","",AE!AF7) ->  | AD54: =IF(AE!AG7="","",AE!AG7) ->  | AE54: =IF(AE!AH7="","",AE!AH7) ->  | AF54: =IF(AE!AI7="","",AE!AI7) ->  | AG54: =IF(AE!AJ7="","",AE!AJ7) ->  | AH54: =IF(AE!AK7="","",AE!AK7) ->  | AI54: =IF(AE!AL7="","",AE!AL7) ->  | AJ54: =IF(AE!AM7="","",AE!AM7) ->  | AK54: =IF(AE!AN7="","",AE!AN7) ->  | AL54: =IF(AE!AO7="","",AE!AO7) ->  | AM54: =IF(AE!AP7="","",AE!AP7) -> 
C55: Comp. Esp. 3 | D55: Criterio Evaluación 3.1 | E55: =IF(AE!H8="","",AE!H8) ->  | F55: =IF(AE!I8="","",AE!I8) ->  | G55: =IF(AE!J8="","",AE!J8) ->  | H55: =IF(AE!K8="","",AE!K8) ->  | I55: =IF(AE!L8="","",AE!L8) ->  | J55: =IF(AE!M8="","",AE!M8) ->  | K55: =IF(AE!N8="","",AE!N8) ->  | L55: =IF(AE!O8="","",AE!O8) ->  | M55: =IF(AE!P8="","",AE!P8) ->  | N55: =IF(AE!Q8="","",AE!Q8) ->  | O55: =IF(AE!R8="","",AE!R8) ->  | P55: =IF(AE!S8="","",AE!S8) ->  | Q55: =IF(AE!T8="","",AE!T8) ->  | R55: =IF(AE!U8="","",AE!U8) ->  | S55: =IF(AE!V8="","",AE!V8) ->  | T55: =IF(AE!W8="","",AE!W8) ->  | U55: =IF(AE!X8="","",AE!X8) ->  | V55: =IF(AE!Y8="","",AE!Y8) ->  | W55: =IF(AE!Z8="","",AE!Z8) ->  | X55: =IF(AE!AA8="","",AE!AA8) ->  | Y55: =IF(AE!AB8="","",AE!AB8) ->  | Z55: =IF(AE!AC8="","",AE!AC8) ->  | AA55: =IF(AE!AD8="","",AE!AD8) ->  | AB55: =IF(AE!AE8="","",AE!AE8) ->  | AC55: =IF(AE!AF8="","",AE!AF8) ->  | AD55: =IF(AE!AG8="","",AE!AG8) ->  | AE55: =IF(AE!AH8="","",AE!AH8) ->  | AF55: =IF(AE!AI8="","",AE!AI8) ->  | AG55: =IF(AE!AJ8="","",AE!AJ8) ->  | AH55: =IF(AE!AK8="","",AE!AK8) ->  | AI55: =IF(AE!AL8="","",AE!AL8) ->  | AJ55: =IF(AE!AM8="","",AE!AM8) ->  | AK55: =IF(AE!AN8="","",AE!AN8) ->  | AL55: =IF(AE!AO8="","",AE!AO8) ->  | AM55: =IF(AE!AP8="","",AE!AP8) -> 
D56: Criterio Evaluación 3.2 | E56: =IF(AE!H9="","",AE!H9) ->  | F56: =IF(AE!I9="","",AE!I9) ->  | G56: =IF(AE!J9="","",AE!J9) ->  | H56: =IF(AE!K9="","",AE!K9) ->  | I56: =IF(AE!L9="","",AE!L9) ->  | J56: =IF(AE!M9="","",AE!M9) ->  | K56: =IF(AE!N9="","",AE!N9) ->  | L56: =IF(AE!O9="","",AE!O9) ->  | M56: =IF(AE!P9="","",AE!P9) ->  | N56: =IF(AE!Q9="","",AE!Q9) ->  | O56: =IF(AE!R9="","",AE!R9) ->  | P56: =IF(AE!S9="","",AE!S9) ->  | Q56: =IF(AE!T9="","",AE!T9) ->  | R56: =IF(AE!U9="","",AE!U9) ->  | S56: =IF(AE!V9="","",AE!V9) ->  | T56: =IF(AE!W9="","",AE!W9) ->  | U56: =IF(AE!X9="","",AE!X9) ->  | V56: =IF(AE!Y9="","",AE!Y9) ->  | W56: =IF(AE!Z9="","",AE!Z9) ->  | X56: =IF(AE!AA9="","",AE!AA9) ->  | Y56: =IF(AE!AB9="","",AE!AB9) ->  | Z56: =IF(AE!AC9="","",AE!AC9) ->  | AA56: =IF(AE!AD9="","",AE!AD9) ->  | AB56: =IF(AE!AE9="","",AE!AE9) ->  | AC56: =IF(AE!AF9="","",AE!AF9) ->  | AD56: =IF(AE!AG9="","",AE!AG9) ->  | AE56: =IF(AE!AH9="","",AE!AH9) ->  | AF56: =IF(AE!AI9="","",AE!AI9) ->  | AG56: =IF(AE!AJ9="","",AE!AJ9) ->  | AH56: =IF(AE!AK9="","",AE!AK9) ->  | AI56: =IF(AE!AL9="","",AE!AL9) ->  | AJ56: =IF(AE!AM9="","",AE!AM9) ->  | AK56: =IF(AE!AN9="","",AE!AN9) ->  | AL56: =IF(AE!AO9="","",AE!AO9) ->  | AM56: =IF(AE!AP9="","",AE!AP9) -> 
C57: Comp. Esp. 4 | D57: Criterio Evaluación 4.1 | E57: =IF(AE!H10="","",AE!H10) ->  | F57: =IF(AE!I10="","",AE!I10) ->  | G57: =IF(AE!J10="","",AE!J10) ->  | H57: =IF(AE!K10="","",AE!K10) ->  | I57: =IF(AE!L10="","",AE!L10) ->  | J57: =IF(AE!M10="","",AE!M10) ->  | K57: =IF(AE!N10="","",AE!N10) ->  | L57: =IF(AE!O10="","",AE!O10) ->  | M57: =IF(AE!P10="","",AE!P10) ->  | N57: =IF(AE!Q10="","",AE!Q10) ->  | O57: =IF(AE!R10="","",AE!R10) ->  | P57: =IF(AE!S10="","",AE!S10) ->  | Q57: =IF(AE!T10="","",AE!T10) ->  | R57: =IF(AE!U10="","",AE!U10) ->  | S57: =IF(AE!V10="","",AE!V10) ->  | T57: =IF(AE!W10="","",AE!W10) ->  | U57: =IF(AE!X10="","",AE!X10) ->  | V57: =IF(AE!Y10="","",AE!Y10) ->  | W57: =IF(AE!Z10="","",AE!Z10) ->  | X57: =IF(AE!AA10="","",AE!AA10) ->  | Y57: =IF(AE!AB10="","",AE!AB10) ->  | Z57: =IF(AE!AC10="","",AE!AC10) ->  | AA57: =IF(AE!AD10="","",AE!AD10) ->  | AB57: =IF(AE!AE10="","",AE!AE10) ->  | AC57: =IF(AE!AF10="","",AE!AF10) ->  | AD57: =IF(AE!AG10="","",AE!AG10) ->  | AE57: =IF(AE!AH10="","",AE!AH10) ->  | AF57: =IF(AE!AI10="","",AE!AI10) ->  | AG57: =IF(AE!AJ10="","",AE!AJ10) ->  | AH57: =IF(AE!AK10="","",AE!AK10) ->  | AI57: =IF(AE!AL10="","",AE!AL10) ->  | AJ57: =IF(AE!AM10="","",AE!AM10) ->  | AK57: =IF(AE!AN10="","",AE!AN10) ->  | AL57: =IF(AE!AO10="","",AE!AO10) ->  | AM57: =IF(AE!AP10="","",AE!AP10) -> 
D58: Criterio Evaluación 4.2 | E58: =IF(AE!H11="","",AE!H11) ->  | F58: =IF(AE!I11="","",AE!I11) ->  | G58: =IF(AE!J11="","",AE!J11) ->  | H58: =IF(AE!K11="","",AE!K11) ->  | I58: =IF(AE!L11="","",AE!L11) ->  | J58: =IF(AE!M11="","",AE!M11) ->  | K58: =IF(AE!N11="","",AE!N11) ->  | L58: =IF(AE!O11="","",AE!O11) ->  | M58: =IF(AE!P11="","",AE!P11) ->  | N58: =IF(AE!Q11="","",AE!Q11) ->  | O58: =IF(AE!R11="","",AE!R11) ->  | P58: =IF(AE!S11="","",AE!S11) ->  | Q58: =IF(AE!T11="","",AE!T11) ->  | R58: =IF(AE!U11="","",AE!U11) ->  | S58: =IF(AE!V11="","",AE!V11) ->  | T58: =IF(AE!W11="","",AE!W11) ->  | U58: =IF(AE!X11="","",AE!X11) ->  | V58: =IF(AE!Y11="","",AE!Y11) ->  | W58: =IF(AE!Z11="","",AE!Z11) ->  | X58: =IF(AE!AA11="","",AE!AA11) ->  | Y58: =IF(AE!AB11="","",AE!AB11) ->  | Z58: =IF(AE!AC11="","",AE!AC11) ->  | AA58: =IF(AE!AD11="","",AE!AD11) ->  | AB58: =IF(AE!AE11="","",AE!AE11) ->  | AC58: =IF(AE!AF11="","",AE!AF11) ->  | AD58: =IF(AE!AG11="","",AE!AG11) ->  | AE58: =IF(AE!AH11="","",AE!AH11) ->  | AF58: =IF(AE!AI11="","",AE!AI11) ->  | AG58: =IF(AE!AJ11="","",AE!AJ11) ->  | AH58: =IF(AE!AK11="","",AE!AK11) ->  | AI58: =IF(AE!AL11="","",AE!AL11) ->  | AJ58: =IF(AE!AM11="","",AE!AM11) ->  | AK58: =IF(AE!AN11="","",AE!AN11) ->  | AL58: =IF(AE!AO11="","",AE!AO11) ->  | AM58: =IF(AE!AP11="","",AE!AP11) -> 
C59: Comp. Esp. 5 | D59: Criterio Evaluación 5.1 | E59: =IF(AE!H12="","",AE!H12) ->  | F59: =IF(AE!I12="","",AE!I12) ->  | G59: =IF(AE!J12="","",AE!J12) ->  | H59: =IF(AE!K12="","",AE!K12) ->  | I59: =IF(AE!L12="","",AE!L12) ->  | J59: =IF(AE!M12="","",AE!M12) ->  | K59: =IF(AE!N12="","",AE!N12) ->  | L59: =IF(AE!O12="","",AE!O12) ->  | M59: =IF(AE!P12="","",AE!P12) ->  | N59: =IF(AE!Q12="","",AE!Q12) ->  | O59: =IF(AE!R12="","",AE!R12) ->  | P59: =IF(AE!S12="","",AE!S12) ->  | Q59: =IF(AE!T12="","",AE!T12) ->  | R59: =IF(AE!U12="","",AE!U12) ->  | S59: =IF(AE!V12="","",AE!V12) ->  | T59: =IF(AE!W12="","",AE!W12) ->  | U59: =IF(AE!X12="","",AE!X12) ->  | V59: =IF(AE!Y12="","",AE!Y12) ->  | W59: =IF(AE!Z12="","",AE!Z12) ->  | X59: =IF(AE!AA12="","",AE!AA12) ->  | Y59: =IF(AE!AB12="","",AE!AB12) ->  | Z59: =IF(AE!AC12="","",AE!AC12) ->  | AA59: =IF(AE!AD12="","",AE!AD12) ->  | AB59: =IF(AE!AE12="","",AE!AE12) ->  | AC59: =IF(AE!AF12="","",AE!AF12) ->  | AD59: =IF(AE!AG12="","",AE!AG12) ->  | AE59: =IF(AE!AH12="","",AE!AH12) ->  | AF59: =IF(AE!AI12="","",AE!AI12) ->  | AG59: =IF(AE!AJ12="","",AE!AJ12) ->  | AH59: =IF(AE!AK12="","",AE!AK12) ->  | AI59: =IF(AE!AL12="","",AE!AL12) ->  | AJ59: =IF(AE!AM12="","",AE!AM12) ->  | AK59: =IF(AE!AN12="","",AE!AN12) ->  | AL59: =IF(AE!AO12="","",AE!AO12) ->  | AM59: =IF(AE!AP12="","",AE!AP12) -> 
D60: Criterio Evaluación 5.2 | E60: =IF(AE!H13="","",AE!H13) ->  | F60: =IF(AE!I13="","",AE!I13) ->  | G60: =IF(AE!J13="","",AE!J13) ->  | H60: =IF(AE!K13="","",AE!K13) ->  | I60: =IF(AE!L13="","",AE!L13) ->  | J60: =IF(AE!M13="","",AE!M13) ->  | K60: =IF(AE!N13="","",AE!N13) ->  | L60: =IF(AE!O13="","",AE!O13) ->  | M60: =IF(AE!P13="","",AE!P13) ->  | N60: =IF(AE!Q13="","",AE!Q13) ->  | O60: =IF(AE!R13="","",AE!R13) ->  | P60: =IF(AE!S13="","",AE!S13) ->  | Q60: =IF(AE!T13="","",AE!T13) ->  | R60: =IF(AE!U13="","",AE!U13) ->  | S60: =IF(AE!V13="","",AE!V13) ->  | T60: =IF(AE!W13="","",AE!W13) ->  | U60: =IF(AE!X13="","",AE!X13) ->  | V60: =IF(AE!Y13="","",AE!Y13) ->  | W60: =IF(AE!Z13="","",AE!Z13) ->  | X60: =IF(AE!AA13="","",AE!AA13) ->  | Y60: =IF(AE!AB13="","",AE!AB13) ->  | Z60: =IF(AE!AC13="","",AE!AC13) ->  | AA60: =IF(AE!AD13="","",AE!AD13) ->  | AB60: =IF(AE!AE13="","",AE!AE13) ->  | AC60: =IF(AE!AF13="","",AE!AF13) ->  | AD60: =IF(AE!AG13="","",AE!AG13) ->  | AE60: =IF(AE!AH13="","",AE!AH13) ->  | AF60: =IF(AE!AI13="","",AE!AI13) ->  | AG60: =IF(AE!AJ13="","",AE!AJ13) ->  | AH60: =IF(AE!AK13="","",AE!AK13) ->  | AI60: =IF(AE!AL13="","",AE!AL13) ->  | AJ60: =IF(AE!AM13="","",AE!AM13) ->  | AK60: =IF(AE!AN13="","",AE!AN13) ->  | AL60: =IF(AE!AO13="","",AE!AO13) ->  | AM60: =IF(AE!AP13="","",AE!AP13) -> 
B61: Coro y Técnica Vocal I | C61: Comp. Esp. 1 | D61: Criterio Evaluación 1.1 | E61: =IF(CYTV!H4="","",CYTV!H4) ->  | F61: =IF(CYTV!I4="","",CYTV!I4) ->  | G61: =IF(CYTV!J4="","",CYTV!J4) ->  | H61: =IF(CYTV!K4="","",CYTV!K4) ->  | I61: =IF(CYTV!L4="","",CYTV!L4) ->  | J61: =IF(CYTV!M4="","",CYTV!M4) ->  | K61: =IF(CYTV!N4="","",CYTV!N4) ->  | L61: =IF(CYTV!O4="","",CYTV!O4) ->  | M61: =IF(CYTV!P4="","",CYTV!P4) ->  | N61: =IF(CYTV!Q4="","",CYTV!Q4) ->  | O61: =IF(CYTV!R4="","",CYTV!R4) ->  | P61: =IF(CYTV!S4="","",CYTV!S4) ->  | Q61: =IF(CYTV!T4="","",CYTV!T4) ->  | R61: =IF(CYTV!U4="","",CYTV!U4) ->  | S61: =IF(CYTV!V4="","",CYTV!V4) ->  | T61: =IF(CYTV!W4="","",CYTV!W4) ->  | U61: =IF(CYTV!X4="","",CYTV!X4) ->  | V61: =IF(CYTV!Y4="","",CYTV!Y4) ->  | W61: =IF(CYTV!Z4="","",CYTV!Z4) ->  | X61: =IF(CYTV!AA4="","",CYTV!AA4) ->  | Y61: =IF(CYTV!AB4="","",CYTV!AB4) ->  | Z61: =IF(CYTV!AC4="","",CYTV!AC4) ->  | AA61: =IF(CYTV!AD4="","",CYTV!AD4) ->  | AB61: =IF(CYTV!AE4="","",CYTV!AE4) ->  | AC61: =IF(CYTV!AF4="","",CYTV!AF4) ->  | AD61: =IF(CYTV!AG4="","",CYTV!AG4) ->  | AE61: =IF(CYTV!AH4="","",CYTV!AH4) ->  | AF61: =IF(CYTV!AI4="","",CYTV!AI4) ->  | AG61: =IF(CYTV!AJ4="","",CYTV!AJ4) ->  | AH61: =IF(CYTV!AK4="","",CYTV!AK4) ->  | AI61: =IF(CYTV!AL4="","",CYTV!AL4) ->  | AJ61: =IF(CYTV!AM4="","",CYTV!AM4) ->  | AK61: =IF(CYTV!AN4="","",CYTV!AN4) ->  | AL61: =IF(CYTV!AO4="","",CYTV!AO4) ->  | AM61: =IF(CYTV!AP4="","",CYTV!AP4) -> 
D62: Criterio Evaluación 1.2 | E62: =IF(CYTV!H5="","",CYTV!H5) ->  | F62: =IF(CYTV!I5="","",CYTV!I5) ->  | G62: =IF(CYTV!J5="","",CYTV!J5) ->  | H62: =IF(CYTV!K5="","",CYTV!K5) ->  | I62: =IF(CYTV!L5="","",CYTV!L5) ->  | J62: =IF(CYTV!M5="","",CYTV!M5) ->  | K62: =IF(CYTV!N5="","",CYTV!N5) ->  | L62: =IF(CYTV!O5="","",CYTV!O5) ->  | M62: =IF(CYTV!P5="","",CYTV!P5) ->  | N62: =IF(CYTV!Q5="","",CYTV!Q5) ->  | O62: =IF(CYTV!R5="","",CYTV!R5) ->  | P62: =IF(CYTV!S5="","",CYTV!S5) ->  | Q62: =IF(CYTV!T5="","",CYTV!T5) ->  | R62: =IF(CYTV!U5="","",CYTV!U5) ->  | S62: =IF(CYTV!V5="","",CYTV!V5) ->  | T62: =IF(CYTV!W5="","",CYTV!W5) ->  | U62: =IF(CYTV!X5="","",CYTV!X5) ->  | V62: =IF(CYTV!Y5="","",CYTV!Y5) ->  | W62: =IF(CYTV!Z5="","",CYTV!Z5) ->  | X62: =IF(CYTV!AA5="","",CYTV!AA5) ->  | Y62: =IF(CYTV!AB5="","",CYTV!AB5) ->  | Z62: =IF(CYTV!AC5="","",CYTV!AC5) ->  | AA62: =IF(CYTV!AD5="","",CYTV!AD5) ->  | AB62: =IF(CYTV!AE5="","",CYTV!AE5) ->  | AC62: =IF(CYTV!AF5="","",CYTV!AF5) ->  | AD62: =IF(CYTV!AG5="","",CYTV!AG5) ->  | AE62: =IF(CYTV!AH5="","",CYTV!AH5) ->  | AF62: =IF(CYTV!AI5="","",CYTV!AI5) ->  | AG62: =IF(CYTV!AJ5="","",CYTV!AJ5) ->  | AH62: =IF(CYTV!AK5="","",CYTV!AK5) ->  | AI62: =IF(CYTV!AL5="","",CYTV!AL5) ->  | AJ62: =IF(CYTV!AM5="","",CYTV!AM5) ->  | AK62: =IF(CYTV!AN5="","",CYTV!AN5) ->  | AL62: =IF(CYTV!AO5="","",CYTV!AO5) ->  | AM62: =IF(CYTV!AP5="","",CYTV!AP5) -> 
D63: Criterio Evaluación 1.3 | E63: =IF(CYTV!H6="","",CYTV!H6) ->  | F63: =IF(CYTV!I6="","",CYTV!I6) ->  | G63: =IF(CYTV!J6="","",CYTV!J6) ->  | H63: =IF(CYTV!K6="","",CYTV!K6) ->  | I63: =IF(CYTV!L6="","",CYTV!L6) ->  | J63: =IF(CYTV!M6="","",CYTV!M6) ->  | K63: =IF(CYTV!N6="","",CYTV!N6) ->  | L63: =IF(CYTV!O6="","",CYTV!O6) ->  | M63: =IF(CYTV!P6="","",CYTV!P6) ->  | N63: =IF(CYTV!Q6="","",CYTV!Q6) ->  | O63: =IF(CYTV!R6="","",CYTV!R6) ->  | P63: =IF(CYTV!S6="","",CYTV!S6) ->  | Q63: =IF(CYTV!T6="","",CYTV!T6) ->  | R63: =IF(CYTV!U6="","",CYTV!U6) ->  | S63: =IF(CYTV!V6="","",CYTV!V6) ->  | T63: =IF(CYTV!W6="","",CYTV!W6) ->  | U63: =IF(CYTV!X6="","",CYTV!X6) ->  | V63: =IF(CYTV!Y6="","",CYTV!Y6) ->  | W63: =IF(CYTV!Z6="","",CYTV!Z6) ->  | X63: =IF(CYTV!AA6="","",CYTV!AA6) ->  | Y63: =IF(CYTV!AB6="","",CYTV!AB6) ->  | Z63: =IF(CYTV!AC6="","",CYTV!AC6) ->  | AA63: =IF(CYTV!AD6="","",CYTV!AD6) ->  | AB63: =IF(CYTV!AE6="","",CYTV!AE6) ->  | AC63: =IF(CYTV!AF6="","",CYTV!AF6) ->  | AD63: =IF(CYTV!AG6="","",CYTV!AG6) ->  | AE63: =IF(CYTV!AH6="","",CYTV!AH6) ->  | AF63: =IF(CYTV!AI6="","",CYTV!AI6) ->  | AG63: =IF(CYTV!AJ6="","",CYTV!AJ6) ->  | AH63: =IF(CYTV!AK6="","",CYTV!AK6) ->  | AI63: =IF(CYTV!AL6="","",CYTV!AL6) ->  | AJ63: =IF(CYTV!AM6="","",CYTV!AM6) ->  | AK63: =IF(CYTV!AN6="","",CYTV!AN6) ->  | AL63: =IF(CYTV!AO6="","",CYTV!AO6) ->  | AM63: =IF(CYTV!AP6="","",CYTV!AP6) -> 
C64: Comp. Esp. 2 | D64: Criterio Evaluación 2.1 | E64: =IF(CYTV!H7="","",CYTV!H7) ->  | F64: =IF(CYTV!I7="","",CYTV!I7) ->  | G64: =IF(CYTV!J7="","",CYTV!J7) ->  | H64: =IF(CYTV!K7="","",CYTV!K7) ->  | I64: =IF(CYTV!L7="","",CYTV!L7) ->  | J64: =IF(CYTV!M7="","",CYTV!M7) ->  | K64: =IF(CYTV!N7="","",CYTV!N7) ->  | L64: =IF(CYTV!O7="","",CYTV!O7) ->  | M64: =IF(CYTV!P7="","",CYTV!P7) ->  | N64: =IF(CYTV!Q7="","",CYTV!Q7) ->  | O64: =IF(CYTV!R7="","",CYTV!R7) ->  | P64: =IF(CYTV!S7="","",CYTV!S7) ->  | Q64: =IF(CYTV!T7="","",CYTV!T7) ->  | R64: =IF(CYTV!U7="","",CYTV!U7) ->  | S64: =IF(CYTV!V7="","",CYTV!V7) ->  | T64: =IF(CYTV!W7="","",CYTV!W7) ->  | U64: =IF(CYTV!X7="","",CYTV!X7) ->  | V64: =IF(CYTV!Y7="","",CYTV!Y7) ->  | W64: =IF(CYTV!Z7="","",CYTV!Z7) ->  | X64: =IF(CYTV!AA7="","",CYTV!AA7) ->  | Y64: =IF(CYTV!AB7="","",CYTV!AB7) ->  | Z64: =IF(CYTV!AC7="","",CYTV!AC7) ->  | AA64: =IF(CYTV!AD7="","",CYTV!AD7) ->  | AB64: =IF(CYTV!AE7="","",CYTV!AE7) ->  | AC64: =IF(CYTV!AF7="","",CYTV!AF7) ->  | AD64: =IF(CYTV!AG7="","",CYTV!AG7) ->  | AE64: =IF(CYTV!AH7="","",CYTV!AH7) ->  | AF64: =IF(CYTV!AI7="","",CYTV!AI7) ->  | AG64: =IF(CYTV!AJ7="","",CYTV!AJ7) ->  | AH64: =IF(CYTV!AK7="","",CYTV!AK7) ->  | AI64: =IF(CYTV!AL7="","",CYTV!AL7) ->  | AJ64: =IF(CYTV!AM7="","",CYTV!AM7) ->  | AK64: =IF(CYTV!AN7="","",CYTV!AN7) ->  | AL64: =IF(CYTV!AO7="","",CYTV!AO7) ->  | AM64: =IF(CYTV!AP7="","",CYTV!AP7) -> 
D65: Criterio Evaluación 2.2 | E65: =IF(CYTV!H8="","",CYTV!H8) ->  | F65: =IF(CYTV!I8="","",CYTV!I8) ->  | G65: =IF(CYTV!J8="","",CYTV!J8) ->  | H65: =IF(CYTV!K8="","",CYTV!K8) ->  | I65: =IF(CYTV!L8="","",CYTV!L8) ->  | J65: =IF(CYTV!M8="","",CYTV!M8) ->  | K65: =IF(CYTV!N8="","",CYTV!N8) ->  | L65: =IF(CYTV!O8="","",CYTV!O8) ->  | M65: =IF(CYTV!P8="","",CYTV!P8) ->  | N65: =IF(CYTV!Q8="","",CYTV!Q8) ->  | O65: =IF(CYTV!R8="","",CYTV!R8) ->  | P65: =IF(CYTV!S8="","",CYTV!S8) ->  | Q65: =IF(CYTV!T8="","",CYTV!T8) ->  | R65: =IF(CYTV!U8="","",CYTV!U8) ->  | S65: =IF(CYTV!V8="","",CYTV!V8) ->  | T65: =IF(CYTV!W8="","",CYTV!W8) ->  | U65: =IF(CYTV!X8="","",CYTV!X8) ->  | V65: =IF(CYTV!Y8="","",CYTV!Y8) ->  | W65: =IF(CYTV!Z8="","",CYTV!Z8) ->  | X65: =IF(CYTV!AA8="","",CYTV!AA8) ->  | Y65: =IF(CYTV!AB8="","",CYTV!AB8) ->  | Z65: =IF(CYTV!AC8="","",CYTV!AC8) ->  | AA65: =IF(CYTV!AD8="","",CYTV!AD8) ->  | AB65: =IF(CYTV!AE8="","",CYTV!AE8) ->  | AC65: =IF(CYTV!AF8="","",CYTV!AF8) ->  | AD65: =IF(CYTV!AG8="","",CYTV!AG8) ->  | AE65: =IF(CYTV!AH8="","",CYTV!AH8) ->  | AF65: =IF(CYTV!AI8="","",CYTV!AI8) ->  | AG65: =IF(CYTV!AJ8="","",CYTV!AJ8) ->  | AH65: =IF(CYTV!AK8="","",CYTV!AK8) ->  | AI65: =IF(CYTV!AL8="","",CYTV!AL8) ->  | AJ65: =IF(CYTV!AM8="","",CYTV!AM8) ->  | AK65: =IF(CYTV!AN8="","",CYTV!AN8) ->  | AL65: =IF(CYTV!AO8="","",CYTV!AO8) ->  | AM65: =IF(CYTV!AP8="","",CYTV!AP8) -> 
D66: Criterio Evaluación 2.3 | E66: =IF(CYTV!H9="","",CYTV!H9) ->  | F66: =IF(CYTV!I9="","",CYTV!I9) ->  | G66: =IF(CYTV!J9="","",CYTV!J9) ->  | H66: =IF(CYTV!K9="","",CYTV!K9) ->  | I66: =IF(CYTV!L9="","",CYTV!L9) ->  | J66: =IF(CYTV!M9="","",CYTV!M9) ->  | K66: =IF(CYTV!N9="","",CYTV!N9) ->  | L66: =IF(CYTV!O9="","",CYTV!O9) ->  | M66: =IF(CYTV!P9="","",CYTV!P9) ->  | N66: =IF(CYTV!Q9="","",CYTV!Q9) ->  | O66: =IF(CYTV!R9="","",CYTV!R9) ->  | P66: =IF(CYTV!S9="","",CYTV!S9) ->  | Q66: =IF(CYTV!T9="","",CYTV!T9) ->  | R66: =IF(CYTV!U9="","",CYTV!U9) ->  | S66: =IF(CYTV!V9="","",CYTV!V9) ->  | T66: =IF(CYTV!W9="","",CYTV!W9) ->  | U66: =IF(CYTV!X9="","",CYTV!X9) ->  | V66: =IF(CYTV!Y9="","",CYTV!Y9) ->  | W66: =IF(CYTV!Z9="","",CYTV!Z9) ->  | X66: =IF(CYTV!AA9="","",CYTV!AA9) ->  | Y66: =IF(CYTV!AB9="","",CYTV!AB9) ->  | Z66: =IF(CYTV!AC9="","",CYTV!AC9) ->  | AA66: =IF(CYTV!AD9="","",CYTV!AD9) ->  | AB66: =IF(CYTV!AE9="","",CYTV!AE9) ->  | AC66: =IF(CYTV!AF9="","",CYTV!AF9) ->  | AD66: =IF(CYTV!AG9="","",CYTV!AG9) ->  | AE66: =IF(CYTV!AH9="","",CYTV!AH9) ->  | AF66: =IF(CYTV!AI9="","",CYTV!AI9) ->  | AG66: =IF(CYTV!AJ9="","",CYTV!AJ9) ->  | AH66: =IF(CYTV!AK9="","",CYTV!AK9) ->  | AI66: =IF(CYTV!AL9="","",CYTV!AL9) ->  | AJ66: =IF(CYTV!AM9="","",CYTV!AM9) ->  | AK66: =IF(CYTV!AN9="","",CYTV!AN9) ->  | AL66: =IF(CYTV!AO9="","",CYTV!AO9) ->  | AM66: =IF(CYTV!AP9="","",CYTV!AP9) -> 
C67: Comp. Esp. 3 | D67: Criterio Evaluación 3.1 | E67: =IF(CYTV!H10="","",CYTV!H10) ->  | F67: =IF(CYTV!I10="","",CYTV!I10) ->  | G67: =IF(CYTV!J10="","",CYTV!J10) ->  | H67: =IF(CYTV!K10="","",CYTV!K10) ->  | I67: =IF(CYTV!L10="","",CYTV!L10) ->  | J67: =IF(CYTV!M10="","",CYTV!M10) ->  | K67: =IF(CYTV!N10="","",CYTV!N10) ->  | L67: =IF(CYTV!O10="","",CYTV!O10) ->  | M67: =IF(CYTV!P10="","",CYTV!P10) ->  | N67: =IF(CYTV!Q10="","",CYTV!Q10) ->  | O67: =IF(CYTV!R10="","",CYTV!R10) ->  | P67: =IF(CYTV!S10="","",CYTV!S10) ->  | Q67: =IF(CYTV!T10="","",CYTV!T10) ->  | R67: =IF(CYTV!U10="","",CYTV!U10) ->  | S67: =IF(CYTV!V10="","",CYTV!V10) ->  | T67: =IF(CYTV!W10="","",CYTV!W10) ->  | U67: =IF(CYTV!X10="","",CYTV!X10) ->  | V67: =IF(CYTV!Y10="","",CYTV!Y10) ->  | W67: =IF(CYTV!Z10="","",CYTV!Z10) ->  | X67: =IF(CYTV!AA10="","",CYTV!AA10) ->  | Y67: =IF(CYTV!AB10="","",CYTV!AB10) ->  | Z67: =IF(CYTV!AC10="","",CYTV!AC10) ->  | AA67: =IF(CYTV!AD10="","",CYTV!AD10) ->  | AB67: =IF(CYTV!AE10="","",CYTV!AE10) ->  | AC67: =IF(CYTV!AF10="","",CYTV!AF10) ->  | AD67: =IF(CYTV!AG10="","",CYTV!AG10) ->  | AE67: =IF(CYTV!AH10="","",CYTV!AH10) ->  | AF67: =IF(CYTV!AI10="","",CYTV!AI10) ->  | AG67: =IF(CYTV!AJ10="","",CYTV!AJ10) ->  | AH67: =IF(CYTV!AK10="","",CYTV!AK10) ->  | AI67: =IF(CYTV!AL10="","",CYTV!AL10) ->  | AJ67: =IF(CYTV!AM10="","",CYTV!AM10) ->  | AK67: =IF(CYTV!AN10="","",CYTV!AN10) ->  | AL67: =IF(CYTV!AO10="","",CYTV!AO10) ->  | AM67: =IF(CYTV!AP10="","",CYTV!AP10) -> 
D68: Criterio Evaluación 3.2 | E68: =IF(CYTV!H11="","",CYTV!H11) ->  | F68: =IF(CYTV!I11="","",CYTV!I11) ->  | G68: =IF(CYTV!J11="","",CYTV!J11) ->  | H68: =IF(CYTV!K11="","",CYTV!K11) ->  | I68: =IF(CYTV!L11="","",CYTV!L11) ->  | J68: =IF(CYTV!M11="","",CYTV!M11) ->  | K68: =IF(CYTV!N11="","",CYTV!N11) ->  | L68: =IF(CYTV!O11="","",CYTV!O11) ->  | M68: =IF(CYTV!P11="","",CYTV!P11) ->  | N68: =IF(CYTV!Q11="","",CYTV!Q11) ->  | O68: =IF(CYTV!R11="","",CYTV!R11) ->  | P68: =IF(CYTV!S11="","",CYTV!S11) ->  | Q68: =IF(CYTV!T11="","",CYTV!T11) ->  | R68: =IF(CYTV!U11="","",CYTV!U11) ->  | S68: =IF(CYTV!V11="","",CYTV!V11) ->  | T68: =IF(CYTV!W11="","",CYTV!W11) ->  | U68: =IF(CYTV!X11="","",CYTV!X11) ->  | V68: =IF(CYTV!Y11="","",CYTV!Y11) ->  | W68: =IF(CYTV!Z11="","",CYTV!Z11) ->  | X68: =IF(CYTV!AA11="","",CYTV!AA11) ->  | Y68: =IF(CYTV!AB11="","",CYTV!AB11) ->  | Z68: =IF(CYTV!AC11="","",CYTV!AC11) ->  | AA68: =IF(CYTV!AD11="","",CYTV!AD11) ->  | AB68: =IF(CYTV!AE11="","",CYTV!AE11) ->  | AC68: =IF(CYTV!AF11="","",CYTV!AF11) ->  | AD68: =IF(CYTV!AG11="","",CYTV!AG11) ->  | AE68: =IF(CYTV!AH11="","",CYTV!AH11) ->  | AF68: =IF(CYTV!AI11="","",CYTV!AI11) ->  | AG68: =IF(CYTV!AJ11="","",CYTV!AJ11) ->  | AH68: =IF(CYTV!AK11="","",CYTV!AK11) ->  | AI68: =IF(CYTV!AL11="","",CYTV!AL11) ->  | AJ68: =IF(CYTV!AM11="","",CYTV!AM11) ->  | AK68: =IF(CYTV!AN11="","",CYTV!AN11) ->  | AL68: =IF(CYTV!AO11="","",CYTV!AO11) ->  | AM68: =IF(CYTV!AP11="","",CYTV!AP11) -> 
D69: Criterio Evaluación 3.3 | E69: =IF(CYTV!H12="","",CYTV!H12) ->  | F69: =IF(CYTV!I12="","",CYTV!I12) ->  | G69: =IF(CYTV!J12="","",CYTV!J12) ->  | H69: =IF(CYTV!K12="","",CYTV!K12) ->  | I69: =IF(CYTV!L12="","",CYTV!L12) ->  | J69: =IF(CYTV!M12="","",CYTV!M12) ->  | K69: =IF(CYTV!N12="","",CYTV!N12) ->  | L69: =IF(CYTV!O12="","",CYTV!O12) ->  | M69: =IF(CYTV!P12="","",CYTV!P12) ->  | N69: =IF(CYTV!Q12="","",CYTV!Q12) ->  | O69: =IF(CYTV!R12="","",CYTV!R12) ->  | P69: =IF(CYTV!S12="","",CYTV!S12) ->  | Q69: =IF(CYTV!T12="","",CYTV!T12) ->  | R69: =IF(CYTV!U12="","",CYTV!U12) ->  | S69: =IF(CYTV!V12="","",CYTV!V12) ->  | T69: =IF(CYTV!W12="","",CYTV!W12) ->  | U69: =IF(CYTV!X12="","",CYTV!X12) ->  | V69: =IF(CYTV!Y12="","",CYTV!Y12) ->  | W69: =IF(CYTV!Z12="","",CYTV!Z12) ->  | X69: =IF(CYTV!AA12="","",CYTV!AA12) ->  | Y69: =IF(CYTV!AB12="","",CYTV!AB12) ->  | Z69: =IF(CYTV!AC12="","",CYTV!AC12) ->  | AA69: =IF(CYTV!AD12="","",CYTV!AD12) ->  | AB69: =IF(CYTV!AE12="","",CYTV!AE12) ->  | AC69: =IF(CYTV!AF12="","",CYTV!AF12) ->  | AD69: =IF(CYTV!AG12="","",CYTV!AG12) ->  | AE69: =IF(CYTV!AH12="","",CYTV!AH12) ->  | AF69: =IF(CYTV!AI12="","",CYTV!AI12) ->  | AG69: =IF(CYTV!AJ12="","",CYTV!AJ12) ->  | AH69: =IF(CYTV!AK12="","",CYTV!AK12) ->  | AI69: =IF(CYTV!AL12="","",CYTV!AL12) ->  | AJ69: =IF(CYTV!AM12="","",CYTV!AM12) ->  | AK69: =IF(CYTV!AN12="","",CYTV!AN12) ->  | AL69: =IF(CYTV!AO12="","",CYTV!AO12) ->  | AM69: =IF(CYTV!AP12="","",CYTV!AP12) -> 
C70: Comp. Esp. 4 | D70: Criterio Evaluación 4.1 | E70: =IF(CYTV!H13="","",CYTV!H13) ->  | F70: =IF(CYTV!I13="","",CYTV!I13) ->  | G70: =IF(CYTV!J13="","",CYTV!J13) ->  | H70: =IF(CYTV!K13="","",CYTV!K13) ->  | I70: =IF(CYTV!L13="","",CYTV!L13) ->  | J70: =IF(CYTV!M13="","",CYTV!M13) ->  | K70: =IF(CYTV!N13="","",CYTV!N13) ->  | L70: =IF(CYTV!O13="","",CYTV!O13) ->  | M70: =IF(CYTV!P13="","",CYTV!P13) ->  | N70: =IF(CYTV!Q13="","",CYTV!Q13) ->  | O70: =IF(CYTV!R13="","",CYTV!R13) ->  | P70: =IF(CYTV!S13="","",CYTV!S13) ->  | Q70: =IF(CYTV!T13="","",CYTV!T13) ->  | R70: =IF(CYTV!U13="","",CYTV!U13) ->  | S70: =IF(CYTV!V13="","",CYTV!V13) ->  | T70: =IF(CYTV!W13="","",CYTV!W13) ->  | U70: =IF(CYTV!X13="","",CYTV!X13) ->  | V70: =IF(CYTV!Y13="","",CYTV!Y13) ->  | W70: =IF(CYTV!Z13="","",CYTV!Z13) ->  | X70: =IF(CYTV!AA13="","",CYTV!AA13) ->  | Y70: =IF(CYTV!AB13="","",CYTV!AB13) ->  | Z70: =IF(CYTV!AC13="","",CYTV!AC13) ->  | AA70: =IF(CYTV!AD13="","",CYTV!AD13) ->  | AB70: =IF(CYTV!AE13="","",CYTV!AE13) ->  | AC70: =IF(CYTV!AF13="","",CYTV!AF13) ->  | AD70: =IF(CYTV!AG13="","",CYTV!AG13) ->  | AE70: =IF(CYTV!AH13="","",CYTV!AH13) ->  | AF70: =IF(CYTV!AI13="","",CYTV!AI13) ->  | AG70: =IF(CYTV!AJ13="","",CYTV!AJ13) ->  | AH70: =IF(CYTV!AK13="","",CYTV!AK13) ->  | AI70: =IF(CYTV!AL13="","",CYTV!AL13) ->  | AJ70: =IF(CYTV!AM13="","",CYTV!AM13) ->  | AK70: =IF(CYTV!AN13="","",CYTV!AN13) ->  | AL70: =IF(CYTV!AO13="","",CYTV!AO13) ->  | AM70: =IF(CYTV!AP13="","",CYTV!AP13) -> 
D71: Criterio Evaluación 4.2 | E71: =IF(CYTV!H14="","",CYTV!H14) ->  | F71: =IF(CYTV!I14="","",CYTV!I14) ->  | G71: =IF(CYTV!J14="","",CYTV!J14) ->  | H71: =IF(CYTV!K14="","",CYTV!K14) ->  | I71: =IF(CYTV!L14="","",CYTV!L14) ->  | J71: =IF(CYTV!M14="","",CYTV!M14) ->  | K71: =IF(CYTV!N14="","",CYTV!N14) ->  | L71: =IF(CYTV!O14="","",CYTV!O14) ->  | M71: =IF(CYTV!P14="","",CYTV!P14) ->  | N71: =IF(CYTV!Q14="","",CYTV!Q14) ->  | O71: =IF(CYTV!R14="","",CYTV!R14) ->  | P71: =IF(CYTV!S14="","",CYTV!S14) ->  | Q71: =IF(CYTV!T14="","",CYTV!T14) ->  | R71: =IF(CYTV!U14="","",CYTV!U14) ->  | S71: =IF(CYTV!V14="","",CYTV!V14) ->  | T71: =IF(CYTV!W14="","",CYTV!W14) ->  | U71: =IF(CYTV!X14="","",CYTV!X14) ->  | V71: =IF(CYTV!Y14="","",CYTV!Y14) ->  | W71: =IF(CYTV!Z14="","",CYTV!Z14) ->  | X71: =IF(CYTV!AA14="","",CYTV!AA14) ->  | Y71: =IF(CYTV!AB14="","",CYTV!AB14) ->  | Z71: =IF(CYTV!AC14="","",CYTV!AC14) ->  | AA71: =IF(CYTV!AD14="","",CYTV!AD14) ->  | AB71: =IF(CYTV!AE14="","",CYTV!AE14) ->  | AC71: =IF(CYTV!AF14="","",CYTV!AF14) ->  | AD71: =IF(CYTV!AG14="","",CYTV!AG14) ->  | AE71: =IF(CYTV!AH14="","",CYTV!AH14) ->  | AF71: =IF(CYTV!AI14="","",CYTV!AI14) ->  | AG71: =IF(CYTV!AJ14="","",CYTV!AJ14) ->  | AH71: =IF(CYTV!AK14="","",CYTV!AK14) ->  | AI71: =IF(CYTV!AL14="","",CYTV!AL14) ->  | AJ71: =IF(CYTV!AM14="","",CYTV!AM14) ->  | AK71: =IF(CYTV!AN14="","",CYTV!AN14) ->  | AL71: =IF(CYTV!AO14="","",CYTV!AO14) ->  | AM71: =IF(CYTV!AP14="","",CYTV!AP14) -> 
D72: Criterio Evaluación 4.3 | E72: =IF(CYTV!H15="","",CYTV!H15) ->  | F72: =IF(CYTV!I15="","",CYTV!I15) ->  | G72: =IF(CYTV!J15="","",CYTV!J15) ->  | H72: =IF(CYTV!K15="","",CYTV!K15) ->  | I72: =IF(CYTV!L15="","",CYTV!L15) ->  | J72: =IF(CYTV!M15="","",CYTV!M15) ->  | K72: =IF(CYTV!N15="","",CYTV!N15) ->  | L72: =IF(CYTV!O15="","",CYTV!O15) ->  | M72: =IF(CYTV!P15="","",CYTV!P15) ->  | N72: =IF(CYTV!Q15="","",CYTV!Q15) ->  | O72: =IF(CYTV!R15="","",CYTV!R15) ->  | P72: =IF(CYTV!S15="","",CYTV!S15) ->  | Q72: =IF(CYTV!T15="","",CYTV!T15) ->  | R72: =IF(CYTV!U15="","",CYTV!U15) ->  | S72: =IF(CYTV!V15="","",CYTV!V15) ->  | T72: =IF(CYTV!W15="","",CYTV!W15) ->  | U72: =IF(CYTV!X15="","",CYTV!X15) ->  | V72: =IF(CYTV!Y15="","",CYTV!Y15) ->  | W72: =IF(CYTV!Z15="","",CYTV!Z15) ->  | X72: =IF(CYTV!AA15="","",CYTV!AA15) ->  | Y72: =IF(CYTV!AB15="","",CYTV!AB15) ->  | Z72: =IF(CYTV!AC15="","",CYTV!AC15) ->  | AA72: =IF(CYTV!AD15="","",CYTV!AD15) ->  | AB72: =IF(CYTV!AE15="","",CYTV!AE15) ->  | AC72: =IF(CYTV!AF15="","",CYTV!AF15) ->  | AD72: =IF(CYTV!AG15="","",CYTV!AG15) ->  | AE72: =IF(CYTV!AH15="","",CYTV!AH15) ->  | AF72: =IF(CYTV!AI15="","",CYTV!AI15) ->  | AG72: =IF(CYTV!AJ15="","",CYTV!AJ15) ->  | AH72: =IF(CYTV!AK15="","",CYTV!AK15) ->  | AI72: =IF(CYTV!AL15="","",CYTV!AL15) ->  | AJ72: =IF(CYTV!AM15="","",CYTV!AM15) ->  | AK72: =IF(CYTV!AN15="","",CYTV!AN15) ->  | AL72: =IF(CYTV!AO15="","",CYTV!AO15) ->  | AM72: =IF(CYTV!AP15="","",CYTV!AP15) -> 
D73: Criterio Evaluación 4.4 | E73: =IF(CYTV!H16="","",CYTV!H16) ->  | F73: =IF(CYTV!I16="","",CYTV!I16) ->  | G73: =IF(CYTV!J16="","",CYTV!J16) ->  | H73: =IF(CYTV!K16="","",CYTV!K16) ->  | I73: =IF(CYTV!L16="","",CYTV!L16) ->  | J73: =IF(CYTV!M16="","",CYTV!M16) ->  | K73: =IF(CYTV!N16="","",CYTV!N16) ->  | L73: =IF(CYTV!O16="","",CYTV!O16) ->  | M73: =IF(CYTV!P16="","",CYTV!P16) ->  | N73: =IF(CYTV!Q16="","",CYTV!Q16) ->  | O73: =IF(CYTV!R16="","",CYTV!R16) ->  | P73: =IF(CYTV!S16="","",CYTV!S16) ->  | Q73: =IF(CYTV!T16="","",CYTV!T16) ->  | R73: =IF(CYTV!U16="","",CYTV!U16) ->  | S73: =IF(CYTV!V16="","",CYTV!V16) ->  | T73: =IF(CYTV!W16="","",CYTV!W16) ->  | U73: =IF(CYTV!X16="","",CYTV!X16) ->  | V73: =IF(CYTV!Y16="","",CYTV!Y16) ->  | W73: =IF(CYTV!Z16="","",CYTV!Z16) ->  | X73: =IF(CYTV!AA16="","",CYTV!AA16) ->  | Y73: =IF(CYTV!AB16="","",CYTV!AB16) ->  | Z73: =IF(CYTV!AC16="","",CYTV!AC16) ->  | AA73: =IF(CYTV!AD16="","",CYTV!AD16) ->  | AB73: =IF(CYTV!AE16="","",CYTV!AE16) ->  | AC73: =IF(CYTV!AF16="","",CYTV!AF16) ->  | AD73: =IF(CYTV!AG16="","",CYTV!AG16) ->  | AE73: =IF(CYTV!AH16="","",CYTV!AH16) ->  | AF73: =IF(CYTV!AI16="","",CYTV!AI16) ->  | AG73: =IF(CYTV!AJ16="","",CYTV!AJ16) ->  | AH73: =IF(CYTV!AK16="","",CYTV!AK16) ->  | AI73: =IF(CYTV!AL16="","",CYTV!AL16) ->  | AJ73: =IF(CYTV!AM16="","",CYTV!AM16) ->  | AK73: =IF(CYTV!AN16="","",CYTV!AN16) ->  | AL73: =IF(CYTV!AO16="","",CYTV!AO16) ->  | AM73: =IF(CYTV!AP16="","",CYTV!AP16) -> 
D74: Criterio Evaluación 4.5 | E74: =IF(CYTV!H17="","",CYTV!H17) ->  | F74: =IF(CYTV!I17="","",CYTV!I17) ->  | G74: =IF(CYTV!J17="","",CYTV!J17) ->  | H74: =IF(CYTV!K17="","",CYTV!K17) ->  | I74: =IF(CYTV!L17="","",CYTV!L17) ->  | J74: =IF(CYTV!M17="","",CYTV!M17) ->  | K74: =IF(CYTV!N17="","",CYTV!N17) ->  | L74: =IF(CYTV!O17="","",CYTV!O17) ->  | M74: =IF(CYTV!P17="","",CYTV!P17) ->  | N74: =IF(CYTV!Q17="","",CYTV!Q17) ->  | O74: =IF(CYTV!R17="","",CYTV!R17) ->  | P74: =IF(CYTV!S17="","",CYTV!S17) ->  | Q74: =IF(CYTV!T17="","",CYTV!T17) ->  | R74: =IF(CYTV!U17="","",CYTV!U17) ->  | S74: =IF(CYTV!V17="","",CYTV!V17) ->  | T74: =IF(CYTV!W17="","",CYTV!W17) ->  | U74: =IF(CYTV!X17="","",CYTV!X17) ->  | V74: =IF(CYTV!Y17="","",CYTV!Y17) ->  | W74: =IF(CYTV!Z17="","",CYTV!Z17) ->  | X74: =IF(CYTV!AA17="","",CYTV!AA17) ->  | Y74: =IF(CYTV!AB17="","",CYTV!AB17) ->  | Z74: =IF(CYTV!AC17="","",CYTV!AC17) ->  | AA74: =IF(CYTV!AD17="","",CYTV!AD17) ->  | AB74: =IF(CYTV!AE17="","",CYTV!AE17) ->  | AC74: =IF(CYTV!AF17="","",CYTV!AF17) ->  | AD74: =IF(CYTV!AG17="","",CYTV!AG17) ->  | AE74: =IF(CYTV!AH17="","",CYTV!AH17) ->  | AF74: =IF(CYTV!AI17="","",CYTV!AI17) ->  | AG74: =IF(CYTV!AJ17="","",CYTV!AJ17) ->  | AH74: =IF(CYTV!AK17="","",CYTV!AK17) ->  | AI74: =IF(CYTV!AL17="","",CYTV!AL17) ->  | AJ74: =IF(CYTV!AM17="","",CYTV!AM17) ->  | AK74: =IF(CYTV!AN17="","",CYTV!AN17) ->  | AL74: =IF(CYTV!AO17="","",CYTV!AO17) ->  | AM74: =IF(CYTV!AP17="","",CYTV!AP17) -> 
B75: Cultura Audiovisual | C75: Comp. Esp. 1 | D75: Criterio Evaluación 1.1 | E75: =IF(CAU!H4="","",CAU!H4) ->  | F75: =IF(CAU!I4="","",CAU!I4) ->  | G75: =IF(CAU!J4="","",CAU!J4) ->  | H75: =IF(CAU!K4="","",CAU!K4) ->  | I75: =IF(CAU!L4="","",CAU!L4) ->  | J75: =IF(CAU!M4="","",CAU!M4) ->  | K75: =IF(CAU!N4="","",CAU!N4) ->  | L75: =IF(CAU!O4="","",CAU!O4) ->  | M75: =IF(CAU!P4="","",CAU!P4) ->  | N75: =IF(CAU!Q4="","",CAU!Q4) ->  | O75: =IF(CAU!R4="","",CAU!R4) ->  | P75: =IF(CAU!S4="","",CAU!S4) ->  | Q75: =IF(CAU!T4="","",CAU!T4) ->  | R75: =IF(CAU!U4="","",CAU!U4) ->  | S75: =IF(CAU!V4="","",CAU!V4) ->  | T75: =IF(CAU!W4="","",CAU!W4) ->  | U75: =IF(CAU!X4="","",CAU!X4) ->  | V75: =IF(CAU!Y4="","",CAU!Y4) ->  | W75: =IF(CAU!Z4="","",CAU!Z4) ->  | X75: =IF(CAU!AA4="","",CAU!AA4) ->  | Y75: =IF(CAU!AB4="","",CAU!AB4) ->  | Z75: =IF(CAU!AC4="","",CAU!AC4) ->  | AA75: =IF(CAU!AD4="","",CAU!AD4) ->  | AB75: =IF(CAU!AE4="","",CAU!AE4) ->  | AC75: =IF(CAU!AF4="","",CAU!AF4) ->  | AD75: =IF(CAU!AG4="","",CAU!AG4) ->  | AE75: =IF(CAU!AH4="","",CAU!AH4) ->  | AF75: =IF(CAU!AI4="","",CAU!AI4) ->  | AG75: =IF(CAU!AJ4="","",CAU!AJ4) ->  | AH75: =IF(CAU!AK4="","",CAU!AK4) ->  | AI75: =IF(CAU!AL4="","",CAU!AL4) ->  | AJ75: =IF(CAU!AM4="","",CAU!AM4) ->  | AK75: =IF(CAU!AN4="","",CAU!AN4) ->  | AL75: =IF(CAU!AO4="","",CAU!AO4) ->  | AM75: =IF(CAU!AP4="","",CAU!AP4) -> 
D76: Criterio Evaluación 1.2 | E76: =IF(CAU!H5="","",CAU!H5) ->  | F76: =IF(CAU!I5="","",CAU!I5) ->  | G76: =IF(CAU!J5="","",CAU!J5) ->  | H76: =IF(CAU!K5="","",CAU!K5) ->  | I76: =IF(CAU!L5="","",CAU!L5) ->  | J76: =IF(CAU!M5="","",CAU!M5) ->  | K76: =IF(CAU!N5="","",CAU!N5) ->  | L76: =IF(CAU!O5="","",CAU!O5) ->  | M76: =IF(CAU!P5="","",CAU!P5) ->  | N76: =IF(CAU!Q5="","",CAU!Q5) ->  | O76: =IF(CAU!R5="","",CAU!R5) ->  | P76: =IF(CAU!S5="","",CAU!S5) ->  | Q76: =IF(CAU!T5="","",CAU!T5) ->  | R76: =IF(CAU!U5="","",CAU!U5) ->  | S76: =IF(CAU!V5="","",CAU!V5) ->  | T76: =IF(CAU!W5="","",CAU!W5) ->  | U76: =IF(CAU!X5="","",CAU!X5) ->  | V76: =IF(CAU!Y5="","",CAU!Y5) ->  | W76: =IF(CAU!Z5="","",CAU!Z5) ->  | X76: =IF(CAU!AA5="","",CAU!AA5) ->  | Y76: =IF(CAU!AB5="","",CAU!AB5) ->  | Z76: =IF(CAU!AC5="","",CAU!AC5) ->  | AA76: =IF(CAU!AD5="","",CAU!AD5) ->  | AB76: =IF(CAU!AE5="","",CAU!AE5) ->  | AC76: =IF(CAU!AF5="","",CAU!AF5) ->  | AD76: =IF(CAU!AG5="","",CAU!AG5) ->  | AE76: =IF(CAU!AH5="","",CAU!AH5) ->  | AF76: =IF(CAU!AI5="","",CAU!AI5) ->  | AG76: =IF(CAU!AJ5="","",CAU!AJ5) ->  | AH76: =IF(CAU!AK5="","",CAU!AK5) ->  | AI76: =IF(CAU!AL5="","",CAU!AL5) ->  | AJ76: =IF(CAU!AM5="","",CAU!AM5) ->  | AK76: =IF(CAU!AN5="","",CAU!AN5) ->  | AL76: =IF(CAU!AO5="","",CAU!AO5) ->  | AM76: =IF(CAU!AP5="","",CAU!AP5) -> 
D77: Criterio Evaluación 1.3 | E77: =IF(CAU!H6="","",CAU!H6) ->  | F77: =IF(CAU!I6="","",CAU!I6) ->  | G77: =IF(CAU!J6="","",CAU!J6) ->  | H77: =IF(CAU!K6="","",CAU!K6) ->  | I77: =IF(CAU!L6="","",CAU!L6) ->  | J77: =IF(CAU!M6="","",CAU!M6) ->  | K77: =IF(CAU!N6="","",CAU!N6) ->  | L77: =IF(CAU!O6="","",CAU!O6) ->  | M77: =IF(CAU!P6="","",CAU!P6) ->  | N77: =IF(CAU!Q6="","",CAU!Q6) ->  | O77: =IF(CAU!R6="","",CAU!R6) ->  | P77: =IF(CAU!S6="","",CAU!S6) ->  | Q77: =IF(CAU!T6="","",CAU!T6) ->  | R77: =IF(CAU!U6="","",CAU!U6) ->  | S77: =IF(CAU!V6="","",CAU!V6) ->  | T77: =IF(CAU!W6="","",CAU!W6) ->  | U77: =IF(CAU!X6="","",CAU!X6) ->  | V77: =IF(CAU!Y6="","",CAU!Y6) ->  | W77: =IF(CAU!Z6="","",CAU!Z6) ->  | X77: =IF(CAU!AA6="","",CAU!AA6) ->  | Y77: =IF(CAU!AB6="","",CAU!AB6) ->  | Z77: =IF(CAU!AC6="","",CAU!AC6) ->  | AA77: =IF(CAU!AD6="","",CAU!AD6) ->  | AB77: =IF(CAU!AE6="","",CAU!AE6) ->  | AC77: =IF(CAU!AF6="","",CAU!AF6) ->  | AD77: =IF(CAU!AG6="","",CAU!AG6) ->  | AE77: =IF(CAU!AH6="","",CAU!AH6) ->  | AF77: =IF(CAU!AI6="","",CAU!AI6) ->  | AG77: =IF(CAU!AJ6="","",CAU!AJ6) ->  | AH77: =IF(CAU!AK6="","",CAU!AK6) ->  | AI77: =IF(CAU!AL6="","",CAU!AL6) ->  | AJ77: =IF(CAU!AM6="","",CAU!AM6) ->  | AK77: =IF(CAU!AN6="","",CAU!AN6) ->  | AL77: =IF(CAU!AO6="","",CAU!AO6) ->  | AM77: =IF(CAU!AP6="","",CAU!AP6) -> 
D78: Criterio Evaluación 1.4 | E78: =IF(CAU!H7="","",CAU!H7) ->  | F78: =IF(CAU!I7="","",CAU!I7) ->  | G78: =IF(CAU!J7="","",CAU!J7) ->  | H78: =IF(CAU!K7="","",CAU!K7) ->  | I78: =IF(CAU!L7="","",CAU!L7) ->  | J78: =IF(CAU!M7="","",CAU!M7) ->  | K78: =IF(CAU!N7="","",CAU!N7) ->  | L78: =IF(CAU!O7="","",CAU!O7) ->  | M78: =IF(CAU!P7="","",CAU!P7) ->  | N78: =IF(CAU!Q7="","",CAU!Q7) ->  | O78: =IF(CAU!R7="","",CAU!R7) ->  | P78: =IF(CAU!S7="","",CAU!S7) ->  | Q78: =IF(CAU!T7="","",CAU!T7) ->  | R78: =IF(CAU!U7="","",CAU!U7) ->  | S78: =IF(CAU!V7="","",CAU!V7) ->  | T78: =IF(CAU!W7="","",CAU!W7) ->  | U78: =IF(CAU!X7="","",CAU!X7) ->  | V78: =IF(CAU!Y7="","",CAU!Y7) ->  | W78: =IF(CAU!Z7="","",CAU!Z7) ->  | X78: =IF(CAU!AA7="","",CAU!AA7) ->  | Y78: =IF(CAU!AB7="","",CAU!AB7) ->  | Z78: =IF(CAU!AC7="","",CAU!AC7) ->  | AA78: =IF(CAU!AD7="","",CAU!AD7) ->  | AB78: =IF(CAU!AE7="","",CAU!AE7) ->  | AC78: =IF(CAU!AF7="","",CAU!AF7) ->  | AD78: =IF(CAU!AG7="","",CAU!AG7) ->  | AE78: =IF(CAU!AH7="","",CAU!AH7) ->  | AF78: =IF(CAU!AI7="","",CAU!AI7) ->  | AG78: =IF(CAU!AJ7="","",CAU!AJ7) ->  | AH78: =IF(CAU!AK7="","",CAU!AK7) ->  | AI78: =IF(CAU!AL7="","",CAU!AL7) ->  | AJ78: =IF(CAU!AM7="","",CAU!AM7) ->  | AK78: =IF(CAU!AN7="","",CAU!AN7) ->  | AL78: =IF(CAU!AO7="","",CAU!AO7) ->  | AM78: =IF(CAU!AP7="","",CAU!AP7) -> 
C79: Comp. Esp. 2 | D79: Criterio Evaluación 2.1 | E79: =IF(CAU!H8="","",CAU!H8) ->  | F79: =IF(CAU!I8="","",CAU!I8) ->  | G79: =IF(CAU!J8="","",CAU!J8) ->  | H79: =IF(CAU!K8="","",CAU!K8) ->  | I79: =IF(CAU!L8="","",CAU!L8) ->  | J79: =IF(CAU!M8="","",CAU!M8) ->  | K79: =IF(CAU!N8="","",CAU!N8) ->  | L79: =IF(CAU!O8="","",CAU!O8) ->  | M79: =IF(CAU!P8="","",CAU!P8) ->  | N79: =IF(CAU!Q8="","",CAU!Q8) ->  | O79: =IF(CAU!R8="","",CAU!R8) ->  | P79: =IF(CAU!S8="","",CAU!S8) ->  | Q79: =IF(CAU!T8="","",CAU!T8) ->  | R79: =IF(CAU!U8="","",CAU!U8) ->  | S79: =IF(CAU!V8="","",CAU!V8) ->  | T79: =IF(CAU!W8="","",CAU!W8) ->  | U79: =IF(CAU!X8="","",CAU!X8) ->  | V79: =IF(CAU!Y8="","",CAU!Y8) ->  | W79: =IF(CAU!Z8="","",CAU!Z8) ->  | X79: =IF(CAU!AA8="","",CAU!AA8) ->  | Y79: =IF(CAU!AB8="","",CAU!AB8) ->  | Z79: =IF(CAU!AC8="","",CAU!AC8) ->  | AA79: =IF(CAU!AD8="","",CAU!AD8) ->  | AB79: =IF(CAU!AE8="","",CAU!AE8) ->  | AC79: =IF(CAU!AF8="","",CAU!AF8) ->  | AD79: =IF(CAU!AG8="","",CAU!AG8) ->  | AE79: =IF(CAU!AH8="","",CAU!AH8) ->  | AF79: =IF(CAU!AI8="","",CAU!AI8) ->  | AG79: =IF(CAU!AJ8="","",CAU!AJ8) ->  | AH79: =IF(CAU!AK8="","",CAU!AK8) ->  | AI79: =IF(CAU!AL8="","",CAU!AL8) ->  | AJ79: =IF(CAU!AM8="","",CAU!AM8) ->  | AK79: =IF(CAU!AN8="","",CAU!AN8) ->  | AL79: =IF(CAU!AO8="","",CAU!AO8) ->  | AM79: =IF(CAU!AP8="","",CAU!AP8) -> 
D80: Criterio Evaluación 2.2 | E80: =IF(CAU!H9="","",CAU!H9) ->  | F80: =IF(CAU!I9="","",CAU!I9) ->  | G80: =IF(CAU!J9="","",CAU!J9) ->  | H80: =IF(CAU!K9="","",CAU!K9) ->  | I80: =IF(CAU!L9="","",CAU!L9) ->  | J80: =IF(CAU!M9="","",CAU!M9) ->  | K80: =IF(CAU!N9="","",CAU!N9) ->  | L80: =IF(CAU!O9="","",CAU!O9) ->  | M80: =IF(CAU!P9="","",CAU!P9) ->  | N80: =IF(CAU!Q9="","",CAU!Q9) ->  | O80: =IF(CAU!R9="","",CAU!R9) ->  | P80: =IF(CAU!S9="","",CAU!S9) ->  | Q80: =IF(CAU!T9="","",CAU!T9) ->  | R80: =IF(CAU!U9="","",CAU!U9) ->  | S80: =IF(CAU!V9="","",CAU!V9) ->  | T80: =IF(CAU!W9="","",CAU!W9) ->  | U80: =IF(CAU!X9="","",CAU!X9) ->  | V80: =IF(CAU!Y9="","",CAU!Y9) ->  | W80: =IF(CAU!Z9="","",CAU!Z9) ->  | X80: =IF(CAU!AA9="","",CAU!AA9) ->  | Y80: =IF(CAU!AB9="","",CAU!AB9) ->  | Z80: =IF(CAU!AC9="","",CAU!AC9) ->  | AA80: =IF(CAU!AD9="","",CAU!AD9) ->  | AB80: =IF(CAU!AE9="","",CAU!AE9) ->  | AC80: =IF(CAU!AF9="","",CAU!AF9) ->  | AD80: =IF(CAU!AG9="","",CAU!AG9) ->  | AE80: =IF(CAU!AH9="","",CAU!AH9) ->  | AF80: =IF(CAU!AI9="","",CAU!AI9) ->  | AG80: =IF(CAU!AJ9="","",CAU!AJ9) ->  | AH80: =IF(CAU!AK9="","",CAU!AK9) ->  | AI80: =IF(CAU!AL9="","",CAU!AL9) ->  | AJ80: =IF(CAU!AM9="","",CAU!AM9) ->  | AK80: =IF(CAU!AN9="","",CAU!AN9) ->  | AL80: =IF(CAU!AO9="","",CAU!AO9) ->  | AM80: =IF(CAU!AP9="","",CAU!AP9) -> 
D81: Criterio Evaluación 2.3 | E81: =IF(CAU!H10="","",CAU!H10) ->  | F81: =IF(CAU!I10="","",CAU!I10) ->  | G81: =IF(CAU!J10="","",CAU!J10) ->  | H81: =IF(CAU!K10="","",CAU!K10) ->  | I81: =IF(CAU!L10="","",CAU!L10) ->  | J81: =IF(CAU!M10="","",CAU!M10) ->  | K81: =IF(CAU!N10="","",CAU!N10) ->  | L81: =IF(CAU!O10="","",CAU!O10) ->  | M81: =IF(CAU!P10="","",CAU!P10) ->  | N81: =IF(CAU!Q10="","",CAU!Q10) ->  | O81: =IF(CAU!R10="","",CAU!R10) ->  | P81: =IF(CAU!S10="","",CAU!S10) ->  | Q81: =IF(CAU!T10="","",CAU!T10) ->  | R81: =IF(CAU!U10="","",CAU!U10) ->  | S81: =IF(CAU!V10="","",CAU!V10) ->  | T81: =IF(CAU!W10="","",CAU!W10) ->  | U81: =IF(CAU!X10="","",CAU!X10) ->  | V81: =IF(CAU!Y10="","",CAU!Y10) ->  | W81: =IF(CAU!Z10="","",CAU!Z10) ->  | X81: =IF(CAU!AA10="","",CAU!AA10) ->  | Y81: =IF(CAU!AB10="","",CAU!AB10) ->  | Z81: =IF(CAU!AC10="","",CAU!AC10) ->  | AA81: =IF(CAU!AD10="","",CAU!AD10) ->  | AB81: =IF(CAU!AE10="","",CAU!AE10) ->  | AC81: =IF(CAU!AF10="","",CAU!AF10) ->  | AD81: =IF(CAU!AG10="","",CAU!AG10) ->  | AE81: =IF(CAU!AH10="","",CAU!AH10) ->  | AF81: =IF(CAU!AI10="","",CAU!AI10) ->  | AG81: =IF(CAU!AJ10="","",CAU!AJ10) ->  | AH81: =IF(CAU!AK10="","",CAU!AK10) ->  | AI81: =IF(CAU!AL10="","",CAU!AL10) ->  | AJ81: =IF(CAU!AM10="","",CAU!AM10) ->  | AK81: =IF(CAU!AN10="","",CAU!AN10) ->  | AL81: =IF(CAU!AO10="","",CAU!AO10) ->  | AM81: =IF(CAU!AP10="","",CAU!AP10) -> 
D82: Criterio Evaluación 2.4 | E82: =IF(CAU!H11="","",CAU!H11) ->  | F82: =IF(CAU!I11="","",CAU!I11) ->  | G82: =IF(CAU!J11="","",CAU!J11) ->  | H82: =IF(CAU!K11="","",CAU!K11) ->  | I82: =IF(CAU!L11="","",CAU!L11) ->  | J82: =IF(CAU!M11="","",CAU!M11) ->  | K82: =IF(CAU!N11="","",CAU!N11) ->  | L82: =IF(CAU!O11="","",CAU!O11) ->  | M82: =IF(CAU!P11="","",CAU!P11) ->  | N82: =IF(CAU!Q11="","",CAU!Q11) ->  | O82: =IF(CAU!R11="","",CAU!R11) ->  | P82: =IF(CAU!S11="","",CAU!S11) ->  | Q82: =IF(CAU!T11="","",CAU!T11) ->  | R82: =IF(CAU!U11="","",CAU!U11) ->  | S82: =IF(CAU!V11="","",CAU!V11) ->  | T82: =IF(CAU!W11="","",CAU!W11) ->  | U82: =IF(CAU!X11="","",CAU!X11) ->  | V82: =IF(CAU!Y11="","",CAU!Y11) ->  | W82: =IF(CAU!Z11="","",CAU!Z11) ->  | X82: =IF(CAU!AA11="","",CAU!AA11) ->  | Y82: =IF(CAU!AB11="","",CAU!AB11) ->  | Z82: =IF(CAU!AC11="","",CAU!AC11) ->  | AA82: =IF(CAU!AD11="","",CAU!AD11) ->  | AB82: =IF(CAU!AE11="","",CAU!AE11) ->  | AC82: =IF(CAU!AF11="","",CAU!AF11) ->  | AD82: =IF(CAU!AG11="","",CAU!AG11) ->  | AE82: =IF(CAU!AH11="","",CAU!AH11) ->  | AF82: =IF(CAU!AI11="","",CAU!AI11) ->  | AG82: =IF(CAU!AJ11="","",CAU!AJ11) ->  | AH82: =IF(CAU!AK11="","",CAU!AK11) ->  | AI82: =IF(CAU!AL11="","",CAU!AL11) ->  | AJ82: =IF(CAU!AM11="","",CAU!AM11) ->  | AK82: =IF(CAU!AN11="","",CAU!AN11) ->  | AL82: =IF(CAU!AO11="","",CAU!AO11) ->  | AM82: =IF(CAU!AP11="","",CAU!AP11) -> 
C83: Comp. Esp. 3 | D83: Criterio Evaluación 3.1 | E83: =IF(CAU!H12="","",CAU!H12) ->  | F83: =IF(CAU!I12="","",CAU!I12) ->  | G83: =IF(CAU!J12="","",CAU!J12) ->  | H83: =IF(CAU!K12="","",CAU!K12) ->  | I83: =IF(CAU!L12="","",CAU!L12) ->  | J83: =IF(CAU!M12="","",CAU!M12) ->  | K83: =IF(CAU!N12="","",CAU!N12) ->  | L83: =IF(CAU!O12="","",CAU!O12) ->  | M83: =IF(CAU!P12="","",CAU!P12) ->  | N83: =IF(CAU!Q12="","",CAU!Q12) ->  | O83: =IF(CAU!R12="","",CAU!R12) ->  | P83: =IF(CAU!S12="","",CAU!S12) ->  | Q83: =IF(CAU!T12="","",CAU!T12) ->  | R83: =IF(CAU!U12="","",CAU!U12) ->  | S83: =IF(CAU!V12="","",CAU!V12) ->  | T83: =IF(CAU!W12="","",CAU!W12) ->  | U83: =IF(CAU!X12="","",CAU!X12) ->  | V83: =IF(CAU!Y12="","",CAU!Y12) ->  | W83: =IF(CAU!Z12="","",CAU!Z12) ->  | X83: =IF(CAU!AA12="","",CAU!AA12) ->  | Y83: =IF(CAU!AB12="","",CAU!AB12) ->  | Z83: =IF(CAU!AC12="","",CAU!AC12) ->  | AA83: =IF(CAU!AD12="","",CAU!AD12) ->  | AB83: =IF(CAU!AE12="","",CAU!AE12) ->  | AC83: =IF(CAU!AF12="","",CAU!AF12) ->  | AD83: =IF(CAU!AG12="","",CAU!AG12) ->  | AE83: =IF(CAU!AH12="","",CAU!AH12) ->  | AF83: =IF(CAU!AI12="","",CAU!AI12) ->  | AG83: =IF(CAU!AJ12="","",CAU!AJ12) ->  | AH83: =IF(CAU!AK12="","",CAU!AK12) ->  | AI83: =IF(CAU!AL12="","",CAU!AL12) ->  | AJ83: =IF(CAU!AM12="","",CAU!AM12) ->  | AK83: =IF(CAU!AN12="","",CAU!AN12) ->  | AL83: =IF(CAU!AO12="","",CAU!AO12) ->  | AM83: =IF(CAU!AP12="","",CAU!AP12) -> 
D84: Criterio Evaluación 3.2 | E84: =IF(CAU!H13="","",CAU!H13) ->  | F84: =IF(CAU!I13="","",CAU!I13) ->  | G84: =IF(CAU!J13="","",CAU!J13) ->  | H84: =IF(CAU!K13="","",CAU!K13) ->  | I84: =IF(CAU!L13="","",CAU!L13) ->  | J84: =IF(CAU!M13="","",CAU!M13) ->  | K84: =IF(CAU!N13="","",CAU!N13) ->  | L84: =IF(CAU!O13="","",CAU!O13) ->  | M84: =IF(CAU!P13="","",CAU!P13) ->  | N84: =IF(CAU!Q13="","",CAU!Q13) ->  | O84: =IF(CAU!R13="","",CAU!R13) ->  | P84: =IF(CAU!S13="","",CAU!S13) ->  | Q84: =IF(CAU!T13="","",CAU!T13) ->  | R84: =IF(CAU!U13="","",CAU!U13) ->  | S84: =IF(CAU!V13="","",CAU!V13) ->  | T84: =IF(CAU!W13="","",CAU!W13) ->  | U84: =IF(CAU!X13="","",CAU!X13) ->  | V84: =IF(CAU!Y13="","",CAU!Y13) ->  | W84: =IF(CAU!Z13="","",CAU!Z13) ->  | X84: =IF(CAU!AA13="","",CAU!AA13) ->  | Y84: =IF(CAU!AB13="","",CAU!AB13) ->  | Z84: =IF(CAU!AC13="","",CAU!AC13) ->  | AA84: =IF(CAU!AD13="","",CAU!AD13) ->  | AB84: =IF(CAU!AE13="","",CAU!AE13) ->  | AC84: =IF(CAU!AF13="","",CAU!AF13) ->  | AD84: =IF(CAU!AG13="","",CAU!AG13) ->  | AE84: =IF(CAU!AH13="","",CAU!AH13) ->  | AF84: =IF(CAU!AI13="","",CAU!AI13) ->  | AG84: =IF(CAU!AJ13="","",CAU!AJ13) ->  | AH84: =IF(CAU!AK13="","",CAU!AK13) ->  | AI84: =IF(CAU!AL13="","",CAU!AL13) ->  | AJ84: =IF(CAU!AM13="","",CAU!AM13) ->  | AK84: =IF(CAU!AN13="","",CAU!AN13) ->  | AL84: =IF(CAU!AO13="","",CAU!AO13) ->  | AM84: =IF(CAU!AP13="","",CAU!AP13) -> 
D85: Criterio Evaluación 3.3 | E85: =IF(CAU!H14="","",CAU!H14) ->  | F85: =IF(CAU!I14="","",CAU!I14) ->  | G85: =IF(CAU!J14="","",CAU!J14) ->  | H85: =IF(CAU!K14="","",CAU!K14) ->  | I85: =IF(CAU!L14="","",CAU!L14) ->  | J85: =IF(CAU!M14="","",CAU!M14) ->  | K85: =IF(CAU!N14="","",CAU!N14) ->  | L85: =IF(CAU!O14="","",CAU!O14) ->  | M85: =IF(CAU!P14="","",CAU!P14) ->  | N85: =IF(CAU!Q14="","",CAU!Q14) ->  | O85: =IF(CAU!R14="","",CAU!R14) ->  | P85: =IF(CAU!S14="","",CAU!S14) ->  | Q85: =IF(CAU!T14="","",CAU!T14) ->  | R85: =IF(CAU!U14="","",CAU!U14) ->  | S85: =IF(CAU!V14="","",CAU!V14) ->  | T85: =IF(CAU!W14="","",CAU!W14) ->  | U85: =IF(CAU!X14="","",CAU!X14) ->  | V85: =IF(CAU!Y14="","",CAU!Y14) ->  | W85: =IF(CAU!Z14="","",CAU!Z14) ->  | X85: =IF(CAU!AA14="","",CAU!AA14) ->  | Y85: =IF(CAU!AB14="","",CAU!AB14) ->  | Z85: =IF(CAU!AC14="","",CAU!AC14) ->  | AA85: =IF(CAU!AD14="","",CAU!AD14) ->  | AB85: =IF(CAU!AE14="","",CAU!AE14) ->  | AC85: =IF(CAU!AF14="","",CAU!AF14) ->  | AD85: =IF(CAU!AG14="","",CAU!AG14) ->  | AE85: =IF(CAU!AH14="","",CAU!AH14) ->  | AF85: =IF(CAU!AI14="","",CAU!AI14) ->  | AG85: =IF(CAU!AJ14="","",CAU!AJ14) ->  | AH85: =IF(CAU!AK14="","",CAU!AK14) ->  | AI85: =IF(CAU!AL14="","",CAU!AL14) ->  | AJ85: =IF(CAU!AM14="","",CAU!AM14) ->  | AK85: =IF(CAU!AN14="","",CAU!AN14) ->  | AL85: =IF(CAU!AO14="","",CAU!AO14) ->  | AM85: =IF(CAU!AP14="","",CAU!AP14) -> 
D86: Criterio Evaluación 3.4 | E86: =IF(CAU!H15="","",CAU!H15) ->  | F86: =IF(CAU!I15="","",CAU!I15) ->  | G86: =IF(CAU!J15="","",CAU!J15) ->  | H86: =IF(CAU!K15="","",CAU!K15) ->  | I86: =IF(CAU!L15="","",CAU!L15) ->  | J86: =IF(CAU!M15="","",CAU!M15) ->  | K86: =IF(CAU!N15="","",CAU!N15) ->  | L86: =IF(CAU!O15="","",CAU!O15) ->  | M86: =IF(CAU!P15="","",CAU!P15) ->  | N86: =IF(CAU!Q15="","",CAU!Q15) ->  | O86: =IF(CAU!R15="","",CAU!R15) ->  | P86: =IF(CAU!S15="","",CAU!S15) ->  | Q86: =IF(CAU!T15="","",CAU!T15) ->  | R86: =IF(CAU!U15="","",CAU!U15) ->  | S86: =IF(CAU!V15="","",CAU!V15) ->  | T86: =IF(CAU!W15="","",CAU!W15) ->  | U86: =IF(CAU!X15="","",CAU!X15) ->  | V86: =IF(CAU!Y15="","",CAU!Y15) ->  | W86: =IF(CAU!Z15="","",CAU!Z15) ->  | X86: =IF(CAU!AA15="","",CAU!AA15) ->  | Y86: =IF(CAU!AB15="","",CAU!AB15) ->  | Z86: =IF(CAU!AC15="","",CAU!AC15) ->  | AA86: =IF(CAU!AD15="","",CAU!AD15) ->  | AB86: =IF(CAU!AE15="","",CAU!AE15) ->  | AC86: =IF(CAU!AF15="","",CAU!AF15) ->  | AD86: =IF(CAU!AG15="","",CAU!AG15) ->  | AE86: =IF(CAU!AH15="","",CAU!AH15) ->  | AF86: =IF(CAU!AI15="","",CAU!AI15) ->  | AG86: =IF(CAU!AJ15="","",CAU!AJ15) ->  | AH86: =IF(CAU!AK15="","",CAU!AK15) ->  | AI86: =IF(CAU!AL15="","",CAU!AL15) ->  | AJ86: =IF(CAU!AM15="","",CAU!AM15) ->  | AK86: =IF(CAU!AN15="","",CAU!AN15) ->  | AL86: =IF(CAU!AO15="","",CAU!AO15) ->  | AM86: =IF(CAU!AP15="","",CAU!AP15) -> 
D87: Criterio Evaluación 3.5 | E87: =IF(CAU!H16="","",CAU!H16) ->  | F87: =IF(CAU!I16="","",CAU!I16) ->  | G87: =IF(CAU!J16="","",CAU!J16) ->  | H87: =IF(CAU!K16="","",CAU!K16) ->  | I87: =IF(CAU!L16="","",CAU!L16) ->  | J87: =IF(CAU!M16="","",CAU!M16) ->  | K87: =IF(CAU!N16="","",CAU!N16) ->  | L87: =IF(CAU!O16="","",CAU!O16) ->  | M87: =IF(CAU!P16="","",CAU!P16) ->  | N87: =IF(CAU!Q16="","",CAU!Q16) ->  | O87: =IF(CAU!R16="","",CAU!R16) ->  | P87: =IF(CAU!S16="","",CAU!S16) ->  | Q87: =IF(CAU!T16="","",CAU!T16) ->  | R87: =IF(CAU!U16="","",CAU!U16) ->  | S87: =IF(CAU!V16="","",CAU!V16) ->  | T87: =IF(CAU!W16="","",CAU!W16) ->  | U87: =IF(CAU!X16="","",CAU!X16) ->  | V87: =IF(CAU!Y16="","",CAU!Y16) ->  | W87: =IF(CAU!Z16="","",CAU!Z16) ->  | X87: =IF(CAU!AA16="","",CAU!AA16) ->  | Y87: =IF(CAU!AB16="","",CAU!AB16) ->  | Z87: =IF(CAU!AC16="","",CAU!AC16) ->  | AA87: =IF(CAU!AD16="","",CAU!AD16) ->  | AB87: =IF(CAU!AE16="","",CAU!AE16) ->  | AC87: =IF(CAU!AF16="","",CAU!AF16) ->  | AD87: =IF(CAU!AG16="","",CAU!AG16) ->  | AE87: =IF(CAU!AH16="","",CAU!AH16) ->  | AF87: =IF(CAU!AI16="","",CAU!AI16) ->  | AG87: =IF(CAU!AJ16="","",CAU!AJ16) ->  | AH87: =IF(CAU!AK16="","",CAU!AK16) ->  | AI87: =IF(CAU!AL16="","",CAU!AL16) ->  | AJ87: =IF(CAU!AM16="","",CAU!AM16) ->  | AK87: =IF(CAU!AN16="","",CAU!AN16) ->  | AL87: =IF(CAU!AO16="","",CAU!AO16) ->  | AM87: =IF(CAU!AP16="","",CAU!AP16) -> 
D88: Criterio Evaluación 3.6 | E88: =IF(CAU!H17="","",CAU!H17) ->  | F88: =IF(CAU!I17="","",CAU!I17) ->  | G88: =IF(CAU!J17="","",CAU!J17) ->  | H88: =IF(CAU!K17="","",CAU!K17) ->  | I88: =IF(CAU!L17="","",CAU!L17) ->  | J88: =IF(CAU!M17="","",CAU!M17) ->  | K88: =IF(CAU!N17="","",CAU!N17) ->  | L88: =IF(CAU!O17="","",CAU!O17) ->  | M88: =IF(CAU!P17="","",CAU!P17) ->  | N88: =IF(CAU!Q17="","",CAU!Q17) ->  | O88: =IF(CAU!R17="","",CAU!R17) ->  | P88: =IF(CAU!S17="","",CAU!S17) ->  | Q88: =IF(CAU!T17="","",CAU!T17) ->  | R88: =IF(CAU!U17="","",CAU!U17) ->  | S88: =IF(CAU!V17="","",CAU!V17) ->  | T88: =IF(CAU!W17="","",CAU!W17) ->  | U88: =IF(CAU!X17="","",CAU!X17) ->  | V88: =IF(CAU!Y17="","",CAU!Y17) ->  | W88: =IF(CAU!Z17="","",CAU!Z17) ->  | X88: =IF(CAU!AA17="","",CAU!AA17) ->  | Y88: =IF(CAU!AB17="","",CAU!AB17) ->  | Z88: =IF(CAU!AC17="","",CAU!AC17) ->  | AA88: =IF(CAU!AD17="","",CAU!AD17) ->  | AB88: =IF(CAU!AE17="","",CAU!AE17) ->  | AC88: =IF(CAU!AF17="","",CAU!AF17) ->  | AD88: =IF(CAU!AG17="","",CAU!AG17) ->  | AE88: =IF(CAU!AH17="","",CAU!AH17) ->  | AF88: =IF(CAU!AI17="","",CAU!AI17) ->  | AG88: =IF(CAU!AJ17="","",CAU!AJ17) ->  | AH88: =IF(CAU!AK17="","",CAU!AK17) ->  | AI88: =IF(CAU!AL17="","",CAU!AL17) ->  | AJ88: =IF(CAU!AM17="","",CAU!AM17) ->  | AK88: =IF(CAU!AN17="","",CAU!AN17) ->  | AL88: =IF(CAU!AO17="","",CAU!AO17) ->  | AM88: =IF(CAU!AP17="","",CAU!AP17) -> 
C89: Comp. Esp. 4 | D89: Criterio Evaluación 4.1 | E89: =IF(CAU!H18="","",CAU!H18) ->  | F89: =IF(CAU!I18="","",CAU!I18) ->  | G89: =IF(CAU!J18="","",CAU!J18) ->  | H89: =IF(CAU!K18="","",CAU!K18) ->  | I89: =IF(CAU!L18="","",CAU!L18) ->  | J89: =IF(CAU!M18="","",CAU!M18) ->  | K89: =IF(CAU!N18="","",CAU!N18) ->  | L89: =IF(CAU!O18="","",CAU!O18) ->  | M89: =IF(CAU!P18="","",CAU!P18) ->  | N89: =IF(CAU!Q18="","",CAU!Q18) ->  | O89: =IF(CAU!R18="","",CAU!R18) ->  | P89: =IF(CAU!S18="","",CAU!S18) ->  | Q89: =IF(CAU!T18="","",CAU!T18) ->  | R89: =IF(CAU!U18="","",CAU!U18) ->  | S89: =IF(CAU!V18="","",CAU!V18) ->  | T89: =IF(CAU!W18="","",CAU!W18) ->  | U89: =IF(CAU!X18="","",CAU!X18) ->  | V89: =IF(CAU!Y18="","",CAU!Y18) ->  | W89: =IF(CAU!Z18="","",CAU!Z18) ->  | X89: =IF(CAU!AA18="","",CAU!AA18) ->  | Y89: =IF(CAU!AB18="","",CAU!AB18) ->  | Z89: =IF(CAU!AC18="","",CAU!AC18) ->  | AA89: =IF(CAU!AD18="","",CAU!AD18) ->  | AB89: =IF(CAU!AE18="","",CAU!AE18) ->  | AC89: =IF(CAU!AF18="","",CAU!AF18) ->  | AD89: =IF(CAU!AG18="","",CAU!AG18) ->  | AE89: =IF(CAU!AH18="","",CAU!AH18) ->  | AF89: =IF(CAU!AI18="","",CAU!AI18) ->  | AG89: =IF(CAU!AJ18="","",CAU!AJ18) ->  | AH89: =IF(CAU!AK18="","",CAU!AK18) ->  | AI89: =IF(CAU!AL18="","",CAU!AL18) ->  | AJ89: =IF(CAU!AM18="","",CAU!AM18) ->  | AK89: =IF(CAU!AN18="","",CAU!AN18) ->  | AL89: =IF(CAU!AO18="","",CAU!AO18) ->  | AM89: =IF(CAU!AP18="","",CAU!AP18) -> 
D90: Criterio Evaluación 4.2 | E90: =IF(CAU!H19="","",CAU!H19) ->  | F90: =IF(CAU!I19="","",CAU!I19) ->  | G90: =IF(CAU!J19="","",CAU!J19) ->  | H90: =IF(CAU!K19="","",CAU!K19) ->  | I90: =IF(CAU!L19="","",CAU!L19) ->  | J90: =IF(CAU!M19="","",CAU!M19) ->  | K90: =IF(CAU!N19="","",CAU!N19) ->  | L90: =IF(CAU!O19="","",CAU!O19) ->  | M90: =IF(CAU!P19="","",CAU!P19) ->  | N90: =IF(CAU!Q19="","",CAU!Q19) ->  | O90: =IF(CAU!R19="","",CAU!R19) ->  | P90: =IF(CAU!S19="","",CAU!S19) ->  | Q90: =IF(CAU!T19="","",CAU!T19) ->  | R90: =IF(CAU!U19="","",CAU!U19) ->  | S90: =IF(CAU!V19="","",CAU!V19) ->  | T90: =IF(CAU!W19="","",CAU!W19) ->  | U90: =IF(CAU!X19="","",CAU!X19) ->  | V90: =IF(CAU!Y19="","",CAU!Y19) ->  | W90: =IF(CAU!Z19="","",CAU!Z19) ->  | X90: =IF(CAU!AA19="","",CAU!AA19) ->  | Y90: =IF(CAU!AB19="","",CAU!AB19) ->  | Z90: =IF(CAU!AC19="","",CAU!AC19) ->  | AA90: =IF(CAU!AD19="","",CAU!AD19) ->  | AB90: =IF(CAU!AE19="","",CAU!AE19) ->  | AC90: =IF(CAU!AF19="","",CAU!AF19) ->  | AD90: =IF(CAU!AG19="","",CAU!AG19) ->  | AE90: =IF(CAU!AH19="","",CAU!AH19) ->  | AF90: =IF(CAU!AI19="","",CAU!AI19) ->  | AG90: =IF(CAU!AJ19="","",CAU!AJ19) ->  | AH90: =IF(CAU!AK19="","",CAU!AK19) ->  | AI90: =IF(CAU!AL19="","",CAU!AL19) ->  | AJ90: =IF(CAU!AM19="","",CAU!AM19) ->  | AK90: =IF(CAU!AN19="","",CAU!AN19) ->  | AL90: =IF(CAU!AO19="","",CAU!AO19) ->  | AM90: =IF(CAU!AP19="","",CAU!AP19) -> 
D91: Criterio Evaluación 4.3 | E91: =IF(CAU!H20="","",CAU!H20) ->  | F91: =IF(CAU!I20="","",CAU!I20) ->  | G91: =IF(CAU!J20="","",CAU!J20) ->  | H91: =IF(CAU!K20="","",CAU!K20) ->  | I91: =IF(CAU!L20="","",CAU!L20) ->  | J91: =IF(CAU!M20="","",CAU!M20) ->  | K91: =IF(CAU!N20="","",CAU!N20) ->  | L91: =IF(CAU!O20="","",CAU!O20) ->  | M91: =IF(CAU!P20="","",CAU!P20) ->  | N91: =IF(CAU!Q20="","",CAU!Q20) ->  | O91: =IF(CAU!R20="","",CAU!R20) ->  | P91: =IF(CAU!S20="","",CAU!S20) ->  | Q91: =IF(CAU!T20="","",CAU!T20) ->  | R91: =IF(CAU!U20="","",CAU!U20) ->  | S91: =IF(CAU!V20="","",CAU!V20) ->  | T91: =IF(CAU!W20="","",CAU!W20) ->  | U91: =IF(CAU!X20="","",CAU!X20) ->  | V91: =IF(CAU!Y20="","",CAU!Y20) ->  | W91: =IF(CAU!Z20="","",CAU!Z20) ->  | X91: =IF(CAU!AA20="","",CAU!AA20) ->  | Y91: =IF(CAU!AB20="","",CAU!AB20) ->  | Z91: =IF(CAU!AC20="","",CAU!AC20) ->  | AA91: =IF(CAU!AD20="","",CAU!AD20) ->  | AB91: =IF(CAU!AE20="","",CAU!AE20) ->  | AC91: =IF(CAU!AF20="","",CAU!AF20) ->  | AD91: =IF(CAU!AG20="","",CAU!AG20) ->  | AE91: =IF(CAU!AH20="","",CAU!AH20) ->  | AF91: =IF(CAU!AI20="","",CAU!AI20) ->  | AG91: =IF(CAU!AJ20="","",CAU!AJ20) ->  | AH91: =IF(CAU!AK20="","",CAU!AK20) ->  | AI91: =IF(CAU!AL20="","",CAU!AL20) ->  | AJ91: =IF(CAU!AM20="","",CAU!AM20) ->  | AK91: =IF(CAU!AN20="","",CAU!AN20) ->  | AL91: =IF(CAU!AO20="","",CAU!AO20) ->  | AM91: =IF(CAU!AP20="","",CAU!AP20) -> 
D92: Criterio Evaluación 4.4 | E92: =IF(CAU!H21="","",CAU!H21) ->  | F92: =IF(CAU!I21="","",CAU!I21) ->  | G92: =IF(CAU!J21="","",CAU!J21) ->  | H92: =IF(CAU!K21="","",CAU!K21) ->  | I92: =IF(CAU!L21="","",CAU!L21) ->  | J92: =IF(CAU!M21="","",CAU!M21) ->  | K92: =IF(CAU!N21="","",CAU!N21) ->  | L92: =IF(CAU!O21="","",CAU!O21) ->  | M92: =IF(CAU!P21="","",CAU!P21) ->  | N92: =IF(CAU!Q21="","",CAU!Q21) ->  | O92: =IF(CAU!R21="","",CAU!R21) ->  | P92: =IF(CAU!S21="","",CAU!S21) ->  | Q92: =IF(CAU!T21="","",CAU!T21) ->  | R92: =IF(CAU!U21="","",CAU!U21) ->  | S92: =IF(CAU!V21="","",CAU!V21) ->  | T92: =IF(CAU!W21="","",CAU!W21) ->  | U92: =IF(CAU!X21="","",CAU!X21) ->  | V92: =IF(CAU!Y21="","",CAU!Y21) ->  | W92: =IF(CAU!Z21="","",CAU!Z21) ->  | X92: =IF(CAU!AA21="","",CAU!AA21) ->  | Y92: =IF(CAU!AB21="","",CAU!AB21) ->  | Z92: =IF(CAU!AC21="","",CAU!AC21) ->  | AA92: =IF(CAU!AD21="","",CAU!AD21) ->  | AB92: =IF(CAU!AE21="","",CAU!AE21) ->  | AC92: =IF(CAU!AF21="","",CAU!AF21) ->  | AD92: =IF(CAU!AG21="","",CAU!AG21) ->  | AE92: =IF(CAU!AH21="","",CAU!AH21) ->  | AF92: =IF(CAU!AI21="","",CAU!AI21) ->  | AG92: =IF(CAU!AJ21="","",CAU!AJ21) ->  | AH92: =IF(CAU!AK21="","",CAU!AK21) ->  | AI92: =IF(CAU!AL21="","",CAU!AL21) ->  | AJ92: =IF(CAU!AM21="","",CAU!AM21) ->  | AK92: =IF(CAU!AN21="","",CAU!AN21) ->  | AL92: =IF(CAU!AO21="","",CAU!AO21) ->  | AM92: =IF(CAU!AP21="","",CAU!AP21) -> 
D93: Criterio Evaluación 4.5 | E93: =IF(CAU!H22="","",CAU!H22) ->  | F93: =IF(CAU!I22="","",CAU!I22) ->  | G93: =IF(CAU!J22="","",CAU!J22) ->  | H93: =IF(CAU!K22="","",CAU!K22) ->  | I93: =IF(CAU!L22="","",CAU!L22) ->  | J93: =IF(CAU!M22="","",CAU!M22) ->  | K93: =IF(CAU!N22="","",CAU!N22) ->  | L93: =IF(CAU!O22="","",CAU!O22) ->  | M93: =IF(CAU!P22="","",CAU!P22) ->  | N93: =IF(CAU!Q22="","",CAU!Q22) ->  | O93: =IF(CAU!R22="","",CAU!R22) ->  | P93: =IF(CAU!S22="","",CAU!S22) ->  | Q93: =IF(CAU!T22="","",CAU!T22) ->  | R93: =IF(CAU!U22="","",CAU!U22) ->  | S93: =IF(CAU!V22="","",CAU!V22) ->  | T93: =IF(CAU!W22="","",CAU!W22) ->  | U93: =IF(CAU!X22="","",CAU!X22) ->  | V93: =IF(CAU!Y22="","",CAU!Y22) ->  | W93: =IF(CAU!Z22="","",CAU!Z22) ->  | X93: =IF(CAU!AA22="","",CAU!AA22) ->  | Y93: =IF(CAU!AB22="","",CAU!AB22) ->  | Z93: =IF(CAU!AC22="","",CAU!AC22) ->  | AA93: =IF(CAU!AD22="","",CAU!AD22) ->  | AB93: =IF(CAU!AE22="","",CAU!AE22) ->  | AC93: =IF(CAU!AF22="","",CAU!AF22) ->  | AD93: =IF(CAU!AG22="","",CAU!AG22) ->  | AE93: =IF(CAU!AH22="","",CAU!AH22) ->  | AF93: =IF(CAU!AI22="","",CAU!AI22) ->  | AG93: =IF(CAU!AJ22="","",CAU!AJ22) ->  | AH93: =IF(CAU!AK22="","",CAU!AK22) ->  | AI93: =IF(CAU!AL22="","",CAU!AL22) ->  | AJ93: =IF(CAU!AM22="","",CAU!AM22) ->  | AK93: =IF(CAU!AN22="","",CAU!AN22) ->  | AL93: =IF(CAU!AO22="","",CAU!AO22) ->  | AM93: =IF(CAU!AP22="","",CAU!AP22) -> 
D94: Criterio Evaluación 4.6 | E94: =IF(CAU!H23="","",CAU!H23) ->  | F94: =IF(CAU!I23="","",CAU!I23) ->  | G94: =IF(CAU!J23="","",CAU!J23) ->  | H94: =IF(CAU!K23="","",CAU!K23) ->  | I94: =IF(CAU!L23="","",CAU!L23) ->  | J94: =IF(CAU!M23="","",CAU!M23) ->  | K94: =IF(CAU!N23="","",CAU!N23) ->  | L94: =IF(CAU!O23="","",CAU!O23) ->  | M94: =IF(CAU!P23="","",CAU!P23) ->  | N94: =IF(CAU!Q23="","",CAU!Q23) ->  | O94: =IF(CAU!R23="","",CAU!R23) ->  | P94: =IF(CAU!S23="","",CAU!S23) ->  | Q94: =IF(CAU!T23="","",CAU!T23) ->  | R94: =IF(CAU!U23="","",CAU!U23) ->  | S94: =IF(CAU!V23="","",CAU!V23) ->  | T94: =IF(CAU!W23="","",CAU!W23) ->  | U94: =IF(CAU!X23="","",CAU!X23) ->  | V94: =IF(CAU!Y23="","",CAU!Y23) ->  | W94: =IF(CAU!Z23="","",CAU!Z23) ->  | X94: =IF(CAU!AA23="","",CAU!AA23) ->  | Y94: =IF(CAU!AB23="","",CAU!AB23) ->  | Z94: =IF(CAU!AC23="","",CAU!AC23) ->  | AA94: =IF(CAU!AD23="","",CAU!AD23) ->  | AB94: =IF(CAU!AE23="","",CAU!AE23) ->  | AC94: =IF(CAU!AF23="","",CAU!AF23) ->  | AD94: =IF(CAU!AG23="","",CAU!AG23) ->  | AE94: =IF(CAU!AH23="","",CAU!AH23) ->  | AF94: =IF(CAU!AI23="","",CAU!AI23) ->  | AG94: =IF(CAU!AJ23="","",CAU!AJ23) ->  | AH94: =IF(CAU!AK23="","",CAU!AK23) ->  | AI94: =IF(CAU!AL23="","",CAU!AL23) ->  | AJ94: =IF(CAU!AM23="","",CAU!AM23) ->  | AK94: =IF(CAU!AN23="","",CAU!AN23) ->  | AL94: =IF(CAU!AO23="","",CAU!AO23) ->  | AM94: =IF(CAU!AP23="","",CAU!AP23) -> 
B95: Educación Física | C95: Comp. Esp. 1 | D95: Criterio Evaluación 1.1 | E95: =IF(EF!H4="","",EF!H4) ->  | F95: =IF(EF!I4="","",EF!I4) ->  | G95: =IF(EF!J4="","",EF!J4) ->  | H95: =IF(EF!K4="","",EF!K4) ->  | I95: =IF(EF!L4="","",EF!L4) ->  | J95: =IF(EF!M4="","",EF!M4) ->  | K95: =IF(EF!N4="","",EF!N4) ->  | L95: =IF(EF!O4="","",EF!O4) ->  | M95: =IF(EF!P4="","",EF!P4) ->  | N95: =IF(EF!Q4="","",EF!Q4) ->  | O95: =IF(EF!R4="","",EF!R4) ->  | P95: =IF(EF!S4="","",EF!S4) ->  | Q95: =IF(EF!T4="","",EF!T4) ->  | R95: =IF(EF!U4="","",EF!U4) ->  | S95: =IF(EF!V4="","",EF!V4) ->  | T95: =IF(EF!W4="","",EF!W4) ->  | U95: =IF(EF!X4="","",EF!X4) ->  | V95: =IF(EF!Y4="","",EF!Y4) ->  | W95: =IF(EF!Z4="","",EF!Z4) ->  | X95: =IF(EF!AA4="","",EF!AA4) ->  | Y95: =IF(EF!AB4="","",EF!AB4) ->  | Z95: =IF(EF!AC4="","",EF!AC4) ->  | AA95: =IF(EF!AD4="","",EF!AD4) ->  | AB95: =IF(EF!AE4="","",EF!AE4) ->  | AC95: =IF(EF!AF4="","",EF!AF4) ->  | AD95: =IF(EF!AG4="","",EF!AG4) ->  | AE95: =IF(EF!AH4="","",EF!AH4) ->  | AF95: =IF(EF!AI4="","",EF!AI4) ->  | AG95: =IF(EF!AJ4="","",EF!AJ4) ->  | AH95: =IF(EF!AK4="","",EF!AK4) ->  | AI95: =IF(EF!AL4="","",EF!AL4) ->  | AJ95: =IF(EF!AM4="","",EF!AM4) ->  | AK95: =IF(EF!AN4="","",EF!AN4) ->  | AL95: =IF(EF!AO4="","",EF!AO4) ->  | AM95: =IF(EF!AP4="","",EF!AP4) -> 
D96: Criterio Evaluación 1.2 | E96: =IF(EF!H5="","",EF!H5) ->  | F96: =IF(EF!I5="","",EF!I5) ->  | G96: =IF(EF!J5="","",EF!J5) ->  | H96: =IF(EF!K5="","",EF!K5) ->  | I96: =IF(EF!L5="","",EF!L5) ->  | J96: =IF(EF!M5="","",EF!M5) ->  | K96: =IF(EF!N5="","",EF!N5) ->  | L96: =IF(EF!O5="","",EF!O5) ->  | M96: =IF(EF!P5="","",EF!P5) ->  | N96: =IF(EF!Q5="","",EF!Q5) ->  | O96: =IF(EF!R5="","",EF!R5) ->  | P96: =IF(EF!S5="","",EF!S5) ->  | Q96: =IF(EF!T5="","",EF!T5) ->  | R96: =IF(EF!U5="","",EF!U5) ->  | S96: =IF(EF!V5="","",EF!V5) ->  | T96: =IF(EF!W5="","",EF!W5) ->  | U96: =IF(EF!X5="","",EF!X5) ->  | V96: =IF(EF!Y5="","",EF!Y5) ->  | W96: =IF(EF!Z5="","",EF!Z5) ->  | X96: =IF(EF!AA5="","",EF!AA5) ->  | Y96: =IF(EF!AB5="","",EF!AB5) ->  | Z96: =IF(EF!AC5="","",EF!AC5) ->  | AA96: =IF(EF!AD5="","",EF!AD5) ->  | AB96: =IF(EF!AE5="","",EF!AE5) ->  | AC96: =IF(EF!AF5="","",EF!AF5) ->  | AD96: =IF(EF!AG5="","",EF!AG5) ->  | AE96: =IF(EF!AH5="","",EF!AH5) ->  | AF96: =IF(EF!AI5="","",EF!AI5) ->  | AG96: =IF(EF!AJ5="","",EF!AJ5) ->  | AH96: =IF(EF!AK5="","",EF!AK5) ->  | AI96: =IF(EF!AL5="","",EF!AL5) ->  | AJ96: =IF(EF!AM5="","",EF!AM5) ->  | AK96: =IF(EF!AN5="","",EF!AN5) ->  | AL96: =IF(EF!AO5="","",EF!AO5) ->  | AM96: =IF(EF!AP5="","",EF!AP5) -> 
D97: Criterio Evaluación 1.3 | E97: =IF(EF!H6="","",EF!H6) ->  | F97: =IF(EF!I6="","",EF!I6) ->  | G97: =IF(EF!J6="","",EF!J6) ->  | H97: =IF(EF!K6="","",EF!K6) ->  | I97: =IF(EF!L6="","",EF!L6) ->  | J97: =IF(EF!M6="","",EF!M6) ->  | K97: =IF(EF!N6="","",EF!N6) ->  | L97: =IF(EF!O6="","",EF!O6) ->  | M97: =IF(EF!P6="","",EF!P6) ->  | N97: =IF(EF!Q6="","",EF!Q6) ->  | O97: =IF(EF!R6="","",EF!R6) ->  | P97: =IF(EF!S6="","",EF!S6) ->  | Q97: =IF(EF!T6="","",EF!T6) ->  | R97: =IF(EF!U6="","",EF!U6) ->  | S97: =IF(EF!V6="","",EF!V6) ->  | T97: =IF(EF!W6="","",EF!W6) ->  | U97: =IF(EF!X6="","",EF!X6) ->  | V97: =IF(EF!Y6="","",EF!Y6) ->  | W97: =IF(EF!Z6="","",EF!Z6) ->  | X97: =IF(EF!AA6="","",EF!AA6) ->  | Y97: =IF(EF!AB6="","",EF!AB6) ->  | Z97: =IF(EF!AC6="","",EF!AC6) ->  | AA97: =IF(EF!AD6="","",EF!AD6) ->  | AB97: =IF(EF!AE6="","",EF!AE6) ->  | AC97: =IF(EF!AF6="","",EF!AF6) ->  | AD97: =IF(EF!AG6="","",EF!AG6) ->  | AE97: =IF(EF!AH6="","",EF!AH6) ->  | AF97: =IF(EF!AI6="","",EF!AI6) ->  | AG97: =IF(EF!AJ6="","",EF!AJ6) ->  | AH97: =IF(EF!AK6="","",EF!AK6) ->  | AI97: =IF(EF!AL6="","",EF!AL6) ->  | AJ97: =IF(EF!AM6="","",EF!AM6) ->  | AK97: =IF(EF!AN6="","",EF!AN6) ->  | AL97: =IF(EF!AO6="","",EF!AO6) ->  | AM97: =IF(EF!AP6="","",EF!AP6) -> 
D98: Criterio Evaluación 1.4 | E98: =IF(EF!H7="","",EF!H7) ->  | F98: =IF(EF!I7="","",EF!I7) ->  | G98: =IF(EF!J7="","",EF!J7) ->  | H98: =IF(EF!K7="","",EF!K7) ->  | I98: =IF(EF!L7="","",EF!L7) ->  | J98: =IF(EF!M7="","",EF!M7) ->  | K98: =IF(EF!N7="","",EF!N7) ->  | L98: =IF(EF!O7="","",EF!O7) ->  | M98: =IF(EF!P7="","",EF!P7) ->  | N98: =IF(EF!Q7="","",EF!Q7) ->  | O98: =IF(EF!R7="","",EF!R7) ->  | P98: =IF(EF!S7="","",EF!S7) ->  | Q98: =IF(EF!T7="","",EF!T7) ->  | R98: =IF(EF!U7="","",EF!U7) ->  | S98: =IF(EF!V7="","",EF!V7) ->  | T98: =IF(EF!W7="","",EF!W7) ->  | U98: =IF(EF!X7="","",EF!X7) ->  | V98: =IF(EF!Y7="","",EF!Y7) ->  | W98: =IF(EF!Z7="","",EF!Z7) ->  | X98: =IF(EF!AA7="","",EF!AA7) ->  | Y98: =IF(EF!AB7="","",EF!AB7) ->  | Z98: =IF(EF!AC7="","",EF!AC7) ->  | AA98: =IF(EF!AD7="","",EF!AD7) ->  | AB98: =IF(EF!AE7="","",EF!AE7) ->  | AC98: =IF(EF!AF7="","",EF!AF7) ->  | AD98: =IF(EF!AG7="","",EF!AG7) ->  | AE98: =IF(EF!AH7="","",EF!AH7) ->  | AF98: =IF(EF!AI7="","",EF!AI7) ->  | AG98: =IF(EF!AJ7="","",EF!AJ7) ->  | AH98: =IF(EF!AK7="","",EF!AK7) ->  | AI98: =IF(EF!AL7="","",EF!AL7) ->  | AJ98: =IF(EF!AM7="","",EF!AM7) ->  | AK98: =IF(EF!AN7="","",EF!AN7) ->  | AL98: =IF(EF!AO7="","",EF!AO7) ->  | AM98: =IF(EF!AP7="","",EF!AP7) -> 
D99: Criterio Evaluación 1.5 | E99: =IF(EF!H8="","",EF!H8) ->  | F99: =IF(EF!I8="","",EF!I8) ->  | G99: =IF(EF!J8="","",EF!J8) ->  | H99: =IF(EF!K8="","",EF!K8) ->  | I99: =IF(EF!L8="","",EF!L8) ->  | J99: =IF(EF!M8="","",EF!M8) ->  | K99: =IF(EF!N8="","",EF!N8) ->  | L99: =IF(EF!O8="","",EF!O8) ->  | M99: =IF(EF!P8="","",EF!P8) ->  | N99: =IF(EF!Q8="","",EF!Q8) ->  | O99: =IF(EF!R8="","",EF!R8) ->  | P99: =IF(EF!S8="","",EF!S8) ->  | Q99: =IF(EF!T8="","",EF!T8) ->  | R99: =IF(EF!U8="","",EF!U8) ->  | S99: =IF(EF!V8="","",EF!V8) ->  | T99: =IF(EF!W8="","",EF!W8) ->  | U99: =IF(EF!X8="","",EF!X8) ->  | V99: =IF(EF!Y8="","",EF!Y8) ->  | W99: =IF(EF!Z8="","",EF!Z8) ->  | X99: =IF(EF!AA8="","",EF!AA8) ->  | Y99: =IF(EF!AB8="","",EF!AB8) ->  | Z99: =IF(EF!AC8="","",EF!AC8) ->  | AA99: =IF(EF!AD8="","",EF!AD8) ->  | AB99: =IF(EF!AE8="","",EF!AE8) ->  | AC99: =IF(EF!AF8="","",EF!AF8) ->  | AD99: =IF(EF!AG8="","",EF!AG8) ->  | AE99: =IF(EF!AH8="","",EF!AH8) ->  | AF99: =IF(EF!AI8="","",EF!AI8) ->  | AG99: =IF(EF!AJ8="","",EF!AJ8) ->  | AH99: =IF(EF!AK8="","",EF!AK8) ->  | AI99: =IF(EF!AL8="","",EF!AL8) ->  | AJ99: =IF(EF!AM8="","",EF!AM8) ->  | AK99: =IF(EF!AN8="","",EF!AN8) ->  | AL99: =IF(EF!AO8="","",EF!AO8) ->  | AM99: =IF(EF!AP8="","",EF!AP8) -> 
D100: Criterio Evaluación 1.6 | E100: =IF(EF!H9="","",EF!H9) ->  | F100: =IF(EF!I9="","",EF!I9) ->  | G100: =IF(EF!J9="","",EF!J9) ->  | H100: =IF(EF!K9="","",EF!K9) ->  | I100: =IF(EF!L9="","",EF!L9) ->  | J100: =IF(EF!M9="","",EF!M9) ->  | K100: =IF(EF!N9="","",EF!N9) ->  | L100: =IF(EF!O9="","",EF!O9) ->  | M100: =IF(EF!P9="","",EF!P9) ->  | N100: =IF(EF!Q9="","",EF!Q9) ->  | O100: =IF(EF!R9="","",EF!R9) ->  | P100: =IF(EF!S9="","",EF!S9) ->  | Q100: =IF(EF!T9="","",EF!T9) ->  | R100: =IF(EF!U9="","",EF!U9) ->  | S100: =IF(EF!V9="","",EF!V9) ->  | T100: =IF(EF!W9="","",EF!W9) ->  | U100: =IF(EF!X9="","",EF!X9) ->  | V100: =IF(EF!Y9="","",EF!Y9) ->  | W100: =IF(EF!Z9="","",EF!Z9) ->  | X100: =IF(EF!AA9="","",EF!AA9) ->  | Y100: =IF(EF!AB9="","",EF!AB9) ->  | Z100: =IF(EF!AC9="","",EF!AC9) ->  | AA100: =IF(EF!AD9="","",EF!AD9) ->  | AB100: =IF(EF!AE9="","",EF!AE9) ->  | AC100: =IF(EF!AF9="","",EF!AF9) ->  | AD100: =IF(EF!AG9="","",EF!AG9) ->  | AE100: =IF(EF!AH9="","",EF!AH9) ->  | AF100: =IF(EF!AI9="","",EF!AI9) ->  | AG100: =IF(EF!AJ9="","",EF!AJ9) ->  | AH100: =IF(EF!AK9="","",EF!AK9) ->  | AI100: =IF(EF!AL9="","",EF!AL9) ->  | AJ100: =IF(EF!AM9="","",EF!AM9) ->  | AK100: =IF(EF!AN9="","",EF!AN9) ->  | AL100: =IF(EF!AO9="","",EF!AO9) ->  | AM100: =IF(EF!AP9="","",EF!AP9) -> 
D101: Criterio Evaluación 1.7 | E101: =IF(EF!H10="","",EF!H10) ->  | F101: =IF(EF!I10="","",EF!I10) ->  | G101: =IF(EF!J10="","",EF!J10) ->  | H101: =IF(EF!K10="","",EF!K10) ->  | I101: =IF(EF!L10="","",EF!L10) ->  | J101: =IF(EF!M10="","",EF!M10) ->  | K101: =IF(EF!N10="","",EF!N10) ->  | L101: =IF(EF!O10="","",EF!O10) ->  | M101: =IF(EF!P10="","",EF!P10) ->  | N101: =IF(EF!Q10="","",EF!Q10) ->  | O101: =IF(EF!R10="","",EF!R10) ->  | P101: =IF(EF!S10="","",EF!S10) ->  | Q101: =IF(EF!T10="","",EF!T10) ->  | R101: =IF(EF!U10="","",EF!U10) ->  | S101: =IF(EF!V10="","",EF!V10) ->  | T101: =IF(EF!W10="","",EF!W10) ->  | U101: =IF(EF!X10="","",EF!X10) ->  | V101: =IF(EF!Y10="","",EF!Y10) ->  | W101: =IF(EF!Z10="","",EF!Z10) ->  | X101: =IF(EF!AA10="","",EF!AA10) ->  | Y101: =IF(EF!AB10="","",EF!AB10) ->  | Z101: =IF(EF!AC10="","",EF!AC10) ->  | AA101: =IF(EF!AD10="","",EF!AD10) ->  | AB101: =IF(EF!AE10="","",EF!AE10) ->  | AC101: =IF(EF!AF10="","",EF!AF10) ->  | AD101: =IF(EF!AG10="","",EF!AG10) ->  | AE101: =IF(EF!AH10="","",EF!AH10) ->  | AF101: =IF(EF!AI10="","",EF!AI10) ->  | AG101: =IF(EF!AJ10="","",EF!AJ10) ->  | AH101: =IF(EF!AK10="","",EF!AK10) ->  | AI101: =IF(EF!AL10="","",EF!AL10) ->  | AJ101: =IF(EF!AM10="","",EF!AM10) ->  | AK101: =IF(EF!AN10="","",EF!AN10) ->  | AL101: =IF(EF!AO10="","",EF!AO10) ->  | AM101: =IF(EF!AP10="","",EF!AP10) -> 
D102: Criterio Evaluación 1.8 | E102: =IF(EF!H11="","",EF!H11) ->  | F102: =IF(EF!I11="","",EF!I11) ->  | G102: =IF(EF!J11="","",EF!J11) ->  | H102: =IF(EF!K11="","",EF!K11) ->  | I102: =IF(EF!L11="","",EF!L11) ->  | J102: =IF(EF!M11="","",EF!M11) ->  | K102: =IF(EF!N11="","",EF!N11) ->  | L102: =IF(EF!O11="","",EF!O11) ->  | M102: =IF(EF!P11="","",EF!P11) ->  | N102: =IF(EF!Q11="","",EF!Q11) ->  | O102: =IF(EF!R11="","",EF!R11) ->  | P102: =IF(EF!S11="","",EF!S11) ->  | Q102: =IF(EF!T11="","",EF!T11) ->  | R102: =IF(EF!U11="","",EF!U11) ->  | S102: =IF(EF!V11="","",EF!V11) ->  | T102: =IF(EF!W11="","",EF!W11) ->  | U102: =IF(EF!X11="","",EF!X11) ->  | V102: =IF(EF!Y11="","",EF!Y11) ->  | W102: =IF(EF!Z11="","",EF!Z11) ->  | X102: =IF(EF!AA11="","",EF!AA11) ->  | Y102: =IF(EF!AB11="","",EF!AB11) ->  | Z102: =IF(EF!AC11="","",EF!AC11) ->  | AA102: =IF(EF!AD11="","",EF!AD11) ->  | AB102: =IF(EF!AE11="","",EF!AE11) ->  | AC102: =IF(EF!AF11="","",EF!AF11) ->  | AD102: =IF(EF!AG11="","",EF!AG11) ->  | AE102: =IF(EF!AH11="","",EF!AH11) ->  | AF102: =IF(EF!AI11="","",EF!AI11) ->  | AG102: =IF(EF!AJ11="","",EF!AJ11) ->  | AH102: =IF(EF!AK11="","",EF!AK11) ->  | AI102: =IF(EF!AL11="","",EF!AL11) ->  | AJ102: =IF(EF!AM11="","",EF!AM11) ->  | AK102: =IF(EF!AN11="","",EF!AN11) ->  | AL102: =IF(EF!AO11="","",EF!AO11) ->  | AM102: =IF(EF!AP11="","",EF!AP11) -> 
D103: Criterio Evaluación 1.9 | E103: =IF(EF!H12="","",EF!H12) ->  | F103: =IF(EF!I12="","",EF!I12) ->  | G103: =IF(EF!J12="","",EF!J12) ->  | H103: =IF(EF!K12="","",EF!K12) ->  | I103: =IF(EF!L12="","",EF!L12) ->  | J103: =IF(EF!M12="","",EF!M12) ->  | K103: =IF(EF!N12="","",EF!N12) ->  | L103: =IF(EF!O12="","",EF!O12) ->  | M103: =IF(EF!P12="","",EF!P12) ->  | N103: =IF(EF!Q12="","",EF!Q12) ->  | O103: =IF(EF!R12="","",EF!R12) ->  | P103: =IF(EF!S12="","",EF!S12) ->  | Q103: =IF(EF!T12="","",EF!T12) ->  | R103: =IF(EF!U12="","",EF!U12) ->  | S103: =IF(EF!V12="","",EF!V12) ->  | T103: =IF(EF!W12="","",EF!W12) ->  | U103: =IF(EF!X12="","",EF!X12) ->  | V103: =IF(EF!Y12="","",EF!Y12) ->  | W103: =IF(EF!Z12="","",EF!Z12) ->  | X103: =IF(EF!AA12="","",EF!AA12) ->  | Y103: =IF(EF!AB12="","",EF!AB12) ->  | Z103: =IF(EF!AC12="","",EF!AC12) ->  | AA103: =IF(EF!AD12="","",EF!AD12) ->  | AB103: =IF(EF!AE12="","",EF!AE12) ->  | AC103: =IF(EF!AF12="","",EF!AF12) ->  | AD103: =IF(EF!AG12="","",EF!AG12) ->  | AE103: =IF(EF!AH12="","",EF!AH12) ->  | AF103: =IF(EF!AI12="","",EF!AI12) ->  | AG103: =IF(EF!AJ12="","",EF!AJ12) ->  | AH103: =IF(EF!AK12="","",EF!AK12) ->  | AI103: =IF(EF!AL12="","",EF!AL12) ->  | AJ103: =IF(EF!AM12="","",EF!AM12) ->  | AK103: =IF(EF!AN12="","",EF!AN12) ->  | AL103: =IF(EF!AO12="","",EF!AO12) ->  | AM103: =IF(EF!AP12="","",EF!AP12) -> 
C104: Comp. Esp. 2 | D104: Criterio Evaluación 2.1 | E104: =IF(EF!H13="","",EF!H13) ->  | F104: =IF(EF!I13="","",EF!I13) ->  | G104: =IF(EF!J13="","",EF!J13) ->  | H104: =IF(EF!K13="","",EF!K13) ->  | I104: =IF(EF!L13="","",EF!L13) ->  | J104: =IF(EF!M13="","",EF!M13) ->  | K104: =IF(EF!N13="","",EF!N13) ->  | L104: =IF(EF!O13="","",EF!O13) ->  | M104: =IF(EF!P13="","",EF!P13) ->  | N104: =IF(EF!Q13="","",EF!Q13) ->  | O104: =IF(EF!R13="","",EF!R13) ->  | P104: =IF(EF!S13="","",EF!S13) ->  | Q104: =IF(EF!T13="","",EF!T13) ->  | R104: =IF(EF!U13="","",EF!U13) ->  | S104: =IF(EF!V13="","",EF!V13) ->  | T104: =IF(EF!W13="","",EF!W13) ->  | U104: =IF(EF!X13="","",EF!X13) ->  | V104: =IF(EF!Y13="","",EF!Y13) ->  | W104: =IF(EF!Z13="","",EF!Z13) ->  | X104: =IF(EF!AA13="","",EF!AA13) ->  | Y104: =IF(EF!AB13="","",EF!AB13) ->  | Z104: =IF(EF!AC13="","",EF!AC13) ->  | AA104: =IF(EF!AD13="","",EF!AD13) ->  | AB104: =IF(EF!AE13="","",EF!AE13) ->  | AC104: =IF(EF!AF13="","",EF!AF13) ->  | AD104: =IF(EF!AG13="","",EF!AG13) ->  | AE104: =IF(EF!AH13="","",EF!AH13) ->  | AF104: =IF(EF!AI13="","",EF!AI13) ->  | AG104: =IF(EF!AJ13="","",EF!AJ13) ->  | AH104: =IF(EF!AK13="","",EF!AK13) ->  | AI104: =IF(EF!AL13="","",EF!AL13) ->  | AJ104: =IF(EF!AM13="","",EF!AM13) ->  | AK104: =IF(EF!AN13="","",EF!AN13) ->  | AL104: =IF(EF!AO13="","",EF!AO13) ->  | AM104: =IF(EF!AP13="","",EF!AP13) -> 
D105: Criterio Evaluación 2.2 | E105: =IF(EF!H14="","",EF!H14) ->  | F105: =IF(EF!I14="","",EF!I14) ->  | G105: =IF(EF!J14="","",EF!J14) ->  | H105: =IF(EF!K14="","",EF!K14) ->  | I105: =IF(EF!L14="","",EF!L14) ->  | J105: =IF(EF!M14="","",EF!M14) ->  | K105: =IF(EF!N14="","",EF!N14) ->  | L105: =IF(EF!O14="","",EF!O14) ->  | M105: =IF(EF!P14="","",EF!P14) ->  | N105: =IF(EF!Q14="","",EF!Q14) ->  | O105: =IF(EF!R14="","",EF!R14) ->  | P105: =IF(EF!S14="","",EF!S14) ->  | Q105: =IF(EF!T14="","",EF!T14) ->  | R105: =IF(EF!U14="","",EF!U14) ->  | S105: =IF(EF!V14="","",EF!V14) ->  | T105: =IF(EF!W14="","",EF!W14) ->  | U105: =IF(EF!X14="","",EF!X14) ->  | V105: =IF(EF!Y14="","",EF!Y14) ->  | W105: =IF(EF!Z14="","",EF!Z14) ->  | X105: =IF(EF!AA14="","",EF!AA14) ->  | Y105: =IF(EF!AB14="","",EF!AB14) ->  | Z105: =IF(EF!AC14="","",EF!AC14) ->  | AA105: =IF(EF!AD14="","",EF!AD14) ->  | AB105: =IF(EF!AE14="","",EF!AE14) ->  | AC105: =IF(EF!AF14="","",EF!AF14) ->  | AD105: =IF(EF!AG14="","",EF!AG14) ->  | AE105: =IF(EF!AH14="","",EF!AH14) ->  | AF105: =IF(EF!AI14="","",EF!AI14) ->  | AG105: =IF(EF!AJ14="","",EF!AJ14) ->  | AH105: =IF(EF!AK14="","",EF!AK14) ->  | AI105: =IF(EF!AL14="","",EF!AL14) ->  | AJ105: =IF(EF!AM14="","",EF!AM14) ->  | AK105: =IF(EF!AN14="","",EF!AN14) ->  | AL105: =IF(EF!AO14="","",EF!AO14) ->  | AM105: =IF(EF!AP14="","",EF!AP14) -> 
D106: Criterio Evaluación 2.3 | E106: =IF(EF!H15="","",EF!H15) ->  | F106: =IF(EF!I15="","",EF!I15) ->  | G106: =IF(EF!J15="","",EF!J15) ->  | H106: =IF(EF!K15="","",EF!K15) ->  | I106: =IF(EF!L15="","",EF!L15) ->  | J106: =IF(EF!M15="","",EF!M15) ->  | K106: =IF(EF!N15="","",EF!N15) ->  | L106: =IF(EF!O15="","",EF!O15) ->  | M106: =IF(EF!P15="","",EF!P15) ->  | N106: =IF(EF!Q15="","",EF!Q15) ->  | O106: =IF(EF!R15="","",EF!R15) ->  | P106: =IF(EF!S15="","",EF!S15) ->  | Q106: =IF(EF!T15="","",EF!T15) ->  | R106: =IF(EF!U15="","",EF!U15) ->  | S106: =IF(EF!V15="","",EF!V15) ->  | T106: =IF(EF!W15="","",EF!W15) ->  | U106: =IF(EF!X15="","",EF!X15) ->  | V106: =IF(EF!Y15="","",EF!Y15) ->  | W106: =IF(EF!Z15="","",EF!Z15) ->  | X106: =IF(EF!AA15="","",EF!AA15) ->  | Y106: =IF(EF!AB15="","",EF!AB15) ->  | Z106: =IF(EF!AC15="","",EF!AC15) ->  | AA106: =IF(EF!AD15="","",EF!AD15) ->  | AB106: =IF(EF!AE15="","",EF!AE15) ->  | AC106: =IF(EF!AF15="","",EF!AF15) ->  | AD106: =IF(EF!AG15="","",EF!AG15) ->  | AE106: =IF(EF!AH15="","",EF!AH15) ->  | AF106: =IF(EF!AI15="","",EF!AI15) ->  | AG106: =IF(EF!AJ15="","",EF!AJ15) ->  | AH106: =IF(EF!AK15="","",EF!AK15) ->  | AI106: =IF(EF!AL15="","",EF!AL15) ->  | AJ106: =IF(EF!AM15="","",EF!AM15) ->  | AK106: =IF(EF!AN15="","",EF!AN15) ->  | AL106: =IF(EF!AO15="","",EF!AO15) ->  | AM106: =IF(EF!AP15="","",EF!AP15) -> 
D107: Criterio Evaluación 2.4 | E107: =IF(EF!H16="","",EF!H16) ->  | F107: =IF(EF!I16="","",EF!I16) ->  | G107: =IF(EF!J16="","",EF!J16) ->  | H107: =IF(EF!K16="","",EF!K16) ->  | I107: =IF(EF!L16="","",EF!L16) ->  | J107: =IF(EF!M16="","",EF!M16) ->  | K107: =IF(EF!N16="","",EF!N16) ->  | L107: =IF(EF!O16="","",EF!O16) ->  | M107: =IF(EF!P16="","",EF!P16) ->  | N107: =IF(EF!Q16="","",EF!Q16) ->  | O107: =IF(EF!R16="","",EF!R16) ->  | P107: =IF(EF!S16="","",EF!S16) ->  | Q107: =IF(EF!T16="","",EF!T16) ->  | R107: =IF(EF!U16="","",EF!U16) ->  | S107: =IF(EF!V16="","",EF!V16) ->  | T107: =IF(EF!W16="","",EF!W16) ->  | U107: =IF(EF!X16="","",EF!X16) ->  | V107: =IF(EF!Y16="","",EF!Y16) ->  | W107: =IF(EF!Z16="","",EF!Z16) ->  | X107: =IF(EF!AA16="","",EF!AA16) ->  | Y107: =IF(EF!AB16="","",EF!AB16) ->  | Z107: =IF(EF!AC16="","",EF!AC16) ->  | AA107: =IF(EF!AD16="","",EF!AD16) ->  | AB107: =IF(EF!AE16="","",EF!AE16) ->  | AC107: =IF(EF!AF16="","",EF!AF16) ->  | AD107: =IF(EF!AG16="","",EF!AG16) ->  | AE107: =IF(EF!AH16="","",EF!AH16) ->  | AF107: =IF(EF!AI16="","",EF!AI16) ->  | AG107: =IF(EF!AJ16="","",EF!AJ16) ->  | AH107: =IF(EF!AK16="","",EF!AK16) ->  | AI107: =IF(EF!AL16="","",EF!AL16) ->  | AJ107: =IF(EF!AM16="","",EF!AM16) ->  | AK107: =IF(EF!AN16="","",EF!AN16) ->  | AL107: =IF(EF!AO16="","",EF!AO16) ->  | AM107: =IF(EF!AP16="","",EF!AP16) -> 
C108: Comp. Esp. 3 | D108: Criterio Evaluación 3.1 | E108: =IF(EF!H17="","",EF!H17) ->  | F108: =IF(EF!I17="","",EF!I17) ->  | G108: =IF(EF!J17="","",EF!J17) ->  | H108: =IF(EF!K17="","",EF!K17) ->  | I108: =IF(EF!L17="","",EF!L17) ->  | J108: =IF(EF!M17="","",EF!M17) ->  | K108: =IF(EF!N17="","",EF!N17) ->  | L108: =IF(EF!O17="","",EF!O17) ->  | M108: =IF(EF!P17="","",EF!P17) ->  | N108: =IF(EF!Q17="","",EF!Q17) ->  | O108: =IF(EF!R17="","",EF!R17) ->  | P108: =IF(EF!S17="","",EF!S17) ->  | Q108: =IF(EF!T17="","",EF!T17) ->  | R108: =IF(EF!U17="","",EF!U17) ->  | S108: =IF(EF!V17="","",EF!V17) ->  | T108: =IF(EF!W17="","",EF!W17) ->  | U108: =IF(EF!X17="","",EF!X17) ->  | V108: =IF(EF!Y17="","",EF!Y17) ->  | W108: =IF(EF!Z17="","",EF!Z17) ->  | X108: =IF(EF!AA17="","",EF!AA17) ->  | Y108: =IF(EF!AB17="","",EF!AB17) ->  | Z108: =IF(EF!AC17="","",EF!AC17) ->  | AA108: =IF(EF!AD17="","",EF!AD17) ->  | AB108: =IF(EF!AE17="","",EF!AE17) ->  | AC108: =IF(EF!AF17="","",EF!AF17) ->  | AD108: =IF(EF!AG17="","",EF!AG17) ->  | AE108: =IF(EF!AH17="","",EF!AH17) ->  | AF108: =IF(EF!AI17="","",EF!AI17) ->  | AG108: =IF(EF!AJ17="","",EF!AJ17) ->  | AH108: =IF(EF!AK17="","",EF!AK17) ->  | AI108: =IF(EF!AL17="","",EF!AL17) ->  | AJ108: =IF(EF!AM17="","",EF!AM17) ->  | AK108: =IF(EF!AN17="","",EF!AN17) ->  | AL108: =IF(EF!AO17="","",EF!AO17) ->  | AM108: =IF(EF!AP17="","",EF!AP17) -> 
D109: Criterio Evaluación 3.2 | E109: =IF(EF!H18="","",EF!H18) ->  | F109: =IF(EF!I18="","",EF!I18) ->  | G109: =IF(EF!J18="","",EF!J18) ->  | H109: =IF(EF!K18="","",EF!K18) ->  | I109: =IF(EF!L18="","",EF!L18) ->  | J109: =IF(EF!M18="","",EF!M18) ->  | K109: =IF(EF!N18="","",EF!N18) ->  | L109: =IF(EF!O18="","",EF!O18) ->  | M109: =IF(EF!P18="","",EF!P18) ->  | N109: =IF(EF!Q18="","",EF!Q18) ->  | O109: =IF(EF!R18="","",EF!R18) ->  | P109: =IF(EF!S18="","",EF!S18) ->  | Q109: =IF(EF!T18="","",EF!T18) ->  | R109: =IF(EF!U18="","",EF!U18) ->  | S109: =IF(EF!V18="","",EF!V18) ->  | T109: =IF(EF!W18="","",EF!W18) ->  | U109: =IF(EF!X18="","",EF!X18) ->  | V109: =IF(EF!Y18="","",EF!Y18) ->  | W109: =IF(EF!Z18="","",EF!Z18) ->  | X109: =IF(EF!AA18="","",EF!AA18) ->  | Y109: =IF(EF!AB18="","",EF!AB18) ->  | Z109: =IF(EF!AC18="","",EF!AC18) ->  | AA109: =IF(EF!AD18="","",EF!AD18) ->  | AB109: =IF(EF!AE18="","",EF!AE18) ->  | AC109: =IF(EF!AF18="","",EF!AF18) ->  | AD109: =IF(EF!AG18="","",EF!AG18) ->  | AE109: =IF(EF!AH18="","",EF!AH18) ->  | AF109: =IF(EF!AI18="","",EF!AI18) ->  | AG109: =IF(EF!AJ18="","",EF!AJ18) ->  | AH109: =IF(EF!AK18="","",EF!AK18) ->  | AI109: =IF(EF!AL18="","",EF!AL18) ->  | AJ109: =IF(EF!AM18="","",EF!AM18) ->  | AK109: =IF(EF!AN18="","",EF!AN18) ->  | AL109: =IF(EF!AO18="","",EF!AO18) ->  | AM109: =IF(EF!AP18="","",EF!AP18) -> 
D110: Criterio Evaluación 3.3 | E110: =IF(EF!H19="","",EF!H19) ->  | F110: =IF(EF!I19="","",EF!I19) ->  | G110: =IF(EF!J19="","",EF!J19) ->  | H110: =IF(EF!K19="","",EF!K19) ->  | I110: =IF(EF!L19="","",EF!L19) ->  | J110: =IF(EF!M19="","",EF!M19) ->  | K110: =IF(EF!N19="","",EF!N19) ->  | L110: =IF(EF!O19="","",EF!O19) ->  | M110: =IF(EF!P19="","",EF!P19) ->  | N110: =IF(EF!Q19="","",EF!Q19) ->  | O110: =IF(EF!R19="","",EF!R19) ->  | P110: =IF(EF!S19="","",EF!S19) ->  | Q110: =IF(EF!T19="","",EF!T19) ->  | R110: =IF(EF!U19="","",EF!U19) ->  | S110: =IF(EF!V19="","",EF!V19) ->  | T110: =IF(EF!W19="","",EF!W19) ->  | U110: =IF(EF!X19="","",EF!X19) ->  | V110: =IF(EF!Y19="","",EF!Y19) ->  | W110: =IF(EF!Z19="","",EF!Z19) ->  | X110: =IF(EF!AA19="","",EF!AA19) ->  | Y110: =IF(EF!AB19="","",EF!AB19) ->  | Z110: =IF(EF!AC19="","",EF!AC19) ->  | AA110: =IF(EF!AD19="","",EF!AD19) ->  | AB110: =IF(EF!AE19="","",EF!AE19) ->  | AC110: =IF(EF!AF19="","",EF!AF19) ->  | AD110: =IF(EF!AG19="","",EF!AG19) ->  | AE110: =IF(EF!AH19="","",EF!AH19) ->  | AF110: =IF(EF!AI19="","",EF!AI19) ->  | AG110: =IF(EF!AJ19="","",EF!AJ19) ->  | AH110: =IF(EF!AK19="","",EF!AK19) ->  | AI110: =IF(EF!AL19="","",EF!AL19) ->  | AJ110: =IF(EF!AM19="","",EF!AM19) ->  | AK110: =IF(EF!AN19="","",EF!AN19) ->  | AL110: =IF(EF!AO19="","",EF!AO19) ->  | AM110: =IF(EF!AP19="","",EF!AP19) -> 
C111: Comp. Esp. 4 | D111: Criterio Evaluación 4.1 | E111: =IF(EF!H20="","",EF!H20) ->  | F111: =IF(EF!I20="","",EF!I20) ->  | G111: =IF(EF!J20="","",EF!J20) ->  | H111: =IF(EF!K20="","",EF!K20) ->  | I111: =IF(EF!L20="","",EF!L20) ->  | J111: =IF(EF!M20="","",EF!M20) ->  | K111: =IF(EF!N20="","",EF!N20) ->  | L111: =IF(EF!O20="","",EF!O20) ->  | M111: =IF(EF!P20="","",EF!P20) ->  | N111: =IF(EF!Q20="","",EF!Q20) ->  | O111: =IF(EF!R20="","",EF!R20) ->  | P111: =IF(EF!S20="","",EF!S20) ->  | Q111: =IF(EF!T20="","",EF!T20) ->  | R111: =IF(EF!U20="","",EF!U20) ->  | S111: =IF(EF!V20="","",EF!V20) ->  | T111: =IF(EF!W20="","",EF!W20) ->  | U111: =IF(EF!X20="","",EF!X20) ->  | V111: =IF(EF!Y20="","",EF!Y20) ->  | W111: =IF(EF!Z20="","",EF!Z20) ->  | X111: =IF(EF!AA20="","",EF!AA20) ->  | Y111: =IF(EF!AB20="","",EF!AB20) ->  | Z111: =IF(EF!AC20="","",EF!AC20) ->  | AA111: =IF(EF!AD20="","",EF!AD20) ->  | AB111: =IF(EF!AE20="","",EF!AE20) ->  | AC111: =IF(EF!AF20="","",EF!AF20) ->  | AD111: =IF(EF!AG20="","",EF!AG20) ->  | AE111: =IF(EF!AH20="","",EF!AH20) ->  | AF111: =IF(EF!AI20="","",EF!AI20) ->  | AG111: =IF(EF!AJ20="","",EF!AJ20) ->  | AH111: =IF(EF!AK20="","",EF!AK20) ->  | AI111: =IF(EF!AL20="","",EF!AL20) ->  | AJ111: =IF(EF!AM20="","",EF!AM20) ->  | AK111: =IF(EF!AN20="","",EF!AN20) ->  | AL111: =IF(EF!AO20="","",EF!AO20) ->  | AM111: =IF(EF!AP20="","",EF!AP20) -> 
D112: Criterio Evaluación 4.2 | E112: =IF(EF!H21="","",EF!H21) ->  | F112: =IF(EF!I21="","",EF!I21) ->  | G112: =IF(EF!J21="","",EF!J21) ->  | H112: =IF(EF!K21="","",EF!K21) ->  | I112: =IF(EF!L21="","",EF!L21) ->  | J112: =IF(EF!M21="","",EF!M21) ->  | K112: =IF(EF!N21="","",EF!N21) ->  | L112: =IF(EF!O21="","",EF!O21) ->  | M112: =IF(EF!P21="","",EF!P21) ->  | N112: =IF(EF!Q21="","",EF!Q21) ->  | O112: =IF(EF!R21="","",EF!R21) ->  | P112: =IF(EF!S21="","",EF!S21) ->  | Q112: =IF(EF!T21="","",EF!T21) ->  | R112: =IF(EF!U21="","",EF!U21) ->  | S112: =IF(EF!V21="","",EF!V21) ->  | T112: =IF(EF!W21="","",EF!W21) ->  | U112: =IF(EF!X21="","",EF!X21) ->  | V112: =IF(EF!Y21="","",EF!Y21) ->  | W112: =IF(EF!Z21="","",EF!Z21) ->  | X112: =IF(EF!AA21="","",EF!AA21) ->  | Y112: =IF(EF!AB21="","",EF!AB21) ->  | Z112: =IF(EF!AC21="","",EF!AC21) ->  | AA112: =IF(EF!AD21="","",EF!AD21) ->  | AB112: =IF(EF!AE21="","",EF!AE21) ->  | AC112: =IF(EF!AF21="","",EF!AF21) ->  | AD112: =IF(EF!AG21="","",EF!AG21) ->  | AE112: =IF(EF!AH21="","",EF!AH21) ->  | AF112: =IF(EF!AI21="","",EF!AI21) ->  | AG112: =IF(EF!AJ21="","",EF!AJ21) ->  | AH112: =IF(EF!AK21="","",EF!AK21) ->  | AI112: =IF(EF!AL21="","",EF!AL21) ->  | AJ112: =IF(EF!AM21="","",EF!AM21) ->  | AK112: =IF(EF!AN21="","",EF!AN21) ->  | AL112: =IF(EF!AO21="","",EF!AO21) ->  | AM112: =IF(EF!AP21="","",EF!AP21) -> 
C113: Comp. Esp. 5 | D113: Criterio Evaluación 5.1 | E113: =IF(EF!H22="","",EF!H22) ->  | F113: =IF(EF!I22="","",EF!I22) ->  | G113: =IF(EF!J22="","",EF!J22) ->  | H113: =IF(EF!K22="","",EF!K22) ->  | I113: =IF(EF!L22="","",EF!L22) ->  | J113: =IF(EF!M22="","",EF!M22) ->  | K113: =IF(EF!N22="","",EF!N22) ->  | L113: =IF(EF!O22="","",EF!O22) ->  | M113: =IF(EF!P22="","",EF!P22) ->  | N113: =IF(EF!Q22="","",EF!Q22) ->  | O113: =IF(EF!R22="","",EF!R22) ->  | P113: =IF(EF!S22="","",EF!S22) ->  | Q113: =IF(EF!T22="","",EF!T22) ->  | R113: =IF(EF!U22="","",EF!U22) ->  | S113: =IF(EF!V22="","",EF!V22) ->  | T113: =IF(EF!W22="","",EF!W22) ->  | U113: =IF(EF!X22="","",EF!X22) ->  | V113: =IF(EF!Y22="","",EF!Y22) ->  | W113: =IF(EF!Z22="","",EF!Z22) ->  | X113: =IF(EF!AA22="","",EF!AA22) ->  | Y113: =IF(EF!AB22="","",EF!AB22) ->  | Z113: =IF(EF!AC22="","",EF!AC22) ->  | AA113: =IF(EF!AD22="","",EF!AD22) ->  | AB113: =IF(EF!AE22="","",EF!AE22) ->  | AC113: =IF(EF!AF22="","",EF!AF22) ->  | AD113: =IF(EF!AG22="","",EF!AG22) ->  | AE113: =IF(EF!AH22="","",EF!AH22) ->  | AF113: =IF(EF!AI22="","",EF!AI22) ->  | AG113: =IF(EF!AJ22="","",EF!AJ22) ->  | AH113: =IF(EF!AK22="","",EF!AK22) ->  | AI113: =IF(EF!AL22="","",EF!AL22) ->  | AJ113: =IF(EF!AM22="","",EF!AM22) ->  | AK113: =IF(EF!AN22="","",EF!AN22) ->  | AL113: =IF(EF!AO22="","",EF!AO22) ->  | AM113: =IF(EF!AP22="","",EF!AP22) -> 
D114: Criterio Evaluación 5.2 | E114: =IF(EF!H23="","",EF!H23) ->  | F114: =IF(EF!I23="","",EF!I23) ->  | G114: =IF(EF!J23="","",EF!J23) ->  | H114: =IF(EF!K23="","",EF!K23) ->  | I114: =IF(EF!L23="","",EF!L23) ->  | J114: =IF(EF!M23="","",EF!M23) ->  | K114: =IF(EF!N23="","",EF!N23) ->  | L114: =IF(EF!O23="","",EF!O23) ->  | M114: =IF(EF!P23="","",EF!P23) ->  | N114: =IF(EF!Q23="","",EF!Q23) ->  | O114: =IF(EF!R23="","",EF!R23) ->  | P114: =IF(EF!S23="","",EF!S23) ->  | Q114: =IF(EF!T23="","",EF!T23) ->  | R114: =IF(EF!U23="","",EF!U23) ->  | S114: =IF(EF!V23="","",EF!V23) ->  | T114: =IF(EF!W23="","",EF!W23) ->  | U114: =IF(EF!X23="","",EF!X23) ->  | V114: =IF(EF!Y23="","",EF!Y23) ->  | W114: =IF(EF!Z23="","",EF!Z23) ->  | X114: =IF(EF!AA23="","",EF!AA23) ->  | Y114: =IF(EF!AB23="","",EF!AB23) ->  | Z114: =IF(EF!AC23="","",EF!AC23) ->  | AA114: =IF(EF!AD23="","",EF!AD23) ->  | AB114: =IF(EF!AE23="","",EF!AE23) ->  | AC114: =IF(EF!AF23="","",EF!AF23) ->  | AD114: =IF(EF!AG23="","",EF!AG23) ->  | AE114: =IF(EF!AH23="","",EF!AH23) ->  | AF114: =IF(EF!AI23="","",EF!AI23) ->  | AG114: =IF(EF!AJ23="","",EF!AJ23) ->  | AH114: =IF(EF!AK23="","",EF!AK23) ->  | AI114: =IF(EF!AL23="","",EF!AL23) ->  | AJ114: =IF(EF!AM23="","",EF!AM23) ->  | AK114: =IF(EF!AN23="","",EF!AN23) ->  | AL114: =IF(EF!AO23="","",EF!AO23) ->  | AM114: =IF(EF!AP23="","",EF!AP23) -> 
B115: Filosofía | C115: Comp. Esp. 1 | D115: Criterio Evaluación 1.1 | E115: =IF(FIL!H4="","",FIL!H4) ->  | F115: =IF(FIL!I4="","",FIL!I4) ->  | G115: =IF(FIL!J4="","",FIL!J4) ->  | H115: =IF(FIL!K4="","",FIL!K4) ->  | I115: =IF(FIL!L4="","",FIL!L4) ->  | J115: =IF(FIL!M4="","",FIL!M4) ->  | K115: =IF(FIL!N4="","",FIL!N4) ->  | L115: =IF(FIL!O4="","",FIL!O4) ->  | M115: =IF(FIL!P4="","",FIL!P4) ->  | N115: =IF(FIL!Q4="","",FIL!Q4) ->  | O115: =IF(FIL!R4="","",FIL!R4) ->  | P115: =IF(FIL!S4="","",FIL!S4) ->  | Q115: =IF(FIL!T4="","",FIL!T4) ->  | R115: =IF(FIL!U4="","",FIL!U4) ->  | S115: =IF(FIL!V4="","",FIL!V4) ->  | T115: =IF(FIL!W4="","",FIL!W4) ->  | U115: =IF(FIL!X4="","",FIL!X4) ->  | V115: =IF(FIL!Y4="","",FIL!Y4) ->  | W115: =IF(FIL!Z4="","",FIL!Z4) ->  | X115: =IF(FIL!AA4="","",FIL!AA4) ->  | Y115: =IF(FIL!AB4="","",FIL!AB4) ->  | Z115: =IF(FIL!AC4="","",FIL!AC4) ->  | AA115: =IF(FIL!AD4="","",FIL!AD4) ->  | AB115: =IF(FIL!AE4="","",FIL!AE4) ->  | AC115: =IF(FIL!AF4="","",FIL!AF4) ->  | AD115: =IF(FIL!AG4="","",FIL!AG4) ->  | AE115: =IF(FIL!AH4="","",FIL!AH4) ->  | AF115: =IF(FIL!AI4="","",FIL!AI4) ->  | AG115: =IF(FIL!AJ4="","",FIL!AJ4) ->  | AH115: =IF(FIL!AK4="","",FIL!AK4) ->  | AI115: =IF(FIL!AL4="","",FIL!AL4) ->  | AJ115: =IF(FIL!AM4="","",FIL!AM4) ->  | AK115: =IF(FIL!AN4="","",FIL!AN4) ->  | AL115: =IF(FIL!AO4="","",FIL!AO4) ->  | AM115: =IF(FIL!AP4="","",FIL!AP4) -> 
D116: Criterio Evaluación 1.2 | E116: =IF(FIL!H5="","",FIL!H5) ->  | F116: =IF(FIL!I5="","",FIL!I5) ->  | G116: =IF(FIL!J5="","",FIL!J5) ->  | H116: =IF(FIL!K5="","",FIL!K5) ->  | I116: =IF(FIL!L5="","",FIL!L5) ->  | J116: =IF(FIL!M5="","",FIL!M5) ->  | K116: =IF(FIL!N5="","",FIL!N5) ->  | L116: =IF(FIL!O5="","",FIL!O5) ->  | M116: =IF(FIL!P5="","",FIL!P5) ->  | N116: =IF(FIL!Q5="","",FIL!Q5) ->  | O116: =IF(FIL!R5="","",FIL!R5) ->  | P116: =IF(FIL!S5="","",FIL!S5) ->  | Q116: =IF(FIL!T5="","",FIL!T5) ->  | R116: =IF(FIL!U5="","",FIL!U5) ->  | S116: =IF(FIL!V5="","",FIL!V5) ->  | T116: =IF(FIL!W5="","",FIL!W5) ->  | U116: =IF(FIL!X5="","",FIL!X5) ->  | V116: =IF(FIL!Y5="","",FIL!Y5) ->  | W116: =IF(FIL!Z5="","",FIL!Z5) ->  | X116: =IF(FIL!AA5="","",FIL!AA5) ->  | Y116: =IF(FIL!AB5="","",FIL!AB5) ->  | Z116: =IF(FIL!AC5="","",FIL!AC5) ->  | AA116: =IF(FIL!AD5="","",FIL!AD5) ->  | AB116: =IF(FIL!AE5="","",FIL!AE5) ->  | AC116: =IF(FIL!AF5="","",FIL!AF5) ->  | AD116: =IF(FIL!AG5="","",FIL!AG5) ->  | AE116: =IF(FIL!AH5="","",FIL!AH5) ->  | AF116: =IF(FIL!AI5="","",FIL!AI5) ->  | AG116: =IF(FIL!AJ5="","",FIL!AJ5) ->  | AH116: =IF(FIL!AK5="","",FIL!AK5) ->  | AI116: =IF(FIL!AL5="","",FIL!AL5) ->  | AJ116: =IF(FIL!AM5="","",FIL!AM5) ->  | AK116: =IF(FIL!AN5="","",FIL!AN5) ->  | AL116: =IF(FIL!AO5="","",FIL!AO5) ->  | AM116: =IF(FIL!AP5="","",FIL!AP5) -> 
C117: Comp. Esp. 2 | D117: Criterio Evaluación 2.1 | E117: =IF(FIL!H6="","",FIL!H6) ->  | F117: =IF(FIL!I6="","",FIL!I6) ->  | G117: =IF(FIL!J6="","",FIL!J6) ->  | H117: =IF(FIL!K6="","",FIL!K6) ->  | I117: =IF(FIL!L6="","",FIL!L6) ->  | J117: =IF(FIL!M6="","",FIL!M6) ->  | K117: =IF(FIL!N6="","",FIL!N6) ->  | L117: =IF(FIL!O6="","",FIL!O6) ->  | M117: =IF(FIL!P6="","",FIL!P6) ->  | N117: =IF(FIL!Q6="","",FIL!Q6) ->  | O117: =IF(FIL!R6="","",FIL!R6) ->  | P117: =IF(FIL!S6="","",FIL!S6) ->  | Q117: =IF(FIL!T6="","",FIL!T6) ->  | R117: =IF(FIL!U6="","",FIL!U6) ->  | S117: =IF(FIL!V6="","",FIL!V6) ->  | T117: =IF(FIL!W6="","",FIL!W6) ->  | U117: =IF(FIL!X6="","",FIL!X6) ->  | V117: =IF(FIL!Y6="","",FIL!Y6) ->  | W117: =IF(FIL!Z6="","",FIL!Z6) ->  | X117: =IF(FIL!AA6="","",FIL!AA6) ->  | Y117: =IF(FIL!AB6="","",FIL!AB6) ->  | Z117: =IF(FIL!AC6="","",FIL!AC6) ->  | AA117: =IF(FIL!AD6="","",FIL!AD6) ->  | AB117: =IF(FIL!AE6="","",FIL!AE6) ->  | AC117: =IF(FIL!AF6="","",FIL!AF6) ->  | AD117: =IF(FIL!AG6="","",FIL!AG6) ->  | AE117: =IF(FIL!AH6="","",FIL!AH6) ->  | AF117: =IF(FIL!AI6="","",FIL!AI6) ->  | AG117: =IF(FIL!AJ6="","",FIL!AJ6) ->  | AH117: =IF(FIL!AK6="","",FIL!AK6) ->  | AI117: =IF(FIL!AL6="","",FIL!AL6) ->  | AJ117: =IF(FIL!AM6="","",FIL!AM6) ->  | AK117: =IF(FIL!AN6="","",FIL!AN6) ->  | AL117: =IF(FIL!AO6="","",FIL!AO6) ->  | AM117: =IF(FIL!AP6="","",FIL!AP6) -> 
D118: Criterio Evaluación 2.2 | E118: =IF(FIL!H7="","",FIL!H7) ->  | F118: =IF(FIL!I7="","",FIL!I7) ->  | G118: =IF(FIL!J7="","",FIL!J7) ->  | H118: =IF(FIL!K7="","",FIL!K7) ->  | I118: =IF(FIL!L7="","",FIL!L7) ->  | J118: =IF(FIL!M7="","",FIL!M7) ->  | K118: =IF(FIL!N7="","",FIL!N7) ->  | L118: =IF(FIL!O7="","",FIL!O7) ->  | M118: =IF(FIL!P7="","",FIL!P7) ->  | N118: =IF(FIL!Q7="","",FIL!Q7) ->  | O118: =IF(FIL!R7="","",FIL!R7) ->  | P118: =IF(FIL!S7="","",FIL!S7) ->  | Q118: =IF(FIL!T7="","",FIL!T7) ->  | R118: =IF(FIL!U7="","",FIL!U7) ->  | S118: =IF(FIL!V7="","",FIL!V7) ->  | T118: =IF(FIL!W7="","",FIL!W7) ->  | U118: =IF(FIL!X7="","",FIL!X7) ->  | V118: =IF(FIL!Y7="","",FIL!Y7) ->  | W118: =IF(FIL!Z7="","",FIL!Z7) ->  | X118: =IF(FIL!AA7="","",FIL!AA7) ->  | Y118: =IF(FIL!AB7="","",FIL!AB7) ->  | Z118: =IF(FIL!AC7="","",FIL!AC7) ->  | AA118: =IF(FIL!AD7="","",FIL!AD7) ->  | AB118: =IF(FIL!AE7="","",FIL!AE7) ->  | AC118: =IF(FIL!AF7="","",FIL!AF7) ->  | AD118: =IF(FIL!AG7="","",FIL!AG7) ->  | AE118: =IF(FIL!AH7="","",FIL!AH7) ->  | AF118: =IF(FIL!AI7="","",FIL!AI7) ->  | AG118: =IF(FIL!AJ7="","",FIL!AJ7) ->  | AH118: =IF(FIL!AK7="","",FIL!AK7) ->  | AI118: =IF(FIL!AL7="","",FIL!AL7) ->  | AJ118: =IF(FIL!AM7="","",FIL!AM7) ->  | AK118: =IF(FIL!AN7="","",FIL!AN7) ->  | AL118: =IF(FIL!AO7="","",FIL!AO7) ->  | AM118: =IF(FIL!AP7="","",FIL!AP7) -> 
C119: Comp. Esp. 3 | D119: Criterio Evaluación 3.1 | E119: =IF(FIL!H8="","",FIL!H8) ->  | F119: =IF(FIL!I8="","",FIL!I8) ->  | G119: =IF(FIL!J8="","",FIL!J8) ->  | H119: =IF(FIL!K8="","",FIL!K8) ->  | I119: =IF(FIL!L8="","",FIL!L8) ->  | J119: =IF(FIL!M8="","",FIL!M8) ->  | K119: =IF(FIL!N8="","",FIL!N8) ->  | L119: =IF(FIL!O8="","",FIL!O8) ->  | M119: =IF(FIL!P8="","",FIL!P8) ->  | N119: =IF(FIL!Q8="","",FIL!Q8) ->  | O119: =IF(FIL!R8="","",FIL!R8) ->  | P119: =IF(FIL!S8="","",FIL!S8) ->  | Q119: =IF(FIL!T8="","",FIL!T8) ->  | R119: =IF(FIL!U8="","",FIL!U8) ->  | S119: =IF(FIL!V8="","",FIL!V8) ->  | T119: =IF(FIL!W8="","",FIL!W8) ->  | U119: =IF(FIL!X8="","",FIL!X8) ->  | V119: =IF(FIL!Y8="","",FIL!Y8) ->  | W119: =IF(FIL!Z8="","",FIL!Z8) ->  | X119: =IF(FIL!AA8="","",FIL!AA8) ->  | Y119: =IF(FIL!AB8="","",FIL!AB8) ->  | Z119: =IF(FIL!AC8="","",FIL!AC8) ->  | AA119: =IF(FIL!AD8="","",FIL!AD8) ->  | AB119: =IF(FIL!AE8="","",FIL!AE8) ->  | AC119: =IF(FIL!AF8="","",FIL!AF8) ->  | AD119: =IF(FIL!AG8="","",FIL!AG8) ->  | AE119: =IF(FIL!AH8="","",FIL!AH8) ->  | AF119: =IF(FIL!AI8="","",FIL!AI8) ->  | AG119: =IF(FIL!AJ8="","",FIL!AJ8) ->  | AH119: =IF(FIL!AK8="","",FIL!AK8) ->  | AI119: =IF(FIL!AL8="","",FIL!AL8) ->  | AJ119: =IF(FIL!AM8="","",FIL!AM8) ->  | AK119: =IF(FIL!AN8="","",FIL!AN8) ->  | AL119: =IF(FIL!AO8="","",FIL!AO8) ->  | AM119: =IF(FIL!AP8="","",FIL!AP8) -> 
D120: Criterio Evaluación 3.2 | E120: =IF(FIL!H9="","",FIL!H9) ->  | F120: =IF(FIL!I9="","",FIL!I9) ->  | G120: =IF(FIL!J9="","",FIL!J9) ->  | H120: =IF(FIL!K9="","",FIL!K9) ->  | I120: =IF(FIL!L9="","",FIL!L9) ->  | J120: =IF(FIL!M9="","",FIL!M9) ->  | K120: =IF(FIL!N9="","",FIL!N9) ->  | L120: =IF(FIL!O9="","",FIL!O9) ->  | M120: =IF(FIL!P9="","",FIL!P9) ->  | N120: =IF(FIL!Q9="","",FIL!Q9) ->  | O120: =IF(FIL!R9="","",FIL!R9) ->  | P120: =IF(FIL!S9="","",FIL!S9) ->  | Q120: =IF(FIL!T9="","",FIL!T9) ->  | R120: =IF(FIL!U9="","",FIL!U9) ->  | S120: =IF(FIL!V9="","",FIL!V9) ->  | T120: =IF(FIL!W9="","",FIL!W9) ->  | U120: =IF(FIL!X9="","",FIL!X9) ->  | V120: =IF(FIL!Y9="","",FIL!Y9) ->  | W120: =IF(FIL!Z9="","",FIL!Z9) ->  | X120: =IF(FIL!AA9="","",FIL!AA9) ->  | Y120: =IF(FIL!AB9="","",FIL!AB9) ->  | Z120: =IF(FIL!AC9="","",FIL!AC9) ->  | AA120: =IF(FIL!AD9="","",FIL!AD9) ->  | AB120: =IF(FIL!AE9="","",FIL!AE9) ->  | AC120: =IF(FIL!AF9="","",FIL!AF9) ->  | AD120: =IF(FIL!AG9="","",FIL!AG9) ->  | AE120: =IF(FIL!AH9="","",FIL!AH9) ->  | AF120: =IF(FIL!AI9="","",FIL!AI9) ->  | AG120: =IF(FIL!AJ9="","",FIL!AJ9) ->  | AH120: =IF(FIL!AK9="","",FIL!AK9) ->  | AI120: =IF(FIL!AL9="","",FIL!AL9) ->  | AJ120: =IF(FIL!AM9="","",FIL!AM9) ->  | AK120: =IF(FIL!AN9="","",FIL!AN9) ->  | AL120: =IF(FIL!AO9="","",FIL!AO9) ->  | AM120: =IF(FIL!AP9="","",FIL!AP9) -> 
D121: Criterio Evaluación 3.3 | E121: =IF(FIL!H10="","",FIL!H10) ->  | F121: =IF(FIL!I10="","",FIL!I10) ->  | G121: =IF(FIL!J10="","",FIL!J10) ->  | H121: =IF(FIL!K10="","",FIL!K10) ->  | I121: =IF(FIL!L10="","",FIL!L10) ->  | J121: =IF(FIL!M10="","",FIL!M10) ->  | K121: =IF(FIL!N10="","",FIL!N10) ->  | L121: =IF(FIL!O10="","",FIL!O10) ->  | M121: =IF(FIL!P10="","",FIL!P10) ->  | N121: =IF(FIL!Q10="","",FIL!Q10) ->  | O121: =IF(FIL!R10="","",FIL!R10) ->  | P121: =IF(FIL!S10="","",FIL!S10) ->  | Q121: =IF(FIL!T10="","",FIL!T10) ->  | R121: =IF(FIL!U10="","",FIL!U10) ->  | S121: =IF(FIL!V10="","",FIL!V10) ->  | T121: =IF(FIL!W10="","",FIL!W10) ->  | U121: =IF(FIL!X10="","",FIL!X10) ->  | V121: =IF(FIL!Y10="","",FIL!Y10) ->  | W121: =IF(FIL!Z10="","",FIL!Z10) ->  | X121: =IF(FIL!AA10="","",FIL!AA10) ->  | Y121: =IF(FIL!AB10="","",FIL!AB10) ->  | Z121: =IF(FIL!AC10="","",FIL!AC10) ->  | AA121: =IF(FIL!AD10="","",FIL!AD10) ->  | AB121: =IF(FIL!AE10="","",FIL!AE10) ->  | AC121: =IF(FIL!AF10="","",FIL!AF10) ->  | AD121: =IF(FIL!AG10="","",FIL!AG10) ->  | AE121: =IF(FIL!AH10="","",FIL!AH10) ->  | AF121: =IF(FIL!AI10="","",FIL!AI10) ->  | AG121: =IF(FIL!AJ10="","",FIL!AJ10) ->  | AH121: =IF(FIL!AK10="","",FIL!AK10) ->  | AI121: =IF(FIL!AL10="","",FIL!AL10) ->  | AJ121: =IF(FIL!AM10="","",FIL!AM10) ->  | AK121: =IF(FIL!AN10="","",FIL!AN10) ->  | AL121: =IF(FIL!AO10="","",FIL!AO10) ->  | AM121: =IF(FIL!AP10="","",FIL!AP10) -> 
C122: Comp. Esp. 4 | D122: Criterio Evaluación 4.1 | E122: =IF(FIL!H11="","",FIL!H11) ->  | F122: =IF(FIL!I11="","",FIL!I11) ->  | G122: =IF(FIL!J11="","",FIL!J11) ->  | H122: =IF(FIL!K11="","",FIL!K11) ->  | I122: =IF(FIL!L11="","",FIL!L11) ->  | J122: =IF(FIL!M11="","",FIL!M11) ->  | K122: =IF(FIL!N11="","",FIL!N11) ->  | L122: =IF(FIL!O11="","",FIL!O11) ->  | M122: =IF(FIL!P11="","",FIL!P11) ->  | N122: =IF(FIL!Q11="","",FIL!Q11) ->  | O122: =IF(FIL!R11="","",FIL!R11) ->  | P122: =IF(FIL!S11="","",FIL!S11) ->  | Q122: =IF(FIL!T11="","",FIL!T11) ->  | R122: =IF(FIL!U11="","",FIL!U11) ->  | S122: =IF(FIL!V11="","",FIL!V11) ->  | T122: =IF(FIL!W11="","",FIL!W11) ->  | U122: =IF(FIL!X11="","",FIL!X11) ->  | V122: =IF(FIL!Y11="","",FIL!Y11) ->  | W122: =IF(FIL!Z11="","",FIL!Z11) ->  | X122: =IF(FIL!AA11="","",FIL!AA11) ->  | Y122: =IF(FIL!AB11="","",FIL!AB11) ->  | Z122: =IF(FIL!AC11="","",FIL!AC11) ->  | AA122: =IF(FIL!AD11="","",FIL!AD11) ->  | AB122: =IF(FIL!AE11="","",FIL!AE11) ->  | AC122: =IF(FIL!AF11="","",FIL!AF11) ->  | AD122: =IF(FIL!AG11="","",FIL!AG11) ->  | AE122: =IF(FIL!AH11="","",FIL!AH11) ->  | AF122: =IF(FIL!AI11="","",FIL!AI11) ->  | AG122: =IF(FIL!AJ11="","",FIL!AJ11) ->  | AH122: =IF(FIL!AK11="","",FIL!AK11) ->  | AI122: =IF(FIL!AL11="","",FIL!AL11) ->  | AJ122: =IF(FIL!AM11="","",FIL!AM11) ->  | AK122: =IF(FIL!AN11="","",FIL!AN11) ->  | AL122: =IF(FIL!AO11="","",FIL!AO11) ->  | AM122: =IF(FIL!AP11="","",FIL!AP11) -> 
C123: Comp. Esp. 5 | D123: Criterio Evaluación 5.1 | E123: =IF(FIL!H12="","",FIL!H12) ->  | F123: =IF(FIL!I12="","",FIL!I12) ->  | G123: =IF(FIL!J12="","",FIL!J12) ->  | H123: =IF(FIL!K12="","",FIL!K12) ->  | I123: =IF(FIL!L12="","",FIL!L12) ->  | J123: =IF(FIL!M12="","",FIL!M12) ->  | K123: =IF(FIL!N12="","",FIL!N12) ->  | L123: =IF(FIL!O12="","",FIL!O12) ->  | M123: =IF(FIL!P12="","",FIL!P12) ->  | N123: =IF(FIL!Q12="","",FIL!Q12) ->  | O123: =IF(FIL!R12="","",FIL!R12) ->  | P123: =IF(FIL!S12="","",FIL!S12) ->  | Q123: =IF(FIL!T12="","",FIL!T12) ->  | R123: =IF(FIL!U12="","",FIL!U12) ->  | S123: =IF(FIL!V12="","",FIL!V12) ->  | T123: =IF(FIL!W12="","",FIL!W12) ->  | U123: =IF(FIL!X12="","",FIL!X12) ->  | V123: =IF(FIL!Y12="","",FIL!Y12) ->  | W123: =IF(FIL!Z12="","",FIL!Z12) ->  | X123: =IF(FIL!AA12="","",FIL!AA12) ->  | Y123: =IF(FIL!AB12="","",FIL!AB12) ->  | Z123: =IF(FIL!AC12="","",FIL!AC12) ->  | AA123: =IF(FIL!AD12="","",FIL!AD12) ->  | AB123: =IF(FIL!AE12="","",FIL!AE12) ->  | AC123: =IF(FIL!AF12="","",FIL!AF12) ->  | AD123: =IF(FIL!AG12="","",FIL!AG12) ->  | AE123: =IF(FIL!AH12="","",FIL!AH12) ->  | AF123: =IF(FIL!AI12="","",FIL!AI12) ->  | AG123: =IF(FIL!AJ12="","",FIL!AJ12) ->  | AH123: =IF(FIL!AK12="","",FIL!AK12) ->  | AI123: =IF(FIL!AL12="","",FIL!AL12) ->  | AJ123: =IF(FIL!AM12="","",FIL!AM12) ->  | AK123: =IF(FIL!AN12="","",FIL!AN12) ->  | AL123: =IF(FIL!AO12="","",FIL!AO12) ->  | AM123: =IF(FIL!AP12="","",FIL!AP12) -> 
D124: Criterio Evaluación 5.2 | E124: =IF(FIL!H13="","",FIL!H13) ->  | F124: =IF(FIL!I13="","",FIL!I13) ->  | G124: =IF(FIL!J13="","",FIL!J13) ->  | H124: =IF(FIL!K13="","",FIL!K13) ->  | I124: =IF(FIL!L13="","",FIL!L13) ->  | J124: =IF(FIL!M13="","",FIL!M13) ->  | K124: =IF(FIL!N13="","",FIL!N13) ->  | L124: =IF(FIL!O13="","",FIL!O13) ->  | M124: =IF(FIL!P13="","",FIL!P13) ->  | N124: =IF(FIL!Q13="","",FIL!Q13) ->  | O124: =IF(FIL!R13="","",FIL!R13) ->  | P124: =IF(FIL!S13="","",FIL!S13) ->  | Q124: =IF(FIL!T13="","",FIL!T13) ->  | R124: =IF(FIL!U13="","",FIL!U13) ->  | S124: =IF(FIL!V13="","",FIL!V13) ->  | T124: =IF(FIL!W13="","",FIL!W13) ->  | U124: =IF(FIL!X13="","",FIL!X13) ->  | V124: =IF(FIL!Y13="","",FIL!Y13) ->  | W124: =IF(FIL!Z13="","",FIL!Z13) ->  | X124: =IF(FIL!AA13="","",FIL!AA13) ->  | Y124: =IF(FIL!AB13="","",FIL!AB13) ->  | Z124: =IF(FIL!AC13="","",FIL!AC13) ->  | AA124: =IF(FIL!AD13="","",FIL!AD13) ->  | AB124: =IF(FIL!AE13="","",FIL!AE13) ->  | AC124: =IF(FIL!AF13="","",FIL!AF13) ->  | AD124: =IF(FIL!AG13="","",FIL!AG13) ->  | AE124: =IF(FIL!AH13="","",FIL!AH13) ->  | AF124: =IF(FIL!AI13="","",FIL!AI13) ->  | AG124: =IF(FIL!AJ13="","",FIL!AJ13) ->  | AH124: =IF(FIL!AK13="","",FIL!AK13) ->  | AI124: =IF(FIL!AL13="","",FIL!AL13) ->  | AJ124: =IF(FIL!AM13="","",FIL!AM13) ->  | AK124: =IF(FIL!AN13="","",FIL!AN13) ->  | AL124: =IF(FIL!AO13="","",FIL!AO13) ->  | AM124: =IF(FIL!AP13="","",FIL!AP13) -> 
C125: Comp. Esp. 6 | D125: Criterio Evaluación 6.1 | E125: =IF(FIL!H14="","",FIL!H14) ->  | F125: =IF(FIL!I14="","",FIL!I14) ->  | G125: =IF(FIL!J14="","",FIL!J14) ->  | H125: =IF(FIL!K14="","",FIL!K14) ->  | I125: =IF(FIL!L14="","",FIL!L14) ->  | J125: =IF(FIL!M14="","",FIL!M14) ->  | K125: =IF(FIL!N14="","",FIL!N14) ->  | L125: =IF(FIL!O14="","",FIL!O14) ->  | M125: =IF(FIL!P14="","",FIL!P14) ->  | N125: =IF(FIL!Q14="","",FIL!Q14) ->  | O125: =IF(FIL!R14="","",FIL!R14) ->  | P125: =IF(FIL!S14="","",FIL!S14) ->  | Q125: =IF(FIL!T14="","",FIL!T14) ->  | R125: =IF(FIL!U14="","",FIL!U14) ->  | S125: =IF(FIL!V14="","",FIL!V14) ->  | T125: =IF(FIL!W14="","",FIL!W14) ->  | U125: =IF(FIL!X14="","",FIL!X14) ->  | V125: =IF(FIL!Y14="","",FIL!Y14) ->  | W125: =IF(FIL!Z14="","",FIL!Z14) ->  | X125: =IF(FIL!AA14="","",FIL!AA14) ->  | Y125: =IF(FIL!AB14="","",FIL!AB14) ->  | Z125: =IF(FIL!AC14="","",FIL!AC14) ->  | AA125: =IF(FIL!AD14="","",FIL!AD14) ->  | AB125: =IF(FIL!AE14="","",FIL!AE14) ->  | AC125: =IF(FIL!AF14="","",FIL!AF14) ->  | AD125: =IF(FIL!AG14="","",FIL!AG14) ->  | AE125: =IF(FIL!AH14="","",FIL!AH14) ->  | AF125: =IF(FIL!AI14="","",FIL!AI14) ->  | AG125: =IF(FIL!AJ14="","",FIL!AJ14) ->  | AH125: =IF(FIL!AK14="","",FIL!AK14) ->  | AI125: =IF(FIL!AL14="","",FIL!AL14) ->  | AJ125: =IF(FIL!AM14="","",FIL!AM14) ->  | AK125: =IF(FIL!AN14="","",FIL!AN14) ->  | AL125: =IF(FIL!AO14="","",FIL!AO14) ->  | AM125: =IF(FIL!AP14="","",FIL!AP14) -> 
D126: Criterio Evaluación 6.2 | E126: =IF(FIL!H15="","",FIL!H15) ->  | F126: =IF(FIL!I15="","",FIL!I15) ->  | G126: =IF(FIL!J15="","",FIL!J15) ->  | H126: =IF(FIL!K15="","",FIL!K15) ->  | I126: =IF(FIL!L15="","",FIL!L15) ->  | J126: =IF(FIL!M15="","",FIL!M15) ->  | K126: =IF(FIL!N15="","",FIL!N15) ->  | L126: =IF(FIL!O15="","",FIL!O15) ->  | M126: =IF(FIL!P15="","",FIL!P15) ->  | N126: =IF(FIL!Q15="","",FIL!Q15) ->  | O126: =IF(FIL!R15="","",FIL!R15) ->  | P126: =IF(FIL!S15="","",FIL!S15) ->  | Q126: =IF(FIL!T15="","",FIL!T15) ->  | R126: =IF(FIL!U15="","",FIL!U15) ->  | S126: =IF(FIL!V15="","",FIL!V15) ->  | T126: =IF(FIL!W15="","",FIL!W15) ->  | U126: =IF(FIL!X15="","",FIL!X15) ->  | V126: =IF(FIL!Y15="","",FIL!Y15) ->  | W126: =IF(FIL!Z15="","",FIL!Z15) ->  | X126: =IF(FIL!AA15="","",FIL!AA15) ->  | Y126: =IF(FIL!AB15="","",FIL!AB15) ->  | Z126: =IF(FIL!AC15="","",FIL!AC15) ->  | AA126: =IF(FIL!AD15="","",FIL!AD15) ->  | AB126: =IF(FIL!AE15="","",FIL!AE15) ->  | AC126: =IF(FIL!AF15="","",FIL!AF15) ->  | AD126: =IF(FIL!AG15="","",FIL!AG15) ->  | AE126: =IF(FIL!AH15="","",FIL!AH15) ->  | AF126: =IF(FIL!AI15="","",FIL!AI15) ->  | AG126: =IF(FIL!AJ15="","",FIL!AJ15) ->  | AH126: =IF(FIL!AK15="","",FIL!AK15) ->  | AI126: =IF(FIL!AL15="","",FIL!AL15) ->  | AJ126: =IF(FIL!AM15="","",FIL!AM15) ->  | AK126: =IF(FIL!AN15="","",FIL!AN15) ->  | AL126: =IF(FIL!AO15="","",FIL!AO15) ->  | AM126: =IF(FIL!AP15="","",FIL!AP15) -> 
C127: Comp. Esp. 7 | D127: Criterio Evaluación 7.1 | E127: =IF(FIL!H16="","",FIL!H16) ->  | F127: =IF(FIL!I16="","",FIL!I16) ->  | G127: =IF(FIL!J16="","",FIL!J16) ->  | H127: =IF(FIL!K16="","",FIL!K16) ->  | I127: =IF(FIL!L16="","",FIL!L16) ->  | J127: =IF(FIL!M16="","",FIL!M16) ->  | K127: =IF(FIL!N16="","",FIL!N16) ->  | L127: =IF(FIL!O16="","",FIL!O16) ->  | M127: =IF(FIL!P16="","",FIL!P16) ->  | N127: =IF(FIL!Q16="","",FIL!Q16) ->  | O127: =IF(FIL!R16="","",FIL!R16) ->  | P127: =IF(FIL!S16="","",FIL!S16) ->  | Q127: =IF(FIL!T16="","",FIL!T16) ->  | R127: =IF(FIL!U16="","",FIL!U16) ->  | S127: =IF(FIL!V16="","",FIL!V16) ->  | T127: =IF(FIL!W16="","",FIL!W16) ->  | U127: =IF(FIL!X16="","",FIL!X16) ->  | V127: =IF(FIL!Y16="","",FIL!Y16) ->  | W127: =IF(FIL!Z16="","",FIL!Z16) ->  | X127: =IF(FIL!AA16="","",FIL!AA16) ->  | Y127: =IF(FIL!AB16="","",FIL!AB16) ->  | Z127: =IF(FIL!AC16="","",FIL!AC16) ->  | AA127: =IF(FIL!AD16="","",FIL!AD16) ->  | AB127: =IF(FIL!AE16="","",FIL!AE16) ->  | AC127: =IF(FIL!AF16="","",FIL!AF16) ->  | AD127: =IF(FIL!AG16="","",FIL!AG16) ->  | AE127: =IF(FIL!AH16="","",FIL!AH16) ->  | AF127: =IF(FIL!AI16="","",FIL!AI16) ->  | AG127: =IF(FIL!AJ16="","",FIL!AJ16) ->  | AH127: =IF(FIL!AK16="","",FIL!AK16) ->  | AI127: =IF(FIL!AL16="","",FIL!AL16) ->  | AJ127: =IF(FIL!AM16="","",FIL!AM16) ->  | AK127: =IF(FIL!AN16="","",FIL!AN16) ->  | AL127: =IF(FIL!AO16="","",FIL!AO16) ->  | AM127: =IF(FIL!AP16="","",FIL!AP16) -> 
C128: Comp. Esp. 8 | D128: Criterio Evaluación 8.1 | E128: =IF(FIL!H17="","",FIL!H17) ->  | F128: =IF(FIL!I17="","",FIL!I17) ->  | G128: =IF(FIL!J17="","",FIL!J17) ->  | H128: =IF(FIL!K17="","",FIL!K17) ->  | I128: =IF(FIL!L17="","",FIL!L17) ->  | J128: =IF(FIL!M17="","",FIL!M17) ->  | K128: =IF(FIL!N17="","",FIL!N17) ->  | L128: =IF(FIL!O17="","",FIL!O17) ->  | M128: =IF(FIL!P17="","",FIL!P17) ->  | N128: =IF(FIL!Q17="","",FIL!Q17) ->  | O128: =IF(FIL!R17="","",FIL!R17) ->  | P128: =IF(FIL!S17="","",FIL!S17) ->  | Q128: =IF(FIL!T17="","",FIL!T17) ->  | R128: =IF(FIL!U17="","",FIL!U17) ->  | S128: =IF(FIL!V17="","",FIL!V17) ->  | T128: =IF(FIL!W17="","",FIL!W17) ->  | U128: =IF(FIL!X17="","",FIL!X17) ->  | V128: =IF(FIL!Y17="","",FIL!Y17) ->  | W128: =IF(FIL!Z17="","",FIL!Z17) ->  | X128: =IF(FIL!AA17="","",FIL!AA17) ->  | Y128: =IF(FIL!AB17="","",FIL!AB17) ->  | Z128: =IF(FIL!AC17="","",FIL!AC17) ->  | AA128: =IF(FIL!AD17="","",FIL!AD17) ->  | AB128: =IF(FIL!AE17="","",FIL!AE17) ->  | AC128: =IF(FIL!AF17="","",FIL!AF17) ->  | AD128: =IF(FIL!AG17="","",FIL!AG17) ->  | AE128: =IF(FIL!AH17="","",FIL!AH17) ->  | AF128: =IF(FIL!AI17="","",FIL!AI17) ->  | AG128: =IF(FIL!AJ17="","",FIL!AJ17) ->  | AH128: =IF(FIL!AK17="","",FIL!AK17) ->  | AI128: =IF(FIL!AL17="","",FIL!AL17) ->  | AJ128: =IF(FIL!AM17="","",FIL!AM17) ->  | AK128: =IF(FIL!AN17="","",FIL!AN17) ->  | AL128: =IF(FIL!AO17="","",FIL!AO17) ->  | AM128: =IF(FIL!AP17="","",FIL!AP17) -> 
C129: Comp. Esp. 9 | D129: Criterio Evaluación 9.1 | E129: =IF(FIL!H18="","",FIL!H18) ->  | F129: =IF(FIL!I18="","",FIL!I18) ->  | G129: =IF(FIL!J18="","",FIL!J18) ->  | H129: =IF(FIL!K18="","",FIL!K18) ->  | I129: =IF(FIL!L18="","",FIL!L18) ->  | J129: =IF(FIL!M18="","",FIL!M18) ->  | K129: =IF(FIL!N18="","",FIL!N18) ->  | L129: =IF(FIL!O18="","",FIL!O18) ->  | M129: =IF(FIL!P18="","",FIL!P18) ->  | N129: =IF(FIL!Q18="","",FIL!Q18) ->  | O129: =IF(FIL!R18="","",FIL!R18) ->  | P129: =IF(FIL!S18="","",FIL!S18) ->  | Q129: =IF(FIL!T18="","",FIL!T18) ->  | R129: =IF(FIL!U18="","",FIL!U18) ->  | S129: =IF(FIL!V18="","",FIL!V18) ->  | T129: =IF(FIL!W18="","",FIL!W18) ->  | U129: =IF(FIL!X18="","",FIL!X18) ->  | V129: =IF(FIL!Y18="","",FIL!Y18) ->  | W129: =IF(FIL!Z18="","",FIL!Z18) ->  | X129: =IF(FIL!AA18="","",FIL!AA18) ->  | Y129: =IF(FIL!AB18="","",FIL!AB18) ->  | Z129: =IF(FIL!AC18="","",FIL!AC18) ->  | AA129: =IF(FIL!AD18="","",FIL!AD18) ->  | AB129: =IF(FIL!AE18="","",FIL!AE18) ->  | AC129: =IF(FIL!AF18="","",FIL!AF18) ->  | AD129: =IF(FIL!AG18="","",FIL!AG18) ->  | AE129: =IF(FIL!AH18="","",FIL!AH18) ->  | AF129: =IF(FIL!AI18="","",FIL!AI18) ->  | AG129: =IF(FIL!AJ18="","",FIL!AJ18) ->  | AH129: =IF(FIL!AK18="","",FIL!AK18) ->  | AI129: =IF(FIL!AL18="","",FIL!AL18) ->  | AJ129: =IF(FIL!AM18="","",FIL!AM18) ->  | AK129: =IF(FIL!AN18="","",FIL!AN18) ->  | AL129: =IF(FIL!AO18="","",FIL!AO18) ->  | AM129: =IF(FIL!AP18="","",FIL!AP18) -> 
C130: Comp. Esp. 10 | D130: Criterio Evaluación 10.1 | E130: =IF(FIL!H19="","",FIL!H19) ->  | F130: =IF(FIL!I19="","",FIL!I19) ->  | G130: =IF(FIL!J19="","",FIL!J19) ->  | H130: =IF(FIL!K19="","",FIL!K19) ->  | I130: =IF(FIL!L19="","",FIL!L19) ->  | J130: =IF(FIL!M19="","",FIL!M19) ->  | K130: =IF(FIL!N19="","",FIL!N19) ->  | L130: =IF(FIL!O19="","",FIL!O19) ->  | M130: =IF(FIL!P19="","",FIL!P19) ->  | N130: =IF(FIL!Q19="","",FIL!Q19) ->  | O130: =IF(FIL!R19="","",FIL!R19) ->  | P130: =IF(FIL!S19="","",FIL!S19) ->  | Q130: =IF(FIL!T19="","",FIL!T19) ->  | R130: =IF(FIL!U19="","",FIL!U19) ->  | S130: =IF(FIL!V19="","",FIL!V19) ->  | T130: =IF(FIL!W19="","",FIL!W19) ->  | U130: =IF(FIL!X19="","",FIL!X19) ->  | V130: =IF(FIL!Y19="","",FIL!Y19) ->  | W130: =IF(FIL!Z19="","",FIL!Z19) ->  | X130: =IF(FIL!AA19="","",FIL!AA19) ->  | Y130: =IF(FIL!AB19="","",FIL!AB19) ->  | Z130: =IF(FIL!AC19="","",FIL!AC19) ->  | AA130: =IF(FIL!AD19="","",FIL!AD19) ->  | AB130: =IF(FIL!AE19="","",FIL!AE19) ->  | AC130: =IF(FIL!AF19="","",FIL!AF19) ->  | AD130: =IF(FIL!AG19="","",FIL!AG19) ->  | AE130: =IF(FIL!AH19="","",FIL!AH19) ->  | AF130: =IF(FIL!AI19="","",FIL!AI19) ->  | AG130: =IF(FIL!AJ19="","",FIL!AJ19) ->  | AH130: =IF(FIL!AK19="","",FIL!AK19) ->  | AI130: =IF(FIL!AL19="","",FIL!AL19) ->  | AJ130: =IF(FIL!AM19="","",FIL!AM19) ->  | AK130: =IF(FIL!AN19="","",FIL!AN19) ->  | AL130: =IF(FIL!AO19="","",FIL!AO19) ->  | AM130: =IF(FIL!AP19="","",FIL!AP19) -> 
D131: Criterio Evaluación 10.2 | E131: =IF(FIL!H20="","",FIL!H20) ->  | F131: =IF(FIL!I20="","",FIL!I20) ->  | G131: =IF(FIL!J20="","",FIL!J20) ->  | H131: =IF(FIL!K20="","",FIL!K20) ->  | I131: =IF(FIL!L20="","",FIL!L20) ->  | J131: =IF(FIL!M20="","",FIL!M20) ->  | K131: =IF(FIL!N20="","",FIL!N20) ->  | L131: =IF(FIL!O20="","",FIL!O20) ->  | M131: =IF(FIL!P20="","",FIL!P20) ->  | N131: =IF(FIL!Q20="","",FIL!Q20) ->  | O131: =IF(FIL!R20="","",FIL!R20) ->  | P131: =IF(FIL!S20="","",FIL!S20) ->  | Q131: =IF(FIL!T20="","",FIL!T20) ->  | R131: =IF(FIL!U20="","",FIL!U20) ->  | S131: =IF(FIL!V20="","",FIL!V20) ->  | T131: =IF(FIL!W20="","",FIL!W20) ->  | U131: =IF(FIL!X20="","",FIL!X20) ->  | V131: =IF(FIL!Y20="","",FIL!Y20) ->  | W131: =IF(FIL!Z20="","",FIL!Z20) ->  | X131: =IF(FIL!AA20="","",FIL!AA20) ->  | Y131: =IF(FIL!AB20="","",FIL!AB20) ->  | Z131: =IF(FIL!AC20="","",FIL!AC20) ->  | AA131: =IF(FIL!AD20="","",FIL!AD20) ->  | AB131: =IF(FIL!AE20="","",FIL!AE20) ->  | AC131: =IF(FIL!AF20="","",FIL!AF20) ->  | AD131: =IF(FIL!AG20="","",FIL!AG20) ->  | AE131: =IF(FIL!AH20="","",FIL!AH20) ->  | AF131: =IF(FIL!AI20="","",FIL!AI20) ->  | AG131: =IF(FIL!AJ20="","",FIL!AJ20) ->  | AH131: =IF(FIL!AK20="","",FIL!AK20) ->  | AI131: =IF(FIL!AL20="","",FIL!AL20) ->  | AJ131: =IF(FIL!AM20="","",FIL!AM20) ->  | AK131: =IF(FIL!AN20="","",FIL!AN20) ->  | AL131: =IF(FIL!AO20="","",FIL!AO20) ->  | AM131: =IF(FIL!AP20="","",FIL!AP20) -> 
B132: Lengua Castellana y Literatura | C132: Comp. Esp. 1 | D132: Criterio Evaluación 1.1 | E132: =IF(LCL!H4="","",LCL!H4) ->  | F132: =IF(LCL!I4="","",LCL!I4) ->  | G132: =IF(LCL!J4="","",LCL!J4) ->  | H132: =IF(LCL!K4="","",LCL!K4) ->  | I132: =IF(LCL!L4="","",LCL!L4) ->  | J132: =IF(LCL!M4="","",LCL!M4) ->  | K132: =IF(LCL!N4="","",LCL!N4) ->  | L132: =IF(LCL!O4="","",LCL!O4) ->  | M132: =IF(LCL!P4="","",LCL!P4) ->  | N132: =IF(LCL!Q4="","",LCL!Q4) ->  | O132: =IF(LCL!R4="","",LCL!R4) ->  | P132: =IF(LCL!S4="","",LCL!S4) ->  | Q132: =IF(LCL!T4="","",LCL!T4) ->  | R132: =IF(LCL!U4="","",LCL!U4) ->  | S132: =IF(LCL!V4="","",LCL!V4) ->  | T132: =IF(LCL!W4="","",LCL!W4) ->  | U132: =IF(LCL!X4="","",LCL!X4) ->  | V132: =IF(LCL!Y4="","",LCL!Y4) ->  | W132: =IF(LCL!Z4="","",LCL!Z4) ->  | X132: =IF(LCL!AA4="","",LCL!AA4) ->  | Y132: =IF(LCL!AB4="","",LCL!AB4) ->  | Z132: =IF(LCL!AC4="","",LCL!AC4) ->  | AA132: =IF(LCL!AD4="","",LCL!AD4) ->  | AB132: =IF(LCL!AE4="","",LCL!AE4) ->  | AC132: =IF(LCL!AF4="","",LCL!AF4) ->  | AD132: =IF(LCL!AG4="","",LCL!AG4) ->  | AE132: =IF(LCL!AH4="","",LCL!AH4) ->  | AF132: =IF(LCL!AI4="","",LCL!AI4) ->  | AG132: =IF(LCL!AJ4="","",LCL!AJ4) ->  | AH132: =IF(LCL!AK4="","",LCL!AK4) ->  | AI132: =IF(LCL!AL4="","",LCL!AL4) ->  | AJ132: =IF(LCL!AM4="","",LCL!AM4) ->  | AK132: =IF(LCL!AN4="","",LCL!AN4) ->  | AL132: =IF(LCL!AO4="","",LCL!AO4) ->  | AM132: =IF(LCL!AP4="","",LCL!AP4) -> 
D133: Criterio Evaluación 1.2 | E133: =IF(LCL!H5="","",LCL!H5) ->  | F133: =IF(LCL!I5="","",LCL!I5) ->  | G133: =IF(LCL!J5="","",LCL!J5) ->  | H133: =IF(LCL!K5="","",LCL!K5) ->  | I133: =IF(LCL!L5="","",LCL!L5) ->  | J133: =IF(LCL!M5="","",LCL!M5) ->  | K133: =IF(LCL!N5="","",LCL!N5) ->  | L133: =IF(LCL!O5="","",LCL!O5) ->  | M133: =IF(LCL!P5="","",LCL!P5) ->  | N133: =IF(LCL!Q5="","",LCL!Q5) ->  | O133: =IF(LCL!R5="","",LCL!R5) ->  | P133: =IF(LCL!S5="","",LCL!S5) ->  | Q133: =IF(LCL!T5="","",LCL!T5) ->  | R133: =IF(LCL!U5="","",LCL!U5) ->  | S133: =IF(LCL!V5="","",LCL!V5) ->  | T133: =IF(LCL!W5="","",LCL!W5) ->  | U133: =IF(LCL!X5="","",LCL!X5) ->  | V133: =IF(LCL!Y5="","",LCL!Y5) ->  | W133: =IF(LCL!Z5="","",LCL!Z5) ->  | X133: =IF(LCL!AA5="","",LCL!AA5) ->  | Y133: =IF(LCL!AB5="","",LCL!AB5) ->  | Z133: =IF(LCL!AC5="","",LCL!AC5) ->  | AA133: =IF(LCL!AD5="","",LCL!AD5) ->  | AB133: =IF(LCL!AE5="","",LCL!AE5) ->  | AC133: =IF(LCL!AF5="","",LCL!AF5) ->  | AD133: =IF(LCL!AG5="","",LCL!AG5) ->  | AE133: =IF(LCL!AH5="","",LCL!AH5) ->  | AF133: =IF(LCL!AI5="","",LCL!AI5) ->  | AG133: =IF(LCL!AJ5="","",LCL!AJ5) ->  | AH133: =IF(LCL!AK5="","",LCL!AK5) ->  | AI133: =IF(LCL!AL5="","",LCL!AL5) ->  | AJ133: =IF(LCL!AM5="","",LCL!AM5) ->  | AK133: =IF(LCL!AN5="","",LCL!AN5) ->  | AL133: =IF(LCL!AO5="","",LCL!AO5) ->  | AM133: =IF(LCL!AP5="","",LCL!AP5) -> 
D134: Criterio Evaluación 1.3 | E134: =IF(LCL!H6="","",LCL!H6) ->  | F134: =IF(LCL!I6="","",LCL!I6) ->  | G134: =IF(LCL!J6="","",LCL!J6) ->  | H134: =IF(LCL!K6="","",LCL!K6) ->  | I134: =IF(LCL!L6="","",LCL!L6) ->  | J134: =IF(LCL!M6="","",LCL!M6) ->  | K134: =IF(LCL!N6="","",LCL!N6) ->  | L134: =IF(LCL!O6="","",LCL!O6) ->  | M134: =IF(LCL!P6="","",LCL!P6) ->  | N134: =IF(LCL!Q6="","",LCL!Q6) ->  | O134: =IF(LCL!R6="","",LCL!R6) ->  | P134: =IF(LCL!S6="","",LCL!S6) ->  | Q134: =IF(LCL!T6="","",LCL!T6) ->  | R134: =IF(LCL!U6="","",LCL!U6) ->  | S134: =IF(LCL!V6="","",LCL!V6) ->  | T134: =IF(LCL!W6="","",LCL!W6) ->  | U134: =IF(LCL!X6="","",LCL!X6) ->  | V134: =IF(LCL!Y6="","",LCL!Y6) ->  | W134: =IF(LCL!Z6="","",LCL!Z6) ->  | X134: =IF(LCL!AA6="","",LCL!AA6) ->  | Y134: =IF(LCL!AB6="","",LCL!AB6) ->  | Z134: =IF(LCL!AC6="","",LCL!AC6) ->  | AA134: =IF(LCL!AD6="","",LCL!AD6) ->  | AB134: =IF(LCL!AE6="","",LCL!AE6) ->  | AC134: =IF(LCL!AF6="","",LCL!AF6) ->  | AD134: =IF(LCL!AG6="","",LCL!AG6) ->  | AE134: =IF(LCL!AH6="","",LCL!AH6) ->  | AF134: =IF(LCL!AI6="","",LCL!AI6) ->  | AG134: =IF(LCL!AJ6="","",LCL!AJ6) ->  | AH134: =IF(LCL!AK6="","",LCL!AK6) ->  | AI134: =IF(LCL!AL6="","",LCL!AL6) ->  | AJ134: =IF(LCL!AM6="","",LCL!AM6) ->  | AK134: =IF(LCL!AN6="","",LCL!AN6) ->  | AL134: =IF(LCL!AO6="","",LCL!AO6) ->  | AM134: =IF(LCL!AP6="","",LCL!AP6) -> 
D135: Criterio Evaluación 1.4 | E135: =IF(LCL!H7="","",LCL!H7) ->  | F135: =IF(LCL!I7="","",LCL!I7) ->  | G135: =IF(LCL!J7="","",LCL!J7) ->  | H135: =IF(LCL!K7="","",LCL!K7) ->  | I135: =IF(LCL!L7="","",LCL!L7) ->  | J135: =IF(LCL!M7="","",LCL!M7) ->  | K135: =IF(LCL!N7="","",LCL!N7) ->  | L135: =IF(LCL!O7="","",LCL!O7) ->  | M135: =IF(LCL!P7="","",LCL!P7) ->  | N135: =IF(LCL!Q7="","",LCL!Q7) ->  | O135: =IF(LCL!R7="","",LCL!R7) ->  | P135: =IF(LCL!S7="","",LCL!S7) ->  | Q135: =IF(LCL!T7="","",LCL!T7) ->  | R135: =IF(LCL!U7="","",LCL!U7) ->  | S135: =IF(LCL!V7="","",LCL!V7) ->  | T135: =IF(LCL!W7="","",LCL!W7) ->  | U135: =IF(LCL!X7="","",LCL!X7) ->  | V135: =IF(LCL!Y7="","",LCL!Y7) ->  | W135: =IF(LCL!Z7="","",LCL!Z7) ->  | X135: =IF(LCL!AA7="","",LCL!AA7) ->  | Y135: =IF(LCL!AB7="","",LCL!AB7) ->  | Z135: =IF(LCL!AC7="","",LCL!AC7) ->  | AA135: =IF(LCL!AD7="","",LCL!AD7) ->  | AB135: =IF(LCL!AE7="","",LCL!AE7) ->  | AC135: =IF(LCL!AF7="","",LCL!AF7) ->  | AD135: =IF(LCL!AG7="","",LCL!AG7) ->  | AE135: =IF(LCL!AH7="","",LCL!AH7) ->  | AF135: =IF(LCL!AI7="","",LCL!AI7) ->  | AG135: =IF(LCL!AJ7="","",LCL!AJ7) ->  | AH135: =IF(LCL!AK7="","",LCL!AK7) ->  | AI135: =IF(LCL!AL7="","",LCL!AL7) ->  | AJ135: =IF(LCL!AM7="","",LCL!AM7) ->  | AK135: =IF(LCL!AN7="","",LCL!AN7) ->  | AL135: =IF(LCL!AO7="","",LCL!AO7) ->  | AM135: =IF(LCL!AP7="","",LCL!AP7) -> 
D136: Criterio Evaluación 1.5 | E136: =IF(LCL!H8="","",LCL!H8) ->  | F136: =IF(LCL!I8="","",LCL!I8) ->  | G136: =IF(LCL!J8="","",LCL!J8) ->  | H136: =IF(LCL!K8="","",LCL!K8) ->  | I136: =IF(LCL!L8="","",LCL!L8) ->  | J136: =IF(LCL!M8="","",LCL!M8) ->  | K136: =IF(LCL!N8="","",LCL!N8) ->  | L136: =IF(LCL!O8="","",LCL!O8) ->  | M136: =IF(LCL!P8="","",LCL!P8) ->  | N136: =IF(LCL!Q8="","",LCL!Q8) ->  | O136: =IF(LCL!R8="","",LCL!R8) ->  | P136: =IF(LCL!S8="","",LCL!S8) ->  | Q136: =IF(LCL!T8="","",LCL!T8) ->  | R136: =IF(LCL!U8="","",LCL!U8) ->  | S136: =IF(LCL!V8="","",LCL!V8) ->  | T136: =IF(LCL!W8="","",LCL!W8) ->  | U136: =IF(LCL!X8="","",LCL!X8) ->  | V136: =IF(LCL!Y8="","",LCL!Y8) ->  | W136: =IF(LCL!Z8="","",LCL!Z8) ->  | X136: =IF(LCL!AA8="","",LCL!AA8) ->  | Y136: =IF(LCL!AB8="","",LCL!AB8) ->  | Z136: =IF(LCL!AC8="","",LCL!AC8) ->  | AA136: =IF(LCL!AD8="","",LCL!AD8) ->  | AB136: =IF(LCL!AE8="","",LCL!AE8) ->  | AC136: =IF(LCL!AF8="","",LCL!AF8) ->  | AD136: =IF(LCL!AG8="","",LCL!AG8) ->  | AE136: =IF(LCL!AH8="","",LCL!AH8) ->  | AF136: =IF(LCL!AI8="","",LCL!AI8) ->  | AG136: =IF(LCL!AJ8="","",LCL!AJ8) ->  | AH136: =IF(LCL!AK8="","",LCL!AK8) ->  | AI136: =IF(LCL!AL8="","",LCL!AL8) ->  | AJ136: =IF(LCL!AM8="","",LCL!AM8) ->  | AK136: =IF(LCL!AN8="","",LCL!AN8) ->  | AL136: =IF(LCL!AO8="","",LCL!AO8) ->  | AM136: =IF(LCL!AP8="","",LCL!AP8) -> 
C137: Comp. Esp. 2 | D137: Criterio Evaluación 2.1 | E137: =IF(LCL!H9="","",LCL!H9) ->  | F137: =IF(LCL!I9="","",LCL!I9) ->  | G137: =IF(LCL!J9="","",LCL!J9) ->  | H137: =IF(LCL!K9="","",LCL!K9) ->  | I137: =IF(LCL!L9="","",LCL!L9) ->  | J137: =IF(LCL!M9="","",LCL!M9) ->  | K137: =IF(LCL!N9="","",LCL!N9) ->  | L137: =IF(LCL!O9="","",LCL!O9) ->  | M137: =IF(LCL!P9="","",LCL!P9) ->  | N137: =IF(LCL!Q9="","",LCL!Q9) ->  | O137: =IF(LCL!R9="","",LCL!R9) ->  | P137: =IF(LCL!S9="","",LCL!S9) ->  | Q137: =IF(LCL!T9="","",LCL!T9) ->  | R137: =IF(LCL!U9="","",LCL!U9) ->  | S137: =IF(LCL!V9="","",LCL!V9) ->  | T137: =IF(LCL!W9="","",LCL!W9) ->  | U137: =IF(LCL!X9="","",LCL!X9) ->  | V137: =IF(LCL!Y9="","",LCL!Y9) ->  | W137: =IF(LCL!Z9="","",LCL!Z9) ->  | X137: =IF(LCL!AA9="","",LCL!AA9) ->  | Y137: =IF(LCL!AB9="","",LCL!AB9) ->  | Z137: =IF(LCL!AC9="","",LCL!AC9) ->  | AA137: =IF(LCL!AD9="","",LCL!AD9) ->  | AB137: =IF(LCL!AE9="","",LCL!AE9) ->  | AC137: =IF(LCL!AF9="","",LCL!AF9) ->  | AD137: =IF(LCL!AG9="","",LCL!AG9) ->  | AE137: =IF(LCL!AH9="","",LCL!AH9) ->  | AF137: =IF(LCL!AI9="","",LCL!AI9) ->  | AG137: =IF(LCL!AJ9="","",LCL!AJ9) ->  | AH137: =IF(LCL!AK9="","",LCL!AK9) ->  | AI137: =IF(LCL!AL9="","",LCL!AL9) ->  | AJ137: =IF(LCL!AM9="","",LCL!AM9) ->  | AK137: =IF(LCL!AN9="","",LCL!AN9) ->  | AL137: =IF(LCL!AO9="","",LCL!AO9) ->  | AM137: =IF(LCL!AP9="","",LCL!AP9) -> 
D138: Criterio Evaluación 2.2 | E138: =IF(LCL!H10="","",LCL!H10) ->  | F138: =IF(LCL!I10="","",LCL!I10) ->  | G138: =IF(LCL!J10="","",LCL!J10) ->  | H138: =IF(LCL!K10="","",LCL!K10) ->  | I138: =IF(LCL!L10="","",LCL!L10) ->  | J138: =IF(LCL!M10="","",LCL!M10) ->  | K138: =IF(LCL!N10="","",LCL!N10) ->  | L138: =IF(LCL!O10="","",LCL!O10) ->  | M138: =IF(LCL!P10="","",LCL!P10) ->  | N138: =IF(LCL!Q10="","",LCL!Q10) ->  | O138: =IF(LCL!R10="","",LCL!R10) ->  | P138: =IF(LCL!S10="","",LCL!S10) ->  | Q138: =IF(LCL!T10="","",LCL!T10) ->  | R138: =IF(LCL!U10="","",LCL!U10) ->  | S138: =IF(LCL!V10="","",LCL!V10) ->  | T138: =IF(LCL!W10="","",LCL!W10) ->  | U138: =IF(LCL!X10="","",LCL!X10) ->  | V138: =IF(LCL!Y10="","",LCL!Y10) ->  | W138: =IF(LCL!Z10="","",LCL!Z10) ->  | X138: =IF(LCL!AA10="","",LCL!AA10) ->  | Y138: =IF(LCL!AB10="","",LCL!AB10) ->  | Z138: =IF(LCL!AC10="","",LCL!AC10) ->  | AA138: =IF(LCL!AD10="","",LCL!AD10) ->  | AB138: =IF(LCL!AE10="","",LCL!AE10) ->  | AC138: =IF(LCL!AF10="","",LCL!AF10) ->  | AD138: =IF(LCL!AG10="","",LCL!AG10) ->  | AE138: =IF(LCL!AH10="","",LCL!AH10) ->  | AF138: =IF(LCL!AI10="","",LCL!AI10) ->  | AG138: =IF(LCL!AJ10="","",LCL!AJ10) ->  | AH138: =IF(LCL!AK10="","",LCL!AK10) ->  | AI138: =IF(LCL!AL10="","",LCL!AL10) ->  | AJ138: =IF(LCL!AM10="","",LCL!AM10) ->  | AK138: =IF(LCL!AN10="","",LCL!AN10) ->  | AL138: =IF(LCL!AO10="","",LCL!AO10) ->  | AM138: =IF(LCL!AP10="","",LCL!AP10) -> 
D139: Criterio Evaluación 2.3 | E139: =IF(LCL!H11="","",LCL!H11) ->  | F139: =IF(LCL!I11="","",LCL!I11) ->  | G139: =IF(LCL!J11="","",LCL!J11) ->  | H139: =IF(LCL!K11="","",LCL!K11) ->  | I139: =IF(LCL!L11="","",LCL!L11) ->  | J139: =IF(LCL!M11="","",LCL!M11) ->  | K139: =IF(LCL!N11="","",LCL!N11) ->  | L139: =IF(LCL!O11="","",LCL!O11) ->  | M139: =IF(LCL!P11="","",LCL!P11) ->  | N139: =IF(LCL!Q11="","",LCL!Q11) ->  | O139: =IF(LCL!R11="","",LCL!R11) ->  | P139: =IF(LCL!S11="","",LCL!S11) ->  | Q139: =IF(LCL!T11="","",LCL!T11) ->  | R139: =IF(LCL!U11="","",LCL!U11) ->  | S139: =IF(LCL!V11="","",LCL!V11) ->  | T139: =IF(LCL!W11="","",LCL!W11) ->  | U139: =IF(LCL!X11="","",LCL!X11) ->  | V139: =IF(LCL!Y11="","",LCL!Y11) ->  | W139: =IF(LCL!Z11="","",LCL!Z11) ->  | X139: =IF(LCL!AA11="","",LCL!AA11) ->  | Y139: =IF(LCL!AB11="","",LCL!AB11) ->  | Z139: =IF(LCL!AC11="","",LCL!AC11) ->  | AA139: =IF(LCL!AD11="","",LCL!AD11) ->  | AB139: =IF(LCL!AE11="","",LCL!AE11) ->  | AC139: =IF(LCL!AF11="","",LCL!AF11) ->  | AD139: =IF(LCL!AG11="","",LCL!AG11) ->  | AE139: =IF(LCL!AH11="","",LCL!AH11) ->  | AF139: =IF(LCL!AI11="","",LCL!AI11) ->  | AG139: =IF(LCL!AJ11="","",LCL!AJ11) ->  | AH139: =IF(LCL!AK11="","",LCL!AK11) ->  | AI139: =IF(LCL!AL11="","",LCL!AL11) ->  | AJ139: =IF(LCL!AM11="","",LCL!AM11) ->  | AK139: =IF(LCL!AN11="","",LCL!AN11) ->  | AL139: =IF(LCL!AO11="","",LCL!AO11) ->  | AM139: =IF(LCL!AP11="","",LCL!AP11) -> 
C140: Comp. Esp. 3 | D140: Criterio Evaluación 3.1 | E140: =IF(LCL!H12="","",LCL!H12) ->  | F140: =IF(LCL!I12="","",LCL!I12) ->  | G140: =IF(LCL!J12="","",LCL!J12) ->  | H140: =IF(LCL!K12="","",LCL!K12) ->  | I140: =IF(LCL!L12="","",LCL!L12) ->  | J140: =IF(LCL!M12="","",LCL!M12) ->  | K140: =IF(LCL!N12="","",LCL!N12) ->  | L140: =IF(LCL!O12="","",LCL!O12) ->  | M140: =IF(LCL!P12="","",LCL!P12) ->  | N140: =IF(LCL!Q12="","",LCL!Q12) ->  | O140: =IF(LCL!R12="","",LCL!R12) ->  | P140: =IF(LCL!S12="","",LCL!S12) ->  | Q140: =IF(LCL!T12="","",LCL!T12) ->  | R140: =IF(LCL!U12="","",LCL!U12) ->  | S140: =IF(LCL!V12="","",LCL!V12) ->  | T140: =IF(LCL!W12="","",LCL!W12) ->  | U140: =IF(LCL!X12="","",LCL!X12) ->  | V140: =IF(LCL!Y12="","",LCL!Y12) ->  | W140: =IF(LCL!Z12="","",LCL!Z12) ->  | X140: =IF(LCL!AA12="","",LCL!AA12) ->  | Y140: =IF(LCL!AB12="","",LCL!AB12) ->  | Z140: =IF(LCL!AC12="","",LCL!AC12) ->  | AA140: =IF(LCL!AD12="","",LCL!AD12) ->  | AB140: =IF(LCL!AE12="","",LCL!AE12) ->  | AC140: =IF(LCL!AF12="","",LCL!AF12) ->  | AD140: =IF(LCL!AG12="","",LCL!AG12) ->  | AE140: =IF(LCL!AH12="","",LCL!AH12) ->  | AF140: =IF(LCL!AI12="","",LCL!AI12) ->  | AG140: =IF(LCL!AJ12="","",LCL!AJ12) ->  | AH140: =IF(LCL!AK12="","",LCL!AK12) ->  | AI140: =IF(LCL!AL12="","",LCL!AL12) ->  | AJ140: =IF(LCL!AM12="","",LCL!AM12) ->  | AK140: =IF(LCL!AN12="","",LCL!AN12) ->  | AL140: =IF(LCL!AO12="","",LCL!AO12) ->  | AM140: =IF(LCL!AP12="","",LCL!AP12) -> 
D141: Criterio Evaluación 3.2 | E141: =IF(LCL!H13="","",LCL!H13) ->  | F141: =IF(LCL!I13="","",LCL!I13) ->  | G141: =IF(LCL!J13="","",LCL!J13) ->  | H141: =IF(LCL!K13="","",LCL!K13) ->  | I141: =IF(LCL!L13="","",LCL!L13) ->  | J141: =IF(LCL!M13="","",LCL!M13) ->  | K141: =IF(LCL!N13="","",LCL!N13) ->  | L141: =IF(LCL!O13="","",LCL!O13) ->  | M141: =IF(LCL!P13="","",LCL!P13) ->  | N141: =IF(LCL!Q13="","",LCL!Q13) ->  | O141: =IF(LCL!R13="","",LCL!R13) ->  | P141: =IF(LCL!S13="","",LCL!S13) ->  | Q141: =IF(LCL!T13="","",LCL!T13) ->  | R141: =IF(LCL!U13="","",LCL!U13) ->  | S141: =IF(LCL!V13="","",LCL!V13) ->  | T141: =IF(LCL!W13="","",LCL!W13) ->  | U141: =IF(LCL!X13="","",LCL!X13) ->  | V141: =IF(LCL!Y13="","",LCL!Y13) ->  | W141: =IF(LCL!Z13="","",LCL!Z13) ->  | X141: =IF(LCL!AA13="","",LCL!AA13) ->  | Y141: =IF(LCL!AB13="","",LCL!AB13) ->  | Z141: =IF(LCL!AC13="","",LCL!AC13) ->  | AA141: =IF(LCL!AD13="","",LCL!AD13) ->  | AB141: =IF(LCL!AE13="","",LCL!AE13) ->  | AC141: =IF(LCL!AF13="","",LCL!AF13) ->  | AD141: =IF(LCL!AG13="","",LCL!AG13) ->  | AE141: =IF(LCL!AH13="","",LCL!AH13) ->  | AF141: =IF(LCL!AI13="","",LCL!AI13) ->  | AG141: =IF(LCL!AJ13="","",LCL!AJ13) ->  | AH141: =IF(LCL!AK13="","",LCL!AK13) ->  | AI141: =IF(LCL!AL13="","",LCL!AL13) ->  | AJ141: =IF(LCL!AM13="","",LCL!AM13) ->  | AK141: =IF(LCL!AN13="","",LCL!AN13) ->  | AL141: =IF(LCL!AO13="","",LCL!AO13) ->  | AM141: =IF(LCL!AP13="","",LCL!AP13) -> 
D142: Criterio Evaluación 3.3 | E142: =IF(LCL!H14="","",LCL!H14) ->  | F142: =IF(LCL!I14="","",LCL!I14) ->  | G142: =IF(LCL!J14="","",LCL!J14) ->  | H142: =IF(LCL!K14="","",LCL!K14) ->  | I142: =IF(LCL!L14="","",LCL!L14) ->  | J142: =IF(LCL!M14="","",LCL!M14) ->  | K142: =IF(LCL!N14="","",LCL!N14) ->  | L142: =IF(LCL!O14="","",LCL!O14) ->  | M142: =IF(LCL!P14="","",LCL!P14) ->  | N142: =IF(LCL!Q14="","",LCL!Q14) ->  | O142: =IF(LCL!R14="","",LCL!R14) ->  | P142: =IF(LCL!S14="","",LCL!S14) ->  | Q142: =IF(LCL!T14="","",LCL!T14) ->  | R142: =IF(LCL!U14="","",LCL!U14) ->  | S142: =IF(LCL!V14="","",LCL!V14) ->  | T142: =IF(LCL!W14="","",LCL!W14) ->  | U142: =IF(LCL!X14="","",LCL!X14) ->  | V142: =IF(LCL!Y14="","",LCL!Y14) ->  | W142: =IF(LCL!Z14="","",LCL!Z14) ->  | X142: =IF(LCL!AA14="","",LCL!AA14) ->  | Y142: =IF(LCL!AB14="","",LCL!AB14) ->  | Z142: =IF(LCL!AC14="","",LCL!AC14) ->  | AA142: =IF(LCL!AD14="","",LCL!AD14) ->  | AB142: =IF(LCL!AE14="","",LCL!AE14) ->  | AC142: =IF(LCL!AF14="","",LCL!AF14) ->  | AD142: =IF(LCL!AG14="","",LCL!AG14) ->  | AE142: =IF(LCL!AH14="","",LCL!AH14) ->  | AF142: =IF(LCL!AI14="","",LCL!AI14) ->  | AG142: =IF(LCL!AJ14="","",LCL!AJ14) ->  | AH142: =IF(LCL!AK14="","",LCL!AK14) ->  | AI142: =IF(LCL!AL14="","",LCL!AL14) ->  | AJ142: =IF(LCL!AM14="","",LCL!AM14) ->  | AK142: =IF(LCL!AN14="","",LCL!AN14) ->  | AL142: =IF(LCL!AO14="","",LCL!AO14) ->  | AM142: =IF(LCL!AP14="","",LCL!AP14) -> 
C143: Comp. Esp. 4 | D143: Criterio Evaluación 4.1 | E143: =IF(LCL!H15="","",LCL!H15) ->  | F143: =IF(LCL!I15="","",LCL!I15) ->  | G143: =IF(LCL!J15="","",LCL!J15) ->  | H143: =IF(LCL!K15="","",LCL!K15) ->  | I143: =IF(LCL!L15="","",LCL!L15) ->  | J143: =IF(LCL!M15="","",LCL!M15) ->  | K143: =IF(LCL!N15="","",LCL!N15) ->  | L143: =IF(LCL!O15="","",LCL!O15) ->  | M143: =IF(LCL!P15="","",LCL!P15) ->  | N143: =IF(LCL!Q15="","",LCL!Q15) ->  | O143: =IF(LCL!R15="","",LCL!R15) ->  | P143: =IF(LCL!S15="","",LCL!S15) ->  | Q143: =IF(LCL!T15="","",LCL!T15) ->  | R143: =IF(LCL!U15="","",LCL!U15) ->  | S143: =IF(LCL!V15="","",LCL!V15) ->  | T143: =IF(LCL!W15="","",LCL!W15) ->  | U143: =IF(LCL!X15="","",LCL!X15) ->  | V143: =IF(LCL!Y15="","",LCL!Y15) ->  | W143: =IF(LCL!Z15="","",LCL!Z15) ->  | X143: =IF(LCL!AA15="","",LCL!AA15) ->  | Y143: =IF(LCL!AB15="","",LCL!AB15) ->  | Z143: =IF(LCL!AC15="","",LCL!AC15) ->  | AA143: =IF(LCL!AD15="","",LCL!AD15) ->  | AB143: =IF(LCL!AE15="","",LCL!AE15) ->  | AC143: =IF(LCL!AF15="","",LCL!AF15) ->  | AD143: =IF(LCL!AG15="","",LCL!AG15) ->  | AE143: =IF(LCL!AH15="","",LCL!AH15) ->  | AF143: =IF(LCL!AI15="","",LCL!AI15) ->  | AG143: =IF(LCL!AJ15="","",LCL!AJ15) ->  | AH143: =IF(LCL!AK15="","",LCL!AK15) ->  | AI143: =IF(LCL!AL15="","",LCL!AL15) ->  | AJ143: =IF(LCL!AM15="","",LCL!AM15) ->  | AK143: =IF(LCL!AN15="","",LCL!AN15) ->  | AL143: =IF(LCL!AO15="","",LCL!AO15) ->  | AM143: =IF(LCL!AP15="","",LCL!AP15) -> 
D144: Criterio Evaluación 4.2 | E144: =IF(LCL!H16="","",LCL!H16) ->  | F144: =IF(LCL!I16="","",LCL!I16) ->  | G144: =IF(LCL!J16="","",LCL!J16) ->  | H144: =IF(LCL!K16="","",LCL!K16) ->  | I144: =IF(LCL!L16="","",LCL!L16) ->  | J144: =IF(LCL!M16="","",LCL!M16) ->  | K144: =IF(LCL!N16="","",LCL!N16) ->  | L144: =IF(LCL!O16="","",LCL!O16) ->  | M144: =IF(LCL!P16="","",LCL!P16) ->  | N144: =IF(LCL!Q16="","",LCL!Q16) ->  | O144: =IF(LCL!R16="","",LCL!R16) ->  | P144: =IF(LCL!S16="","",LCL!S16) ->  | Q144: =IF(LCL!T16="","",LCL!T16) ->  | R144: =IF(LCL!U16="","",LCL!U16) ->  | S144: =IF(LCL!V16="","",LCL!V16) ->  | T144: =IF(LCL!W16="","",LCL!W16) ->  | U144: =IF(LCL!X16="","",LCL!X16) ->  | V144: =IF(LCL!Y16="","",LCL!Y16) ->  | W144: =IF(LCL!Z16="","",LCL!Z16) ->  | X144: =IF(LCL!AA16="","",LCL!AA16) ->  | Y144: =IF(LCL!AB16="","",LCL!AB16) ->  | Z144: =IF(LCL!AC16="","",LCL!AC16) ->  | AA144: =IF(LCL!AD16="","",LCL!AD16) ->  | AB144: =IF(LCL!AE16="","",LCL!AE16) ->  | AC144: =IF(LCL!AF16="","",LCL!AF16) ->  | AD144: =IF(LCL!AG16="","",LCL!AG16) ->  | AE144: =IF(LCL!AH16="","",LCL!AH16) ->  | AF144: =IF(LCL!AI16="","",LCL!AI16) ->  | AG144: =IF(LCL!AJ16="","",LCL!AJ16) ->  | AH144: =IF(LCL!AK16="","",LCL!AK16) ->  | AI144: =IF(LCL!AL16="","",LCL!AL16) ->  | AJ144: =IF(LCL!AM16="","",LCL!AM16) ->  | AK144: =IF(LCL!AN16="","",LCL!AN16) ->  | AL144: =IF(LCL!AO16="","",LCL!AO16) ->  | AM144: =IF(LCL!AP16="","",LCL!AP16) -> 
D145: Criterio Evaluación 4.3 | E145: =IF(LCL!H17="","",LCL!H17) ->  | F145: =IF(LCL!I17="","",LCL!I17) ->  | G145: =IF(LCL!J17="","",LCL!J17) ->  | H145: =IF(LCL!K17="","",LCL!K17) ->  | I145: =IF(LCL!L17="","",LCL!L17) ->  | J145: =IF(LCL!M17="","",LCL!M17) ->  | K145: =IF(LCL!N17="","",LCL!N17) ->  | L145: =IF(LCL!O17="","",LCL!O17) ->  | M145: =IF(LCL!P17="","",LCL!P17) ->  | N145: =IF(LCL!Q17="","",LCL!Q17) ->  | O145: =IF(LCL!R17="","",LCL!R17) ->  | P145: =IF(LCL!S17="","",LCL!S17) ->  | Q145: =IF(LCL!T17="","",LCL!T17) ->  | R145: =IF(LCL!U17="","",LCL!U17) ->  | S145: =IF(LCL!V17="","",LCL!V17) ->  | T145: =IF(LCL!W17="","",LCL!W17) ->  | U145: =IF(LCL!X17="","",LCL!X17) ->  | V145: =IF(LCL!Y17="","",LCL!Y17) ->  | W145: =IF(LCL!Z17="","",LCL!Z17) ->  | X145: =IF(LCL!AA17="","",LCL!AA17) ->  | Y145: =IF(LCL!AB17="","",LCL!AB17) ->  | Z145: =IF(LCL!AC17="","",LCL!AC17) ->  | AA145: =IF(LCL!AD17="","",LCL!AD17) ->  | AB145: =IF(LCL!AE17="","",LCL!AE17) ->  | AC145: =IF(LCL!AF17="","",LCL!AF17) ->  | AD145: =IF(LCL!AG17="","",LCL!AG17) ->  | AE145: =IF(LCL!AH17="","",LCL!AH17) ->  | AF145: =IF(LCL!AI17="","",LCL!AI17) ->  | AG145: =IF(LCL!AJ17="","",LCL!AJ17) ->  | AH145: =IF(LCL!AK17="","",LCL!AK17) ->  | AI145: =IF(LCL!AL17="","",LCL!AL17) ->  | AJ145: =IF(LCL!AM17="","",LCL!AM17) ->  | AK145: =IF(LCL!AN17="","",LCL!AN17) ->  | AL145: =IF(LCL!AO17="","",LCL!AO17) ->  | AM145: =IF(LCL!AP17="","",LCL!AP17) -> 
C146: Comp. Esp. 5 | D146: Criterio Evaluación 5.1 | E146: =IF(LCL!H18="","",LCL!H18) ->  | F146: =IF(LCL!I18="","",LCL!I18) ->  | G146: =IF(LCL!J18="","",LCL!J18) ->  | H146: =IF(LCL!K18="","",LCL!K18) ->  | I146: =IF(LCL!L18="","",LCL!L18) ->  | J146: =IF(LCL!M18="","",LCL!M18) ->  | K146: =IF(LCL!N18="","",LCL!N18) ->  | L146: =IF(LCL!O18="","",LCL!O18) ->  | M146: =IF(LCL!P18="","",LCL!P18) ->  | N146: =IF(LCL!Q18="","",LCL!Q18) ->  | O146: =IF(LCL!R18="","",LCL!R18) ->  | P146: =IF(LCL!S18="","",LCL!S18) ->  | Q146: =IF(LCL!T18="","",LCL!T18) ->  | R146: =IF(LCL!U18="","",LCL!U18) ->  | S146: =IF(LCL!V18="","",LCL!V18) ->  | T146: =IF(LCL!W18="","",LCL!W18) ->  | U146: =IF(LCL!X18="","",LCL!X18) ->  | V146: =IF(LCL!Y18="","",LCL!Y18) ->  | W146: =IF(LCL!Z18="","",LCL!Z18) ->  | X146: =IF(LCL!AA18="","",LCL!AA18) ->  | Y146: =IF(LCL!AB18="","",LCL!AB18) ->  | Z146: =IF(LCL!AC18="","",LCL!AC18) ->  | AA146: =IF(LCL!AD18="","",LCL!AD18) ->  | AB146: =IF(LCL!AE18="","",LCL!AE18) ->  | AC146: =IF(LCL!AF18="","",LCL!AF18) ->  | AD146: =IF(LCL!AG18="","",LCL!AG18) ->  | AE146: =IF(LCL!AH18="","",LCL!AH18) ->  | AF146: =IF(LCL!AI18="","",LCL!AI18) ->  | AG146: =IF(LCL!AJ18="","",LCL!AJ18) ->  | AH146: =IF(LCL!AK18="","",LCL!AK18) ->  | AI146: =IF(LCL!AL18="","",LCL!AL18) ->  | AJ146: =IF(LCL!AM18="","",LCL!AM18) ->  | AK146: =IF(LCL!AN18="","",LCL!AN18) ->  | AL146: =IF(LCL!AO18="","",LCL!AO18) ->  | AM146: =IF(LCL!AP18="","",LCL!AP18) -> 
D147: Criterio Evaluación 5.2 | E147: =IF(LCL!H19="","",LCL!H19) ->  | F147: =IF(LCL!I19="","",LCL!I19) ->  | G147: =IF(LCL!J19="","",LCL!J19) ->  | H147: =IF(LCL!K19="","",LCL!K19) ->  | I147: =IF(LCL!L19="","",LCL!L19) ->  | J147: =IF(LCL!M19="","",LCL!M19) ->  | K147: =IF(LCL!N19="","",LCL!N19) ->  | L147: =IF(LCL!O19="","",LCL!O19) ->  | M147: =IF(LCL!P19="","",LCL!P19) ->  | N147: =IF(LCL!Q19="","",LCL!Q19) ->  | O147: =IF(LCL!R19="","",LCL!R19) ->  | P147: =IF(LCL!S19="","",LCL!S19) ->  | Q147: =IF(LCL!T19="","",LCL!T19) ->  | R147: =IF(LCL!U19="","",LCL!U19) ->  | S147: =IF(LCL!V19="","",LCL!V19) ->  | T147: =IF(LCL!W19="","",LCL!W19) ->  | U147: =IF(LCL!X19="","",LCL!X19) ->  | V147: =IF(LCL!Y19="","",LCL!Y19) ->  | W147: =IF(LCL!Z19="","",LCL!Z19) ->  | X147: =IF(LCL!AA19="","",LCL!AA19) ->  | Y147: =IF(LCL!AB19="","",LCL!AB19) ->  | Z147: =IF(LCL!AC19="","",LCL!AC19) ->  | AA147: =IF(LCL!AD19="","",LCL!AD19) ->  | AB147: =IF(LCL!AE19="","",LCL!AE19) ->  | AC147: =IF(LCL!AF19="","",LCL!AF19) ->  | AD147: =IF(LCL!AG19="","",LCL!AG19) ->  | AE147: =IF(LCL!AH19="","",LCL!AH19) ->  | AF147: =IF(LCL!AI19="","",LCL!AI19) ->  | AG147: =IF(LCL!AJ19="","",LCL!AJ19) ->  | AH147: =IF(LCL!AK19="","",LCL!AK19) ->  | AI147: =IF(LCL!AL19="","",LCL!AL19) ->  | AJ147: =IF(LCL!AM19="","",LCL!AM19) ->  | AK147: =IF(LCL!AN19="","",LCL!AN19) ->  | AL147: =IF(LCL!AO19="","",LCL!AO19) ->  | AM147: =IF(LCL!AP19="","",LCL!AP19) -> 
D148: Criterio Evaluación 5.3 | E148: =IF(LCL!H20="","",LCL!H20) ->  | F148: =IF(LCL!I20="","",LCL!I20) ->  | G148: =IF(LCL!J20="","",LCL!J20) ->  | H148: =IF(LCL!K20="","",LCL!K20) ->  | I148: =IF(LCL!L20="","",LCL!L20) ->  | J148: =IF(LCL!M20="","",LCL!M20) ->  | K148: =IF(LCL!N20="","",LCL!N20) ->  | L148: =IF(LCL!O20="","",LCL!O20) ->  | M148: =IF(LCL!P20="","",LCL!P20) ->  | N148: =IF(LCL!Q20="","",LCL!Q20) ->  | O148: =IF(LCL!R20="","",LCL!R20) ->  | P148: =IF(LCL!S20="","",LCL!S20) ->  | Q148: =IF(LCL!T20="","",LCL!T20) ->  | R148: =IF(LCL!U20="","",LCL!U20) ->  | S148: =IF(LCL!V20="","",LCL!V20) ->  | T148: =IF(LCL!W20="","",LCL!W20) ->  | U148: =IF(LCL!X20="","",LCL!X20) ->  | V148: =IF(LCL!Y20="","",LCL!Y20) ->  | W148: =IF(LCL!Z20="","",LCL!Z20) ->  | X148: =IF(LCL!AA20="","",LCL!AA20) ->  | Y148: =IF(LCL!AB20="","",LCL!AB20) ->  | Z148: =IF(LCL!AC20="","",LCL!AC20) ->  | AA148: =IF(LCL!AD20="","",LCL!AD20) ->  | AB148: =IF(LCL!AE20="","",LCL!AE20) ->  | AC148: =IF(LCL!AF20="","",LCL!AF20) ->  | AD148: =IF(LCL!AG20="","",LCL!AG20) ->  | AE148: =IF(LCL!AH20="","",LCL!AH20) ->  | AF148: =IF(LCL!AI20="","",LCL!AI20) ->  | AG148: =IF(LCL!AJ20="","",LCL!AJ20) ->  | AH148: =IF(LCL!AK20="","",LCL!AK20) ->  | AI148: =IF(LCL!AL20="","",LCL!AL20) ->  | AJ148: =IF(LCL!AM20="","",LCL!AM20) ->  | AK148: =IF(LCL!AN20="","",LCL!AN20) ->  | AL148: =IF(LCL!AO20="","",LCL!AO20) ->  | AM148: =IF(LCL!AP20="","",LCL!AP20) -> 
C149: Comp. Esp. 6 | D149: Criterio Evaluación 6.1 | E149: =IF(LCL!H21="","",LCL!H21) ->  | F149: =IF(LCL!I21="","",LCL!I21) ->  | G149: =IF(LCL!J21="","",LCL!J21) ->  | H149: =IF(LCL!K21="","",LCL!K21) ->  | I149: =IF(LCL!L21="","",LCL!L21) ->  | J149: =IF(LCL!M21="","",LCL!M21) ->  | K149: =IF(LCL!N21="","",LCL!N21) ->  | L149: =IF(LCL!O21="","",LCL!O21) ->  | M149: =IF(LCL!P21="","",LCL!P21) ->  | N149: =IF(LCL!Q21="","",LCL!Q21) ->  | O149: =IF(LCL!R21="","",LCL!R21) ->  | P149: =IF(LCL!S21="","",LCL!S21) ->  | Q149: =IF(LCL!T21="","",LCL!T21) ->  | R149: =IF(LCL!U21="","",LCL!U21) ->  | S149: =IF(LCL!V21="","",LCL!V21) ->  | T149: =IF(LCL!W21="","",LCL!W21) ->  | U149: =IF(LCL!X21="","",LCL!X21) ->  | V149: =IF(LCL!Y21="","",LCL!Y21) ->  | W149: =IF(LCL!Z21="","",LCL!Z21) ->  | X149: =IF(LCL!AA21="","",LCL!AA21) ->  | Y149: =IF(LCL!AB21="","",LCL!AB21) ->  | Z149: =IF(LCL!AC21="","",LCL!AC21) ->  | AA149: =IF(LCL!AD21="","",LCL!AD21) ->  | AB149: =IF(LCL!AE21="","",LCL!AE21) ->  | AC149: =IF(LCL!AF21="","",LCL!AF21) ->  | AD149: =IF(LCL!AG21="","",LCL!AG21) ->  | AE149: =IF(LCL!AH21="","",LCL!AH21) ->  | AF149: =IF(LCL!AI21="","",LCL!AI21) ->  | AG149: =IF(LCL!AJ21="","",LCL!AJ21) ->  | AH149: =IF(LCL!AK21="","",LCL!AK21) ->  | AI149: =IF(LCL!AL21="","",LCL!AL21) ->  | AJ149: =IF(LCL!AM21="","",LCL!AM21) ->  | AK149: =IF(LCL!AN21="","",LCL!AN21) ->  | AL149: =IF(LCL!AO21="","",LCL!AO21) ->  | AM149: =IF(LCL!AP21="","",LCL!AP21) -> 
D150: Criterio Evaluación 6.2 | E150: =IF(LCL!H22="","",LCL!H22) ->  | F150: =IF(LCL!I22="","",LCL!I22) ->  | G150: =IF(LCL!J22="","",LCL!J22) ->  | H150: =IF(LCL!K22="","",LCL!K22) ->  | I150: =IF(LCL!L22="","",LCL!L22) ->  | J150: =IF(LCL!M22="","",LCL!M22) ->  | K150: =IF(LCL!N22="","",LCL!N22) ->  | L150: =IF(LCL!O22="","",LCL!O22) ->  | M150: =IF(LCL!P22="","",LCL!P22) ->  | N150: =IF(LCL!Q22="","",LCL!Q22) ->  | O150: =IF(LCL!R22="","",LCL!R22) ->  | P150: =IF(LCL!S22="","",LCL!S22) ->  | Q150: =IF(LCL!T22="","",LCL!T22) ->  | R150: =IF(LCL!U22="","",LCL!U22) ->  | S150: =IF(LCL!V22="","",LCL!V22) ->  | T150: =IF(LCL!W22="","",LCL!W22) ->  | U150: =IF(LCL!X22="","",LCL!X22) ->  | V150: =IF(LCL!Y22="","",LCL!Y22) ->  | W150: =IF(LCL!Z22="","",LCL!Z22) ->  | X150: =IF(LCL!AA22="","",LCL!AA22) ->  | Y150: =IF(LCL!AB22="","",LCL!AB22) ->  | Z150: =IF(LCL!AC22="","",LCL!AC22) ->  | AA150: =IF(LCL!AD22="","",LCL!AD22) ->  | AB150: =IF(LCL!AE22="","",LCL!AE22) ->  | AC150: =IF(LCL!AF22="","",LCL!AF22) ->  | AD150: =IF(LCL!AG22="","",LCL!AG22) ->  | AE150: =IF(LCL!AH22="","",LCL!AH22) ->  | AF150: =IF(LCL!AI22="","",LCL!AI22) ->  | AG150: =IF(LCL!AJ22="","",LCL!AJ22) ->  | AH150: =IF(LCL!AK22="","",LCL!AK22) ->  | AI150: =IF(LCL!AL22="","",LCL!AL22) ->  | AJ150: =IF(LCL!AM22="","",LCL!AM22) ->  | AK150: =IF(LCL!AN22="","",LCL!AN22) ->  | AL150: =IF(LCL!AO22="","",LCL!AO22) ->  | AM150: =IF(LCL!AP22="","",LCL!AP22) -> 
D151: Criterio Evaluación 6.3 | E151: =IF(LCL!H23="","",LCL!H23) ->  | F151: =IF(LCL!I23="","",LCL!I23) ->  | G151: =IF(LCL!J23="","",LCL!J23) ->  | H151: =IF(LCL!K23="","",LCL!K23) ->  | I151: =IF(LCL!L23="","",LCL!L23) ->  | J151: =IF(LCL!M23="","",LCL!M23) ->  | K151: =IF(LCL!N23="","",LCL!N23) ->  | L151: =IF(LCL!O23="","",LCL!O23) ->  | M151: =IF(LCL!P23="","",LCL!P23) ->  | N151: =IF(LCL!Q23="","",LCL!Q23) ->  | O151: =IF(LCL!R23="","",LCL!R23) ->  | P151: =IF(LCL!S23="","",LCL!S23) ->  | Q151: =IF(LCL!T23="","",LCL!T23) ->  | R151: =IF(LCL!U23="","",LCL!U23) ->  | S151: =IF(LCL!V23="","",LCL!V23) ->  | T151: =IF(LCL!W23="","",LCL!W23) ->  | U151: =IF(LCL!X23="","",LCL!X23) ->  | V151: =IF(LCL!Y23="","",LCL!Y23) ->  | W151: =IF(LCL!Z23="","",LCL!Z23) ->  | X151: =IF(LCL!AA23="","",LCL!AA23) ->  | Y151: =IF(LCL!AB23="","",LCL!AB23) ->  | Z151: =IF(LCL!AC23="","",LCL!AC23) ->  | AA151: =IF(LCL!AD23="","",LCL!AD23) ->  | AB151: =IF(LCL!AE23="","",LCL!AE23) ->  | AC151: =IF(LCL!AF23="","",LCL!AF23) ->  | AD151: =IF(LCL!AG23="","",LCL!AG23) ->  | AE151: =IF(LCL!AH23="","",LCL!AH23) ->  | AF151: =IF(LCL!AI23="","",LCL!AI23) ->  | AG151: =IF(LCL!AJ23="","",LCL!AJ23) ->  | AH151: =IF(LCL!AK23="","",LCL!AK23) ->  | AI151: =IF(LCL!AL23="","",LCL!AL23) ->  | AJ151: =IF(LCL!AM23="","",LCL!AM23) ->  | AK151: =IF(LCL!AN23="","",LCL!AN23) ->  | AL151: =IF(LCL!AO23="","",LCL!AO23) ->  | AM151: =IF(LCL!AP23="","",LCL!AP23) -> 
D152: Criterio Evaluación 6.4 | E152: =IF(LCL!H24="","",LCL!H24) ->  | F152: =IF(LCL!I24="","",LCL!I24) ->  | G152: =IF(LCL!J24="","",LCL!J24) ->  | H152: =IF(LCL!K24="","",LCL!K24) ->  | I152: =IF(LCL!L24="","",LCL!L24) ->  | J152: =IF(LCL!M24="","",LCL!M24) ->  | K152: =IF(LCL!N24="","",LCL!N24) ->  | L152: =IF(LCL!O24="","",LCL!O24) ->  | M152: =IF(LCL!P24="","",LCL!P24) ->  | N152: =IF(LCL!Q24="","",LCL!Q24) ->  | O152: =IF(LCL!R24="","",LCL!R24) ->  | P152: =IF(LCL!S24="","",LCL!S24) ->  | Q152: =IF(LCL!T24="","",LCL!T24) ->  | R152: =IF(LCL!U24="","",LCL!U24) ->  | S152: =IF(LCL!V24="","",LCL!V24) ->  | T152: =IF(LCL!W24="","",LCL!W24) ->  | U152: =IF(LCL!X24="","",LCL!X24) ->  | V152: =IF(LCL!Y24="","",LCL!Y24) ->  | W152: =IF(LCL!Z24="","",LCL!Z24) ->  | X152: =IF(LCL!AA24="","",LCL!AA24) ->  | Y152: =IF(LCL!AB24="","",LCL!AB24) ->  | Z152: =IF(LCL!AC24="","",LCL!AC24) ->  | AA152: =IF(LCL!AD24="","",LCL!AD24) ->  | AB152: =IF(LCL!AE24="","",LCL!AE24) ->  | AC152: =IF(LCL!AF24="","",LCL!AF24) ->  | AD152: =IF(LCL!AG24="","",LCL!AG24) ->  | AE152: =IF(LCL!AH24="","",LCL!AH24) ->  | AF152: =IF(LCL!AI24="","",LCL!AI24) ->  | AG152: =IF(LCL!AJ24="","",LCL!AJ24) ->  | AH152: =IF(LCL!AK24="","",LCL!AK24) ->  | AI152: =IF(LCL!AL24="","",LCL!AL24) ->  | AJ152: =IF(LCL!AM24="","",LCL!AM24) ->  | AK152: =IF(LCL!AN24="","",LCL!AN24) ->  | AL152: =IF(LCL!AO24="","",LCL!AO24) ->  | AM152: =IF(LCL!AP24="","",LCL!AP24) -> 
C153: Comp. Esp. 7 | D153: Criterio Evaluación 7.1 | E153: =IF(LCL!H25="","",LCL!H25) ->  | F153: =IF(LCL!I25="","",LCL!I25) ->  | G153: =IF(LCL!J25="","",LCL!J25) ->  | H153: =IF(LCL!K25="","",LCL!K25) ->  | I153: =IF(LCL!L25="","",LCL!L25) ->  | J153: =IF(LCL!M25="","",LCL!M25) ->  | K153: =IF(LCL!N25="","",LCL!N25) ->  | L153: =IF(LCL!O25="","",LCL!O25) ->  | M153: =IF(LCL!P25="","",LCL!P25) ->  | N153: =IF(LCL!Q25="","",LCL!Q25) ->  | O153: =IF(LCL!R25="","",LCL!R25) ->  | P153: =IF(LCL!S25="","",LCL!S25) ->  | Q153: =IF(LCL!T25="","",LCL!T25) ->  | R153: =IF(LCL!U25="","",LCL!U25) ->  | S153: =IF(LCL!V25="","",LCL!V25) ->  | T153: =IF(LCL!W25="","",LCL!W25) ->  | U153: =IF(LCL!X25="","",LCL!X25) ->  | V153: =IF(LCL!Y25="","",LCL!Y25) ->  | W153: =IF(LCL!Z25="","",LCL!Z25) ->  | X153: =IF(LCL!AA25="","",LCL!AA25) ->  | Y153: =IF(LCL!AB25="","",LCL!AB25) ->  | Z153: =IF(LCL!AC25="","",LCL!AC25) ->  | AA153: =IF(LCL!AD25="","",LCL!AD25) ->  | AB153: =IF(LCL!AE25="","",LCL!AE25) ->  | AC153: =IF(LCL!AF25="","",LCL!AF25) ->  | AD153: =IF(LCL!AG25="","",LCL!AG25) ->  | AE153: =IF(LCL!AH25="","",LCL!AH25) ->  | AF153: =IF(LCL!AI25="","",LCL!AI25) ->  | AG153: =IF(LCL!AJ25="","",LCL!AJ25) ->  | AH153: =IF(LCL!AK25="","",LCL!AK25) ->  | AI153: =IF(LCL!AL25="","",LCL!AL25) ->  | AJ153: =IF(LCL!AM25="","",LCL!AM25) ->  | AK153: =IF(LCL!AN25="","",LCL!AN25) ->  | AL153: =IF(LCL!AO25="","",LCL!AO25) ->  | AM153: =IF(LCL!AP25="","",LCL!AP25) -> 
D154: Criterio Evaluación 7.2 | E154: =IF(LCL!H26="","",LCL!H26) ->  | F154: =IF(LCL!I26="","",LCL!I26) ->  | G154: =IF(LCL!J26="","",LCL!J26) ->  | H154: =IF(LCL!K26="","",LCL!K26) ->  | I154: =IF(LCL!L26="","",LCL!L26) ->  | J154: =IF(LCL!M26="","",LCL!M26) ->  | K154: =IF(LCL!N26="","",LCL!N26) ->  | L154: =IF(LCL!O26="","",LCL!O26) ->  | M154: =IF(LCL!P26="","",LCL!P26) ->  | N154: =IF(LCL!Q26="","",LCL!Q26) ->  | O154: =IF(LCL!R26="","",LCL!R26) ->  | P154: =IF(LCL!S26="","",LCL!S26) ->  | Q154: =IF(LCL!T26="","",LCL!T26) ->  | R154: =IF(LCL!U26="","",LCL!U26) ->  | S154: =IF(LCL!V26="","",LCL!V26) ->  | T154: =IF(LCL!W26="","",LCL!W26) ->  | U154: =IF(LCL!X26="","",LCL!X26) ->  | V154: =IF(LCL!Y26="","",LCL!Y26) ->  | W154: =IF(LCL!Z26="","",LCL!Z26) ->  | X154: =IF(LCL!AA26="","",LCL!AA26) ->  | Y154: =IF(LCL!AB26="","",LCL!AB26) ->  | Z154: =IF(LCL!AC26="","",LCL!AC26) ->  | AA154: =IF(LCL!AD26="","",LCL!AD26) ->  | AB154: =IF(LCL!AE26="","",LCL!AE26) ->  | AC154: =IF(LCL!AF26="","",LCL!AF26) ->  | AD154: =IF(LCL!AG26="","",LCL!AG26) ->  | AE154: =IF(LCL!AH26="","",LCL!AH26) ->  | AF154: =IF(LCL!AI26="","",LCL!AI26) ->  | AG154: =IF(LCL!AJ26="","",LCL!AJ26) ->  | AH154: =IF(LCL!AK26="","",LCL!AK26) ->  | AI154: =IF(LCL!AL26="","",LCL!AL26) ->  | AJ154: =IF(LCL!AM26="","",LCL!AM26) ->  | AK154: =IF(LCL!AN26="","",LCL!AN26) ->  | AL154: =IF(LCL!AO26="","",LCL!AO26) ->  | AM154: =IF(LCL!AP26="","",LCL!AP26) -> 
D155: Criterio Evaluación 7.3 | E155: =IF(LCL!H27="","",LCL!H27) ->  | F155: =IF(LCL!I27="","",LCL!I27) ->  | G155: =IF(LCL!J27="","",LCL!J27) ->  | H155: =IF(LCL!K27="","",LCL!K27) ->  | I155: =IF(LCL!L27="","",LCL!L27) ->  | J155: =IF(LCL!M27="","",LCL!M27) ->  | K155: =IF(LCL!N27="","",LCL!N27) ->  | L155: =IF(LCL!O27="","",LCL!O27) ->  | M155: =IF(LCL!P27="","",LCL!P27) ->  | N155: =IF(LCL!Q27="","",LCL!Q27) ->  | O155: =IF(LCL!R27="","",LCL!R27) ->  | P155: =IF(LCL!S27="","",LCL!S27) ->  | Q155: =IF(LCL!T27="","",LCL!T27) ->  | R155: =IF(LCL!U27="","",LCL!U27) ->  | S155: =IF(LCL!V27="","",LCL!V27) ->  | T155: =IF(LCL!W27="","",LCL!W27) ->  | U155: =IF(LCL!X27="","",LCL!X27) ->  | V155: =IF(LCL!Y27="","",LCL!Y27) ->  | W155: =IF(LCL!Z27="","",LCL!Z27) ->  | X155: =IF(LCL!AA27="","",LCL!AA27) ->  | Y155: =IF(LCL!AB27="","",LCL!AB27) ->  | Z155: =IF(LCL!AC27="","",LCL!AC27) ->  | AA155: =IF(LCL!AD27="","",LCL!AD27) ->  | AB155: =IF(LCL!AE27="","",LCL!AE27) ->  | AC155: =IF(LCL!AF27="","",LCL!AF27) ->  | AD155: =IF(LCL!AG27="","",LCL!AG27) ->  | AE155: =IF(LCL!AH27="","",LCL!AH27) ->  | AF155: =IF(LCL!AI27="","",LCL!AI27) ->  | AG155: =IF(LCL!AJ27="","",LCL!AJ27) ->  | AH155: =IF(LCL!AK27="","",LCL!AK27) ->  | AI155: =IF(LCL!AL27="","",LCL!AL27) ->  | AJ155: =IF(LCL!AM27="","",LCL!AM27) ->  | AK155: =IF(LCL!AN27="","",LCL!AN27) ->  | AL155: =IF(LCL!AO27="","",LCL!AO27) ->  | AM155: =IF(LCL!AP27="","",LCL!AP27) -> 
C156: Comp. Esp. 8 | D156: Criterio Evaluación 8.1 | E156: =IF(LCL!H28="","",LCL!H28) ->  | F156: =IF(LCL!I28="","",LCL!I28) ->  | G156: =IF(LCL!J28="","",LCL!J28) ->  | H156: =IF(LCL!K28="","",LCL!K28) ->  | I156: =IF(LCL!L28="","",LCL!L28) ->  | J156: =IF(LCL!M28="","",LCL!M28) ->  | K156: =IF(LCL!N28="","",LCL!N28) ->  | L156: =IF(LCL!O28="","",LCL!O28) ->  | M156: =IF(LCL!P28="","",LCL!P28) ->  | N156: =IF(LCL!Q28="","",LCL!Q28) ->  | O156: =IF(LCL!R28="","",LCL!R28) ->  | P156: =IF(LCL!S28="","",LCL!S28) ->  | Q156: =IF(LCL!T28="","",LCL!T28) ->  | R156: =IF(LCL!U28="","",LCL!U28) ->  | S156: =IF(LCL!V28="","",LCL!V28) ->  | T156: =IF(LCL!W28="","",LCL!W28) ->  | U156: =IF(LCL!X28="","",LCL!X28) ->  | V156: =IF(LCL!Y28="","",LCL!Y28) ->  | W156: =IF(LCL!Z28="","",LCL!Z28) ->  | X156: =IF(LCL!AA28="","",LCL!AA28) ->  | Y156: =IF(LCL!AB28="","",LCL!AB28) ->  | Z156: =IF(LCL!AC28="","",LCL!AC28) ->  | AA156: =IF(LCL!AD28="","",LCL!AD28) ->  | AB156: =IF(LCL!AE28="","",LCL!AE28) ->  | AC156: =IF(LCL!AF28="","",LCL!AF28) ->  | AD156: =IF(LCL!AG28="","",LCL!AG28) ->  | AE156: =IF(LCL!AH28="","",LCL!AH28) ->  | AF156: =IF(LCL!AI28="","",LCL!AI28) ->  | AG156: =IF(LCL!AJ28="","",LCL!AJ28) ->  | AH156: =IF(LCL!AK28="","",LCL!AK28) ->  | AI156: =IF(LCL!AL28="","",LCL!AL28) ->  | AJ156: =IF(LCL!AM28="","",LCL!AM28) ->  | AK156: =IF(LCL!AN28="","",LCL!AN28) ->  | AL156: =IF(LCL!AO28="","",LCL!AO28) ->  | AM156: =IF(LCL!AP28="","",LCL!AP28) -> 
D157: Criterio Evaluación 8.2 | E157: =IF(LCL!H29="","",LCL!H29) ->  | F157: =IF(LCL!I29="","",LCL!I29) ->  | G157: =IF(LCL!J29="","",LCL!J29) ->  | H157: =IF(LCL!K29="","",LCL!K29) ->  | I157: =IF(LCL!L29="","",LCL!L29) ->  | J157: =IF(LCL!M29="","",LCL!M29) ->  | K157: =IF(LCL!N29="","",LCL!N29) ->  | L157: =IF(LCL!O29="","",LCL!O29) ->  | M157: =IF(LCL!P29="","",LCL!P29) ->  | N157: =IF(LCL!Q29="","",LCL!Q29) ->  | O157: =IF(LCL!R29="","",LCL!R29) ->  | P157: =IF(LCL!S29="","",LCL!S29) ->  | Q157: =IF(LCL!T29="","",LCL!T29) ->  | R157: =IF(LCL!U29="","",LCL!U29) ->  | S157: =IF(LCL!V29="","",LCL!V29) ->  | T157: =IF(LCL!W29="","",LCL!W29) ->  | U157: =IF(LCL!X29="","",LCL!X29) ->  | V157: =IF(LCL!Y29="","",LCL!Y29) ->  | W157: =IF(LCL!Z29="","",LCL!Z29) ->  | X157: =IF(LCL!AA29="","",LCL!AA29) ->  | Y157: =IF(LCL!AB29="","",LCL!AB29) ->  | Z157: =IF(LCL!AC29="","",LCL!AC29) ->  | AA157: =IF(LCL!AD29="","",LCL!AD29) ->  | AB157: =IF(LCL!AE29="","",LCL!AE29) ->  | AC157: =IF(LCL!AF29="","",LCL!AF29) ->  | AD157: =IF(LCL!AG29="","",LCL!AG29) ->  | AE157: =IF(LCL!AH29="","",LCL!AH29) ->  | AF157: =IF(LCL!AI29="","",LCL!AI29) ->  | AG157: =IF(LCL!AJ29="","",LCL!AJ29) ->  | AH157: =IF(LCL!AK29="","",LCL!AK29) ->  | AI157: =IF(LCL!AL29="","",LCL!AL29) ->  | AJ157: =IF(LCL!AM29="","",LCL!AM29) ->  | AK157: =IF(LCL!AN29="","",LCL!AN29) ->  | AL157: =IF(LCL!AO29="","",LCL!AO29) ->  | AM157: =IF(LCL!AP29="","",LCL!AP29) -> 
D158: Criterio Evaluación 8.3 | E158: =IF(LCL!H30="","",LCL!H30) ->  | F158: =IF(LCL!I30="","",LCL!I30) ->  | G158: =IF(LCL!J30="","",LCL!J30) ->  | H158: =IF(LCL!K30="","",LCL!K30) ->  | I158: =IF(LCL!L30="","",LCL!L30) ->  | J158: =IF(LCL!M30="","",LCL!M30) ->  | K158: =IF(LCL!N30="","",LCL!N30) ->  | L158: =IF(LCL!O30="","",LCL!O30) ->  | M158: =IF(LCL!P30="","",LCL!P30) ->  | N158: =IF(LCL!Q30="","",LCL!Q30) ->  | O158: =IF(LCL!R30="","",LCL!R30) ->  | P158: =IF(LCL!S30="","",LCL!S30) ->  | Q158: =IF(LCL!T30="","",LCL!T30) ->  | R158: =IF(LCL!U30="","",LCL!U30) ->  | S158: =IF(LCL!V30="","",LCL!V30) ->  | T158: =IF(LCL!W30="","",LCL!W30) ->  | U158: =IF(LCL!X30="","",LCL!X30) ->  | V158: =IF(LCL!Y30="","",LCL!Y30) ->  | W158: =IF(LCL!Z30="","",LCL!Z30) ->  | X158: =IF(LCL!AA30="","",LCL!AA30) ->  | Y158: =IF(LCL!AB30="","",LCL!AB30) ->  | Z158: =IF(LCL!AC30="","",LCL!AC30) ->  | AA158: =IF(LCL!AD30="","",LCL!AD30) ->  | AB158: =IF(LCL!AE30="","",LCL!AE30) ->  | AC158: =IF(LCL!AF30="","",LCL!AF30) ->  | AD158: =IF(LCL!AG30="","",LCL!AG30) ->  | AE158: =IF(LCL!AH30="","",LCL!AH30) ->  | AF158: =IF(LCL!AI30="","",LCL!AI30) ->  | AG158: =IF(LCL!AJ30="","",LCL!AJ30) ->  | AH158: =IF(LCL!AK30="","",LCL!AK30) ->  | AI158: =IF(LCL!AL30="","",LCL!AL30) ->  | AJ158: =IF(LCL!AM30="","",LCL!AM30) ->  | AK158: =IF(LCL!AN30="","",LCL!AN30) ->  | AL158: =IF(LCL!AO30="","",LCL!AO30) ->  | AM158: =IF(LCL!AP30="","",LCL!AP30) -> 
D159: Criterio Evaluación 8.4 | E159: =IF(LCL!H31="","",LCL!H31) ->  | F159: =IF(LCL!I31="","",LCL!I31) ->  | G159: =IF(LCL!J31="","",LCL!J31) ->  | H159: =IF(LCL!K31="","",LCL!K31) ->  | I159: =IF(LCL!L31="","",LCL!L31) ->  | J159: =IF(LCL!M31="","",LCL!M31) ->  | K159: =IF(LCL!N31="","",LCL!N31) ->  | L159: =IF(LCL!O31="","",LCL!O31) ->  | M159: =IF(LCL!P31="","",LCL!P31) ->  | N159: =IF(LCL!Q31="","",LCL!Q31) ->  | O159: =IF(LCL!R31="","",LCL!R31) ->  | P159: =IF(LCL!S31="","",LCL!S31) ->  | Q159: =IF(LCL!T31="","",LCL!T31) ->  | R159: =IF(LCL!U31="","",LCL!U31) ->  | S159: =IF(LCL!V31="","",LCL!V31) ->  | T159: =IF(LCL!W31="","",LCL!W31) ->  | U159: =IF(LCL!X31="","",LCL!X31) ->  | V159: =IF(LCL!Y31="","",LCL!Y31) ->  | W159: =IF(LCL!Z31="","",LCL!Z31) ->  | X159: =IF(LCL!AA31="","",LCL!AA31) ->  | Y159: =IF(LCL!AB31="","",LCL!AB31) ->  | Z159: =IF(LCL!AC31="","",LCL!AC31) ->  | AA159: =IF(LCL!AD31="","",LCL!AD31) ->  | AB159: =IF(LCL!AE31="","",LCL!AE31) ->  | AC159: =IF(LCL!AF31="","",LCL!AF31) ->  | AD159: =IF(LCL!AG31="","",LCL!AG31) ->  | AE159: =IF(LCL!AH31="","",LCL!AH31) ->  | AF159: =IF(LCL!AI31="","",LCL!AI31) ->  | AG159: =IF(LCL!AJ31="","",LCL!AJ31) ->  | AH159: =IF(LCL!AK31="","",LCL!AK31) ->  | AI159: =IF(LCL!AL31="","",LCL!AL31) ->  | AJ159: =IF(LCL!AM31="","",LCL!AM31) ->  | AK159: =IF(LCL!AN31="","",LCL!AN31) ->  | AL159: =IF(LCL!AO31="","",LCL!AO31) ->  | AM159: =IF(LCL!AP31="","",LCL!AP31) -> 
D160: Criterio Evaluación 8.5 | E160: =IF(LCL!H32="","",LCL!H32) ->  | F160: =IF(LCL!I32="","",LCL!I32) ->  | G160: =IF(LCL!J32="","",LCL!J32) ->  | H160: =IF(LCL!K32="","",LCL!K32) ->  | I160: =IF(LCL!L32="","",LCL!L32) ->  | J160: =IF(LCL!M32="","",LCL!M32) ->  | K160: =IF(LCL!N32="","",LCL!N32) ->  | L160: =IF(LCL!O32="","",LCL!O32) ->  | M160: =IF(LCL!P32="","",LCL!P32) ->  | N160: =IF(LCL!Q32="","",LCL!Q32) ->  | O160: =IF(LCL!R32="","",LCL!R32) ->  | P160: =IF(LCL!S32="","",LCL!S32) ->  | Q160: =IF(LCL!T32="","",LCL!T32) ->  | R160: =IF(LCL!U32="","",LCL!U32) ->  | S160: =IF(LCL!V32="","",LCL!V32) ->  | T160: =IF(LCL!W32="","",LCL!W32) ->  | U160: =IF(LCL!X32="","",LCL!X32) ->  | V160: =IF(LCL!Y32="","",LCL!Y32) ->  | W160: =IF(LCL!Z32="","",LCL!Z32) ->  | X160: =IF(LCL!AA32="","",LCL!AA32) ->  | Y160: =IF(LCL!AB32="","",LCL!AB32) ->  | Z160: =IF(LCL!AC32="","",LCL!AC32) ->  | AA160: =IF(LCL!AD32="","",LCL!AD32) ->  | AB160: =IF(LCL!AE32="","",LCL!AE32) ->  | AC160: =IF(LCL!AF32="","",LCL!AF32) ->  | AD160: =IF(LCL!AG32="","",LCL!AG32) ->  | AE160: =IF(LCL!AH32="","",LCL!AH32) ->  | AF160: =IF(LCL!AI32="","",LCL!AI32) ->  | AG160: =IF(LCL!AJ32="","",LCL!AJ32) ->  | AH160: =IF(LCL!AK32="","",LCL!AK32) ->  | AI160: =IF(LCL!AL32="","",LCL!AL32) ->  | AJ160: =IF(LCL!AM32="","",LCL!AM32) ->  | AK160: =IF(LCL!AN32="","",LCL!AN32) ->  | AL160: =IF(LCL!AO32="","",LCL!AO32) ->  | AM160: =IF(LCL!AP32="","",LCL!AP32) -> 
C161: Comp. Esp. 9 | D161: Criterio Evaluación 9.1 | E161: =IF(LCL!H33="","",LCL!H33) ->  | F161: =IF(LCL!I33="","",LCL!I33) ->  | G161: =IF(LCL!J33="","",LCL!J33) ->  | H161: =IF(LCL!K33="","",LCL!K33) ->  | I161: =IF(LCL!L33="","",LCL!L33) ->  | J161: =IF(LCL!M33="","",LCL!M33) ->  | K161: =IF(LCL!N33="","",LCL!N33) ->  | L161: =IF(LCL!O33="","",LCL!O33) ->  | M161: =IF(LCL!P33="","",LCL!P33) ->  | N161: =IF(LCL!Q33="","",LCL!Q33) ->  | O161: =IF(LCL!R33="","",LCL!R33) ->  | P161: =IF(LCL!S33="","",LCL!S33) ->  | Q161: =IF(LCL!T33="","",LCL!T33) ->  | R161: =IF(LCL!U33="","",LCL!U33) ->  | S161: =IF(LCL!V33="","",LCL!V33) ->  | T161: =IF(LCL!W33="","",LCL!W33) ->  | U161: =IF(LCL!X33="","",LCL!X33) ->  | V161: =IF(LCL!Y33="","",LCL!Y33) ->  | W161: =IF(LCL!Z33="","",LCL!Z33) ->  | X161: =IF(LCL!AA33="","",LCL!AA33) ->  | Y161: =IF(LCL!AB33="","",LCL!AB33) ->  | Z161: =IF(LCL!AC33="","",LCL!AC33) ->  | AA161: =IF(LCL!AD33="","",LCL!AD33) ->  | AB161: =IF(LCL!AE33="","",LCL!AE33) ->  | AC161: =IF(LCL!AF33="","",LCL!AF33) ->  | AD161: =IF(LCL!AG33="","",LCL!AG33) ->  | AE161: =IF(LCL!AH33="","",LCL!AH33) ->  | AF161: =IF(LCL!AI33="","",LCL!AI33) ->  | AG161: =IF(LCL!AJ33="","",LCL!AJ33) ->  | AH161: =IF(LCL!AK33="","",LCL!AK33) ->  | AI161: =IF(LCL!AL33="","",LCL!AL33) ->  | AJ161: =IF(LCL!AM33="","",LCL!AM33) ->  | AK161: =IF(LCL!AN33="","",LCL!AN33) ->  | AL161: =IF(LCL!AO33="","",LCL!AO33) ->  | AM161: =IF(LCL!AP33="","",LCL!AP33) -> 
D162: Criterio Evaluación 9.2 | E162: =IF(LCL!H34="","",LCL!H34) ->  | F162: =IF(LCL!I34="","",LCL!I34) ->  | G162: =IF(LCL!J34="","",LCL!J34) ->  | H162: =IF(LCL!K34="","",LCL!K34) ->  | I162: =IF(LCL!L34="","",LCL!L34) ->  | J162: =IF(LCL!M34="","",LCL!M34) ->  | K162: =IF(LCL!N34="","",LCL!N34) ->  | L162: =IF(LCL!O34="","",LCL!O34) ->  | M162: =IF(LCL!P34="","",LCL!P34) ->  | N162: =IF(LCL!Q34="","",LCL!Q34) ->  | O162: =IF(LCL!R34="","",LCL!R34) ->  | P162: =IF(LCL!S34="","",LCL!S34) ->  | Q162: =IF(LCL!T34="","",LCL!T34) ->  | R162: =IF(LCL!U34="","",LCL!U34) ->  | S162: =IF(LCL!V34="","",LCL!V34) ->  | T162: =IF(LCL!W34="","",LCL!W34) ->  | U162: =IF(LCL!X34="","",LCL!X34) ->  | V162: =IF(LCL!Y34="","",LCL!Y34) ->  | W162: =IF(LCL!Z34="","",LCL!Z34) ->  | X162: =IF(LCL!AA34="","",LCL!AA34) ->  | Y162: =IF(LCL!AB34="","",LCL!AB34) ->  | Z162: =IF(LCL!AC34="","",LCL!AC34) ->  | AA162: =IF(LCL!AD34="","",LCL!AD34) ->  | AB162: =IF(LCL!AE34="","",LCL!AE34) ->  | AC162: =IF(LCL!AF34="","",LCL!AF34) ->  | AD162: =IF(LCL!AG34="","",LCL!AG34) ->  | AE162: =IF(LCL!AH34="","",LCL!AH34) ->  | AF162: =IF(LCL!AI34="","",LCL!AI34) ->  | AG162: =IF(LCL!AJ34="","",LCL!AJ34) ->  | AH162: =IF(LCL!AK34="","",LCL!AK34) ->  | AI162: =IF(LCL!AL34="","",LCL!AL34) ->  | AJ162: =IF(LCL!AM34="","",LCL!AM34) ->  | AK162: =IF(LCL!AN34="","",LCL!AN34) ->  | AL162: =IF(LCL!AO34="","",LCL!AO34) ->  | AM162: =IF(LCL!AP34="","",LCL!AP34) -> 
D163: Criterio Evaluación 9.3 | E163: =IF(LCL!H35="","",LCL!H35) ->  | F163: =IF(LCL!I35="","",LCL!I35) ->  | G163: =IF(LCL!J35="","",LCL!J35) ->  | H163: =IF(LCL!K35="","",LCL!K35) ->  | I163: =IF(LCL!L35="","",LCL!L35) ->  | J163: =IF(LCL!M35="","",LCL!M35) ->  | K163: =IF(LCL!N35="","",LCL!N35) ->  | L163: =IF(LCL!O35="","",LCL!O35) ->  | M163: =IF(LCL!P35="","",LCL!P35) ->  | N163: =IF(LCL!Q35="","",LCL!Q35) ->  | O163: =IF(LCL!R35="","",LCL!R35) ->  | P163: =IF(LCL!S35="","",LCL!S35) ->  | Q163: =IF(LCL!T35="","",LCL!T35) ->  | R163: =IF(LCL!U35="","",LCL!U35) ->  | S163: =IF(LCL!V35="","",LCL!V35) ->  | T163: =IF(LCL!W35="","",LCL!W35) ->  | U163: =IF(LCL!X35="","",LCL!X35) ->  | V163: =IF(LCL!Y35="","",LCL!Y35) ->  | W163: =IF(LCL!Z35="","",LCL!Z35) ->  | X163: =IF(LCL!AA35="","",LCL!AA35) ->  | Y163: =IF(LCL!AB35="","",LCL!AB35) ->  | Z163: =IF(LCL!AC35="","",LCL!AC35) ->  | AA163: =IF(LCL!AD35="","",LCL!AD35) ->  | AB163: =IF(LCL!AE35="","",LCL!AE35) ->  | AC163: =IF(LCL!AF35="","",LCL!AF35) ->  | AD163: =IF(LCL!AG35="","",LCL!AG35) ->  | AE163: =IF(LCL!AH35="","",LCL!AH35) ->  | AF163: =IF(LCL!AI35="","",LCL!AI35) ->  | AG163: =IF(LCL!AJ35="","",LCL!AJ35) ->  | AH163: =IF(LCL!AK35="","",LCL!AK35) ->  | AI163: =IF(LCL!AL35="","",LCL!AL35) ->  | AJ163: =IF(LCL!AM35="","",LCL!AM35) ->  | AK163: =IF(LCL!AN35="","",LCL!AN35) ->  | AL163: =IF(LCL!AO35="","",LCL!AO35) ->  | AM163: =IF(LCL!AP35="","",LCL!AP35) -> 
D164: Criterio Evaluación 9.4 | E164: =IF(LCL!H36="","",LCL!H36) ->  | F164: =IF(LCL!I36="","",LCL!I36) ->  | G164: =IF(LCL!J36="","",LCL!J36) ->  | H164: =IF(LCL!K36="","",LCL!K36) ->  | I164: =IF(LCL!L36="","",LCL!L36) ->  | J164: =IF(LCL!M36="","",LCL!M36) ->  | K164: =IF(LCL!N36="","",LCL!N36) ->  | L164: =IF(LCL!O36="","",LCL!O36) ->  | M164: =IF(LCL!P36="","",LCL!P36) ->  | N164: =IF(LCL!Q36="","",LCL!Q36) ->  | O164: =IF(LCL!R36="","",LCL!R36) ->  | P164: =IF(LCL!S36="","",LCL!S36) ->  | Q164: =IF(LCL!T36="","",LCL!T36) ->  | R164: =IF(LCL!U36="","",LCL!U36) ->  | S164: =IF(LCL!V36="","",LCL!V36) ->  | T164: =IF(LCL!W36="","",LCL!W36) ->  | U164: =IF(LCL!X36="","",LCL!X36) ->  | V164: =IF(LCL!Y36="","",LCL!Y36) ->  | W164: =IF(LCL!Z36="","",LCL!Z36) ->  | X164: =IF(LCL!AA36="","",LCL!AA36) ->  | Y164: =IF(LCL!AB36="","",LCL!AB36) ->  | Z164: =IF(LCL!AC36="","",LCL!AC36) ->  | AA164: =IF(LCL!AD36="","",LCL!AD36) ->  | AB164: =IF(LCL!AE36="","",LCL!AE36) ->  | AC164: =IF(LCL!AF36="","",LCL!AF36) ->  | AD164: =IF(LCL!AG36="","",LCL!AG36) ->  | AE164: =IF(LCL!AH36="","",LCL!AH36) ->  | AF164: =IF(LCL!AI36="","",LCL!AI36) ->  | AG164: =IF(LCL!AJ36="","",LCL!AJ36) ->  | AH164: =IF(LCL!AK36="","",LCL!AK36) ->  | AI164: =IF(LCL!AL36="","",LCL!AL36) ->  | AJ164: =IF(LCL!AM36="","",LCL!AM36) ->  | AK164: =IF(LCL!AN36="","",LCL!AN36) ->  | AL164: =IF(LCL!AO36="","",LCL!AO36) ->  | AM164: =IF(LCL!AP36="","",LCL!AP36) -> 
D165: Criterio Evaluación 9.5 | E165: =IF(LCL!H37="","",LCL!H37) ->  | F165: =IF(LCL!I37="","",LCL!I37) ->  | G165: =IF(LCL!J37="","",LCL!J37) ->  | H165: =IF(LCL!K37="","",LCL!K37) ->  | I165: =IF(LCL!L37="","",LCL!L37) ->  | J165: =IF(LCL!M37="","",LCL!M37) ->  | K165: =IF(LCL!N37="","",LCL!N37) ->  | L165: =IF(LCL!O37="","",LCL!O37) ->  | M165: =IF(LCL!P37="","",LCL!P37) ->  | N165: =IF(LCL!Q37="","",LCL!Q37) ->  | O165: =IF(LCL!R37="","",LCL!R37) ->  | P165: =IF(LCL!S37="","",LCL!S37) ->  | Q165: =IF(LCL!T37="","",LCL!T37) ->  | R165: =IF(LCL!U37="","",LCL!U37) ->  | S165: =IF(LCL!V37="","",LCL!V37) ->  | T165: =IF(LCL!W37="","",LCL!W37) ->  | U165: =IF(LCL!X37="","",LCL!X37) ->  | V165: =IF(LCL!Y37="","",LCL!Y37) ->  | W165: =IF(LCL!Z37="","",LCL!Z37) ->  | X165: =IF(LCL!AA37="","",LCL!AA37) ->  | Y165: =IF(LCL!AB37="","",LCL!AB37) ->  | Z165: =IF(LCL!AC37="","",LCL!AC37) ->  | AA165: =IF(LCL!AD37="","",LCL!AD37) ->  | AB165: =IF(LCL!AE37="","",LCL!AE37) ->  | AC165: =IF(LCL!AF37="","",LCL!AF37) ->  | AD165: =IF(LCL!AG37="","",LCL!AG37) ->  | AE165: =IF(LCL!AH37="","",LCL!AH37) ->  | AF165: =IF(LCL!AI37="","",LCL!AI37) ->  | AG165: =IF(LCL!AJ37="","",LCL!AJ37) ->  | AH165: =IF(LCL!AK37="","",LCL!AK37) ->  | AI165: =IF(LCL!AL37="","",LCL!AL37) ->  | AJ165: =IF(LCL!AM37="","",LCL!AM37) ->  | AK165: =IF(LCL!AN37="","",LCL!AN37) ->  | AL165: =IF(LCL!AO37="","",LCL!AO37) ->  | AM165: =IF(LCL!AP37="","",LCL!AP37) -> 
C166: Comp. Esp. 10 | D166: Criterio Evaluación 10.1 | E166: =IF(LCL!H38="","",LCL!H38) ->  | F166: =IF(LCL!I38="","",LCL!I38) ->  | G166: =IF(LCL!J38="","",LCL!J38) ->  | H166: =IF(LCL!K38="","",LCL!K38) ->  | I166: =IF(LCL!L38="","",LCL!L38) ->  | J166: =IF(LCL!M38="","",LCL!M38) ->  | K166: =IF(LCL!N38="","",LCL!N38) ->  | L166: =IF(LCL!O38="","",LCL!O38) ->  | M166: =IF(LCL!P38="","",LCL!P38) ->  | N166: =IF(LCL!Q38="","",LCL!Q38) ->  | O166: =IF(LCL!R38="","",LCL!R38) ->  | P166: =IF(LCL!S38="","",LCL!S38) ->  | Q166: =IF(LCL!T38="","",LCL!T38) ->  | R166: =IF(LCL!U38="","",LCL!U38) ->  | S166: =IF(LCL!V38="","",LCL!V38) ->  | T166: =IF(LCL!W38="","",LCL!W38) ->  | U166: =IF(LCL!X38="","",LCL!X38) ->  | V166: =IF(LCL!Y38="","",LCL!Y38) ->  | W166: =IF(LCL!Z38="","",LCL!Z38) ->  | X166: =IF(LCL!AA38="","",LCL!AA38) ->  | Y166: =IF(LCL!AB38="","",LCL!AB38) ->  | Z166: =IF(LCL!AC38="","",LCL!AC38) ->  | AA166: =IF(LCL!AD38="","",LCL!AD38) ->  | AB166: =IF(LCL!AE38="","",LCL!AE38) ->  | AC166: =IF(LCL!AF38="","",LCL!AF38) ->  | AD166: =IF(LCL!AG38="","",LCL!AG38) ->  | AE166: =IF(LCL!AH38="","",LCL!AH38) ->  | AF166: =IF(LCL!AI38="","",LCL!AI38) ->  | AG166: =IF(LCL!AJ38="","",LCL!AJ38) ->  | AH166: =IF(LCL!AK38="","",LCL!AK38) ->  | AI166: =IF(LCL!AL38="","",LCL!AL38) ->  | AJ166: =IF(LCL!AM38="","",LCL!AM38) ->  | AK166: =IF(LCL!AN38="","",LCL!AN38) ->  | AL166: =IF(LCL!AO38="","",LCL!AO38) ->  | AM166: =IF(LCL!AP38="","",LCL!AP38) -> 
D167: Criterio Evaluación 10.2 | E167: =IF(LCL!H39="","",LCL!H39) ->  | F167: =IF(LCL!I39="","",LCL!I39) ->  | G167: =IF(LCL!J39="","",LCL!J39) ->  | H167: =IF(LCL!K39="","",LCL!K39) ->  | I167: =IF(LCL!L39="","",LCL!L39) ->  | J167: =IF(LCL!M39="","",LCL!M39) ->  | K167: =IF(LCL!N39="","",LCL!N39) ->  | L167: =IF(LCL!O39="","",LCL!O39) ->  | M167: =IF(LCL!P39="","",LCL!P39) ->  | N167: =IF(LCL!Q39="","",LCL!Q39) ->  | O167: =IF(LCL!R39="","",LCL!R39) ->  | P167: =IF(LCL!S39="","",LCL!S39) ->  | Q167: =IF(LCL!T39="","",LCL!T39) ->  | R167: =IF(LCL!U39="","",LCL!U39) ->  | S167: =IF(LCL!V39="","",LCL!V39) ->  | T167: =IF(LCL!W39="","",LCL!W39) ->  | U167: =IF(LCL!X39="","",LCL!X39) ->  | V167: =IF(LCL!Y39="","",LCL!Y39) ->  | W167: =IF(LCL!Z39="","",LCL!Z39) ->  | X167: =IF(LCL!AA39="","",LCL!AA39) ->  | Y167: =IF(LCL!AB39="","",LCL!AB39) ->  | Z167: =IF(LCL!AC39="","",LCL!AC39) ->  | AA167: =IF(LCL!AD39="","",LCL!AD39) ->  | AB167: =IF(LCL!AE39="","",LCL!AE39) ->  | AC167: =IF(LCL!AF39="","",LCL!AF39) ->  | AD167: =IF(LCL!AG39="","",LCL!AG39) ->  | AE167: =IF(LCL!AH39="","",LCL!AH39) ->  | AF167: =IF(LCL!AI39="","",LCL!AI39) ->  | AG167: =IF(LCL!AJ39="","",LCL!AJ39) ->  | AH167: =IF(LCL!AK39="","",LCL!AK39) ->  | AI167: =IF(LCL!AL39="","",LCL!AL39) ->  | AJ167: =IF(LCL!AM39="","",LCL!AM39) ->  | AK167: =IF(LCL!AN39="","",LCL!AN39) ->  | AL167: =IF(LCL!AO39="","",LCL!AO39) ->  | AM167: =IF(LCL!AP39="","",LCL!AP39) -> 
D168: Criterio Evaluación 10.3 | E168: =IF(LCL!H40="","",LCL!H40) ->  | F168: =IF(LCL!I40="","",LCL!I40) ->  | G168: =IF(LCL!J40="","",LCL!J40) ->  | H168: =IF(LCL!K40="","",LCL!K40) ->  | I168: =IF(LCL!L40="","",LCL!L40) ->  | J168: =IF(LCL!M40="","",LCL!M40) ->  | K168: =IF(LCL!N40="","",LCL!N40) ->  | L168: =IF(LCL!O40="","",LCL!O40) ->  | M168: =IF(LCL!P40="","",LCL!P40) ->  | N168: =IF(LCL!Q40="","",LCL!Q40) ->  | O168: =IF(LCL!R40="","",LCL!R40) ->  | P168: =IF(LCL!S40="","",LCL!S40) ->  | Q168: =IF(LCL!T40="","",LCL!T40) ->  | R168: =IF(LCL!U40="","",LCL!U40) ->  | S168: =IF(LCL!V40="","",LCL!V40) ->  | T168: =IF(LCL!W40="","",LCL!W40) ->  | U168: =IF(LCL!X40="","",LCL!X40) ->  | V168: =IF(LCL!Y40="","",LCL!Y40) ->  | W168: =IF(LCL!Z40="","",LCL!Z40) ->  | X168: =IF(LCL!AA40="","",LCL!AA40) ->  | Y168: =IF(LCL!AB40="","",LCL!AB40) ->  | Z168: =IF(LCL!AC40="","",LCL!AC40) ->  | AA168: =IF(LCL!AD40="","",LCL!AD40) ->  | AB168: =IF(LCL!AE40="","",LCL!AE40) ->  | AC168: =IF(LCL!AF40="","",LCL!AF40) ->  | AD168: =IF(LCL!AG40="","",LCL!AG40) ->  | AE168: =IF(LCL!AH40="","",LCL!AH40) ->  | AF168: =IF(LCL!AI40="","",LCL!AI40) ->  | AG168: =IF(LCL!AJ40="","",LCL!AJ40) ->  | AH168: =IF(LCL!AK40="","",LCL!AK40) ->  | AI168: =IF(LCL!AL40="","",LCL!AL40) ->  | AJ168: =IF(LCL!AM40="","",LCL!AM40) ->  | AK168: =IF(LCL!AN40="","",LCL!AN40) ->  | AL168: =IF(LCL!AO40="","",LCL!AO40) ->  | AM168: =IF(LCL!AP40="","",LCL!AP40) -> 
B169: Lengua Extranjera I | C169: Comp. Esp. 1 | D169: Criterio Evaluación 1.1 | E169: =IF(LEX!H4="","",LEX!H4) ->  | F169: =IF(LEX!I4="","",LEX!I4) ->  | G169: =IF(LEX!J4="","",LEX!J4) ->  | H169: =IF(LEX!K4="","",LEX!K4) ->  | I169: =IF(LEX!L4="","",LEX!L4) ->  | J169: =IF(LEX!M4="","",LEX!M4) ->  | K169: =IF(LEX!N4="","",LEX!N4) ->  | L169: =IF(LEX!O4="","",LEX!O4) ->  | M169: =IF(LEX!P4="","",LEX!P4) ->  | N169: =IF(LEX!Q4="","",LEX!Q4) ->  | O169: =IF(LEX!R4="","",LEX!R4) ->  | P169: =IF(LEX!S4="","",LEX!S4) ->  | Q169: =IF(LEX!T4="","",LEX!T4) ->  | R169: =IF(LEX!U4="","",LEX!U4) ->  | S169: =IF(LEX!V4="","",LEX!V4) ->  | T169: =IF(LEX!W4="","",LEX!W4) ->  | U169: =IF(LEX!X4="","",LEX!X4) ->  | V169: =IF(LEX!Y4="","",LEX!Y4) ->  | W169: =IF(LEX!Z4="","",LEX!Z4) ->  | X169: =IF(LEX!AA4="","",LEX!AA4) ->  | Y169: =IF(LEX!AB4="","",LEX!AB4) ->  | Z169: =IF(LEX!AC4="","",LEX!AC4) ->  | AA169: =IF(LEX!AD4="","",LEX!AD4) ->  | AB169: =IF(LEX!AE4="","",LEX!AE4) ->  | AC169: =IF(LEX!AF4="","",LEX!AF4) ->  | AD169: =IF(LEX!AG4="","",LEX!AG4) ->  | AE169: =IF(LEX!AH4="","",LEX!AH4) ->  | AF169: =IF(LEX!AI4="","",LEX!AI4) ->  | AG169: =IF(LEX!AJ4="","",LEX!AJ4) ->  | AH169: =IF(LEX!AK4="","",LEX!AK4) ->  | AI169: =IF(LEX!AL4="","",LEX!AL4) ->  | AJ169: =IF(LEX!AM4="","",LEX!AM4) ->  | AK169: =IF(LEX!AN4="","",LEX!AN4) ->  | AL169: =IF(LEX!AO4="","",LEX!AO4) ->  | AM169: =IF(LEX!AP4="","",LEX!AP4) -> 
D170: Criterio Evaluación 1.2 | E170: =IF(LEX!H5="","",LEX!H5) ->  | F170: =IF(LEX!I5="","",LEX!I5) ->  | G170: =IF(LEX!J5="","",LEX!J5) ->  | H170: =IF(LEX!K5="","",LEX!K5) ->  | I170: =IF(LEX!L5="","",LEX!L5) ->  | J170: =IF(LEX!M5="","",LEX!M5) ->  | K170: =IF(LEX!N5="","",LEX!N5) ->  | L170: =IF(LEX!O5="","",LEX!O5) ->  | M170: =IF(LEX!P5="","",LEX!P5) ->  | N170: =IF(LEX!Q5="","",LEX!Q5) ->  | O170: =IF(LEX!R5="","",LEX!R5) ->  | P170: =IF(LEX!S5="","",LEX!S5) ->  | Q170: =IF(LEX!T5="","",LEX!T5) ->  | R170: =IF(LEX!U5="","",LEX!U5) ->  | S170: =IF(LEX!V5="","",LEX!V5) ->  | T170: =IF(LEX!W5="","",LEX!W5) ->  | U170: =IF(LEX!X5="","",LEX!X5) ->  | V170: =IF(LEX!Y5="","",LEX!Y5) ->  | W170: =IF(LEX!Z5="","",LEX!Z5) ->  | X170: =IF(LEX!AA5="","",LEX!AA5) ->  | Y170: =IF(LEX!AB5="","",LEX!AB5) ->  | Z170: =IF(LEX!AC5="","",LEX!AC5) ->  | AA170: =IF(LEX!AD5="","",LEX!AD5) ->  | AB170: =IF(LEX!AE5="","",LEX!AE5) ->  | AC170: =IF(LEX!AF5="","",LEX!AF5) ->  | AD170: =IF(LEX!AG5="","",LEX!AG5) ->  | AE170: =IF(LEX!AH5="","",LEX!AH5) ->  | AF170: =IF(LEX!AI5="","",LEX!AI5) ->  | AG170: =IF(LEX!AJ5="","",LEX!AJ5) ->  | AH170: =IF(LEX!AK5="","",LEX!AK5) ->  | AI170: =IF(LEX!AL5="","",LEX!AL5) ->  | AJ170: =IF(LEX!AM5="","",LEX!AM5) ->  | AK170: =IF(LEX!AN5="","",LEX!AN5) ->  | AL170: =IF(LEX!AO5="","",LEX!AO5) ->  | AM170: =IF(LEX!AP5="","",LEX!AP5) -> 
D171: Criterio Evaluación 1.3 | E171: =IF(LEX!H6="","",LEX!H6) ->  | F171: =IF(LEX!I6="","",LEX!I6) ->  | G171: =IF(LEX!J6="","",LEX!J6) ->  | H171: =IF(LEX!K6="","",LEX!K6) ->  | I171: =IF(LEX!L6="","",LEX!L6) ->  | J171: =IF(LEX!M6="","",LEX!M6) ->  | K171: =IF(LEX!N6="","",LEX!N6) ->  | L171: =IF(LEX!O6="","",LEX!O6) ->  | M171: =IF(LEX!P6="","",LEX!P6) ->  | N171: =IF(LEX!Q6="","",LEX!Q6) ->  | O171: =IF(LEX!R6="","",LEX!R6) ->  | P171: =IF(LEX!S6="","",LEX!S6) ->  | Q171: =IF(LEX!T6="","",LEX!T6) ->  | R171: =IF(LEX!U6="","",LEX!U6) ->  | S171: =IF(LEX!V6="","",LEX!V6) ->  | T171: =IF(LEX!W6="","",LEX!W6) ->  | U171: =IF(LEX!X6="","",LEX!X6) ->  | V171: =IF(LEX!Y6="","",LEX!Y6) ->  | W171: =IF(LEX!Z6="","",LEX!Z6) ->  | X171: =IF(LEX!AA6="","",LEX!AA6) ->  | Y171: =IF(LEX!AB6="","",LEX!AB6) ->  | Z171: =IF(LEX!AC6="","",LEX!AC6) ->  | AA171: =IF(LEX!AD6="","",LEX!AD6) ->  | AB171: =IF(LEX!AE6="","",LEX!AE6) ->  | AC171: =IF(LEX!AF6="","",LEX!AF6) ->  | AD171: =IF(LEX!AG6="","",LEX!AG6) ->  | AE171: =IF(LEX!AH6="","",LEX!AH6) ->  | AF171: =IF(LEX!AI6="","",LEX!AI6) ->  | AG171: =IF(LEX!AJ6="","",LEX!AJ6) ->  | AH171: =IF(LEX!AK6="","",LEX!AK6) ->  | AI171: =IF(LEX!AL6="","",LEX!AL6) ->  | AJ171: =IF(LEX!AM6="","",LEX!AM6) ->  | AK171: =IF(LEX!AN6="","",LEX!AN6) ->  | AL171: =IF(LEX!AO6="","",LEX!AO6) ->  | AM171: =IF(LEX!AP6="","",LEX!AP6) -> 
C172: Comp. Esp. 2 | D172: Criterio Evaluación 2.1 | E172: =IF(LEX!H7="","",LEX!H7) ->  | F172: =IF(LEX!I7="","",LEX!I7) ->  | G172: =IF(LEX!J7="","",LEX!J7) ->  | H172: =IF(LEX!K7="","",LEX!K7) ->  | I172: =IF(LEX!L7="","",LEX!L7) ->  | J172: =IF(LEX!M7="","",LEX!M7) ->  | K172: =IF(LEX!N7="","",LEX!N7) ->  | L172: =IF(LEX!O7="","",LEX!O7) ->  | M172: =IF(LEX!P7="","",LEX!P7) ->  | N172: =IF(LEX!Q7="","",LEX!Q7) ->  | O172: =IF(LEX!R7="","",LEX!R7) ->  | P172: =IF(LEX!S7="","",LEX!S7) ->  | Q172: =IF(LEX!T7="","",LEX!T7) ->  | R172: =IF(LEX!U7="","",LEX!U7) ->  | S172: =IF(LEX!V7="","",LEX!V7) ->  | T172: =IF(LEX!W7="","",LEX!W7) ->  | U172: =IF(LEX!X7="","",LEX!X7) ->  | V172: =IF(LEX!Y7="","",LEX!Y7) ->  | W172: =IF(LEX!Z7="","",LEX!Z7) ->  | X172: =IF(LEX!AA7="","",LEX!AA7) ->  | Y172: =IF(LEX!AB7="","",LEX!AB7) ->  | Z172: =IF(LEX!AC7="","",LEX!AC7) ->  | AA172: =IF(LEX!AD7="","",LEX!AD7) ->  | AB172: =IF(LEX!AE7="","",LEX!AE7) ->  | AC172: =IF(LEX!AF7="","",LEX!AF7) ->  | AD172: =IF(LEX!AG7="","",LEX!AG7) ->  | AE172: =IF(LEX!AH7="","",LEX!AH7) ->  | AF172: =IF(LEX!AI7="","",LEX!AI7) ->  | AG172: =IF(LEX!AJ7="","",LEX!AJ7) ->  | AH172: =IF(LEX!AK7="","",LEX!AK7) ->  | AI172: =IF(LEX!AL7="","",LEX!AL7) ->  | AJ172: =IF(LEX!AM7="","",LEX!AM7) ->  | AK172: =IF(LEX!AN7="","",LEX!AN7) ->  | AL172: =IF(LEX!AO7="","",LEX!AO7) ->  | AM172: =IF(LEX!AP7="","",LEX!AP7) -> 
D173: Criterio Evaluación 2.2 | E173: =IF(LEX!H8="","",LEX!H8) ->  | F173: =IF(LEX!I8="","",LEX!I8) ->  | G173: =IF(LEX!J8="","",LEX!J8) ->  | H173: =IF(LEX!K8="","",LEX!K8) ->  | I173: =IF(LEX!L8="","",LEX!L8) ->  | J173: =IF(LEX!M8="","",LEX!M8) ->  | K173: =IF(LEX!N8="","",LEX!N8) ->  | L173: =IF(LEX!O8="","",LEX!O8) ->  | M173: =IF(LEX!P8="","",LEX!P8) ->  | N173: =IF(LEX!Q8="","",LEX!Q8) ->  | O173: =IF(LEX!R8="","",LEX!R8) ->  | P173: =IF(LEX!S8="","",LEX!S8) ->  | Q173: =IF(LEX!T8="","",LEX!T8) ->  | R173: =IF(LEX!U8="","",LEX!U8) ->  | S173: =IF(LEX!V8="","",LEX!V8) ->  | T173: =IF(LEX!W8="","",LEX!W8) ->  | U173: =IF(LEX!X8="","",LEX!X8) ->  | V173: =IF(LEX!Y8="","",LEX!Y8) ->  | W173: =IF(LEX!Z8="","",LEX!Z8) ->  | X173: =IF(LEX!AA8="","",LEX!AA8) ->  | Y173: =IF(LEX!AB8="","",LEX!AB8) ->  | Z173: =IF(LEX!AC8="","",LEX!AC8) ->  | AA173: =IF(LEX!AD8="","",LEX!AD8) ->  | AB173: =IF(LEX!AE8="","",LEX!AE8) ->  | AC173: =IF(LEX!AF8="","",LEX!AF8) ->  | AD173: =IF(LEX!AG8="","",LEX!AG8) ->  | AE173: =IF(LEX!AH8="","",LEX!AH8) ->  | AF173: =IF(LEX!AI8="","",LEX!AI8) ->  | AG173: =IF(LEX!AJ8="","",LEX!AJ8) ->  | AH173: =IF(LEX!AK8="","",LEX!AK8) ->  | AI173: =IF(LEX!AL8="","",LEX!AL8) ->  | AJ173: =IF(LEX!AM8="","",LEX!AM8) ->  | AK173: =IF(LEX!AN8="","",LEX!AN8) ->  | AL173: =IF(LEX!AO8="","",LEX!AO8) ->  | AM173: =IF(LEX!AP8="","",LEX!AP8) -> 
D174: Criterio Evaluación 2.3 | E174: =IF(LEX!H9="","",LEX!H9) ->  | F174: =IF(LEX!I9="","",LEX!I9) ->  | G174: =IF(LEX!J9="","",LEX!J9) ->  | H174: =IF(LEX!K9="","",LEX!K9) ->  | I174: =IF(LEX!L9="","",LEX!L9) ->  | J174: =IF(LEX!M9="","",LEX!M9) ->  | K174: =IF(LEX!N9="","",LEX!N9) ->  | L174: =IF(LEX!O9="","",LEX!O9) ->  | M174: =IF(LEX!P9="","",LEX!P9) ->  | N174: =IF(LEX!Q9="","",LEX!Q9) ->  | O174: =IF(LEX!R9="","",LEX!R9) ->  | P174: =IF(LEX!S9="","",LEX!S9) ->  | Q174: =IF(LEX!T9="","",LEX!T9) ->  | R174: =IF(LEX!U9="","",LEX!U9) ->  | S174: =IF(LEX!V9="","",LEX!V9) ->  | T174: =IF(LEX!W9="","",LEX!W9) ->  | U174: =IF(LEX!X9="","",LEX!X9) ->  | V174: =IF(LEX!Y9="","",LEX!Y9) ->  | W174: =IF(LEX!Z9="","",LEX!Z9) ->  | X174: =IF(LEX!AA9="","",LEX!AA9) ->  | Y174: =IF(LEX!AB9="","",LEX!AB9) ->  | Z174: =IF(LEX!AC9="","",LEX!AC9) ->  | AA174: =IF(LEX!AD9="","",LEX!AD9) ->  | AB174: =IF(LEX!AE9="","",LEX!AE9) ->  | AC174: =IF(LEX!AF9="","",LEX!AF9) ->  | AD174: =IF(LEX!AG9="","",LEX!AG9) ->  | AE174: =IF(LEX!AH9="","",LEX!AH9) ->  | AF174: =IF(LEX!AI9="","",LEX!AI9) ->  | AG174: =IF(LEX!AJ9="","",LEX!AJ9) ->  | AH174: =IF(LEX!AK9="","",LEX!AK9) ->  | AI174: =IF(LEX!AL9="","",LEX!AL9) ->  | AJ174: =IF(LEX!AM9="","",LEX!AM9) ->  | AK174: =IF(LEX!AN9="","",LEX!AN9) ->  | AL174: =IF(LEX!AO9="","",LEX!AO9) ->  | AM174: =IF(LEX!AP9="","",LEX!AP9) -> 
D175: Criterio Evaluación 2.4 | E175: =IF(LEX!H10="","",LEX!H10) ->  | F175: =IF(LEX!I10="","",LEX!I10) ->  | G175: =IF(LEX!J10="","",LEX!J10) ->  | H175: =IF(LEX!K10="","",LEX!K10) ->  | I175: =IF(LEX!L10="","",LEX!L10) ->  | J175: =IF(LEX!M10="","",LEX!M10) ->  | K175: =IF(LEX!N10="","",LEX!N10) ->  | L175: =IF(LEX!O10="","",LEX!O10) ->  | M175: =IF(LEX!P10="","",LEX!P10) ->  | N175: =IF(LEX!Q10="","",LEX!Q10) ->  | O175: =IF(LEX!R10="","",LEX!R10) ->  | P175: =IF(LEX!S10="","",LEX!S10) ->  | Q175: =IF(LEX!T10="","",LEX!T10) ->  | R175: =IF(LEX!U10="","",LEX!U10) ->  | S175: =IF(LEX!V10="","",LEX!V10) ->  | T175: =IF(LEX!W10="","",LEX!W10) ->  | U175: =IF(LEX!X10="","",LEX!X10) ->  | V175: =IF(LEX!Y10="","",LEX!Y10) ->  | W175: =IF(LEX!Z10="","",LEX!Z10) ->  | X175: =IF(LEX!AA10="","",LEX!AA10) ->  | Y175: =IF(LEX!AB10="","",LEX!AB10) ->  | Z175: =IF(LEX!AC10="","",LEX!AC10) ->  | AA175: =IF(LEX!AD10="","",LEX!AD10) ->  | AB175: =IF(LEX!AE10="","",LEX!AE10) ->  | AC175: =IF(LEX!AF10="","",LEX!AF10) ->  | AD175: =IF(LEX!AG10="","",LEX!AG10) ->  | AE175: =IF(LEX!AH10="","",LEX!AH10) ->  | AF175: =IF(LEX!AI10="","",LEX!AI10) ->  | AG175: =IF(LEX!AJ10="","",LEX!AJ10) ->  | AH175: =IF(LEX!AK10="","",LEX!AK10) ->  | AI175: =IF(LEX!AL10="","",LEX!AL10) ->  | AJ175: =IF(LEX!AM10="","",LEX!AM10) ->  | AK175: =IF(LEX!AN10="","",LEX!AN10) ->  | AL175: =IF(LEX!AO10="","",LEX!AO10) ->  | AM175: =IF(LEX!AP10="","",LEX!AP10) -> 
C176: Comp. Esp. 3 | D176: Criterio Evaluación 3.1 | E176: =IF(LEX!H11="","",LEX!H11) ->  | F176: =IF(LEX!I11="","",LEX!I11) ->  | G176: =IF(LEX!J11="","",LEX!J11) ->  | H176: =IF(LEX!K11="","",LEX!K11) ->  | I176: =IF(LEX!L11="","",LEX!L11) ->  | J176: =IF(LEX!M11="","",LEX!M11) ->  | K176: =IF(LEX!N11="","",LEX!N11) ->  | L176: =IF(LEX!O11="","",LEX!O11) ->  | M176: =IF(LEX!P11="","",LEX!P11) ->  | N176: =IF(LEX!Q11="","",LEX!Q11) ->  | O176: =IF(LEX!R11="","",LEX!R11) ->  | P176: =IF(LEX!S11="","",LEX!S11) ->  | Q176: =IF(LEX!T11="","",LEX!T11) ->  | R176: =IF(LEX!U11="","",LEX!U11) ->  | S176: =IF(LEX!V11="","",LEX!V11) ->  | T176: =IF(LEX!W11="","",LEX!W11) ->  | U176: =IF(LEX!X11="","",LEX!X11) ->  | V176: =IF(LEX!Y11="","",LEX!Y11) ->  | W176: =IF(LEX!Z11="","",LEX!Z11) ->  | X176: =IF(LEX!AA11="","",LEX!AA11) ->  | Y176: =IF(LEX!AB11="","",LEX!AB11) ->  | Z176: =IF(LEX!AC11="","",LEX!AC11) ->  | AA176: =IF(LEX!AD11="","",LEX!AD11) ->  | AB176: =IF(LEX!AE11="","",LEX!AE11) ->  | AC176: =IF(LEX!AF11="","",LEX!AF11) ->  | AD176: =IF(LEX!AG11="","",LEX!AG11) ->  | AE176: =IF(LEX!AH11="","",LEX!AH11) ->  | AF176: =IF(LEX!AI11="","",LEX!AI11) ->  | AG176: =IF(LEX!AJ11="","",LEX!AJ11) ->  | AH176: =IF(LEX!AK11="","",LEX!AK11) ->  | AI176: =IF(LEX!AL11="","",LEX!AL11) ->  | AJ176: =IF(LEX!AM11="","",LEX!AM11) ->  | AK176: =IF(LEX!AN11="","",LEX!AN11) ->  | AL176: =IF(LEX!AO11="","",LEX!AO11) ->  | AM176: =IF(LEX!AP11="","",LEX!AP11) -> 
D177: Criterio Evaluación 3.2 | E177: =IF(LEX!H12="","",LEX!H12) ->  | F177: =IF(LEX!I12="","",LEX!I12) ->  | G177: =IF(LEX!J12="","",LEX!J12) ->  | H177: =IF(LEX!K12="","",LEX!K12) ->  | I177: =IF(LEX!L12="","",LEX!L12) ->  | J177: =IF(LEX!M12="","",LEX!M12) ->  | K177: =IF(LEX!N12="","",LEX!N12) ->  | L177: =IF(LEX!O12="","",LEX!O12) ->  | M177: =IF(LEX!P12="","",LEX!P12) ->  | N177: =IF(LEX!Q12="","",LEX!Q12) ->  | O177: =IF(LEX!R12="","",LEX!R12) ->  | P177: =IF(LEX!S12="","",LEX!S12) ->  | Q177: =IF(LEX!T12="","",LEX!T12) ->  | R177: =IF(LEX!U12="","",LEX!U12) ->  | S177: =IF(LEX!V12="","",LEX!V12) ->  | T177: =IF(LEX!W12="","",LEX!W12) ->  | U177: =IF(LEX!X12="","",LEX!X12) ->  | V177: =IF(LEX!Y12="","",LEX!Y12) ->  | W177: =IF(LEX!Z12="","",LEX!Z12) ->  | X177: =IF(LEX!AA12="","",LEX!AA12) ->  | Y177: =IF(LEX!AB12="","",LEX!AB12) ->  | Z177: =IF(LEX!AC12="","",LEX!AC12) ->  | AA177: =IF(LEX!AD12="","",LEX!AD12) ->  | AB177: =IF(LEX!AE12="","",LEX!AE12) ->  | AC177: =IF(LEX!AF12="","",LEX!AF12) ->  | AD177: =IF(LEX!AG12="","",LEX!AG12) ->  | AE177: =IF(LEX!AH12="","",LEX!AH12) ->  | AF177: =IF(LEX!AI12="","",LEX!AI12) ->  | AG177: =IF(LEX!AJ12="","",LEX!AJ12) ->  | AH177: =IF(LEX!AK12="","",LEX!AK12) ->  | AI177: =IF(LEX!AL12="","",LEX!AL12) ->  | AJ177: =IF(LEX!AM12="","",LEX!AM12) ->  | AK177: =IF(LEX!AN12="","",LEX!AN12) ->  | AL177: =IF(LEX!AO12="","",LEX!AO12) ->  | AM177: =IF(LEX!AP12="","",LEX!AP12) -> 
C178: Comp. Esp. 4 | D178: Criterio Evaluación 4.1 | E178: =IF(LEX!H13="","",LEX!H13) ->  | F178: =IF(LEX!I13="","",LEX!I13) ->  | G178: =IF(LEX!J13="","",LEX!J13) ->  | H178: =IF(LEX!K13="","",LEX!K13) ->  | I178: =IF(LEX!L13="","",LEX!L13) ->  | J178: =IF(LEX!M13="","",LEX!M13) ->  | K178: =IF(LEX!N13="","",LEX!N13) ->  | L178: =IF(LEX!O13="","",LEX!O13) ->  | M178: =IF(LEX!P13="","",LEX!P13) ->  | N178: =IF(LEX!Q13="","",LEX!Q13) ->  | O178: =IF(LEX!R13="","",LEX!R13) ->  | P178: =IF(LEX!S13="","",LEX!S13) ->  | Q178: =IF(LEX!T13="","",LEX!T13) ->  | R178: =IF(LEX!U13="","",LEX!U13) ->  | S178: =IF(LEX!V13="","",LEX!V13) ->  | T178: =IF(LEX!W13="","",LEX!W13) ->  | U178: =IF(LEX!X13="","",LEX!X13) ->  | V178: =IF(LEX!Y13="","",LEX!Y13) ->  | W178: =IF(LEX!Z13="","",LEX!Z13) ->  | X178: =IF(LEX!AA13="","",LEX!AA13) ->  | Y178: =IF(LEX!AB13="","",LEX!AB13) ->  | Z178: =IF(LEX!AC13="","",LEX!AC13) ->  | AA178: =IF(LEX!AD13="","",LEX!AD13) ->  | AB178: =IF(LEX!AE13="","",LEX!AE13) ->  | AC178: =IF(LEX!AF13="","",LEX!AF13) ->  | AD178: =IF(LEX!AG13="","",LEX!AG13) ->  | AE178: =IF(LEX!AH13="","",LEX!AH13) ->  | AF178: =IF(LEX!AI13="","",LEX!AI13) ->  | AG178: =IF(LEX!AJ13="","",LEX!AJ13) ->  | AH178: =IF(LEX!AK13="","",LEX!AK13) ->  | AI178: =IF(LEX!AL13="","",LEX!AL13) ->  | AJ178: =IF(LEX!AM13="","",LEX!AM13) ->  | AK178: =IF(LEX!AN13="","",LEX!AN13) ->  | AL178: =IF(LEX!AO13="","",LEX!AO13) ->  | AM178: =IF(LEX!AP13="","",LEX!AP13) -> 
D179: Criterio Evaluación 4.2 | E179: =IF(LEX!H14="","",LEX!H14) ->  | F179: =IF(LEX!I14="","",LEX!I14) ->  | G179: =IF(LEX!J14="","",LEX!J14) ->  | H179: =IF(LEX!K14="","",LEX!K14) ->  | I179: =IF(LEX!L14="","",LEX!L14) ->  | J179: =IF(LEX!M14="","",LEX!M14) ->  | K179: =IF(LEX!N14="","",LEX!N14) ->  | L179: =IF(LEX!O14="","",LEX!O14) ->  | M179: =IF(LEX!P14="","",LEX!P14) ->  | N179: =IF(LEX!Q14="","",LEX!Q14) ->  | O179: =IF(LEX!R14="","",LEX!R14) ->  | P179: =IF(LEX!S14="","",LEX!S14) ->  | Q179: =IF(LEX!T14="","",LEX!T14) ->  | R179: =IF(LEX!U14="","",LEX!U14) ->  | S179: =IF(LEX!V14="","",LEX!V14) ->  | T179: =IF(LEX!W14="","",LEX!W14) ->  | U179: =IF(LEX!X14="","",LEX!X14) ->  | V179: =IF(LEX!Y14="","",LEX!Y14) ->  | W179: =IF(LEX!Z14="","",LEX!Z14) ->  | X179: =IF(LEX!AA14="","",LEX!AA14) ->  | Y179: =IF(LEX!AB14="","",LEX!AB14) ->  | Z179: =IF(LEX!AC14="","",LEX!AC14) ->  | AA179: =IF(LEX!AD14="","",LEX!AD14) ->  | AB179: =IF(LEX!AE14="","",LEX!AE14) ->  | AC179: =IF(LEX!AF14="","",LEX!AF14) ->  | AD179: =IF(LEX!AG14="","",LEX!AG14) ->  | AE179: =IF(LEX!AH14="","",LEX!AH14) ->  | AF179: =IF(LEX!AI14="","",LEX!AI14) ->  | AG179: =IF(LEX!AJ14="","",LEX!AJ14) ->  | AH179: =IF(LEX!AK14="","",LEX!AK14) ->  | AI179: =IF(LEX!AL14="","",LEX!AL14) ->  | AJ179: =IF(LEX!AM14="","",LEX!AM14) ->  | AK179: =IF(LEX!AN14="","",LEX!AN14) ->  | AL179: =IF(LEX!AO14="","",LEX!AO14) ->  | AM179: =IF(LEX!AP14="","",LEX!AP14) -> 
C180: Comp. Esp. 5 | D180: Criterio Evaluación 5.1 | E180: =IF(LEX!H15="","",LEX!H15) ->  | F180: =IF(LEX!I15="","",LEX!I15) ->  | G180: =IF(LEX!J15="","",LEX!J15) ->  | H180: =IF(LEX!K15="","",LEX!K15) ->  | I180: =IF(LEX!L15="","",LEX!L15) ->  | J180: =IF(LEX!M15="","",LEX!M15) ->  | K180: =IF(LEX!N15="","",LEX!N15) ->  | L180: =IF(LEX!O15="","",LEX!O15) ->  | M180: =IF(LEX!P15="","",LEX!P15) ->  | N180: =IF(LEX!Q15="","",LEX!Q15) ->  | O180: =IF(LEX!R15="","",LEX!R15) ->  | P180: =IF(LEX!S15="","",LEX!S15) ->  | Q180: =IF(LEX!T15="","",LEX!T15) ->  | R180: =IF(LEX!U15="","",LEX!U15) ->  | S180: =IF(LEX!V15="","",LEX!V15) ->  | T180: =IF(LEX!W15="","",LEX!W15) ->  | U180: =IF(LEX!X15="","",LEX!X15) ->  | V180: =IF(LEX!Y15="","",LEX!Y15) ->  | W180: =IF(LEX!Z15="","",LEX!Z15) ->  | X180: =IF(LEX!AA15="","",LEX!AA15) ->  | Y180: =IF(LEX!AB15="","",LEX!AB15) ->  | Z180: =IF(LEX!AC15="","",LEX!AC15) ->  | AA180: =IF(LEX!AD15="","",LEX!AD15) ->  | AB180: =IF(LEX!AE15="","",LEX!AE15) ->  | AC180: =IF(LEX!AF15="","",LEX!AF15) ->  | AD180: =IF(LEX!AG15="","",LEX!AG15) ->  | AE180: =IF(LEX!AH15="","",LEX!AH15) ->  | AF180: =IF(LEX!AI15="","",LEX!AI15) ->  | AG180: =IF(LEX!AJ15="","",LEX!AJ15) ->  | AH180: =IF(LEX!AK15="","",LEX!AK15) ->  | AI180: =IF(LEX!AL15="","",LEX!AL15) ->  | AJ180: =IF(LEX!AM15="","",LEX!AM15) ->  | AK180: =IF(LEX!AN15="","",LEX!AN15) ->  | AL180: =IF(LEX!AO15="","",LEX!AO15) ->  | AM180: =IF(LEX!AP15="","",LEX!AP15) -> 
D181: Criterio Evaluación 5.2 | E181: =IF(LEX!H16="","",LEX!H16) ->  | F181: =IF(LEX!I16="","",LEX!I16) ->  | G181: =IF(LEX!J16="","",LEX!J16) ->  | H181: =IF(LEX!K16="","",LEX!K16) ->  | I181: =IF(LEX!L16="","",LEX!L16) ->  | J181: =IF(LEX!M16="","",LEX!M16) ->  | K181: =IF(LEX!N16="","",LEX!N16) ->  | L181: =IF(LEX!O16="","",LEX!O16) ->  | M181: =IF(LEX!P16="","",LEX!P16) ->  | N181: =IF(LEX!Q16="","",LEX!Q16) ->  | O181: =IF(LEX!R16="","",LEX!R16) ->  | P181: =IF(LEX!S16="","",LEX!S16) ->  | Q181: =IF(LEX!T16="","",LEX!T16) ->  | R181: =IF(LEX!U16="","",LEX!U16) ->  | S181: =IF(LEX!V16="","",LEX!V16) ->  | T181: =IF(LEX!W16="","",LEX!W16) ->  | U181: =IF(LEX!X16="","",LEX!X16) ->  | V181: =IF(LEX!Y16="","",LEX!Y16) ->  | W181: =IF(LEX!Z16="","",LEX!Z16) ->  | X181: =IF(LEX!AA16="","",LEX!AA16) ->  | Y181: =IF(LEX!AB16="","",LEX!AB16) ->  | Z181: =IF(LEX!AC16="","",LEX!AC16) ->  | AA181: =IF(LEX!AD16="","",LEX!AD16) ->  | AB181: =IF(LEX!AE16="","",LEX!AE16) ->  | AC181: =IF(LEX!AF16="","",LEX!AF16) ->  | AD181: =IF(LEX!AG16="","",LEX!AG16) ->  | AE181: =IF(LEX!AH16="","",LEX!AH16) ->  | AF181: =IF(LEX!AI16="","",LEX!AI16) ->  | AG181: =IF(LEX!AJ16="","",LEX!AJ16) ->  | AH181: =IF(LEX!AK16="","",LEX!AK16) ->  | AI181: =IF(LEX!AL16="","",LEX!AL16) ->  | AJ181: =IF(LEX!AM16="","",LEX!AM16) ->  | AK181: =IF(LEX!AN16="","",LEX!AN16) ->  | AL181: =IF(LEX!AO16="","",LEX!AO16) ->  | AM181: =IF(LEX!AP16="","",LEX!AP16) -> 
D182: Criterio Evaluación 5.3 | E182: =IF(LEX!H17="","",LEX!H17) ->  | F182: =IF(LEX!I17="","",LEX!I17) ->  | G182: =IF(LEX!J17="","",LEX!J17) ->  | H182: =IF(LEX!K17="","",LEX!K17) ->  | I182: =IF(LEX!L17="","",LEX!L17) ->  | J182: =IF(LEX!M17="","",LEX!M17) ->  | K182: =IF(LEX!N17="","",LEX!N17) ->  | L182: =IF(LEX!O17="","",LEX!O17) ->  | M182: =IF(LEX!P17="","",LEX!P17) ->  | N182: =IF(LEX!Q17="","",LEX!Q17) ->  | O182: =IF(LEX!R17="","",LEX!R17) ->  | P182: =IF(LEX!S17="","",LEX!S17) ->  | Q182: =IF(LEX!T17="","",LEX!T17) ->  | R182: =IF(LEX!U17="","",LEX!U17) ->  | S182: =IF(LEX!V17="","",LEX!V17) ->  | T182: =IF(LEX!W17="","",LEX!W17) ->  | U182: =IF(LEX!X17="","",LEX!X17) ->  | V182: =IF(LEX!Y17="","",LEX!Y17) ->  | W182: =IF(LEX!Z17="","",LEX!Z17) ->  | X182: =IF(LEX!AA17="","",LEX!AA17) ->  | Y182: =IF(LEX!AB17="","",LEX!AB17) ->  | Z182: =IF(LEX!AC17="","",LEX!AC17) ->  | AA182: =IF(LEX!AD17="","",LEX!AD17) ->  | AB182: =IF(LEX!AE17="","",LEX!AE17) ->  | AC182: =IF(LEX!AF17="","",LEX!AF17) ->  | AD182: =IF(LEX!AG17="","",LEX!AG17) ->  | AE182: =IF(LEX!AH17="","",LEX!AH17) ->  | AF182: =IF(LEX!AI17="","",LEX!AI17) ->  | AG182: =IF(LEX!AJ17="","",LEX!AJ17) ->  | AH182: =IF(LEX!AK17="","",LEX!AK17) ->  | AI182: =IF(LEX!AL17="","",LEX!AL17) ->  | AJ182: =IF(LEX!AM17="","",LEX!AM17) ->  | AK182: =IF(LEX!AN17="","",LEX!AN17) ->  | AL182: =IF(LEX!AO17="","",LEX!AO17) ->  | AM182: =IF(LEX!AP17="","",LEX!AP17) -> 
C183: Comp. Esp. 6 | D183: Criterio Evaluación 6.1 | E183: =IF(LEX!H18="","",LEX!H18) ->  | F183: =IF(LEX!I18="","",LEX!I18) ->  | G183: =IF(LEX!J18="","",LEX!J18) ->  | H183: =IF(LEX!K18="","",LEX!K18) ->  | I183: =IF(LEX!L18="","",LEX!L18) ->  | J183: =IF(LEX!M18="","",LEX!M18) ->  | K183: =IF(LEX!N18="","",LEX!N18) ->  | L183: =IF(LEX!O18="","",LEX!O18) ->  | M183: =IF(LEX!P18="","",LEX!P18) ->  | N183: =IF(LEX!Q18="","",LEX!Q18) ->  | O183: =IF(LEX!R18="","",LEX!R18) ->  | P183: =IF(LEX!S18="","",LEX!S18) ->  | Q183: =IF(LEX!T18="","",LEX!T18) ->  | R183: =IF(LEX!U18="","",LEX!U18) ->  | S183: =IF(LEX!V18="","",LEX!V18) ->  | T183: =IF(LEX!W18="","",LEX!W18) ->  | U183: =IF(LEX!X18="","",LEX!X18) ->  | V183: =IF(LEX!Y18="","",LEX!Y18) ->  | W183: =IF(LEX!Z18="","",LEX!Z18) ->  | X183: =IF(LEX!AA18="","",LEX!AA18) ->  | Y183: =IF(LEX!AB18="","",LEX!AB18) ->  | Z183: =IF(LEX!AC18="","",LEX!AC18) ->  | AA183: =IF(LEX!AD18="","",LEX!AD18) ->  | AB183: =IF(LEX!AE18="","",LEX!AE18) ->  | AC183: =IF(LEX!AF18="","",LEX!AF18) ->  | AD183: =IF(LEX!AG18="","",LEX!AG18) ->  | AE183: =IF(LEX!AH18="","",LEX!AH18) ->  | AF183: =IF(LEX!AI18="","",LEX!AI18) ->  | AG183: =IF(LEX!AJ18="","",LEX!AJ18) ->  | AH183: =IF(LEX!AK18="","",LEX!AK18) ->  | AI183: =IF(LEX!AL18="","",LEX!AL18) ->  | AJ183: =IF(LEX!AM18="","",LEX!AM18) ->  | AK183: =IF(LEX!AN18="","",LEX!AN18) ->  | AL183: =IF(LEX!AO18="","",LEX!AO18) ->  | AM183: =IF(LEX!AP18="","",LEX!AP18) -> 
D184: Criterio Evaluación 6.2 | E184: =IF(LEX!H19="","",LEX!H19) ->  | F184: =IF(LEX!I19="","",LEX!I19) ->  | G184: =IF(LEX!J19="","",LEX!J19) ->  | H184: =IF(LEX!K19="","",LEX!K19) ->  | I184: =IF(LEX!L19="","",LEX!L19) ->  | J184: =IF(LEX!M19="","",LEX!M19) ->  | K184: =IF(LEX!N19="","",LEX!N19) ->  | L184: =IF(LEX!O19="","",LEX!O19) ->  | M184: =IF(LEX!P19="","",LEX!P19) ->  | N184: =IF(LEX!Q19="","",LEX!Q19) ->  | O184: =IF(LEX!R19="","",LEX!R19) ->  | P184: =IF(LEX!S19="","",LEX!S19) ->  | Q184: =IF(LEX!T19="","",LEX!T19) ->  | R184: =IF(LEX!U19="","",LEX!U19) ->  | S184: =IF(LEX!V19="","",LEX!V19) ->  | T184: =IF(LEX!W19="","",LEX!W19) ->  | U184: =IF(LEX!X19="","",LEX!X19) ->  | V184: =IF(LEX!Y19="","",LEX!Y19) ->  | W184: =IF(LEX!Z19="","",LEX!Z19) ->  | X184: =IF(LEX!AA19="","",LEX!AA19) ->  | Y184: =IF(LEX!AB19="","",LEX!AB19) ->  | Z184: =IF(LEX!AC19="","",LEX!AC19) ->  | AA184: =IF(LEX!AD19="","",LEX!AD19) ->  | AB184: =IF(LEX!AE19="","",LEX!AE19) ->  | AC184: =IF(LEX!AF19="","",LEX!AF19) ->  | AD184: =IF(LEX!AG19="","",LEX!AG19) ->  | AE184: =IF(LEX!AH19="","",LEX!AH19) ->  | AF184: =IF(LEX!AI19="","",LEX!AI19) ->  | AG184: =IF(LEX!AJ19="","",LEX!AJ19) ->  | AH184: =IF(LEX!AK19="","",LEX!AK19) ->  | AI184: =IF(LEX!AL19="","",LEX!AL19) ->  | AJ184: =IF(LEX!AM19="","",LEX!AM19) ->  | AK184: =IF(LEX!AN19="","",LEX!AN19) ->  | AL184: =IF(LEX!AO19="","",LEX!AO19) ->  | AM184: =IF(LEX!AP19="","",LEX!AP19) -> 
D185: Criterio Evaluación 6.3 | E185: =IF(LEX!H20="","",LEX!H20) ->  | F185: =IF(LEX!I20="","",LEX!I20) ->  | G185: =IF(LEX!J20="","",LEX!J20) ->  | H185: =IF(LEX!K20="","",LEX!K20) ->  | I185: =IF(LEX!L20="","",LEX!L20) ->  | J185: =IF(LEX!M20="","",LEX!M20) ->  | K185: =IF(LEX!N20="","",LEX!N20) ->  | L185: =IF(LEX!O20="","",LEX!O20) ->  | M185: =IF(LEX!P20="","",LEX!P20) ->  | N185: =IF(LEX!Q20="","",LEX!Q20) ->  | O185: =IF(LEX!R20="","",LEX!R20) ->  | P185: =IF(LEX!S20="","",LEX!S20) ->  | Q185: =IF(LEX!T20="","",LEX!T20) ->  | R185: =IF(LEX!U20="","",LEX!U20) ->  | S185: =IF(LEX!V20="","",LEX!V20) ->  | T185: =IF(LEX!W20="","",LEX!W20) ->  | U185: =IF(LEX!X20="","",LEX!X20) ->  | V185: =IF(LEX!Y20="","",LEX!Y20) ->  | W185: =IF(LEX!Z20="","",LEX!Z20) ->  | X185: =IF(LEX!AA20="","",LEX!AA20) ->  | Y185: =IF(LEX!AB20="","",LEX!AB20) ->  | Z185: =IF(LEX!AC20="","",LEX!AC20) ->  | AA185: =IF(LEX!AD20="","",LEX!AD20) ->  | AB185: =IF(LEX!AE20="","",LEX!AE20) ->  | AC185: =IF(LEX!AF20="","",LEX!AF20) ->  | AD185: =IF(LEX!AG20="","",LEX!AG20) ->  | AE185: =IF(LEX!AH20="","",LEX!AH20) ->  | AF185: =IF(LEX!AI20="","",LEX!AI20) ->  | AG185: =IF(LEX!AJ20="","",LEX!AJ20) ->  | AH185: =IF(LEX!AK20="","",LEX!AK20) ->  | AI185: =IF(LEX!AL20="","",LEX!AL20) ->  | AJ185: =IF(LEX!AM20="","",LEX!AM20) ->  | AK185: =IF(LEX!AN20="","",LEX!AN20) ->  | AL185: =IF(LEX!AO20="","",LEX!AO20) ->  | AM185: =IF(LEX!AP20="","",LEX!AP20) -> 
D186: Criterio Evaluación 6.4 | E186: =IF(LEX!H21="","",LEX!H21) ->  | F186: =IF(LEX!I21="","",LEX!I21) ->  | G186: =IF(LEX!J21="","",LEX!J21) ->  | H186: =IF(LEX!K21="","",LEX!K21) ->  | I186: =IF(LEX!L21="","",LEX!L21) ->  | J186: =IF(LEX!M21="","",LEX!M21) ->  | K186: =IF(LEX!N21="","",LEX!N21) ->  | L186: =IF(LEX!O21="","",LEX!O21) ->  | M186: =IF(LEX!P21="","",LEX!P21) ->  | N186: =IF(LEX!Q21="","",LEX!Q21) ->  | O186: =IF(LEX!R21="","",LEX!R21) ->  | P186: =IF(LEX!S21="","",LEX!S21) ->  | Q186: =IF(LEX!T21="","",LEX!T21) ->  | R186: =IF(LEX!U21="","",LEX!U21) ->  | S186: =IF(LEX!V21="","",LEX!V21) ->  | T186: =IF(LEX!W21="","",LEX!W21) ->  | U186: =IF(LEX!X21="","",LEX!X21) ->  | V186: =IF(LEX!Y21="","",LEX!Y21) ->  | W186: =IF(LEX!Z21="","",LEX!Z21) ->  | X186: =IF(LEX!AA21="","",LEX!AA21) ->  | Y186: =IF(LEX!AB21="","",LEX!AB21) ->  | Z186: =IF(LEX!AC21="","",LEX!AC21) ->  | AA186: =IF(LEX!AD21="","",LEX!AD21) ->  | AB186: =IF(LEX!AE21="","",LEX!AE21) ->  | AC186: =IF(LEX!AF21="","",LEX!AF21) ->  | AD186: =IF(LEX!AG21="","",LEX!AG21) ->  | AE186: =IF(LEX!AH21="","",LEX!AH21) ->  | AF186: =IF(LEX!AI21="","",LEX!AI21) ->  | AG186: =IF(LEX!AJ21="","",LEX!AJ21) ->  | AH186: =IF(LEX!AK21="","",LEX!AK21) ->  | AI186: =IF(LEX!AL21="","",LEX!AL21) ->  | AJ186: =IF(LEX!AM21="","",LEX!AM21) ->  | AK186: =IF(LEX!AN21="","",LEX!AN21) ->  | AL186: =IF(LEX!AO21="","",LEX!AO21) ->  | AM186: =IF(LEX!AP21="","",LEX!AP21) -> 
B187: Lenguaje y Práctica Musical | C187: Comp. Esp. 1 | D187: Criterio Evaluación 1.1 | E187: =IF(LYPM!H4="","",LYPM!H4) ->  | F187: =IF(LYPM!I4="","",LYPM!I4) ->  | G187: =IF(LYPM!J4="","",LYPM!J4) ->  | H187: =IF(LYPM!K4="","",LYPM!K4) ->  | I187: =IF(LYPM!L4="","",LYPM!L4) ->  | J187: =IF(LYPM!M4="","",LYPM!M4) ->  | K187: =IF(LYPM!N4="","",LYPM!N4) ->  | L187: =IF(LYPM!O4="","",LYPM!O4) ->  | M187: =IF(LYPM!P4="","",LYPM!P4) ->  | N187: =IF(LYPM!Q4="","",LYPM!Q4) ->  | O187: =IF(LYPM!R4="","",LYPM!R4) ->  | P187: =IF(LYPM!S4="","",LYPM!S4) ->  | Q187: =IF(LYPM!T4="","",LYPM!T4) ->  | R187: =IF(LYPM!U4="","",LYPM!U4) ->  | S187: =IF(LYPM!V4="","",LYPM!V4) ->  | T187: =IF(LYPM!W4="","",LYPM!W4) ->  | U187: =IF(LYPM!X4="","",LYPM!X4) ->  | V187: =IF(LYPM!Y4="","",LYPM!Y4) ->  | W187: =IF(LYPM!Z4="","",LYPM!Z4) ->  | X187: =IF(LYPM!AA4="","",LYPM!AA4) ->  | Y187: =IF(LYPM!AB4="","",LYPM!AB4) ->  | Z187: =IF(LYPM!AC4="","",LYPM!AC4) ->  | AA187: =IF(LYPM!AD4="","",LYPM!AD4) ->  | AB187: =IF(LYPM!AE4="","",LYPM!AE4) ->  | AC187: =IF(LYPM!AF4="","",LYPM!AF4) ->  | AD187: =IF(LYPM!AG4="","",LYPM!AG4) ->  | AE187: =IF(LYPM!AH4="","",LYPM!AH4) ->  | AF187: =IF(LYPM!AI4="","",LYPM!AI4) ->  | AG187: =IF(LYPM!AJ4="","",LYPM!AJ4) ->  | AH187: =IF(LYPM!AK4="","",LYPM!AK4) ->  | AI187: =IF(LYPM!AL4="","",LYPM!AL4) ->  | AJ187: =IF(LYPM!AM4="","",LYPM!AM4) ->  | AK187: =IF(LYPM!AN4="","",LYPM!AN4) ->  | AL187: =IF(LYPM!AO4="","",LYPM!AO4) ->  | AM187: =IF(LYPM!AP4="","",LYPM!AP4) -> 
